Workbook

Sheet Contents
C3: Contents | F3: Colour Codes | K3: File Name: | M3: =IFERROR(File_name(),"") -> 
G4: Colour of Input Cells | I4: 1234567890
C5: Video Notes | K5: Last Save Date | M5: =IFERROR(lastsaved(),"") -> 
D6: Use Case - PPA | G6: Section Titles | I6: TITLE ROW
D7: Case Points | G7: Column Letter of Title | I7: B | K7: Last Save By | M7: =IFERROR(last_save_by(),"") -> 
D8: Modelling
D9: Added Modelling for Class | G9: Colour for Sum Column | I9: 1000000000
G10: Column Letter for Sum | I10: A
C11: InputC
D12: Scenario No | G12: True or 1 Colour | I12: TRUE
D13: Timing | G13: False or 0 Colour | I13: FALSE
D14: Capacity and Produciton - Solar/Hydro
D15: Capacity and Production - BESS | G15: Links from Other Sheets | I15: 999999999
D16: Operating Cash Flow - Solar | G16: Start Column for Link Colour | I16: E
D17: Operating Cash Flow - BESS
D18: Depreciation and Taxes
D19: Debt Financing
D20: Constants
C22: InputS
D23: Seasonal Production
D24: S-Curve
C26: Operating Model
D27: Timing
D28: Operation - Solar/Hydro
D29: Operation - Battery
D30: Free Cash Flow - Solar
D31: Free Cash Flow - Battery
D32: Combined Cash Flow
D33: Graphs
D34: Transferred Variables - SUMIF
D35: Depreciation and Taxes
D36: Final Statistics
C38: Quarterly
D39: Timing
D40: Transferred Variables - SUMIF
D41: Depreciation and Taxes
D42: CFADS
D43: Debt Size
D44: Debt Account
D45: Cash Flow Pre-COD
D46: Cash Flow Waterfall Post COD
D47: Final Statistics
D48: Solver
C50: Quarterly Chart
C52: Annual
D53: Timing
D54: Production
D55: Capex
D56: Opex
C58: Production Chart
C60: Standard Deviation Example
C62: LCOE
D63: Drivers
C65: Simple Model -->
C67: InputC Simple
D68: Timing
D69: Operating Cash Flow
D70: Debt Financing
C72: Financial Model Simple
D73: Timing
D74: Debt Financing
D75: Graphs
C77: Debt and Cash Chart

Sheet Video Notes
B3: Use Case - PPA
B5: Case Points
C6: Modelling PPA Contract
C7: Characteristics Discussion
C8: Implications in Modelling - Example of Battery Life
C9: Understanding Capacity Payments
C10: Understanding Risks in Capacity Payment Contract
B12: Modelling
C13: Input C with both Solar and Battery
B16: Added Modelling for Class
C17: Simple Seasonal Calculation
D18: Code Number
C22: Reveiew of Monthly to Quarterly or Semi-Annual
D23: 1. Reasons for Monthly Model
D24: 1. Use of OR Function with care on first period
D27: Use of Lookup for non-summing variables
C29: Inverter Life and MRA
C32: Philosophy of P90 Taxes
C35: Debt Sizing Care

Sheet InputC
H1: Equity IRR | I1: =Quarterly!F127 -> 0.05703282058
B2: Scenario No | E2: 1 | H2: 1 | I2: 2 | J2: 3 | K2: 4 | L2: 5 | M2: 6 | N2: 7 | O2: 8 | P2: 9 | Q2: 10 | R2: 11 | S2: 12 | T2: 13
F3: =INDEX((H3:AK3),$E$2) -> Solar Standalone | H3: Solar Standalone | I3: Solar Case with Low Performance Ratio | J3: Solar Case with Tracking | K3: Nepal Solar | L3: BESS Stanalone - Ancillary Use Case | M3: BESS Standalone Load Shifting Case | N3: BESS Downside Case | O3: BESS Upside Case | P3: BESS with Solar Using PPA | Q3: BESS with Solar Using PPA Downside | R3: Hydro Project | S3: Hydro Project Downside Case | T3: Solar For Peak Hours
B5: Timing
C7: Construction Period | E7: Months | F7: =INDEX((H7:AK7),$E$2) -> 18 | H7: 18 | I7: 20 | J7: 22 | K7: 18 | L7: 15 | M7: 24 | N7: 24 | O7: 24 | P7: 24 | Q7: 24 | R7: 72 | S7: 72 | T7: 18
C8: PPA Signing Financial Close | E8: Date | F8: =INDEX((H8:AK8),$E$2) -> 2026-01-01 | H8: 2026-01-01 | I8: 2026-01-01 | J8: 2026-01-01 | K8: 2026-01-01 | L8: 2026-01-01 | M8: 2026-01-01 | N8: 2026-01-01 | O8: 2026-01-01 | P8: 2026-01-01 | Q8: 2026-01-01 | R8: 2026-01-01 | S8: 2026-01-01 | T8: 2026-01-01
C9: Commercial Operation Date | E9: Date | F9: =INDEX((H9:AK9),$E$2) -> 2027-07-01 | H9: =EDATE(H8,H7) -> 2027-07-01 | I9: 2027-09-01 | J9: 2027-11-01 | K9: =EDATE(K8,K7) -> 2027-07-01 | L9: 2027-04-01 | M9: 2028-01-01 | N9: =EDATE(N8,N7) -> 2028-01-01 | O9: =EDATE(O8,O7) -> 2028-01-01 | P9: 2028-01-01 | Q9: =EDATE(Q8,Q7) -> 2028-01-01 | R9: 2032-01-01 | S9: =EDATE(S8,S7) -> 2032-01-01 | T9: 2027-07-01
C10: PPA Period | E10: Years | F10: =INDEX((H10:AK10),$E$2) -> 25 | H10: 25 | I10: 25 | J10: 25 | K10: 25 | L10: =L17 -> 11 | M10: =M17 -> 15 | N10: 15 | O10: 17 | P10: 25 | Q10: 25 | R10: 30 | S10: 30 | T10: 25
C11: PPA End Date | E11: Date | F11: =INDEX((H11:AK11),$E$2) -> 2052-07-01 | H11: =EDATE(H9,H10*Months) -> 2052-07-01 | I11: 2052-09-01 | J11: 2052-11-01 | K11: =EDATE(K9,K10*Months) -> 2052-07-01 | L11: 2038-04-01 | M11: 2043-01-01 | N11: =EDATE(N9,N10*Months) -> 2043-01-01 | O11: =EDATE(O9,O10*Months) -> 2045-01-01 | P11: =EDATE(P9,P10*Months) -> 2053-01-01 | Q11: 2053-01-01 | R11: 2062-01-01 | S11: =EDATE(S9,S10*Months) -> 2062-01-01 | T11: 2052-07-01
C12: Economic Life - Solar/Hydro | E12: Years | F12: =INDEX((H12:AK12),$E$2) -> 35 | H12: 35 | I12: 35 | J12: 35 | K12: 25 | L12: =L17 -> 11 | M12: =M17 -> 15 | N12: 15 | O12: 17 | P12: 25 | Q12: =ROUND(Q50/Q51,0) -> 41 | R12: 30 | S12: 30 | T12: 35
C13: Decommissioning | E13: Date | F13: =INDEX((H13:AK13),$E$2) -> 2062-07-01 | H13: =EDATE(H9,H12*Months) -> 2062-07-01 | I13: 2062-09-01 | J13: 2062-11-01 | K13: =EDATE(K9,K12*Months) -> 2052-07-01 | L13: 2038-04-01 | M13: 2043-01-01 | N13: =EDATE(N9,N12*Months) -> 2043-01-01 | O13: =EDATE(O9,O12*Months) -> 2045-01-01 | P13: =EDATE(P9,P12*Months) -> 2053-01-01 | Q13: 2069-01-01 | R13: 2062-01-01 | S13: =EDATE(S9,S12*Months) -> 2062-01-01 | T13: 2062-07-01
C15: BESS PPA Period | E15: Years | F15: =INDEX((H15:AK15),$E$2) -> 0 | L15: 10 | M15: 10 | N15: 10 | O15: 10 | P15: 10 | Q15: 10
C16: End of BESS PPA Period | E16: Date | F16: =INDEX((H16:AK16),$E$2) -> FALSE | H16: =IF(H15,EDATE(H9,H15*Months)) -> FALSE | I16: FALSE | J16: FALSE | K16: FALSE | L16: 2037-04-01 | M16: 2038-01-01 | N16: 2038-01-01 | O16: 2038-01-01 | P16: 2038-01-01 | Q16: 2038-01-01 | R16: FALSE | S16: FALSE | T16: FALSE
C17: BESS Economic Life | E17: Years | L17: =ROUND(L50/L51,0) -> 11 | M17: 15 | N17: 15 | O17: 17 | P17: 15 | Q17: 20
C18: BESS Decommissioning | E18: Date | F18: =INDEX((H18:AK18),$E$2) -> FALSE | H18: =IF(H17,EDATE(H9,H17*Months)) -> FALSE | I18: =IF(I17,EDATE(I9,I17*Months)) -> FALSE | J18: =IF(J17,EDATE(J9,J17*Months)) -> FALSE | K18: =IF(K17,EDATE(K9,K17*Months)) -> FALSE | L18: =IF(L17,EDATE(L9,L17*Months)) -> 2038-04-01 | M18: =IF(M17,EDATE(M9,M17*Months)) -> 2043-01-01 | N18: =IF(N17,EDATE(N9,N17*Months)) -> 2043-01-01 | O18: =IF(O17,EDATE(O9,O17*Months)) -> 2045-01-01 | P18: =IF(P17,EDATE(P9,P17*Months)) -> 2043-01-01 | Q18: =IF(Q17,EDATE(Q9,Q17*Months)) -> 2048-01-01 | R18: =IF(R17,EDATE(R9,R17*Months)) -> FALSE | S18: =IF(S17,EDATE(S9,S17*Months)) -> FALSE | T18: =IF(T17,EDATE(T9,T17*Months)) -> FALSE
C19: Months in Period for Finance - Construction | E19: Periods | F19: =INDEX((H19:AK19),$E$2) -> 1 | H19: 1 | I19: 1 | J19: 1 | K19: 1 | L19: 1 | M19: 1 | N19: 1 | O19: 1 | P19: 1 | Q19: 1 | R19: 1 | S19: 1 | T19: 1
C20: Months in Period for Finance - Operation | E20: Periods | F20: =INDEX((H20:AK20),$E$2) -> 3 | H20: 3 | I20: 3 | J20: 3 | K20: 3 | L20: 3 | M20: 3 | N20: 3 | O20: 3 | P20: 3 | Q20: 3 | R20: 3 | S20: 3 | T20: 3
B22: Capacity and Produciton - Solar/Hydro
C23: Capacity and Production | E23: kWp | F23: =INDEX(H23:T23,$E$2) -> 15000 | H23: 15000 | I23: 15000 | J23: 15000 | K23: 20000 | P23: 15000 | Q23: 15000 | R23: 15000 | S23: 15000 | T23: 15000
C24: DC / AC Ratio | E24: x | F24: =INDEX(H24:T24,$E$2) -> 1.2 | H24: 1.2 | I24: 1.2 | J24: 1.2 | K24: 1.2 | P24: 1.2 | Q24: 1.2 | R24: 1.2 | S24: 1.2 | T24: 1.2
C25: Capacity AC | E25: kWac | F25: =INDEX(H25:T25,$E$2) -> 12500 | H25: =H23/H24 -> 12500 | I25: =I23/I24 -> 12500 | J25: 12500 | K25: =K23/K24 -> 16666.66667 | P25: =P23/P24 -> 12500 | Q25: 12500 | R25: 12500 | S25: =S23/S24 -> 12500 | T25: 12500
C26: Solar In-plain Yield from Irriadiation | E26: kWh/m2) | F26: =INDEX(H26:T26,$E$2) -> 2057 | H26: 2057 | I26: 2057 | J26: 2057 | K26: 2057 | P26: 2057 | Q26: 2057 | R26: 2057 | S26: 2057 | T26: 2057
C27: STC Capacity | E27: Kw/m2 | F27: =INDEX(H27:T27,$E$2) -> 1 | H27: 1 | I27: 1 | J27: 1 | K27: 1 | P27: 1 | Q27: 1 | R27: 1 | S27: 1 | T27: 1
C28: Capacity Factor from In Plane Irradiation | E28: % | F28: =INDEX(H28:T28,$E$2) -> 0.2348173516 | H28: =H26/(H27*Hours) -> 0.2348173516 | I28: 0.2348173516 | J28: 0.2348173516 | K28: =K26/(K27*Hours) -> 0.2348173516 | P28: =P26/(P27*Hours) -> 0.2348173516 | Q28: 0.2348173516 | R28: 0.2348173516 | S28: =S26/(S27*Hours) -> 0.2348173516 | T28: 0.2348173516
C29: Performance Ratio | E29: % | F29: =INDEX(H29:T29,$E$2) -> 0.85 | H29: 0.85 | I29: 0.78 | J29: 0.82 | K29: 0.82 | P29: 0.82 | Q29: 0.82 | T29: 0.82
C30: Yield After P/R - P50 | E30: kWh/kWp | F30: =INDEX(H30:T30,$E$2) -> 1748.45 | H30: =H26*H29 -> 1748.45 | I30: =I26*I29 -> 1604.46 | J30: 1686.74 | K30: =0.22*8760 -> 1927.2 | P30: =P26*P29 -> 1686.74 | Q30: 1686.74 | R30: =0.4*8760 -> 3504 | S30: =0.4*8760 -> 3504 | T30: =0.4*8760 -> 3504
C32: Seasonality Code in InputS | E32: Code | F32: =INDEX(H32:T32,$E$2) -> 3 | H32: 3 | I32: 2 | J32: 2 | K32: 2 | P32: 2 | Q32: 2 | R32: 2 | S32: 2 | T32: 2
C33: Seasonality Code | E33: Description | F33: =INDEX(InputS!$D$9:$D$12,InputC!F32) -> More Seasonality
C35: Inverter Life | E35: Years | F35: =INDEX(H35:T35,$E$2) -> 15 | H35: 15 | I35: 10 | J35: 15 | K35: 15 | P35: 15 | Q35: 15 | R35: 15 | S35: 15 | T35: 15
C36: Latest Year for Inverter Replacement | E36: Year | F36: =INDEX(H36:T36,$E$2) -> 20 | H36: 20 | I36: 20 | J36: 20 | K36: 20 | P36: 20 | Q36: 20 | R36: 20 | S36: 20 | T36: 20
C38: Standard Deviation | E38: % | F38: =INDEX(H38:T38,$E$2) -> 0.04 | H38: 0.04 | I38: 0.06 | J38: 0.035 | K38: 0.05 | P38: 0.035 | Q38: 0.035 | R38: 0.1 | S38: 0.1 | T38: 0.035
C39: Yield After P/R - P90 | E39: kWh/kWp | F39: =INDEX(H39:T39,$E$2) -> 1658.820847 | H39: =NORMINV(0.1,H30,H38*H30) -> 1658.820847 | I39: =NORMINV(0.1,I30,I38*I30) -> 1481.088107 | J39: =NORMINV(0.1,J30,J38*J30) -> 1611.08245 | K39: =NORMINV(0.1,K30,K38*K30) -> 1803.709691 | P39: =NORMINV(0.1,P30,P38*P30) -> 1611.08245 | Q39: =NORMINV(0.1,Q30,Q38*Q30) -> 1611.08245 | R39: =NORMINV(0.1,R30,R38*R30) -> 3054.944331 | S39: =NORMINV(0.1,S30,S38*S30) -> 3054.944331 | T39: =NORMINV(0.1,T30,T38*T30) -> 3346.830516
C40: P90/P50 | E40: % | F40: =INDEX(H40:T40,$E$2) -> 0.9487379374 | H40: =H39/H30 -> 0.9487379374 | I40: =I39/I30 -> 0.9231069061 | J40: =J39/J30 -> 0.9551456952 | K40: =K39/K30 -> 0.9359224217 | P40: =P39/P30 -> 0.9551456952 | Q40: =Q39/Q30 -> 0.9551456952 | R40: =R39/R30 -> 0.8718448434 | S40: =S39/S30 -> 0.8718448434 | T40: =T39/T30 -> 0.9551456952
C41: Solar Degradation | E41: % p.a | F41: =INDEX(H41:T41,$E$2) -> 0.005 | H41: 0.005 | I41: 0.005 | J41: 0.005 | K41: 0.004 | P41: 0.005 | Q41: 0.005 | R41: 0.005 | S41: 0.005 | T41: 0.005
B43: Capacity and Production - BESS
C45: Inverter Capacity | E45: kWp | F45: =INDEX(H45:T45,$E$2) -> 0 | L45: 10000 | M45: 10000 | N45: 10000 | O45: 10000 | P45: 10000 | Q45: 10000 | T45: 17000
C46: Duration | E46: Hours | F46: =INDEX(H46:T46,$E$2) -> 0 | L46: 1 | M46: 4 | N46: 4 | O46: 4 | P46: 4 | Q46: 4 | T46: 5
C47: Storage Capactiy | E47: kWh | F47: =INDEX(H47:T47,$E$2) -> 0 | L47: =L45*L46 -> 10000 | M47: =M45*M46 -> 40000 | N47: =N45*N46 -> 40000 | O47: =O45*O46 -> 40000 | P47: 40000 | Q47: 40000 | T47: =T45*T46 -> 85000
C48: Storage Availability | E48: % | F48: =INDEX(H48:T48,$E$2) -> 0 | L48: 0.95 | M48: 0.95 | N48: 0.92 | O48: 0.98 | P48: 0.98 | Q48: 0.9 | T48: 0.98
C50: Total Cycles | E50: Number | F50: =INDEX(H50:T50,$E$2) -> 0 | L50: 8000 | M50: 8000 | N50: 8000 | O50: 15000 | P50: 15000 | Q50: 15000 | T50: 15000
C51: Cycles | E51: Number/Year | F51: =INDEX(H51:T51,$E$2) -> 0 | L51: =M51*2 -> 730 | M51: 365 | N51: 365 | O51: 365 | P51: 365 | Q51: 365 | T51: 365
C53: Round Trip Efficiency - Actual | E53: % | F53: =INDEX(H53:T53,$E$2) -> 0 | L53: 0.85 | M53: 0.85 | N53: 0.82 | O53: 0.9 | P53: 0.9 | Q53: 0.9 | T53: 0.9
C54: Degradation - Actual | E54: Code | F54: =INDEX(H54:T54,$E$2) -> 0 | L54: 1 | M54: 1 | N54: 2 | O54: 3 | P54: 1 | Q54: 3 | T54: 3
C55: Degradatin Description | E55: Description | F55: =INDEX(H55:T55,$E$2) -> 0 | L55: =INDEX(InputS!$D$34:$D$36,InputC!L54) -> Degrade Base | M55: =INDEX(InputS!$D$34:$D$36,InputC!M54) -> Degrade Base | N55: =INDEX(InputS!$D$34:$D$36,InputC!N54) -> Degrade Low | O55: =INDEX(InputS!$D$34:$D$36,InputC!O54) -> Degarde High | P55: =INDEX(InputS!$D$34:$D$36,InputC!P54) -> Degrade Base | Q55: =INDEX(InputS!$D$34:$D$36,InputC!Q54) -> Degarde High | T55: =INDEX(InputS!$D$34:$D$36,InputC!T54) -> Degarde High
B57: Operating Cash Flow - Solar
C59: Exchange Rate | E59: INR Cr./USD | F59: =INDEX(H59:T59,$E$2) -> 90 | H59: 90 | I59: 90 | J59: 90 | K59: 90 | L59: 90 | M59: 90 | N59: 90 | O59: 90 | P59: 90 | Q59: 90 | R59: 90 | S59: 90 | T59: 90
C60: Inflation Rate | E60: % p.a | F60: =INDEX(H60:T60,$E$2) -> 0.04 | H60: 0.04 | I60: 0.04 | J60: 0.04 | K60: 0.04 | L60: 0.04 | M60: 0.04 | N60: 0.04 | O60: 0.04 | P60: 0.04 | Q60: 0.04 | R60: 0.04 | S60: 0.04 | T60: 0.04
C62: Capital Expenditure - Solar/Hydro
D63: Panels | E63: INR Cr./kWp | F63: =INDEX(H63:T63,$E$2) -> 13500 | H63: =H71*H59 -> 13500 | I63: =I71*I59 -> 13500 | J63: 13500 | K63: =K67-K64-K65-K66 -> 19980 | P63: =P71*P59 -> 13500
D64: Inverters | E64: INR Cr./kWp | F64: =INDEX(H64:T64,$E$2) -> 2700 | H64: =$H$59*H72 -> 2700 | I64: =$H$59*I72 -> 2700 | J64: 2700 | K64: =$H$59*K72 -> 2700 | P64: =P59*P72 -> 2700
D65: Labour, Wiring, Stracking | E65: INR Cr./kWp | F65: =INDEX(H65:T65,$E$2) -> 16200 | H65: =$H$59*H73 -> 16200 | I65: 16200 | J65: 16200 | K65: =$H$59*K73 -> 16200 | P65: =P59*P73 -> 16200
D66: Land | E66: INR Cr./kWp | F66: =INDEX(H66:T66,$E$2) -> 4500 | H66: 4500 | I66: 4500 | J66: 4500 | K66: =$H$59*K74 -> 4500 | P66: =P59*P74 -> 4500
D67: Total | E67: INR Cr./kWp | F67: =INDEX(H67:T67,$E$2) -> 36900 | H67: =SUM(H63:H66) -> 36900 | I67: =SUM(I63:I66) -> 36900 | J67: 36900 | K67: =K75*K59 -> 43380 | P67: =SUM(P63:P66) -> 36900 | R67: =R75*R59 -> 125010 | S67: =S75*S59 -> 125010 | T67: =T75*T59 -> 125010
D68: S-Curve | E68: Code | F68: =INDEX(H68:T68,$E$2) -> 3 | H68: 3 | I68: 3 | J68: 3 | K68: 3 | R68: 1 | S68: 1 | T68: 1
D69: Description | E69: Description | F69: =INDEX(H69:T69,$E$2) -> S-Curve Input - Weighted End | H69: =INDEX(InputS!$D$20:$D$22,InputC!H68) -> S-Curve Input - Weighted End | I69: =INDEX(InputS!$D$20:$D$22,InputC!I68) -> S-Curve Input - Weighted End | J69: =INDEX(InputS!$D$20:$D$22,InputC!J68) -> S-Curve Input - Weighted End | K69: =INDEX(InputS!$D$20:$D$22,InputC!K68) -> S-Curve Input - Weighted End
D71: Panels | E71: USD/kWp | F71: =INDEX(H71:T71,$E$2) -> 150 | H71: 150 | I71: 150 | J71: 150 | K71: =K75-K72-K73-K74 -> 222 | P71: 150
D72: Inverters | E72: USD/kWp | F72: =INDEX(H72:T72,$E$2) -> 30 | H72: 30 | I72: 30 | J72: 30 | K72: 30 | P72: 30
D73: Labour, Wiring, Stracking | E73: USD/kWp | F73: =INDEX(H73:T73,$E$2) -> 180 | H73: 180 | I73: 180 | J73: 180 | K73: 180 | P73: 180
D74: Land | E74: USD/kWp | F74: =INDEX(H74:T74,$E$2) -> 50 | H74: 50 | I74: 50 | J74: 50 | K74: 50 | P74: 50
D75: Total | E75: USD/kWp | F75: =INDEX(H75:T75,$E$2) -> 410 | H75: =SUM(H71:H74) -> 410 | I75: =SUM(I71:I74) -> 410 | J75: 410 | K75: 482 | P75: =SUM(P71:P74) -> 410 | R75: 1389 | S75: 1389 | T75: 1389
C77: Operating Expense - Solar
D78: O&M Expense | E78: INR Cr./kWy | F78: =INDEX(H78:T78,$E$2) -> 360 | H78: =H83*$H$59 -> 360 | I78: =I83*$H$59 -> 360 | J78: 360 | K78: =K83*$H$59 -> 360 | P78: =P83*$H$59 -> 360
D79: Insurance Expense | E79: INR Cr./kWy | F79: =INDEX(H79:T79,$E$2) -> 180 | H79: =H84*$H$59 -> 180 | I79: 180 | J79: 180 | K79: =K84*$H$59 -> 180 | P79: =P84*$H$59 -> 180
D80: Other Expense | E80: INR Cr./kWy | F80: =INDEX(H80:T80,$E$2) -> 90 | H80: 90 | I80: 90 | J80: 90 | K80: =K85*$H$59 -> 90 | P80: =P85*$H$59 -> 90
D81: Total | E81: INR Cr./kWy | F81: =INDEX(H81:T81,$E$2) -> 630 | H81: =SUM(H78:H80) -> 630 | I81: =SUM(I78:I80) -> 630 | J81: 630 | K81: =K86*K59 -> 737.46 | P81: =SUM(P78:P80) -> 630
D83: O&M Expense | E83: USD/kWy | F83: =INDEX(H83:T83,$E$2) -> 4 | H83: 4 | I83: 4 | J83: 4 | K83: 4 | P83: 4
D84: Insurance Expense | E84: USD/kWy | F84: =INDEX(H84:T84,$E$2) -> 2 | H84: 2 | I84: 2 | J84: 2 | K84: 2 | P84: 2
D85: Other Expense | E85: USD/kWy | F85: =INDEX(H85:T85,$E$2) -> 1 | H85: 1 | I85: 1 | J85: 1 | K85: 1 | P85: 1
D86: Total | E86: USD/kWy | F86: =INDEX(H86:T86,$E$2) -> 7 | H86: =SUM(H83:H85) -> 7 | I86: =SUM(I83:I85) -> 7 | J86: 7 | K86: =K75*1.7% -> 8.194 | P86: =SUM(P83:P85) -> 7 | R86: =0.02*R75 -> 27.78 | S86: =0.02*S75 -> 27.78 | T86: =0.02*T75 -> 27.78
C88: Revenue
D89: PPA Base Rate | E89: INR Cr./kWh | F89: =INDEX(H89:T89,$E$2) -> 2.5 | H89: 2.5 | I89: 2.5 | J89: 2.5 | K89: 3.39 | P89: 2.5 | R89: 2.5 | S89: 2.5 | T89: 2.5
D90: Min Utilisation | E90: % | F90: =INDEX(H90:T90,$E$2) -> 0.15 | H90: 0.15 | I90: 0.15 | J90: 0.15 | K90: 0.15 | P90: 0.15 | T90: 0.15
D91: PPA penalty Factor | E91: X | F91: =INDEX(H91:T91,$E$2) -> 1.5 | H91: 1.5 | I91: 1.5 | J91: 1.5 | K91: 1.5 | P91: 1.5 | T91: 1.5
D92: Apply Inflation | E92: flag | F92: =INDEX(H92:T92,$E$2) -> FALSE | H92: FALSE | I92: FALSE | J92: FALSE | K92: FALSE | P92: TRUE | T92: TRUE
D93: Post PPA Price - Real | E93: INR Cr./kWh | F93: =INDEX(H93:T93,$E$2) -> 2.5 | H93: 2.5 | I93: 2.5 | J93: 2.5 | K93: 2.5 | P93: 2.5 | T93: 2.5
B95: Operating Cash Flow - BESS
C97: Capital Expenditure - BESS
D98: Storage | E98: INR Cr./kWh
D99: Inverters | E99: INR Cr./kWp
D100: Total | E100: INR Cr./kWh | F100: =INDEX(H100:T100,$E$2) -> 0 | L100: =L106*L59 -> 11700 | M100: 9000 | N100: =N106*N59 -> 9000 | O100: 9000 | P100: 9000 | Q100: 9000 | T100: =T106*T59 -> 9000
D101: S-Curve | E101: Code | F101: =INDEX(H101:T101,$E$2) -> 0 | L101: 4 | M101: 4 | N101: 4 | O101: 4 | P101: 4 | Q101: 4 | T101: 4
C103: Capital Expenditure - BESS
D104: Storage | E104: USD/kWh
D105: Inverters | E105: USD/kWh
D106: Total | E106: USD/kWh | L106: 130 | M106: 100 | N106: 100 | O106: 100 | P106: 100 | Q106: 100 | T106: 100
D107: S-Curve | E107: Code | L107: 4 | M107: 4 | N107: 4 | O107: 4 | P107: 4 | Q107: 4 | T107: 4
C109: Operating Expense - BESS
D110: O&M Expense | E110: INR Cr./kWh-y
D111: Cooling Expense | E111: INR Cr./kWh-y
D112: Insurance Expense | E112: INR Cr./kWh-y
D113: Other Expense | E113: INR Cr./kWh-y
D114: Total | E114: INR Cr./kWy | F114: =INDEX(H114:T114,$E$2) -> 0 | L114: =L119*L59 -> 135 | M114: 135 | N114: =N119*N59 -> 135 | O114: 135 | P114: 135 | Q114: 135 | T114: =T119*T59 -> 135
D116: O&M Expense | E116: USD/kWh
D117: Cooling Expense | E117: USD/kWh
D118: Insurance Expense | E118: USD/kWh
D119: Other Expense | E119: USD/kWh | L119: 1.5 | M119: 1.5 | N119: 1.5 | O119: 1.5 | P119: 1.5 | Q119: 1.5 | T119: 1.5
D120: Total | E120: USD/kWh
C122: Revenue
D123: Base Capacity Payment | E123: INR Cr./kWh | F123: =INDEX(H123:T123,$E$2) -> 0 | L123: 0.45 | M123: 0.45 | N123: 0.45 | O123: 0.45 | P123: 0.45 | Q123: 0.45 | T123: 1.5
D124: Availability Target | E124: % | F124: =INDEX(H124:T124,$E$2) -> 0 | L124: 0.97 | M124: 0.97 | N124: 0.97 | O124: 0.97 | P124: 0.97 | Q124: 0.97 | T124: 0.97
D125: Degradation Target | E125: % | F125: =INDEX(H125:T125,$E$2) -> 0 | L125: 0.02 | M125: 0.02 | N125: 0.02 | O125: 0.02 | P125: 0.02 | Q125: 0.02 | T125: 0.02
D126: Round Trip Efficiency Target | E126: % | F126: =INDEX(H126:T126,$E$2) -> 0 | L126: 0.85 | M126: 0.85 | N126: 0.85 | O126: 0.85 | P126: 0.85 | Q126: 0.85 | T126: 0.85
D127: Apply Inflation | E127: flag | F127: =INDEX(H127:T127,$E$2) -> 0 | L127: FALSE | M127: FALSE | N127: FALSE | O127: FALSE | P127: FALSE | Q127: FALSE | T127: FALSE
D128: Post PPA Price | E128: INR Cr./kWh | F128: =INDEX(H128:T128,$E$2) -> 0 | L128: 0.8 | M128: 0.8 | N128: 0.8 | O128: 0.8 | P128: 0.8 | Q128: 0.8
D129: Rate Applied to Target vs Actual Loss | E129: INR Cr./kWh | F129: =INDEX(H129:T129,$E$2) -> 0 | L129: 2.5 | M129: 2.5 | N129: 2.5 | O129: 2.5 | P129: 2.5 | Q129: 2.5 | T129: 2.5
D130: Apply Inflation to Post PPA Price | E130: flag | F130: =INDEX(H130:T130,$E$2) -> 0 | L130: FALSE | M130: FALSE | N130: FALSE | O130: FALSE | P130: FALSE | Q130: FALSE
B132: Depreciation and Taxes
D133: Depreciation Life | E133: Years | F133: =INDEX(H133:T133,$E$2) -> 25 | H133: =H10 -> 25 | I133: 25 | J133: 25 | K133: 25 | L133: 11 | M133: 15 | N133: 15 | O133: 17 | P133: 25 | Q133: 25 | R133: 30 | S133: 30 | T133: 25
D134: Corporate Income Tax Rate | E134: % | F134: =G134/100 -> 0.27 | G134: 27 | H134: =$F$134 -> 0.27 | I134: =$F$134 -> 0.27 | J134: 0.27 | K134: 0.27 | L134: 0.27 | M134: 0.27 | N134: 0.27 | O134: 0.27 | P134: 0.27 | Q134: 0.27 | R134: 0.27 | S134: 0.27 | T134: 0.27
B139: Debt Financing
D141: Debt Size - Debt to Capital | E141: % | F141: =INDEX(H141:T141,$E$2) -> 0.85 | H141: 0.85 | I141: 0.85 | J141: 0.85 | K141: 0.7 | L141: 0.85 | M141: 0.85 | N141: 0.85 | O141: 0.85 | P141: 0.85 | Q141: 0.85 | R141: 0.85 | S141: 0.85 | T141: 0.85
D142: Debt Size from - DSCR | E142: x | F142: =INDEX(H142:T142,$E$2) -> 1.2 | H142: 1.2 | I142: 1.25 | J142: 1.25 | K142: =1.26 -> 1.26 | L142: 1.25 | M142: 1.25 | N142: 1.25 | O142: 1.25 | P142: 1.25 | Q142: 1.25 | R142: 1.25 | S142: 1.25 | T142: 1.25
D143: Apply P90 in Debt Size and DSCR | E143: Flag | F143: TRUE | H143: =$F$143 -> TRUE | I143: =$F$143 -> TRUE | J143: TRUE | K143: TRUE | L143: TRUE | M143: TRUE | N143: TRUE | O143: TRUE | P143: TRUE | Q143: TRUE | R143: TRUE | S143: TRUE | T143: TRUE
D145: Debt Tenure | E145: years | F145: =INDEX(H145:T145,$E$2) -> 25 | H145: 25 | I145: 25 | J145: 8 | K145: 12 | L145: 8 | M145: 8 | N145: 8 | O145: 8 | P145: 8 | Q145: 8 | R145: 8 | S145: 8 | T145: 8
D146: Interest Rate | E146: % | F146: =INDEX(H146:T146,$E$2) -> 0.07 | H146: 0.07 | I146: 0.07 | J146: 0.07 | K146: 0.07 | L146: 0.07 | M146: 0.07 | N146: 0.07 | O146: 0.07 | P146: 0.07 | Q146: 0.07 | R146: 0.07 | S146: 0.07 | T146: 0.07
D147: Equal Debt Service | E147: Flag | F147: =INDEX(H147:T147,$E$2) -> FALSE | H147: FALSE | I147: FALSE | J147: FALSE | K147: FALSE | L147: FALSE | M147: FALSE | N147: FALSE | O147: FALSE | P147: FALSE | Q147: FALSE | R147: FALSE | S147: FALSE | T147: FALSE
D148: Sculpted Debt Service | E148: flag | F148: =INDEX(H148:T148,$E$2) -> TRUE | H148: =NOT(H147) -> TRUE | I148: =NOT(I147) -> TRUE | J148: TRUE | K148: =NOT(K147) -> TRUE | L148: TRUE | M148: TRUE | N148: =NOT(N147) -> TRUE | O148: TRUE | P148: TRUE | Q148: TRUE | R148: TRUE | S148: TRUE | T148: TRUE
D150: Up-Front Fee | E150: % | F150: =INDEX(H150:T150,$E$2) -> 0.01 | H150: 0.01 | I150: 0.01 | J150: 0.01 | K150: 0.0075 | L150: 0.01 | M150: 0.01 | N150: 0.01 | O150: 0.01 | P150: 0.01 | Q150: 0.01 | R150: 0.01 | S150: 0.01 | T150: 0.01
D151: Commitment Fee | E151: % | F151: =INDEX(H151:T151,$E$2) -> 0.005 | H151: 0.005 | I151: 0.005 | J151: 0.005 | K151: 0.005 | L151: 0.005 | M151: 0.005 | N151: 0.005 | O151: 0.005 | P151: 0.005 | Q151: 0.005 | R151: 0.005 | S151: 0.005 | T151: 0.005
B153: Constants
C154: Months in Year | E154: 12 | F154: Months
C155: Hrs in Year | E155: =365*24 -> 8760 | F155: Hours
D161: =TRANSPOSE(H3:AB3) -> Solar Standalone
D162: Solar Case with Low Performance Ratio
D163: Solar Case with Tracking
D164: Nepal Solar
D165: BESS Stanalone - Ancillary Use Case
D166: BESS Standalone Load Shifting Case
D167: BESS Downside Case
D168: BESS Upside Case
D169: BESS with Solar Using PPA
D170: BESS with Solar Using PPA Downside
D171: Hydro Project
D172: Hydro Project Downside Case
D173: Solar For Peak Hours
D174: 0
D175: 0
D176: 0
D177: 0
D178: 0
D179: 0
D180: 0
D181: 0

Sheet InputS
B2: Seasonal Production
D4: Code Number | E4: =MAX(InputC!F32,1) -> 3
D6: Month | G6: 1 | H6: 2 | I6: 3 | J6: 4 | K6: 5 | L6: 6 | M6: 7 | N6: 8 | O6: 9 | P6: 10 | Q6: 11 | R6: 12
D9: Equal production | G9: =1/12 -> 0.08333333333 | H9: =1/12 -> 0.08333333333 | I9: 0.08333333333 | J9: 0.08333333333 | K9: 0.08333333333 | L9: 0.08333333333 | M9: 0.08333333333 | N9: 0.08333333333 | O9: 0.08333333333 | P9: 0.08333333333 | Q9: 0.08333333333 | R9: 0.08333333333
D10: With Monsson | G10: 0.095 | H10: 0.095 | I10: =H10 -> 0.095 | J10: 0.08 | K10: 0.07 | L10: 0.07 | M10: 0.07 | N10: =K10 -> 0.07 | O10: 0.085 | P10: =O10 -> 0.085 | Q10: 0.09 | R10: 0.095 | S10: =SUM(G10:R10) -> 1
D11: More Seasonality | G11: 0.1 | H11: 0.095 | I11: =H11 -> 0.095 | J11: 0.08 | K11: 0.07 | L11: 0.06 | M11: 0.06 | N11: =K11 -> 0.07 | O11: 0.085 | P11: =O11 -> 0.085 | Q11: 0.1 | R11: 0.1 | S11: =SUM(G11:R11) -> 1
D13: =IFERROR(INDEX(D9:D11,$E$4),D9) -> More Seasonality | G13: =IFERROR(INDEX(G9:G11,$E$4),G9) -> 0.1 | H13: =IFERROR(INDEX(H9:H11,$E$4),H9) -> 0.095 | I13: =IFERROR(INDEX(I9:I11,$E$4),I9) -> 0.095 | J13: =IFERROR(INDEX(J9:J11,$E$4),J9) -> 0.08 | K13: =IFERROR(INDEX(K9:K11,$E$4),K9) -> 0.07 | L13: =IFERROR(INDEX(L9:L11,$E$4),L9) -> 0.06 | M13: =IFERROR(INDEX(M9:M11,$E$4),M9) -> 0.06 | N13: =IFERROR(INDEX(N9:N11,$E$4),N9) -> 0.07 | O13: =IFERROR(INDEX(O9:O11,$E$4),O9) -> 0.085 | P13: =IFERROR(INDEX(P9:P11,$E$4),P9) -> 0.085 | Q13: =IFERROR(INDEX(Q9:Q11,$E$4),Q9) -> 0.1 | R13: =IFERROR(INDEX(R9:R11,$E$4),R9) -> 0.1
B15: S-Curve
D16: Construction Period | F16: 0 | G16: 1 | H16: 2 | I16: 3 | J16: 4 | K16: 5 | L16: 6 | M16: 7 | N16: 8 | O16: 9 | P16: 10 | Q16: 11 | R16: 12 | S16: 13 | T16: 14 | U16: 15 | V16: 16 | W16: 17 | X16: 18 | Y16: 19 | Z16: 20 | AA16: 21 | AB16: 22 | AC16: 23 | AD16: 24 | AE16: 25 | AF16: 26 | AG16: 27 | AH16: 28 | AI16: 29 | AJ16: 30 | AK16: 31 | AL16: 32 | AM16: 33 | AN16: 34 | AO16: 35 | AP16: 36 | AQ16: 37 | AR16: 38 | AS16: 39 | AT16: 40 | AU16: 41 | AV16: 42 | AW16: 43 | AX16: 44 | AY16: 45 | AZ16: 46 | BA16: 47 | BB16: 48 | BC16: 49 | BD16: 50 | BE16: 51 | BF16: 52 | BG16: 53 | BH16: 54 | BI16: 55 | BJ16: 56 | BK16: 57 | BL16: 58 | BM16: 59 | BN16: 60 | BO16: 61 | BP16: 62 | BQ16: 63 | BR16: 64 | BS16: 65 | BT16: 66 | BU16: 67 | BV16: 68 | BW16: 69 | BX16: 70 | BY16: 71 | BZ16: 72
D18: S-Curve Code | E18: =InputC!F68+InputC!F101 -> 3
D20: S-Curve Flat | E20: =InputC!F7 -> 18 | G20: =(G16<=$E$20)/$E$20 -> 0.05555555556 | H20: =(H16<=$E$20)/$E$20 -> 0.05555555556 | I20: 0.05555555556 | J20: 0.05555555556 | K20: 0.05555555556 | L20: 0.05555555556 | M20: 0.05555555556 | N20: 0.05555555556 | O20: 0.05555555556 | P20: 0.05555555556 | Q20: 0.05555555556 | R20: 0.05555555556 | S20: 0.05555555556 | T20: 0.05555555556 | U20: 0.05555555556 | V20: 0.05555555556 | W20: 0.05555555556 | X20: 0.05555555556 | Y20: 0 | Z20: 0 | AA20: 0 | AB20: 0 | AC20: 0 | AD20: 0 | AE20: 0 | AF20: 0 | AG20: 0 | AH20: 0 | AI20: 0 | AJ20: 0 | AK20: 0 | AL20: 0 | AM20: 0 | AN20: 0 | AO20: 0 | AP20: 0 | AQ20: 0 | AR20: 0 | AS20: 0 | AT20: 0 | AU20: 0 | AV20: 0 | AW20: 0 | AX20: 0 | AY20: 0 | AZ20: 0 | BA20: 0 | BB20: 0 | BC20: 0 | BD20: 0 | BE20: 0 | BF20: 0 | BG20: 0 | BH20: 0 | BI20: 0 | BJ20: 0 | BK20: 0 | BL20: 0 | BM20: 0 | BN20: 0 | BO20: 0 | BP20: 0 | BQ20: 0 | BR20: 0 | BS20: 0 | BT20: =(BT16<=$E$20)/$E$20 -> 0 | BU20: 0 | BV20: 0 | BW20: 0 | BX20: 0 | BY20: 0 | BZ20: 0
D21: S-Curve Input - Weighted First | G21: 0.15 | H21: 0.1 | I21: 0.075 | J21: 0.075 | K21: 0.075 | L21: 0.075 | M21: 0.075 | N21: 0.075 | O21: 0.075 | P21: 0.075 | Q21: 0.075 | R21: 0.075
D22: S-Curve Input - Weighted End | G22: 0.075 | H22: 0.075 | I22: 0.075 | J22: 0.075 | K22: 0.075 | L22: 0.075 | M22: 0.075 | N22: 0.075 | O22: 0.075 | P22: 0.075 | W22: 0.1 | X22: 0.15
D23: S-Curve Battery - Flag | E23: =InputC!F7 -> 18 | G23: =IF(G16<=$E$23,1/$E$23) -> 0.05555555556 | H23: =IF(H16<=$E$23,1/$E$23) -> 0.05555555556 | I23: 0.05555555556 | J23: 0.05555555556 | K23: 0.05555555556 | L23: 0.05555555556 | M23: 0.05555555556 | N23: 0.05555555556 | O23: 0.05555555556 | P23: 0.05555555556 | Q23: 0.05555555556 | R23: 0.05555555556 | S23: 0.05555555556 | T23: 0.05555555556 | U23: 0.05555555556 | V23: 0.05555555556 | W23: 0.05555555556 | X23: 0.05555555556 | Y23: FALSE | Z23: FALSE | AA23: FALSE | AB23: FALSE | AC23: FALSE | AD23: FALSE | AE23: FALSE | AF23: FALSE | AG23: FALSE | AH23: FALSE | AI23: FALSE | AJ23: FALSE | AK23: FALSE | AL23: FALSE | AM23: FALSE | AN23: FALSE | AO23: FALSE | AP23: FALSE | AQ23: FALSE | AR23: FALSE | AS23: FALSE | AT23: FALSE | AU23: FALSE | AV23: FALSE | AW23: FALSE | AX23: FALSE | AY23: FALSE | AZ23: FALSE | BA23: FALSE | BB23: FALSE | BC23: FALSE | BD23: FALSE | BE23: FALSE | BF23: FALSE | BG23: FALSE | BH23: FALSE | BI23: FALSE | BJ23: FALSE | BK23: FALSE | BL23: FALSE | BM23: FALSE | BN23: FALSE | BO23: FALSE | BP23: FALSE | BQ23: FALSE | BR23: FALSE | BS23: FALSE | BT23: =IF(BT16<=$E$23,1/$E$23) -> FALSE
D26: =INDEX(D20:D24,$E$18) -> S-Curve Input - Weighted End | G26: =INDEX(G20:G24,$E$18) -> 0.075 | H26: =INDEX(H20:H24,$E$18) -> 0.075 | I26: =INDEX(I20:I24,$E$18) -> 0.075 | J26: =INDEX(J20:J24,$E$18) -> 0.075 | K26: =INDEX(K20:K24,$E$18) -> 0.075 | L26: =INDEX(L20:L24,$E$18) -> 0.075 | M26: =INDEX(M20:M24,$E$18) -> 0.075 | N26: =INDEX(N20:N24,$E$18) -> 0.075 | O26: =INDEX(O20:O24,$E$18) -> 0.075 | P26: =INDEX(P20:P24,$E$18) -> 0.075 | Q26: =INDEX(Q20:Q24,$E$18) -> 0 | R26: =INDEX(R20:R24,$E$18) -> 0 | S26: =INDEX(S20:S24,$E$18) -> 0 | T26: =INDEX(T20:T24,$E$18) -> 0 | U26: =INDEX(U20:U24,$E$18) -> 0 | V26: =INDEX(V20:V24,$E$18) -> 0 | W26: =INDEX(W20:W24,$E$18) -> 0.1 | X26: =INDEX(X20:X24,$E$18) -> 0.15 | Y26: =INDEX(Y20:Y24,$E$18) -> 0 | Z26: =INDEX(Z20:Z24,$E$18) -> 0 | AA26: =INDEX(AA20:AA24,$E$18) -> 0 | AB26: =INDEX(AB20:AB24,$E$18) -> 0 | AC26: =INDEX(AC20:AC24,$E$18) -> 0 | AD26: =INDEX(AD20:AD24,$E$18) -> 0 | AE26: =INDEX(AE20:AE24,$E$18) -> 0 | AF26: =INDEX(AF20:AF24,$E$18) -> 0 | AG26: =INDEX(AG20:AG24,$E$18) -> 0 | AH26: =INDEX(AH20:AH24,$E$18) -> 0 | AI26: =INDEX(AI20:AI24,$E$18) -> 0 | AJ26: =INDEX(AJ20:AJ24,$E$18) -> 0 | AK26: =INDEX(AK20:AK24,$E$18) -> 0 | AL26: =INDEX(AL20:AL24,$E$18) -> 0 | AM26: =INDEX(AM20:AM24,$E$18) -> 0 | AN26: =INDEX(AN20:AN24,$E$18) -> 0 | AO26: =INDEX(AO20:AO24,$E$18) -> 0 | AP26: =INDEX(AP20:AP24,$E$18) -> 0 | AQ26: =INDEX(AQ20:AQ24,$E$18) -> 0 | AR26: =INDEX(AR20:AR24,$E$18) -> 0 | AS26: =INDEX(AS20:AS24,$E$18) -> 0 | AT26: =INDEX(AT20:AT24,$E$18) -> 0 | AU26: =INDEX(AU20:AU24,$E$18) -> 0 | AV26: =INDEX(AV20:AV24,$E$18) -> 0 | AW26: =INDEX(AW20:AW24,$E$18) -> 0 | AX26: =INDEX(AX20:AX24,$E$18) -> 0 | AY26: =INDEX(AY20:AY24,$E$18) -> 0 | AZ26: =INDEX(AZ20:AZ24,$E$18) -> 0 | BA26: =INDEX(BA20:BA24,$E$18) -> 0 | BB26: =INDEX(BB20:BB24,$E$18) -> 0 | BC26: =INDEX(BC20:BC24,$E$18) -> 0 | BD26: =INDEX(BD20:BD24,$E$18) -> 0 | BE26: =INDEX(BE20:BE24,$E$18) -> 0 | BF26: =INDEX(BF20:BF24,$E$18) -> 0 | BG26: =INDEX(BG20:BG24,$E$18) -> 0 | BH26: =INDEX(BH20:BH24,$E$18) -> 0 | BI26: =INDEX(BI20:BI24,$E$18) -> 0 | BJ26: =INDEX(BJ20:BJ24,$E$18) -> 0 | BK26: =INDEX(BK20:BK24,$E$18) -> 0 | BL26: =INDEX(BL20:BL24,$E$18) -> 0 | BM26: =INDEX(BM20:BM24,$E$18) -> 0 | BN26: =INDEX(BN20:BN24,$E$18) -> 0 | BO26: =INDEX(BO20:BO24,$E$18) -> 0 | BP26: =INDEX(BP20:BP24,$E$18) -> 0 | BQ26: =INDEX(BQ20:BQ24,$E$18) -> 0 | BR26: =INDEX(BR20:BR24,$E$18) -> 0 | BS26: =INDEX(BS20:BS24,$E$18) -> 0 | BT26: =INDEX(BT20:BT24,$E$18) -> 0 | BU26: =INDEX(BU20:BU23,$E$18) -> 0 | BV26: =INDEX(BV20:BV23,$E$18) -> 0 | BW26: =INDEX(BW20:BW23,$E$18) -> 0 | BX26: =INDEX(BX20:BX23,$E$18) -> 0 | BY26: =INDEX(BY20:BY23,$E$18) -> 0 | BZ26: =INDEX(BZ20:BZ23,$E$18) -> 0
D30: Degradation Code | E30: =InputC!F54 -> 0
D32: Age in Years | F32: 0 | G32: 1 | H32: 2 | I32: 3 | J32: 4 | K32: 5 | L32: 6 | M32: 7 | N32: 8 | O32: 9 | P32: 10 | Q32: 11 | R32: 12 | S32: 13 | T32: 14 | U32: 15 | V32: 16 | W32: 17 | X32: 18 | Y32: 19 | Z32: 20 | AA32: 21 | AB32: 22 | AC32: 23 | AD32: 24 | AE32: 25 | AF32: 26 | AG32: 27 | AH32: 28 | AI32: 29 | AJ32: 30 | AK32: 31 | AL32: 32 | AM32: 33 | AN32: 34 | AO32: 35 | AP32: 36 | AQ32: 37 | AR32: 38 | AS32: 39 | AT32: 40 | AU32: 41 | AV32: 42
D34: Degrade Base | G34: 0.03 | H34: 0.05 | I34: 0.026 | J34: 0.026 | K34: 0.026 | L34: 0.026 | M34: 0.026 | N34: 0.026 | O34: 0.026 | P34: 0.026 | Q34: 0.026 | R34: 0.026 | S34: 0.026 | T34: 0.026 | U34: 0.026 | V34: 0.026 | W34: 0.026 | X34: 0.026 | Y34: 0.026 | Z34: 0.026 | AA34: 0.026 | AB34: 0.026 | AC34: 0.026 | AD34: 0.026 | AE34: 0.026 | AF34: 0.026 | AG34: 0.026 | AH34: 0.026 | AI34: 0.026 | AJ34: 0.026 | AK34: 0.026 | AL34: 0.026 | AM34: 0.026 | AN34: 0.026 | AO34: 0.026 | AP34: 0.026 | AQ34: 0.026 | AR34: 0.026 | AS34: 0.026 | AT34: 0.026 | AU34: 0.026 | AV34: 0.026
D35: Degrade Low | G35: 0.05 | H35: 0.03 | I35: 0.03 | J35: 0.03 | K35: 0.03 | L35: 0.03 | M35: 0.03 | N35: 0.03 | O35: 0.03 | P35: 0.03 | Q35: 0.03 | R35: 0.03 | S35: 0.03 | T35: 0.03 | U35: 0.03 | V35: 0.03 | W35: 0.03 | X35: 0.03 | Y35: 0.03 | Z35: 0.03 | AA35: 0.03 | AB35: 0.03 | AC35: 0.03 | AD35: 0.03 | AE35: 0.03 | AF35: 0.03 | AG35: 0.03 | AH35: 0.03 | AI35: 0.03 | AJ35: 0.03 | AK35: 0.03 | AL35: 0.03 | AM35: 0.03 | AN35: 0.03 | AO35: 0.03 | AP35: 0.03 | AQ35: 0.03 | AR35: 0.03 | AS35: 0.03 | AT35: 0.03 | AU35: 0.03 | AV35: 0.03
D36: Degarde High | G36: 0.05 | H36: 0.03 | I36: 0.025 | J36: 0.025 | K36: 0.025 | L36: 0.025 | M36: 0.025 | N36: 0.025 | O36: 0.025 | P36: 0.025 | Q36: 0.025 | R36: 0.025 | S36: 0.025 | T36: 0.02 | U36: 0.02 | V36: 0.02 | W36: 0.02 | X36: 0.02 | Y36: 0.02 | Z36: 0.02 | AA36: 0.02 | AB36: 0.02 | AC36: 0.02 | AD36: 0.02 | AE36: 0.02 | AF36: 0.02 | AG36: 0.02 | AH36: 0.02 | AI36: 0.02 | AJ36: 0.02 | AK36: 0.02 | AL36: 0.02 | AM36: 0.02 | AN36: 0.02 | AO36: 0.02 | AP36: 0.02 | AQ36: 0.02 | AR36: 0.02 | AS36: 0.02 | AT36: 0.02 | AU36: 0.02 | AV36: 0.02
D38: =INDEX(D34:D36,$E$30) -> Degrade Base | G38: =INDEX(G34:G36,$E$30) -> 0.03 | H38: =INDEX(H34:H36,$E$30) -> 0.05 | I38: =INDEX(I34:I36,$E$30) -> 0.026 | J38: =INDEX(J34:J36,$E$30) -> 0.026 | K38: =INDEX(K34:K36,$E$30) -> 0.026 | L38: =INDEX(L34:L36,$E$30) -> 0.026 | M38: =INDEX(M34:M36,$E$30) -> 0.026 | N38: =INDEX(N34:N36,$E$30) -> 0.026 | O38: =INDEX(O34:O36,$E$30) -> 0.026 | P38: =INDEX(P34:P36,$E$30) -> 0.026 | Q38: =INDEX(Q34:Q36,$E$30) -> 0.026 | R38: =INDEX(R34:R36,$E$30) -> 0.026 | S38: =INDEX(S34:S36,$E$30) -> 0.026 | T38: =INDEX(T34:T36,$E$30) -> 0.026 | U38: =INDEX(U34:U36,$E$30) -> 0.026 | V38: =INDEX(V34:V36,$E$30) -> 0.026 | W38: =INDEX(W34:W36,$E$30) -> 0.026 | X38: =INDEX(X34:X36,$E$30) -> 0.026 | Y38: =INDEX(Y34:Y36,$E$30) -> 0.026 | Z38: =INDEX(Z34:Z36,$E$30) -> 0.026 | AA38: =INDEX(AA34:AA36,$E$30) -> 0.026 | AB38: =INDEX(AB34:AB36,$E$30) -> 0.026 | AC38: =INDEX(AC34:AC36,$E$30) -> 0.026 | AD38: =INDEX(AD34:AD36,$E$30) -> 0.026 | AE38: =INDEX(AE34:AE36,$E$30) -> 0.026 | AF38: =INDEX(AF34:AF36,$E$30) -> 0.026 | AG38: =INDEX(AG34:AG36,$E$30) -> 0.026 | AH38: =INDEX(AH34:AH36,$E$30) -> 0.026 | AI38: =INDEX(AI34:AI36,$E$30) -> 0.026 | AJ38: =INDEX(AJ34:AJ36,$E$30) -> 0.026 | AK38: =INDEX(AK34:AK36,$E$30) -> 0.026 | AL38: =INDEX(AL34:AL36,$E$30) -> 0.026 | AM38: =INDEX(AM34:AM36,$E$30) -> 0.026 | AN38: =INDEX(AN34:AN36,$E$30) -> 0.026 | AO38: =INDEX(AO34:AO36,$E$30) -> 0.026 | AP38: =INDEX(AP34:AP36,$E$30) -> 0.026 | AQ38: =INDEX(AQ34:AQ36,$E$30) -> 0.026 | AR38: =INDEX(AR34:AR36,$E$30) -> 0.026 | AS38: =INDEX(AS34:AS36,$E$30) -> 0.026 | AT38: =INDEX(AT34:AT36,$E$30) -> 0.026 | AU38: =INDEX(AU34:AU36,$E$30) -> 0.026 | AV38: =INDEX(AV34:AV36,$E$30) -> 0.026
D39: Degrade Low | G39: 0.05 | H39: 0.03 | I39: 0.03 | J39: 0.03 | K39: 0.03 | L39: 0.03 | M39: 0.03 | N39: 0.03 | O39: 0.03 | P39: 0.03 | Q39: 0.03 | R39: 0.03 | S39: 0.03 | T39: 0.03 | U39: 0.03 | V39: 0.03 | W39: 0.03 | X39: 0.03 | Y39: 0.03 | Z39: 0.03 | AA39: 0.03 | AB39: 0.03 | AC39: 0.03 | AD39: 0.03 | AE39: 0.03 | AF39: 0.03 | AG39: 0.03 | AH39: 0.03 | AI39: 0.03 | AJ39: 0.03 | AK39: 0.03 | AL39: 0.03 | AM39: 0.03 | AN39: 0.03 | AO39: 0.03 | AP39: 0.03 | AQ39: 0.03 | AR39: 0.03 | AS39: 0.03 | AT39: 0.03 | AU39: 0.03 | AV39: 0.03
D40: Degarde High | G40: 0.05 | H40: 0.03 | I40: 0.025 | J40: 0.025 | K40: 0.025 | L40: 0.025 | M40: 0.025 | N40: 0.025 | O40: 0.025 | P40: 0.025 | Q40: 0.025 | R40: 0.025 | S40: 0.025 | T40: 0.02 | U40: 0.02 | V40: 0.02 | W40: 0.02 | X40: 0.02 | Y40: 0.02 | Z40: 0.02 | AA40: 0.02 | AB40: 0.02 | AC40: 0.02 | AD40: 0.02 | AE40: 0.02 | AF40: 0.02 | AG40: 0.02 | AH40: 0.02 | AI40: 0.02 | AJ40: 0.02 | AK40: 0.02 | AL40: 0.02 | AM40: 0.02 | AN40: 0.02 | AO40: 0.02 | AP40: 0.02 | AQ40: 0.02 | AR40: 0.02 | AS40: 0.02 | AT40: 0.02 | AU40: 0.02 | AV40: 0.02

Sheet Operating Model
G2: =InputC!F3 -> Solar Standalone
B3: Timing | F3: Driver 1 | G3: Driver 2 | H3: Sum
C4: Period | J4: 1 | K4: 2 | L4: 3 | M4: 4 | N4: 5 | O4: 6 | P4: 7 | Q4: 8 | R4: 9 | S4: 10 | T4: 11 | U4: 12 | V4: 13 | W4: 14 | X4: 15 | Y4: 16 | Z4: 17 | AA4: 18 | AB4: 19 | AC4: 20 | AD4: 21 | AE4: 22 | AF4: 23 | AG4: 24 | AH4: 25 | AI4: 26 | AJ4: 27 | AK4: 28 | AL4: 29 | AM4: 30 | AN4: 31 | AO4: 32 | AP4: 33 | AQ4: 34 | AR4: 35 | AS4: 36 | AT4: 37 | AU4: 38 | AV4: 39 | AW4: 40 | AX4: 41 | AY4: 42 | AZ4: 43 | BA4: 44 | BB4: 45 | BC4: 46 | BD4: 47 | BE4: 48 | BF4: 49 | BG4: 50 | BH4: 51 | BI4: 52 | BJ4: 53 | BK4: 54 | BL4: 55 | BM4: 56 | BN4: 57 | BO4: 58 | BP4: 59 | BQ4: 60 | BR4: 61 | BS4: 62 | BT4: 63 | BU4: 64 | BV4: 65 | BW4: 66 | BX4: 67 | BY4: 68 | BZ4: 69 | CA4: 70 | CB4: 71 | CC4: 72 | CD4: 73 | CE4: 74 | CF4: 75 | CG4: 76 | CH4: 77 | CI4: 78 | CJ4: 79 | CK4: 80 | CL4: 81 | CM4: 82 | CN4: 83 | CO4: 84 | CP4: 85 | CQ4: 86 | CR4: 87 | CS4: 88 | CT4: 89 | CU4: 90 | CV4: 91 | CW4: 92 | CX4: 93 | CY4: 94 | CZ4: 95 | DA4: 96 | DB4: 97 | DC4: 98 | DD4: 99 | DE4: 100 | DF4: 101 | DG4: 102 | DH4: 103 | DI4: 104 | DJ4: 105 | DK4: 106 | DL4: 107 | DM4: 108 | DN4: 109 | DO4: 110 | DP4: 111 | DQ4: 112 | DR4: 113 | DS4: 114 | DT4: 115 | DU4: 116 | DV4: 117 | DW4: 118 | DX4: 119 | DY4: 120 | DZ4: 121 | EA4: 122 | EB4: 123 | EC4: 124 | ED4: 125 | EE4: 126 | EF4: 127 | EG4: 128 | EH4: 129 | EI4: 130 | EJ4: 131 | EK4: 132 | EL4: 133 | EM4: 134 | EN4: 135 | EO4: 136 | EP4: 137 | EQ4: 138 | ER4: 139 | ES4: 140 | ET4: 141 | EU4: 142 | EV4: 143 | EW4: 144 | EX4: 145 | EY4: 146 | EZ4: 147 | FA4: 148 | FB4: 149 | FC4: 150 | FD4: 151 | FE4: 152 | FF4: 153 | FG4: 154 | FH4: 155 | FI4: 156 | FJ4: 157 | FK4: 158 | FL4: 159 | FM4: 160 | FN4: 161 | FO4: 162 | FP4: 163 | FQ4: 164 | FR4: 165 | FS4: 166 | FT4: 167 | FU4: 168 | FV4: 169 | FW4: 170 | FX4: 171 | FY4: 172 | FZ4: 173 | GA4: 174 | GB4: 175 | GC4: 176 | GD4: 177 | GE4: 178 | GF4: 179 | GG4: 180 | GH4: 181 | GI4: 182 | GJ4: 183 | GK4: 184 | GL4: 185 | GM4: 186 | GN4: 187 | GO4: 188 | GP4: 189 | GQ4: 190 | GR4: 191 | GS4: 192 | GT4: 193 | GU4: 194 | GV4: 195 | GW4: 196 | GX4: 197 | GY4: 198 | GZ4: 199 | HA4: 200 | HB4: 201 | HC4: 202 | HD4: 203 | HE4: 204 | HF4: 205 | HG4: 206 | HH4: 207 | HI4: 208 | HJ4: 209 | HK4: 210 | HL4: 211 | HM4: 212 | HN4: 213 | HO4: 214 | HP4: 215 | HQ4: 216 | HR4: 217 | HS4: 218 | HT4: 219 | HU4: 220 | HV4: 221 | HW4: 222 | HX4: 223 | HY4: 224 | HZ4: 225 | IA4: 226 | IB4: 227 | IC4: 228 | ID4: 229 | IE4: 230 | IF4: 231 | IG4: 232 | IH4: 233 | II4: 234 | IJ4: 235 | IK4: 236 | IL4: 237 | IM4: 238 | IN4: 239 | IO4: 240 | IP4: 241 | IQ4: 242 | IR4: 243 | IS4: 244 | IT4: 245 | IU4: 246 | IV4: 247 | IW4: 248 | IX4: 249 | IY4: 250 | IZ4: 251 | JA4: 252 | JB4: 253 | JC4: 254 | JD4: 255 | JE4: 256 | JF4: 257 | JG4: 258 | JH4: 259 | JI4: 260 | JJ4: 261 | JK4: 262 | JL4: 263 | JM4: 264 | JN4: 265 | JO4: 266 | JP4: 267 | JQ4: 268 | JR4: 269 | JS4: 270 | JT4: 271 | JU4: 272 | JV4: 273 | JW4: 274 | JX4: 275 | JY4: 276 | JZ4: 277 | KA4: 278 | KB4: 279 | KC4: 280 | KD4: 281 | KE4: 282 | KF4: 283 | KG4: 284 | KH4: 285 | KI4: 286 | KJ4: 287 | KK4: 288 | KL4: 289 | KM4: 290 | KN4: 291 | KO4: 292 | KP4: 293 | KQ4: 294 | KR4: 295 | KS4: 296 | KT4: 297 | KU4: 298 | KV4: 299 | KW4: 300 | KX4: 301 | KY4: 302 | KZ4: 303 | LA4: 304 | LB4: 305 | LC4: 306 | LD4: 307 | LE4: 308 | LF4: 309 | LG4: 310 | LH4: 311 | LI4: 312 | LJ4: 313 | LK4: 314 | LL4: 315 | LM4: 316 | LN4: 317 | LO4: 318 | LP4: 319 | LQ4: 320 | LR4: 321 | LS4: 322 | LT4: 323 | LU4: 324 | LV4: 325 | LW4: 326 | LX4: 327 | LY4: 328 | LZ4: 329 | MA4: 330 | MB4: 331 | MC4: 332 | MD4: 333 | ME4: 334 | MF4: 335 | MG4: 336 | MH4: 337 | MI4: 338 | MJ4: 339 | MK4: 340 | ML4: 341 | MM4: 342 | MN4: 343 | MO4: 344 | MP4: 345 | MQ4: 346 | MR4: 347 | MS4: 348 | MT4: 349 | MU4: 350 | MV4: 351 | MW4: 352 | MX4: 353 | MY4: 354 | MZ4: 355 | NA4: 356 | NB4: 357 | NC4: 358 | ND4: 359 | NE4: 360 | NF4: 361 | NG4: 362 | NH4: 363 | NI4: 364 | NJ4: 365 | NK4: 366 | NL4: 367 | NM4: 368 | NN4: 369 | NO4: 370 | NP4: 371 | NQ4: 372 | NR4: 373 | NS4: 374 | NT4: 375 | NU4: 376 | NV4: 377 | NW4: 378 | NX4: 379 | NY4: 380 | NZ4: 381 | OA4: 382 | OB4: 383 | OC4: 384 | OD4: 385 | OE4: 386 | OF4: 387 | OG4: 388 | OH4: 389 | OI4: 390 | OJ4: 391 | OK4: 392 | OL4: 393 | OM4: 394 | ON4: 395 | OO4: 396 | OP4: 397 | OQ4: 398 | OR4: 399 | OS4: 400 | OT4: 401 | OU4: 402 | OV4: 403 | OW4: 404 | OX4: 405 | OY4: 406 | OZ4: 407 | PA4: 408 | PB4: 409 | PC4: 410 | PD4: 411 | PE4: 412 | PF4: 413 | PG4: 414 | PH4: 415 | PI4: 416 | PJ4: 417 | PK4: 418 | PL4: 419 | PM4: 420 | PN4: 421 | PO4: 422 | PP4: 423 | PQ4: 424 | PR4: 425 | PS4: 426 | PT4: 427 | PU4: 428 | PV4: 429 | PW4: 430 | PX4: 431 | PY4: 432 | PZ4: 433 | QA4: 434 | QB4: 435 | QC4: 436 | QD4: 437 | QE4: 438 | QF4: 439 | QG4: 440 | QH4: 441 | QI4: 442 | QJ4: 443 | QK4: 444 | QL4: 445 | QM4: 446 | QN4: 447 | QO4: 448 | QP4: 449 | QQ4: 450 | QR4: 451 | QS4: 452 | QT4: 453 | QU4: 454 | QV4: 455 | QW4: 456 | QX4: 457 | QY4: 458 | QZ4: 459 | RA4: 460 | RB4: 461 | RC4: 462 | RD4: 463 | RE4: 464 | RF4: 465 | RG4: 466 | RH4: 467 | RI4: 468 | RJ4: 469 | RK4: 470 | RL4: 471 | RM4: 472 | RN4: 473 | RO4: 474 | RP4: 475 | RQ4: 476 | RR4: 477 | RS4: 478 | RT4: 479 | RU4: 480 | RV4: 481 | RW4: 482 | RX4: 483 | RY4: 484 | RZ4: 485 | SA4: 486 | SB4: 487 | SC4: 488 | SD4: 489 | SE4: 490 | SF4: 491 | SG4: 492 | SH4: 493 | SI4: 494 | SJ4: 495 | SK4: 496 | SL4: 497 | SM4: 498 | SN4: 499 | SO4: 500
C5: Construction Period | E5: Flag | F5: =InputC!F7 -> 18 | J5: =(J4<=$F$5)*1 -> 1 | K5: =(K4<=$F$5)*1 -> 1 | L5: 1 | M5: 1 | N5: 1 | O5: 1 | P5: 1 | Q5: 1 | R5: 1 | S5: 1 | T5: 1 | U5: 1 | V5: 1 | W5: 1 | X5: 1 | Y5: 1 | Z5: 1 | AA5: 1 | AB5: 0 | AC5: 0 | AD5: 0 | AE5: 0 | AF5: 0 | AG5: 0 | AH5: 0 | AI5: 0 | AJ5: 0 | AK5: 0 | AL5: 0 | AM5: 0 | AN5: 0 | AO5: 0 | AP5: 0 | AQ5: 0 | AR5: 0 | AS5: 0 | AT5: 0 | AU5: 0 | AV5: 0 | AW5: 0 | AX5: 0 | AY5: 0 | AZ5: 0 | BA5: 0 | BB5: 0 | BC5: 0 | BD5: 0 | BE5: 0 | BF5: 0 | BG5: 0 | BH5: 0 | BI5: 0 | BJ5: 0 | BK5: 0 | BL5: 0 | BM5: 0 | BN5: 0 | BO5: 0 | BP5: 0 | BQ5: 0 | BR5: 0 | BS5: 0 | BT5: 0 | BU5: 0 | BV5: 0 | BW5: =(BW4<=$F$5)*1 -> 0 | BX5: 0 | BY5: 0 | BZ5: 0 | CA5: 0 | CB5: 0 | CC5: 0 | CD5: 0 | CE5: 0 | CF5: 0 | CG5: 0 | CH5: 0 | CI5: 0 | CJ5: 0 | CK5: 0 | CL5: 0 | CM5: 0 | CN5: 0 | CO5: 0 | CP5: 0 | CQ5: 0 | CR5: 0 | CS5: 0 | CT5: 0 | CU5: 0 | CV5: 0 | CW5: 0 | CX5: 0 | CY5: 0 | CZ5: 0 | DA5: 0 | DB5: 0 | DC5: 0 | DD5: 0 | DE5: 0 | DF5: 0 | DG5: 0 | DH5: 0 | DI5: 0 | DJ5: 0 | DK5: 0 | DL5: 0 | DM5: 0 | DN5: 0 | DO5: 0 | DP5: 0 | DQ5: 0 | DR5: 0 | DS5: 0 | DT5: 0 | DU5: 0 | DV5: 0 | DW5: 0 | DX5: 0 | DY5: 0 | DZ5: 0 | EA5: 0 | EB5: 0 | EC5: 0 | ED5: 0 | EE5: 0 | EF5: 0 | EG5: 0 | EH5: 0 | EI5: =(EI4<=$F$5)*1 -> 0 | EJ5: 0 | EK5: 0 | EL5: 0 | EM5: 0 | EN5: 0 | EO5: 0 | EP5: 0 | EQ5: 0 | ER5: 0 | ES5: 0 | ET5: 0 | EU5: 0 | EV5: 0 | EW5: 0 | EX5: 0 | EY5: 0 | EZ5: 0 | FA5: 0 | FB5: 0 | FC5: 0 | FD5: 0 | FE5: 0 | FF5: 0 | FG5: 0 | FH5: 0 | FI5: 0 | FJ5: 0 | FK5: 0 | FL5: 0 | FM5: 0 | FN5: 0 | FO5: 0 | FP5: 0 | FQ5: 0 | FR5: 0 | FS5: 0 | FT5: 0 | FU5: 0 | FV5: 0 | FW5: 0 | FX5: 0 | FY5: 0 | FZ5: 0 | GA5: 0 | GB5: 0 | GC5: 0 | GD5: 0 | GE5: 0 | GF5: 0 | GG5: 0 | GH5: 0 | GI5: 0 | GJ5: 0 | GK5: 0 | GL5: 0 | GM5: 0 | GN5: 0 | GO5: 0 | GP5: 0 | GQ5: 0 | GR5: 0 | GS5: 0 | GT5: 0 | GU5: =(GU4<=$F$5)*1 -> 0 | GV5: 0 | GW5: 0 | GX5: 0 | GY5: 0 | GZ5: 0 | HA5: 0 | HB5: 0 | HC5: 0 | HD5: 0 | HE5: 0 | HF5: 0 | HG5: 0 | HH5: 0 | HI5: 0 | HJ5: 0 | HK5: 0 | HL5: 0 | HM5: 0 | HN5: 0 | HO5: 0 | HP5: 0 | HQ5: 0 | HR5: 0 | HS5: 0 | HT5: 0 | HU5: 0 | HV5: 0 | HW5: 0 | HX5: 0 | HY5: 0 | HZ5: 0 | IA5: 0 | IB5: 0 | IC5: 0 | ID5: 0 | IE5: 0 | IF5: 0 | IG5: 0 | IH5: 0 | II5: 0 | IJ5: 0 | IK5: 0 | IL5: 0 | IM5: 0 | IN5: 0 | IO5: 0 | IP5: 0 | IQ5: 0 | IR5: 0 | IS5: 0 | IT5: 0 | IU5: 0 | IV5: 0 | IW5: 0 | IX5: 0 | IY5: 0 | IZ5: 0 | JA5: 0 | JB5: 0 | JC5: 0 | JD5: 0 | JE5: 0 | JF5: 0 | JG5: =(JG4<=$F$5)*1 -> 0 | JH5: 0 | JI5: 0 | JJ5: 0 | JK5: 0 | JL5: 0 | JM5: 0 | JN5: 0 | JO5: 0 | JP5: 0 | JQ5: 0 | JR5: 0 | JS5: 0 | JT5: 0 | JU5: 0 | JV5: 0 | JW5: 0 | JX5: 0 | JY5: 0 | JZ5: 0 | KA5: 0 | KB5: 0 | KC5: 0 | KD5: 0 | KE5: 0 | KF5: 0 | KG5: 0 | KH5: 0 | KI5: 0 | KJ5: 0 | KK5: 0 | KL5: 0 | KM5: 0 | KN5: 0 | KO5: 0 | KP5: 0 | KQ5: 0 | KR5: 0 | KS5: 0 | KT5: 0 | KU5: 0 | KV5: 0 | KW5: 0 | KX5: 0 | KY5: 0 | KZ5: 0 | LA5: 0 | LB5: 0 | LC5: 0 | LD5: 0 | LE5: 0 | LF5: 0 | LG5: 0 | LH5: 0 | LI5: 0 | LJ5: 0 | LK5: 0 | LL5: 0 | LM5: 0 | LN5: 0 | LO5: 0 | LP5: 0 | LQ5: 0 | LR5: 0 | LS5: =(LS4<=$F$5)*1 -> 0 | LT5: 0 | LU5: 0 | LV5: 0 | LW5: 0 | LX5: 0 | LY5: 0 | LZ5: 0 | MA5: 0 | MB5: 0 | MC5: 0 | MD5: 0 | ME5: 0 | MF5: 0 | MG5: 0 | MH5: 0 | MI5: 0 | MJ5: 0 | MK5: 0 | ML5: 0 | MM5: 0 | MN5: 0 | MO5: 0 | MP5: 0 | MQ5: 0 | MR5: 0 | MS5: 0 | MT5: 0 | MU5: 0 | MV5: 0 | MW5: 0 | MX5: 0 | MY5: 0 | MZ5: 0 | NA5: 0 | NB5: 0 | NC5: 0 | ND5: 0 | NE5: 0 | NF5: 0 | NG5: 0 | NH5: 0 | NI5: 0 | NJ5: 0 | NK5: 0 | NL5: 0 | NM5: 0 | NN5: 0 | NO5: 0 | NP5: 0 | NQ5: 0 | NR5: 0 | NS5: 0 | NT5: 0 | NU5: 0 | NV5: 0 | NW5: 0 | NX5: 0 | NY5: 0 | NZ5: 0 | OA5: 0 | OB5: 0 | OC5: 0 | OD5: 0 | OE5: =(OE4<=$F$5)*1 -> 0 | OF5: 0 | OG5: 0 | OH5: 0 | OI5: 0 | OJ5: 0 | OK5: 0 | OL5: 0 | OM5: 0 | ON5: 0 | OO5: 0 | OP5: 0 | OQ5: 0 | OR5: 0 | OS5: 0 | OT5: 0 | OU5: 0 | OV5: 0 | OW5: 0 | OX5: 0 | OY5: 0 | OZ5: 0 | PA5: 0 | PB5: 0 | PC5: 0 | PD5: 0 | PE5: 0 | PF5: 0 | PG5: 0 | PH5: 0 | PI5: 0 | PJ5: 0 | PK5: 0 | PL5: 0 | PM5: 0 | PN5: 0 | PO5: 0 | PP5: 0 | PQ5: 0 | PR5: 0 | PS5: 0 | PT5: 0 | PU5: 0 | PV5: 0 | PW5: 0 | PX5: 0 | PY5: 0 | PZ5: 0 | QA5: 0 | QB5: 0 | QC5: 0 | QD5: 0 | QE5: 0 | QF5: 0 | QG5: 0 | QH5: 0 | QI5: 0 | QJ5: 0 | QK5: 0 | QL5: 0 | QM5: 0 | QN5: 0 | QO5: 0 | QP5: 0 | QQ5: =(QQ4<=$F$5)*1 -> 0 | QR5: 0 | QS5: 0 | QT5: 0 | QU5: 0 | QV5: 0 | QW5: 0 | QX5: 0 | QY5: 0 | QZ5: 0 | RA5: 0 | RB5: 0 | RC5: 0 | RD5: 0 | RE5: 0 | RF5: 0 | RG5: 0 | RH5: 0 | RI5: 0 | RJ5: 0 | RK5: 0 | RL5: 0 | RM5: 0 | RN5: 0 | RO5: 0 | RP5: 0 | RQ5: 0 | RR5: 0 | RS5: 0 | RT5: 0 | RU5: 0 | RV5: 0 | RW5: 0 | RX5: 0 | RY5: 0 | RZ5: 0 | SA5: 0 | SB5: 0 | SC5: 0 | SD5: 0 | SE5: 0 | SF5: 0 | SG5: 0 | SH5: 0 | SI5: 0 | SJ5: 0 | SK5: 0 | SL5: 0 | SM5: 0 | SN5: 0 | SO5: 0
C6: Start of period | E6: date | J6: =I7+1 -> 2026-01-01 | K6: =J7+1 -> 2026-02-01 | L6: 2026-03-01 | M6: 2026-04-01 | N6: 2026-05-01 | O6: 2026-06-01 | P6: 2026-07-01 | Q6: 2026-08-01 | R6: 2026-09-01 | S6: 2026-10-01 | T6: 2026-11-01 | U6: 2026-12-01 | V6: 2027-01-01 | W6: 2027-02-01 | X6: 2027-03-01 | Y6: 2027-04-01 | Z6: 2027-05-01 | AA6: 2027-06-01 | AB6: 2027-07-01 | AC6: 2027-08-01 | AD6: 2027-09-01 | AE6: 2027-10-01 | AF6: 2027-11-01 | AG6: 2027-12-01 | AH6: 2028-01-01 | AI6: 2028-02-01 | AJ6: 2028-03-01 | AK6: 2028-04-01 | AL6: 2028-05-01 | AM6: 2028-06-01 | AN6: 2028-07-01 | AO6: 2028-08-01 | AP6: 2028-09-01 | AQ6: 2028-10-01 | AR6: 2028-11-01 | AS6: 2028-12-01 | AT6: 2029-01-01 | AU6: 2029-02-01 | AV6: 2029-03-01 | AW6: 2029-04-01 | AX6: 2029-05-01 | AY6: 2029-06-01 | AZ6: 2029-07-01 | BA6: 2029-08-01 | BB6: 2029-09-01 | BC6: 2029-10-01 | BD6: 2029-11-01 | BE6: 2029-12-01 | BF6: 2030-01-01 | BG6: 2030-02-01 | BH6: 2030-03-01 | BI6: 2030-04-01 | BJ6: 2030-05-01 | BK6: 2030-06-01 | BL6: 2030-07-01 | BM6: 2030-08-01 | BN6: 2030-09-01 | BO6: 2030-10-01 | BP6: 2030-11-01 | BQ6: 2030-12-01 | BR6: 2031-01-01 | BS6: 2031-02-01 | BT6: 2031-03-01 | BU6: 2031-04-01 | BV6: 2031-05-01 | BW6: =BV7+1 -> 2031-06-01 | BX6: 2031-07-01 | BY6: 2031-08-01 | BZ6: 2031-09-01 | CA6: 2031-10-01 | CB6: 2031-11-01 | CC6: 2031-12-01 | CD6: 2032-01-01 | CE6: 2032-02-01 | CF6: 2032-03-01 | CG6: 2032-04-01 | CH6: 2032-05-01 | CI6: 2032-06-01 | CJ6: 2032-07-01 | CK6: 2032-08-01 | CL6: 2032-09-01 | CM6: 2032-10-01 | CN6: 2032-11-01 | CO6: 2032-12-01 | CP6: 2033-01-01 | CQ6: 2033-02-01 | CR6: 2033-03-01 | CS6: 2033-04-01 | CT6: 2033-05-01 | CU6: 2033-06-01 | CV6: 2033-07-01 | CW6: 2033-08-01 | CX6: 2033-09-01 | CY6: 2033-10-01 | CZ6: 2033-11-01 | DA6: 2033-12-01 | DB6: 2034-01-01 | DC6: 2034-02-01 | DD6: 2034-03-01 | DE6: 2034-04-01 | DF6: 2034-05-01 | DG6: 2034-06-01 | DH6: 2034-07-01 | DI6: 2034-08-01 | DJ6: 2034-09-01 | DK6: 2034-10-01 | DL6: 2034-11-01 | DM6: 2034-12-01 | DN6: 2035-01-01 | DO6: 2035-02-01 | DP6: 2035-03-01 | DQ6: 2035-04-01 | DR6: 2035-05-01 | DS6: 2035-06-01 | DT6: 2035-07-01 | DU6: 2035-08-01 | DV6: 2035-09-01 | DW6: 2035-10-01 | DX6: 2035-11-01 | DY6: 2035-12-01 | DZ6: 2036-01-01 | EA6: 2036-02-01 | EB6: 2036-03-01 | EC6: 2036-04-01 | ED6: 2036-05-01 | EE6: 2036-06-01 | EF6: 2036-07-01 | EG6: 2036-08-01 | EH6: 2036-09-01 | EI6: =EH7+1 -> 2036-10-01 | EJ6: 2036-11-01 | EK6: 2036-12-01 | EL6: 2037-01-01 | EM6: 2037-02-01 | EN6: 2037-03-01 | EO6: 2037-04-01 | EP6: 2037-05-01 | EQ6: 2037-06-01 | ER6: 2037-07-01 | ES6: 2037-08-01 | ET6: 2037-09-01 | EU6: 2037-10-01 | EV6: 2037-11-01 | EW6: 2037-12-01 | EX6: 2038-01-01 | EY6: 2038-02-01 | EZ6: 2038-03-01 | FA6: 2038-04-01 | FB6: 2038-05-01 | FC6: 2038-06-01 | FD6: 2038-07-01 | FE6: 2038-08-01 | FF6: 2038-09-01 | FG6: 2038-10-01 | FH6: 2038-11-01 | FI6: 2038-12-01 | FJ6: 2039-01-01 | FK6: 2039-02-01 | FL6: 2039-03-01 | FM6: 2039-04-01 | FN6: 2039-05-01 | FO6: 2039-06-01 | FP6: 2039-07-01 | FQ6: 2039-08-01 | FR6: 2039-09-01 | FS6: 2039-10-01 | FT6: 2039-11-01 | FU6: 2039-12-01 | FV6: 2040-01-01 | FW6: 2040-02-01 | FX6: 2040-03-01 | FY6: 2040-04-01 | FZ6: 2040-05-01 | GA6: 2040-06-01 | GB6: 2040-07-01 | GC6: 2040-08-01 | GD6: 2040-09-01 | GE6: 2040-10-01 | GF6: 2040-11-01 | GG6: 2040-12-01 | GH6: 2041-01-01 | GI6: 2041-02-01 | GJ6: 2041-03-01 | GK6: 2041-04-01 | GL6: 2041-05-01 | GM6: 2041-06-01 | GN6: 2041-07-01 | GO6: 2041-08-01 | GP6: 2041-09-01 | GQ6: 2041-10-01 | GR6: 2041-11-01 | GS6: 2041-12-01 | GT6: 2042-01-01 | GU6: =GT7+1 -> 2042-02-01 | GV6: 2042-03-01 | GW6: 2042-04-01 | GX6: 2042-05-01 | GY6: 2042-06-01 | GZ6: 2042-07-01 | HA6: 2042-08-01 | HB6: 2042-09-01 | HC6: 2042-10-01 | HD6: 2042-11-01 | HE6: 2042-12-01 | HF6: 2043-01-01 | HG6: 2043-02-01 | HH6: 2043-03-01 | HI6: 2043-04-01 | HJ6: 2043-05-01 | HK6: 2043-06-01 | HL6: 2043-07-01 | HM6: 2043-08-01 | HN6: 2043-09-01 | HO6: 2043-10-01 | HP6: 2043-11-01 | HQ6: 2043-12-01 | HR6: 2044-01-01 | HS6: 2044-02-01 | HT6: 2044-03-01 | HU6: 2044-04-01 | HV6: 2044-05-01 | HW6: 2044-06-01 | HX6: 2044-07-01 | HY6: 2044-08-01 | HZ6: 2044-09-01 | IA6: 2044-10-01 | IB6: 2044-11-01 | IC6: 2044-12-01 | ID6: 2045-01-01 | IE6: 2045-02-01 | IF6: 2045-03-01 | IG6: 2045-04-01 | IH6: 2045-05-01 | II6: 2045-06-01 | IJ6: 2045-07-01 | IK6: 2045-08-01 | IL6: 2045-09-01 | IM6: 2045-10-01 | IN6: 2045-11-01 | IO6: 2045-12-01 | IP6: 2046-01-01 | IQ6: 2046-02-01 | IR6: 2046-03-01 | IS6: 2046-04-01 | IT6: 2046-05-01 | IU6: 2046-06-01 | IV6: 2046-07-01 | IW6: 2046-08-01 | IX6: 2046-09-01 | IY6: 2046-10-01 | IZ6: 2046-11-01 | JA6: 2046-12-01 | JB6: 2047-01-01 | JC6: 2047-02-01 | JD6: 2047-03-01 | JE6: 2047-04-01 | JF6: 2047-05-01 | JG6: =JF7+1 -> 2047-06-01 | JH6: 2047-07-01 | JI6: 2047-08-01 | JJ6: 2047-09-01 | JK6: 2047-10-01 | JL6: 2047-11-01 | JM6: 2047-12-01 | JN6: 2048-01-01 | JO6: 2048-02-01 | JP6: 2048-03-01 | JQ6: 2048-04-01 | JR6: 2048-05-01 | JS6: 2048-06-01 | JT6: 2048-07-01 | JU6: 2048-08-01 | JV6: 2048-09-01 | JW6: 2048-10-01 | JX6: 2048-11-01 | JY6: 2048-12-01 | JZ6: 2049-01-01 | KA6: 2049-02-01 | KB6: 2049-03-01 | KC6: 2049-04-01 | KD6: 2049-05-01 | KE6: 2049-06-01 | KF6: 2049-07-01 | KG6: 2049-08-01 | KH6: 2049-09-01 | KI6: 2049-10-01 | KJ6: 2049-11-01 | KK6: 2049-12-01 | KL6: 2050-01-01 | KM6: 2050-02-01 | KN6: 2050-03-01 | KO6: 2050-04-01 | KP6: 2050-05-01 | KQ6: 2050-06-01 | KR6: 2050-07-01 | KS6: 2050-08-01 | KT6: 2050-09-01 | KU6: 2050-10-01 | KV6: 2050-11-01 | KW6: 2050-12-01 | KX6: 2051-01-01 | KY6: 2051-02-01 | KZ6: 2051-03-01 | LA6: 2051-04-01 | LB6: 2051-05-01 | LC6: 2051-06-01 | LD6: 2051-07-01 | LE6: 2051-08-01 | LF6: 2051-09-01 | LG6: 2051-10-01 | LH6: 2051-11-01 | LI6: 2051-12-01 | LJ6: 2052-01-01 | LK6: 2052-02-01 | LL6: 2052-03-01 | LM6: 2052-04-01 | LN6: 2052-05-01 | LO6: 2052-06-01 | LP6: 2052-07-01 | LQ6: 2052-08-01 | LR6: 2052-09-01 | LS6: =LR7+1 -> 2052-10-01 | LT6: 2052-11-01 | LU6: 2052-12-01 | LV6: 2053-01-01 | LW6: 2053-02-01 | LX6: 2053-03-01 | LY6: 2053-04-01 | LZ6: 2053-05-01 | MA6: 2053-06-01 | MB6: 2053-07-01 | MC6: 2053-08-01 | MD6: 2053-09-01 | ME6: 2053-10-01 | MF6: 2053-11-01 | MG6: 2053-12-01 | MH6: 2054-01-01 | MI6: 2054-02-01 | MJ6: 2054-03-01 | MK6: 2054-04-01 | ML6: 2054-05-01 | MM6: 2054-06-01 | MN6: 2054-07-01 | MO6: 2054-08-01 | MP6: 2054-09-01 | MQ6: 2054-10-01 | MR6: 2054-11-01 | MS6: 2054-12-01 | MT6: 2055-01-01 | MU6: 2055-02-01 | MV6: 2055-03-01 | MW6: 2055-04-01 | MX6: 2055-05-01 | MY6: 2055-06-01 | MZ6: 2055-07-01 | NA6: 2055-08-01 | NB6: 2055-09-01 | NC6: 2055-10-01 | ND6: 2055-11-01 | NE6: 2055-12-01 | NF6: 2056-01-01 | NG6: 2056-02-01 | NH6: 2056-03-01 | NI6: 2056-04-01 | NJ6: 2056-05-01 | NK6: 2056-06-01 | NL6: 2056-07-01 | NM6: 2056-08-01 | NN6: 2056-09-01 | NO6: 2056-10-01 | NP6: 2056-11-01 | NQ6: 2056-12-01 | NR6: 2057-01-01 | NS6: 2057-02-01 | NT6: 2057-03-01 | NU6: 2057-04-01 | NV6: 2057-05-01 | NW6: 2057-06-01 | NX6: 2057-07-01 | NY6: 2057-08-01 | NZ6: 2057-09-01 | OA6: 2057-10-01 | OB6: 2057-11-01 | OC6: 2057-12-01 | OD6: 2058-01-01 | OE6: =OD7+1 -> 2058-02-01 | OF6: 2058-03-01 | OG6: 2058-04-01 | OH6: 2058-05-01 | OI6: 2058-06-01 | OJ6: 2058-07-01 | OK6: 2058-08-01 | OL6: 2058-09-01 | OM6: 2058-10-01 | ON6: 2058-11-01 | OO6: 2058-12-01 | OP6: 2059-01-01 | OQ6: 2059-02-01 | OR6: 2059-03-01 | OS6: 2059-04-01 | OT6: 2059-05-01 | OU6: 2059-06-01 | OV6: 2059-07-01 | OW6: 2059-08-01 | OX6: 2059-09-01 | OY6: 2059-10-01 | OZ6: 2059-11-01 | PA6: 2059-12-01 | PB6: 2060-01-01 | PC6: 2060-02-01 | PD6: 2060-03-01 | PE6: 2060-04-01 | PF6: 2060-05-01 | PG6: 2060-06-01 | PH6: 2060-07-01 | PI6: 2060-08-01 | PJ6: 2060-09-01 | PK6: 2060-10-01 | PL6: 2060-11-01 | PM6: 2060-12-01 | PN6: 2061-01-01 | PO6: 2061-02-01 | PP6: 2061-03-01 | PQ6: 2061-04-01 | PR6: 2061-05-01 | PS6: 2061-06-01 | PT6: 2061-07-01 | PU6: 2061-08-01 | PV6: 2061-09-01 | PW6: 2061-10-01 | PX6: 2061-11-01 | PY6: 2061-12-01 | PZ6: 2062-01-01 | QA6: 2062-02-01 | QB6: 2062-03-01 | QC6: 2062-04-01 | QD6: 2062-05-01 | QE6: 2062-06-01 | QF6: 2062-07-01 | QG6: 2062-08-01 | QH6: 2062-09-01 | QI6: 2062-10-01 | QJ6: 2062-11-01 | QK6: 2062-12-01 | QL6: 2063-01-01 | QM6: 2063-02-01 | QN6: 2063-03-01 | QO6: 2063-04-01 | QP6: 2063-05-01 | QQ6: =QP7+1 -> 2063-06-01 | QR6: 2063-07-01 | QS6: 2063-08-01 | QT6: 2063-09-01 | QU6: 2063-10-01 | QV6: 2063-11-01 | QW6: 2063-12-01 | QX6: 2064-01-01 | QY6: 2064-02-01 | QZ6: 2064-03-01 | RA6: 2064-04-01 | RB6: 2064-05-01 | RC6: 2064-06-01 | RD6: 2064-07-01 | RE6: 2064-08-01 | RF6: 2064-09-01 | RG6: 2064-10-01 | RH6: 2064-11-01 | RI6: 2064-12-01 | RJ6: 2065-01-01 | RK6: 2065-02-01 | RL6: 2065-03-01 | RM6: 2065-04-01 | RN6: 2065-05-01 | RO6: 2065-06-01 | RP6: 2065-07-01 | RQ6: 2065-08-01 | RR6: 2065-09-01 | RS6: 2065-10-01 | RT6: 2065-11-01 | RU6: 2065-12-01 | RV6: 2066-01-01 | RW6: 2066-02-01 | RX6: 2066-03-01 | RY6: 2066-04-01 | RZ6: 2066-05-01 | SA6: 2066-06-01 | SB6: 2066-07-01 | SC6: 2066-08-01 | SD6: 2066-09-01 | SE6: 2066-10-01 | SF6: 2066-11-01 | SG6: 2066-12-01 | SH6: 2067-01-01 | SI6: 2067-02-01 | SJ6: 2067-03-01 | SK6: 2067-04-01 | SL6: 2067-05-01 | SM6: 2067-06-01 | SN6: 2067-07-01 | SO6: 2067-08-01
C7: End of period | E7: date | I7: =InputC!F8-1 -> 2025-12-31 | J7: =EOMONTH(J6,0) -> 2026-01-31 | K7: =EOMONTH(K6,0) -> 2026-02-28 | L7: 2026-03-31 | M7: 2026-04-30 | N7: 2026-05-31 | O7: 2026-06-30 | P7: 2026-07-31 | Q7: 2026-08-31 | R7: 2026-09-30 | S7: 2026-10-31 | T7: 2026-11-30 | U7: 2026-12-31 | V7: 2027-01-31 | W7: 2027-02-28 | X7: 2027-03-31 | Y7: 2027-04-30 | Z7: 2027-05-31 | AA7: 2027-06-30 | AB7: 2027-07-31 | AC7: 2027-08-31 | AD7: 2027-09-30 | AE7: 2027-10-31 | AF7: 2027-11-30 | AG7: 2027-12-31 | AH7: 2028-01-31 | AI7: 2028-02-29 | AJ7: 2028-03-31 | AK7: 2028-04-30 | AL7: 2028-05-31 | AM7: 2028-06-30 | AN7: 2028-07-31 | AO7: 2028-08-31 | AP7: 2028-09-30 | AQ7: 2028-10-31 | AR7: 2028-11-30 | AS7: 2028-12-31 | AT7: 2029-01-31 | AU7: 2029-02-28 | AV7: 2029-03-31 | AW7: 2029-04-30 | AX7: 2029-05-31 | AY7: 2029-06-30 | AZ7: 2029-07-31 | BA7: 2029-08-31 | BB7: 2029-09-30 | BC7: 2029-10-31 | BD7: 2029-11-30 | BE7: 2029-12-31 | BF7: 2030-01-31 | BG7: 2030-02-28 | BH7: 2030-03-31 | BI7: 2030-04-30 | BJ7: 2030-05-31 | BK7: 2030-06-30 | BL7: 2030-07-31 | BM7: 2030-08-31 | BN7: 2030-09-30 | BO7: 2030-10-31 | BP7: 2030-11-30 | BQ7: 2030-12-31 | BR7: 2031-01-31 | BS7: 2031-02-28 | BT7: 2031-03-31 | BU7: 2031-04-30 | BV7: 2031-05-31 | BW7: =EOMONTH(BW6,0) -> 2031-06-30 | BX7: 2031-07-31 | BY7: 2031-08-31 | BZ7: 2031-09-30 | CA7: 2031-10-31 | CB7: 2031-11-30 | CC7: 2031-12-31 | CD7: 2032-01-31 | CE7: 2032-02-29 | CF7: 2032-03-31 | CG7: 2032-04-30 | CH7: 2032-05-31 | CI7: 2032-06-30 | CJ7: 2032-07-31 | CK7: 2032-08-31 | CL7: 2032-09-30 | CM7: 2032-10-31 | CN7: 2032-11-30 | CO7: 2032-12-31 | CP7: 2033-01-31 | CQ7: 2033-02-28 | CR7: 2033-03-31 | CS7: 2033-04-30 | CT7: 2033-05-31 | CU7: 2033-06-30 | CV7: 2033-07-31 | CW7: 2033-08-31 | CX7: 2033-09-30 | CY7: 2033-10-31 | CZ7: 2033-11-30 | DA7: 2033-12-31 | DB7: 2034-01-31 | DC7: 2034-02-28 | DD7: 2034-03-31 | DE7: 2034-04-30 | DF7: 2034-05-31 | DG7: 2034-06-30 | DH7: 2034-07-31 | DI7: 2034-08-31 | DJ7: 2034-09-30 | DK7: 2034-10-31 | DL7: 2034-11-30 | DM7: 2034-12-31 | DN7: 2035-01-31 | DO7: 2035-02-28 | DP7: 2035-03-31 | DQ7: 2035-04-30 | DR7: 2035-05-31 | DS7: 2035-06-30 | DT7: 2035-07-31 | DU7: 2035-08-31 | DV7: 2035-09-30 | DW7: 2035-10-31 | DX7: 2035-11-30 | DY7: 2035-12-31 | DZ7: 2036-01-31 | EA7: 2036-02-29 | EB7: 2036-03-31 | EC7: 2036-04-30 | ED7: 2036-05-31 | EE7: 2036-06-30 | EF7: 2036-07-31 | EG7: 2036-08-31 | EH7: 2036-09-30 | EI7: =EOMONTH(EI6,0) -> 2036-10-31 | EJ7: 2036-11-30 | EK7: 2036-12-31 | EL7: 2037-01-31 | EM7: 2037-02-28 | EN7: 2037-03-31 | EO7: 2037-04-30 | EP7: 2037-05-31 | EQ7: 2037-06-30 | ER7: 2037-07-31 | ES7: 2037-08-31 | ET7: 2037-09-30 | EU7: 2037-10-31 | EV7: 2037-11-30 | EW7: 2037-12-31 | EX7: 2038-01-31 | EY7: 2038-02-28 | EZ7: 2038-03-31 | FA7: 2038-04-30 | FB7: 2038-05-31 | FC7: 2038-06-30 | FD7: 2038-07-31 | FE7: 2038-08-31 | FF7: 2038-09-30 | FG7: 2038-10-31 | FH7: 2038-11-30 | FI7: 2038-12-31 | FJ7: 2039-01-31 | FK7: 2039-02-28 | FL7: 2039-03-31 | FM7: 2039-04-30 | FN7: 2039-05-31 | FO7: 2039-06-30 | FP7: 2039-07-31 | FQ7: 2039-08-31 | FR7: 2039-09-30 | FS7: 2039-10-31 | FT7: 2039-11-30 | FU7: 2039-12-31 | FV7: 2040-01-31 | FW7: 2040-02-29 | FX7: 2040-03-31 | FY7: 2040-04-30 | FZ7: 2040-05-31 | GA7: 2040-06-30 | GB7: 2040-07-31 | GC7: 2040-08-31 | GD7: 2040-09-30 | GE7: 2040-10-31 | GF7: 2040-11-30 | GG7: 2040-12-31 | GH7: 2041-01-31 | GI7: 2041-02-28 | GJ7: 2041-03-31 | GK7: 2041-04-30 | GL7: 2041-05-31 | GM7: 2041-06-30 | GN7: 2041-07-31 | GO7: 2041-08-31 | GP7: 2041-09-30 | GQ7: 2041-10-31 | GR7: 2041-11-30 | GS7: 2041-12-31 | GT7: 2042-01-31 | GU7: =EOMONTH(GU6,0) -> 2042-02-28 | GV7: 2042-03-31 | GW7: 2042-04-30 | GX7: 2042-05-31 | GY7: 2042-06-30 | GZ7: 2042-07-31 | HA7: 2042-08-31 | HB7: 2042-09-30 | HC7: 2042-10-31 | HD7: 2042-11-30 | HE7: 2042-12-31 | HF7: 2043-01-31 | HG7: 2043-02-28 | HH7: 2043-03-31 | HI7: 2043-04-30 | HJ7: 2043-05-31 | HK7: 2043-06-30 | HL7: 2043-07-31 | HM7: 2043-08-31 | HN7: 2043-09-30 | HO7: 2043-10-31 | HP7: 2043-11-30 | HQ7: 2043-12-31 | HR7: 2044-01-31 | HS7: 2044-02-29 | HT7: 2044-03-31 | HU7: 2044-04-30 | HV7: 2044-05-31 | HW7: 2044-06-30 | HX7: 2044-07-31 | HY7: 2044-08-31 | HZ7: 2044-09-30 | IA7: 2044-10-31 | IB7: 2044-11-30 | IC7: 2044-12-31 | ID7: 2045-01-31 | IE7: 2045-02-28 | IF7: 2045-03-31 | IG7: 2045-04-30 | IH7: 2045-05-31 | II7: 2045-06-30 | IJ7: 2045-07-31 | IK7: 2045-08-31 | IL7: 2045-09-30 | IM7: 2045-10-31 | IN7: 2045-11-30 | IO7: 2045-12-31 | IP7: 2046-01-31 | IQ7: 2046-02-28 | IR7: 2046-03-31 | IS7: 2046-04-30 | IT7: 2046-05-31 | IU7: 2046-06-30 | IV7: 2046-07-31 | IW7: 2046-08-31 | IX7: 2046-09-30 | IY7: 2046-10-31 | IZ7: 2046-11-30 | JA7: 2046-12-31 | JB7: 2047-01-31 | JC7: 2047-02-28 | JD7: 2047-03-31 | JE7: 2047-04-30 | JF7: 2047-05-31 | JG7: =EOMONTH(JG6,0) -> 2047-06-30 | JH7: 2047-07-31 | JI7: 2047-08-31 | JJ7: 2047-09-30 | JK7: 2047-10-31 | JL7: 2047-11-30 | JM7: 2047-12-31 | JN7: 2048-01-31 | JO7: 2048-02-29 | JP7: 2048-03-31 | JQ7: 2048-04-30 | JR7: 2048-05-31 | JS7: 2048-06-30 | JT7: 2048-07-31 | JU7: 2048-08-31 | JV7: 2048-09-30 | JW7: 2048-10-31 | JX7: 2048-11-30 | JY7: 2048-12-31 | JZ7: 2049-01-31 | KA7: 2049-02-28 | KB7: 2049-03-31 | KC7: 2049-04-30 | KD7: 2049-05-31 | KE7: 2049-06-30 | KF7: 2049-07-31 | KG7: 2049-08-31 | KH7: 2049-09-30 | KI7: 2049-10-31 | KJ7: 2049-11-30 | KK7: 2049-12-31 | KL7: 2050-01-31 | KM7: 2050-02-28 | KN7: 2050-03-31 | KO7: 2050-04-30 | KP7: 2050-05-31 | KQ7: 2050-06-30 | KR7: 2050-07-31 | KS7: 2050-08-31 | KT7: 2050-09-30 | KU7: 2050-10-31 | KV7: 2050-11-30 | KW7: 2050-12-31 | KX7: 2051-01-31 | KY7: 2051-02-28 | KZ7: 2051-03-31 | LA7: 2051-04-30 | LB7: 2051-05-31 | LC7: 2051-06-30 | LD7: 2051-07-31 | LE7: 2051-08-31 | LF7: 2051-09-30 | LG7: 2051-10-31 | LH7: 2051-11-30 | LI7: 2051-12-31 | LJ7: 2052-01-31 | LK7: 2052-02-29 | LL7: 2052-03-31 | LM7: 2052-04-30 | LN7: 2052-05-31 | LO7: 2052-06-30 | LP7: 2052-07-31 | LQ7: 2052-08-31 | LR7: 2052-09-30 | LS7: =EOMONTH(LS6,0) -> 2052-10-31 | LT7: 2052-11-30 | LU7: 2052-12-31 | LV7: 2053-01-31 | LW7: 2053-02-28 | LX7: 2053-03-31 | LY7: 2053-04-30 | LZ7: 2053-05-31 | MA7: 2053-06-30 | MB7: 2053-07-31 | MC7: 2053-08-31 | MD7: 2053-09-30 | ME7: 2053-10-31 | MF7: 2053-11-30 | MG7: 2053-12-31 | MH7: 2054-01-31 | MI7: 2054-02-28 | MJ7: 2054-03-31 | MK7: 2054-04-30 | ML7: 2054-05-31 | MM7: 2054-06-30 | MN7: 2054-07-31 | MO7: 2054-08-31 | MP7: 2054-09-30 | MQ7: 2054-10-31 | MR7: 2054-11-30 | MS7: 2054-12-31 | MT7: 2055-01-31 | MU7: 2055-02-28 | MV7: 2055-03-31 | MW7: 2055-04-30 | MX7: 2055-05-31 | MY7: 2055-06-30 | MZ7: 2055-07-31 | NA7: 2055-08-31 | NB7: 2055-09-30 | NC7: 2055-10-31 | ND7: 2055-11-30 | NE7: 2055-12-31 | NF7: 2056-01-31 | NG7: 2056-02-29 | NH7: 2056-03-31 | NI7: 2056-04-30 | NJ7: 2056-05-31 | NK7: 2056-06-30 | NL7: 2056-07-31 | NM7: 2056-08-31 | NN7: 2056-09-30 | NO7: 2056-10-31 | NP7: 2056-11-30 | NQ7: 2056-12-31 | NR7: 2057-01-31 | NS7: 2057-02-28 | NT7: 2057-03-31 | NU7: 2057-04-30 | NV7: 2057-05-31 | NW7: 2057-06-30 | NX7: 2057-07-31 | NY7: 2057-08-31 | NZ7: 2057-09-30 | OA7: 2057-10-31 | OB7: 2057-11-30 | OC7: 2057-12-31 | OD7: 2058-01-31 | OE7: =EOMONTH(OE6,0) -> 2058-02-28 | OF7: 2058-03-31 | OG7: 2058-04-30 | OH7: 2058-05-31 | OI7: 2058-06-30 | OJ7: 2058-07-31 | OK7: 2058-08-31 | OL7: 2058-09-30 | OM7: 2058-10-31 | ON7: 2058-11-30 | OO7: 2058-12-31 | OP7: 2059-01-31 | OQ7: 2059-02-28 | OR7: 2059-03-31 | OS7: 2059-04-30 | OT7: 2059-05-31 | OU7: 2059-06-30 | OV7: 2059-07-31 | OW7: 2059-08-31 | OX7: 2059-09-30 | OY7: 2059-10-31 | OZ7: 2059-11-30 | PA7: 2059-12-31 | PB7: 2060-01-31 | PC7: 2060-02-29 | PD7: 2060-03-31 | PE7: 2060-04-30 | PF7: 2060-05-31 | PG7: 2060-06-30 | PH7: 2060-07-31 | PI7: 2060-08-31 | PJ7: 2060-09-30 | PK7: 2060-10-31 | PL7: 2060-11-30 | PM7: 2060-12-31 | PN7: 2061-01-31 | PO7: 2061-02-28 | PP7: 2061-03-31 | PQ7: 2061-04-30 | PR7: 2061-05-31 | PS7: 2061-06-30 | PT7: 2061-07-31 | PU7: 2061-08-31 | PV7: 2061-09-30 | PW7: 2061-10-31 | PX7: 2061-11-30 | PY7: 2061-12-31 | PZ7: 2062-01-31 | QA7: 2062-02-28 | QB7: 2062-03-31 | QC7: 2062-04-30 | QD7: 2062-05-31 | QE7: 2062-06-30 | QF7: 2062-07-31 | QG7: 2062-08-31 | QH7: 2062-09-30 | QI7: 2062-10-31 | QJ7: 2062-11-30 | QK7: 2062-12-31 | QL7: 2063-01-31 | QM7: 2063-02-28 | QN7: 2063-03-31 | QO7: 2063-04-30 | QP7: 2063-05-31 | QQ7: =EOMONTH(QQ6,0) -> 2063-06-30 | QR7: 2063-07-31 | QS7: 2063-08-31 | QT7: 2063-09-30 | QU7: 2063-10-31 | QV7: 2063-11-30 | QW7: 2063-12-31 | QX7: 2064-01-31 | QY7: 2064-02-29 | QZ7: 2064-03-31 | RA7: 2064-04-30 | RB7: 2064-05-31 | RC7: 2064-06-30 | RD7: 2064-07-31 | RE7: 2064-08-31 | RF7: 2064-09-30 | RG7: 2064-10-31 | RH7: 2064-11-30 | RI7: 2064-12-31 | RJ7: 2065-01-31 | RK7: 2065-02-28 | RL7: 2065-03-31 | RM7: 2065-04-30 | RN7: 2065-05-31 | RO7: 2065-06-30 | RP7: 2065-07-31 | RQ7: 2065-08-31 | RR7: 2065-09-30 | RS7: 2065-10-31 | RT7: 2065-11-30 | RU7: 2065-12-31 | RV7: 2066-01-31 | RW7: 2066-02-28 | RX7: 2066-03-31 | RY7: 2066-04-30 | RZ7: 2066-05-31 | SA7: 2066-06-30 | SB7: 2066-07-31 | SC7: 2066-08-31 | SD7: 2066-09-30 | SE7: 2066-10-31 | SF7: 2066-11-30 | SG7: 2066-12-31 | SH7: 2067-01-31 | SI7: 2067-02-28 | SJ7: 2067-03-31 | SK7: 2067-04-30 | SL7: 2067-05-31 | SM7: 2067-06-30 | SN7: 2067-07-31 | SO7: 2067-08-31
C8: PPA Period | E8: Flag | F8: =InputC!F9 -> 2027-07-01 | G8: =InputC!F11 -> 2052-07-01 | H8: =SUM(J8:XFD8) -> 300 | J8: =AND(J$6>=$F8,J$6<$G8)*1 -> 0 | K8: =AND(K$6>=$F8,K$6<$G8)*1 -> 0 | L8: 0 | M8: 0 | N8: 0 | O8: 0 | P8: 0 | Q8: 0 | R8: 0 | S8: 0 | T8: 0 | U8: 0 | V8: 0 | W8: 0 | X8: 0 | Y8: 0 | Z8: 0 | AA8: 0 | AB8: 1 | AC8: 1 | AD8: 1 | AE8: 1 | AF8: 1 | AG8: 1 | AH8: 1 | AI8: 1 | AJ8: 1 | AK8: 1 | AL8: 1 | AM8: 1 | AN8: 1 | AO8: 1 | AP8: 1 | AQ8: 1 | AR8: 1 | AS8: 1 | AT8: 1 | AU8: 1 | AV8: 1 | AW8: 1 | AX8: 1 | AY8: 1 | AZ8: 1 | BA8: 1 | BB8: 1 | BC8: 1 | BD8: 1 | BE8: 1 | BF8: 1 | BG8: 1 | BH8: 1 | BI8: 1 | BJ8: 1 | BK8: 1 | BL8: 1 | BM8: 1 | BN8: 1 | BO8: 1 | BP8: 1 | BQ8: 1 | BR8: 1 | BS8: 1 | BT8: 1 | BU8: 1 | BV8: 1 | BW8: =AND(BW$6>=$F8,BW$6<$G8)*1 -> 1 | BX8: 1 | BY8: 1 | BZ8: 1 | CA8: 1 | CB8: 1 | CC8: 1 | CD8: 1 | CE8: 1 | CF8: 1 | CG8: 1 | CH8: 1 | CI8: 1 | CJ8: 1 | CK8: 1 | CL8: 1 | CM8: 1 | CN8: 1 | CO8: 1 | CP8: 1 | CQ8: 1 | CR8: 1 | CS8: 1 | CT8: 1 | CU8: 1 | CV8: 1 | CW8: 1 | CX8: 1 | CY8: 1 | CZ8: 1 | DA8: 1 | DB8: 1 | DC8: 1 | DD8: 1 | DE8: 1 | DF8: 1 | DG8: 1 | DH8: 1 | DI8: 1 | DJ8: 1 | DK8: 1 | DL8: 1 | DM8: 1 | DN8: 1 | DO8: 1 | DP8: 1 | DQ8: 1 | DR8: 1 | DS8: 1 | DT8: 1 | DU8: 1 | DV8: 1 | DW8: 1 | DX8: 1 | DY8: 1 | DZ8: 1 | EA8: 1 | EB8: 1 | EC8: 1 | ED8: 1 | EE8: 1 | EF8: 1 | EG8: 1 | EH8: 1 | EI8: =AND(EI$6>=$F8,EI$6<$G8)*1 -> 1 | EJ8: 1 | EK8: 1 | EL8: 1 | EM8: 1 | EN8: 1 | EO8: 1 | EP8: 1 | EQ8: 1 | ER8: 1 | ES8: 1 | ET8: 1 | EU8: 1 | EV8: 1 | EW8: 1 | EX8: 1 | EY8: 1 | EZ8: 1 | FA8: 1 | FB8: 1 | FC8: 1 | FD8: 1 | FE8: 1 | FF8: 1 | FG8: 1 | FH8: 1 | FI8: 1 | FJ8: 1 | FK8: 1 | FL8: 1 | FM8: 1 | FN8: 1 | FO8: 1 | FP8: 1 | FQ8: 1 | FR8: 1 | FS8: 1 | FT8: 1 | FU8: 1 | FV8: 1 | FW8: 1 | FX8: 1 | FY8: 1 | FZ8: 1 | GA8: 1 | GB8: 1 | GC8: 1 | GD8: 1 | GE8: 1 | GF8: 1 | GG8: 1 | GH8: 1 | GI8: 1 | GJ8: 1 | GK8: 1 | GL8: 1 | GM8: 1 | GN8: 1 | GO8: 1 | GP8: 1 | GQ8: 1 | GR8: 1 | GS8: 1 | GT8: 1 | GU8: =AND(GU$6>=$F8,GU$6<$G8)*1 -> 1 | GV8: 1 | GW8: 1 | GX8: 1 | GY8: 1 | GZ8: 1 | HA8: 1 | HB8: 1 | HC8: 1 | HD8: 1 | HE8: 1 | HF8: 1 | HG8: 1 | HH8: 1 | HI8: 1 | HJ8: 1 | HK8: 1 | HL8: 1 | HM8: 1 | HN8: 1 | HO8: 1 | HP8: 1 | HQ8: 1 | HR8: 1 | HS8: 1 | HT8: 1 | HU8: 1 | HV8: 1 | HW8: 1 | HX8: 1 | HY8: 1 | HZ8: 1 | IA8: 1 | IB8: 1 | IC8: 1 | ID8: 1 | IE8: 1 | IF8: 1 | IG8: 1 | IH8: 1 | II8: 1 | IJ8: 1 | IK8: 1 | IL8: 1 | IM8: 1 | IN8: 1 | IO8: 1 | IP8: 1 | IQ8: 1 | IR8: 1 | IS8: 1 | IT8: 1 | IU8: 1 | IV8: 1 | IW8: 1 | IX8: 1 | IY8: 1 | IZ8: 1 | JA8: 1 | JB8: 1 | JC8: 1 | JD8: 1 | JE8: 1 | JF8: 1 | JG8: =AND(JG$6>=$F8,JG$6<$G8)*1 -> 1 | JH8: 1 | JI8: 1 | JJ8: 1 | JK8: 1 | JL8: 1 | JM8: 1 | JN8: 1 | JO8: 1 | JP8: 1 | JQ8: 1 | JR8: 1 | JS8: 1 | JT8: 1 | JU8: 1 | JV8: 1 | JW8: 1 | JX8: 1 | JY8: 1 | JZ8: 1 | KA8: 1 | KB8: 1 | KC8: 1 | KD8: 1 | KE8: 1 | KF8: 1 | KG8: 1 | KH8: 1 | KI8: 1 | KJ8: 1 | KK8: 1 | KL8: 1 | KM8: 1 | KN8: 1 | KO8: 1 | KP8: 1 | KQ8: 1 | KR8: 1 | KS8: 1 | KT8: 1 | KU8: 1 | KV8: 1 | KW8: 1 | KX8: 1 | KY8: 1 | KZ8: 1 | LA8: 1 | LB8: 1 | LC8: 1 | LD8: 1 | LE8: 1 | LF8: 1 | LG8: 1 | LH8: 1 | LI8: 1 | LJ8: 1 | LK8: 1 | LL8: 1 | LM8: 1 | LN8: 1 | LO8: 1 | LP8: 0 | LQ8: 0 | LR8: 0 | LS8: =AND(LS$6>=$F8,LS$6<$G8)*1 -> 0 | LT8: 0 | LU8: 0 | LV8: 0 | LW8: 0 | LX8: 0 | LY8: 0 | LZ8: 0 | MA8: 0 | MB8: 0 | MC8: 0 | MD8: 0 | ME8: 0 | MF8: 0 | MG8: 0 | MH8: 0 | MI8: 0 | MJ8: 0 | MK8: 0 | ML8: 0 | MM8: 0 | MN8: 0 | MO8: 0 | MP8: 0 | MQ8: 0 | MR8: 0 | MS8: 0 | MT8: 0 | MU8: 0 | MV8: 0 | MW8: 0 | MX8: 0 | MY8: 0 | MZ8: 0 | NA8: 0 | NB8: 0 | NC8: 0 | ND8: 0 | NE8: 0 | NF8: 0 | NG8: 0 | NH8: 0 | NI8: 0 | NJ8: 0 | NK8: 0 | NL8: 0 | NM8: 0 | NN8: 0 | NO8: 0 | NP8: 0 | NQ8: 0 | NR8: 0 | NS8: 0 | NT8: 0 | NU8: 0 | NV8: 0 | NW8: 0 | NX8: 0 | NY8: 0 | NZ8: 0 | OA8: 0 | OB8: 0 | OC8: 0 | OD8: 0 | OE8: =AND(OE$6>=$F8,OE$6<$G8)*1 -> 0 | OF8: 0 | OG8: 0 | OH8: 0 | OI8: 0 | OJ8: 0 | OK8: 0 | OL8: 0 | OM8: 0 | ON8: 0 | OO8: 0 | OP8: 0 | OQ8: 0 | OR8: 0 | OS8: 0 | OT8: 0 | OU8: 0 | OV8: 0 | OW8: 0 | OX8: 0 | OY8: 0 | OZ8: 0 | PA8: 0 | PB8: 0 | PC8: 0 | PD8: 0 | PE8: 0 | PF8: 0 | PG8: 0 | PH8: 0 | PI8: 0 | PJ8: 0 | PK8: 0 | PL8: 0 | PM8: 0 | PN8: 0 | PO8: 0 | PP8: 0 | PQ8: 0 | PR8: 0 | PS8: 0 | PT8: 0 | PU8: 0 | PV8: 0 | PW8: 0 | PX8: 0 | PY8: 0 | PZ8: 0 | QA8: 0 | QB8: 0 | QC8: 0 | QD8: 0 | QE8: 0 | QF8: 0 | QG8: 0 | QH8: 0 | QI8: 0 | QJ8: 0 | QK8: 0 | QL8: 0 | QM8: 0 | QN8: 0 | QO8: 0 | QP8: 0 | QQ8: =AND(QQ$6>=$F8,QQ$6<$G8)*1 -> 0 | QR8: 0 | QS8: 0 | QT8: 0 | QU8: 0 | QV8: 0 | QW8: 0 | QX8: 0 | QY8: 0 | QZ8: 0 | RA8: 0 | RB8: 0 | RC8: 0 | RD8: 0 | RE8: 0 | RF8: 0 | RG8: 0 | RH8: 0 | RI8: 0 | RJ8: 0 | RK8: 0 | RL8: 0 | RM8: 0 | RN8: 0 | RO8: 0 | RP8: 0 | RQ8: 0 | RR8: 0 | RS8: 0 | RT8: 0 | RU8: 0 | RV8: 0 | RW8: 0 | RX8: 0 | RY8: 0 | RZ8: 0 | SA8: 0 | SB8: 0 | SC8: 0 | SD8: 0 | SE8: 0 | SF8: 0 | SG8: 0 | SH8: 0 | SI8: 0 | SJ8: 0 | SK8: 0 | SL8: 0 | SM8: 0 | SN8: 0 | SO8: 0
C9: Full Operation Period | E9: Flag | F9: =InputC!F9 -> 2027-07-01 | G9: =InputC!F13 -> 2062-07-01 | H9: =SUM(J9:XFD9) -> 420 | J9: =AND(J$6>=$F9,J$6<$G9)*1 -> 0 | K9: 0 | L9: 0 | M9: 0 | N9: 0 | O9: 0 | P9: 0 | Q9: 0 | R9: 0 | S9: 0 | T9: 0 | U9: 0 | V9: 0 | W9: 0 | X9: 0 | Y9: 0 | Z9: 0 | AA9: 0 | AB9: 1 | AC9: 1 | AD9: 1 | AE9: 1 | AF9: 1 | AG9: 1 | AH9: 1 | AI9: 1 | AJ9: 1 | AK9: 1 | AL9: 1 | AM9: 1 | AN9: 1 | AO9: 1 | AP9: 1 | AQ9: 1 | AR9: 1 | AS9: 1 | AT9: 1 | AU9: 1 | AV9: 1 | AW9: 1 | AX9: 1 | AY9: 1 | AZ9: 1 | BA9: 1 | BB9: 1 | BC9: 1 | BD9: 1 | BE9: 1 | BF9: 1 | BG9: 1 | BH9: 1 | BI9: 1 | BJ9: 1 | BK9: 1 | BL9: 1 | BM9: 1 | BN9: 1 | BO9: 1 | BP9: 1 | BQ9: 1 | BR9: 1 | BS9: 1 | BT9: 1 | BU9: 1 | BV9: 1 | BW9: 1 | BX9: 1 | BY9: 1 | BZ9: 1 | CA9: 1 | CB9: 1 | CC9: 1 | CD9: 1 | CE9: 1 | CF9: 1 | CG9: 1 | CH9: 1 | CI9: 1 | CJ9: 1 | CK9: 1 | CL9: 1 | CM9: 1 | CN9: 1 | CO9: 1 | CP9: 1 | CQ9: 1 | CR9: 1 | CS9: 1 | CT9: 1 | CU9: 1 | CV9: 1 | CW9: 1 | CX9: 1 | CY9: 1 | CZ9: 1 | DA9: 1 | DB9: 1 | DC9: 1 | DD9: 1 | DE9: 1 | DF9: 1 | DG9: 1 | DH9: 1 | DI9: 1 | DJ9: 1 | DK9: 1 | DL9: 1 | DM9: 1 | DN9: 1 | DO9: 1 | DP9: 1 | DQ9: 1 | DR9: 1 | DS9: 1 | DT9: 1 | DU9: 1 | DV9: 1 | DW9: 1 | DX9: 1 | DY9: 1 | DZ9: 1 | EA9: 1 | EB9: 1 | EC9: 1 | ED9: 1 | EE9: 1 | EF9: 1 | EG9: 1 | EH9: 1 | EI9: 1 | EJ9: 1 | EK9: 1 | EL9: 1 | EM9: 1 | EN9: 1 | EO9: 1 | EP9: 1 | EQ9: 1 | ER9: 1 | ES9: 1 | ET9: 1 | EU9: 1 | EV9: 1 | EW9: 1 | EX9: 1 | EY9: 1 | EZ9: 1 | FA9: 1 | FB9: 1 | FC9: 1 | FD9: 1 | FE9: 1 | FF9: 1 | FG9: 1 | FH9: 1 | FI9: 1 | FJ9: 1 | FK9: 1 | FL9: 1 | FM9: 1 | FN9: 1 | FO9: 1 | FP9: 1 | FQ9: 1 | FR9: 1 | FS9: 1 | FT9: 1 | FU9: 1 | FV9: 1 | FW9: 1 | FX9: 1 | FY9: 1 | FZ9: 1 | GA9: 1 | GB9: 1 | GC9: 1 | GD9: 1 | GE9: 1 | GF9: 1 | GG9: 1 | GH9: 1 | GI9: 1 | GJ9: 1 | GK9: 1 | GL9: 1 | GM9: 1 | GN9: 1 | GO9: 1 | GP9: 1 | GQ9: 1 | GR9: 1 | GS9: 1 | GT9: 1 | GU9: 1 | GV9: 1 | GW9: 1 | GX9: 1 | GY9: 1 | GZ9: 1 | HA9: 1 | HB9: 1 | HC9: 1 | HD9: 1 | HE9: 1 | HF9: 1 | HG9: 1 | HH9: 1 | HI9: 1 | HJ9: 1 | HK9: 1 | HL9: 1 | HM9: 1 | HN9: 1 | HO9: 1 | HP9: 1 | HQ9: 1 | HR9: 1 | HS9: 1 | HT9: 1 | HU9: 1 | HV9: 1 | HW9: 1 | HX9: 1 | HY9: 1 | HZ9: 1 | IA9: 1 | IB9: 1 | IC9: 1 | ID9: 1 | IE9: 1 | IF9: 1 | IG9: 1 | IH9: 1 | II9: 1 | IJ9: 1 | IK9: 1 | IL9: 1 | IM9: 1 | IN9: 1 | IO9: 1 | IP9: 1 | IQ9: 1 | IR9: 1 | IS9: 1 | IT9: 1 | IU9: 1 | IV9: 1 | IW9: 1 | IX9: 1 | IY9: 1 | IZ9: 1 | JA9: 1 | JB9: 1 | JC9: 1 | JD9: 1 | JE9: 1 | JF9: 1 | JG9: 1 | JH9: 1 | JI9: 1 | JJ9: 1 | JK9: 1 | JL9: 1 | JM9: 1 | JN9: 1 | JO9: 1 | JP9: 1 | JQ9: 1 | JR9: 1 | JS9: 1 | JT9: 1 | JU9: 1 | JV9: 1 | JW9: 1 | JX9: 1 | JY9: 1 | JZ9: 1 | KA9: 1 | KB9: 1 | KC9: 1 | KD9: 1 | KE9: 1 | KF9: 1 | KG9: 1 | KH9: 1 | KI9: 1 | KJ9: 1 | KK9: 1 | KL9: 1 | KM9: 1 | KN9: 1 | KO9: 1 | KP9: 1 | KQ9: 1 | KR9: 1 | KS9: 1 | KT9: 1 | KU9: 1 | KV9: 1 | KW9: 1 | KX9: 1 | KY9: 1 | KZ9: 1 | LA9: 1 | LB9: 1 | LC9: 1 | LD9: 1 | LE9: 1 | LF9: 1 | LG9: 1 | LH9: 1 | LI9: 1 | LJ9: 1 | LK9: 1 | LL9: 1 | LM9: 1 | LN9: 1 | LO9: 1 | LP9: 1 | LQ9: 1 | LR9: 1 | LS9: 1 | LT9: 1 | LU9: 1 | LV9: 1 | LW9: 1 | LX9: 1 | LY9: 1 | LZ9: 1 | MA9: 1 | MB9: 1 | MC9: 1 | MD9: 1 | ME9: 1 | MF9: 1 | MG9: 1 | MH9: 1 | MI9: 1 | MJ9: 1 | MK9: 1 | ML9: 1 | MM9: 1 | MN9: 1 | MO9: 1 | MP9: 1 | MQ9: 1 | MR9: 1 | MS9: 1 | MT9: 1 | MU9: 1 | MV9: 1 | MW9: 1 | MX9: 1 | MY9: 1 | MZ9: 1 | NA9: 1 | NB9: 1 | NC9: 1 | ND9: 1 | NE9: 1 | NF9: 1 | NG9: 1 | NH9: 1 | NI9: 1 | NJ9: 1 | NK9: 1 | NL9: 1 | NM9: 1 | NN9: 1 | NO9: 1 | NP9: 1 | NQ9: 1 | NR9: 1 | NS9: 1 | NT9: 1 | NU9: 1 | NV9: 1 | NW9: 1 | NX9: 1 | NY9: 1 | NZ9: 1 | OA9: 1 | OB9: 1 | OC9: 1 | OD9: 1 | OE9: 1 | OF9: 1 | OG9: 1 | OH9: 1 | OI9: 1 | OJ9: 1 | OK9: 1 | OL9: 1 | OM9: 1 | ON9: 1 | OO9: 1 | OP9: 1 | OQ9: 1 | OR9: 1 | OS9: 1 | OT9: 1 | OU9: 1 | OV9: 1 | OW9: 1 | OX9: 1 | OY9: 1 | OZ9: 1 | PA9: 1 | PB9: 1 | PC9: 1 | PD9: 1 | PE9: 1 | PF9: 1 | PG9: 1 | PH9: 1 | PI9: 1 | PJ9: 1 | PK9: 1 | PL9: 1 | PM9: 1 | PN9: 1 | PO9: 1 | PP9: 1 | PQ9: 1 | PR9: 1 | PS9: 1 | PT9: 1 | PU9: 1 | PV9: 1 | PW9: 1 | PX9: 1 | PY9: 1 | PZ9: 1 | QA9: 1 | QB9: 1 | QC9: 1 | QD9: 1 | QE9: 1 | QF9: 0 | QG9: 0 | QH9: 0 | QI9: 0 | QJ9: 0 | QK9: 0 | QL9: 0 | QM9: 0 | QN9: 0 | QO9: 0 | QP9: 0 | QQ9: 0 | QR9: 0 | QS9: 0 | QT9: 0 | QU9: 0 | QV9: 0 | QW9: 0 | QX9: 0 | QY9: 0 | QZ9: 0 | RA9: 0 | RB9: 0 | RC9: 0 | RD9: 0 | RE9: 0 | RF9: 0 | RG9: 0 | RH9: 0 | RI9: 0 | RJ9: 0 | RK9: 0 | RL9: 0 | RM9: 0 | RN9: 0 | RO9: 0 | RP9: 0 | RQ9: 0 | RR9: 0 | RS9: 0 | RT9: 0 | RU9: 0 | RV9: 0 | RW9: 0 | RX9: 0 | RY9: 0 | RZ9: 0 | SA9: 0 | SB9: 0 | SC9: 0 | SD9: 0 | SE9: 0 | SF9: 0 | SG9: 0 | SH9: 0 | SI9: 0 | SJ9: 0 | SK9: 0 | SL9: 0 | SM9: 0 | SN9: 0 | SO9: 0
C10: Month | E10: Flag | J10: =MONTH(J6) -> 1 | K10: =MONTH(K6) -> 2 | L10: 3 | M10: 4 | N10: 5 | O10: 6 | P10: 7 | Q10: 8 | R10: 9 | S10: 10 | T10: 11 | U10: 12 | V10: 1 | W10: 2 | X10: 3 | Y10: 4 | Z10: 5 | AA10: 6 | AB10: 7 | AC10: 8 | AD10: 9 | AE10: 10 | AF10: 11 | AG10: 12 | AH10: 1 | AI10: 2 | AJ10: 3 | AK10: 4 | AL10: 5 | AM10: 6 | AN10: 7 | AO10: 8 | AP10: 9 | AQ10: 10 | AR10: 11 | AS10: 12 | AT10: 1 | AU10: 2 | AV10: 3 | AW10: 4 | AX10: 5 | AY10: 6 | AZ10: 7 | BA10: 8 | BB10: 9 | BC10: 10 | BD10: 11 | BE10: 12 | BF10: 1 | BG10: 2 | BH10: 3 | BI10: 4 | BJ10: 5 | BK10: 6 | BL10: 7 | BM10: 8 | BN10: 9 | BO10: 10 | BP10: 11 | BQ10: 12 | BR10: 1 | BS10: 2 | BT10: 3 | BU10: 4 | BV10: 5 | BW10: =MONTH(BW6) -> 6 | BX10: 7 | BY10: 8 | BZ10: 9 | CA10: 10 | CB10: 11 | CC10: 12 | CD10: 1 | CE10: 2 | CF10: 3 | CG10: 4 | CH10: 5 | CI10: 6 | CJ10: 7 | CK10: 8 | CL10: 9 | CM10: 10 | CN10: 11 | CO10: 12 | CP10: 1 | CQ10: 2 | CR10: 3 | CS10: 4 | CT10: 5 | CU10: 6 | CV10: 7 | CW10: 8 | CX10: 9 | CY10: 10 | CZ10: 11 | DA10: 12 | DB10: 1 | DC10: 2 | DD10: 3 | DE10: 4 | DF10: 5 | DG10: 6 | DH10: 7 | DI10: 8 | DJ10: 9 | DK10: 10 | DL10: 11 | DM10: 12 | DN10: 1 | DO10: 2 | DP10: 3 | DQ10: 4 | DR10: 5 | DS10: 6 | DT10: 7 | DU10: 8 | DV10: 9 | DW10: 10 | DX10: 11 | DY10: 12 | DZ10: 1 | EA10: 2 | EB10: 3 | EC10: 4 | ED10: 5 | EE10: 6 | EF10: 7 | EG10: 8 | EH10: 9 | EI10: =MONTH(EI6) -> 10 | EJ10: 11 | EK10: 12 | EL10: 1 | EM10: 2 | EN10: 3 | EO10: 4 | EP10: 5 | EQ10: 6 | ER10: 7 | ES10: 8 | ET10: 9 | EU10: 10 | EV10: 11 | EW10: 12 | EX10: 1 | EY10: 2 | EZ10: 3 | FA10: 4 | FB10: 5 | FC10: 6 | FD10: 7 | FE10: 8 | FF10: 9 | FG10: 10 | FH10: 11 | FI10: 12 | FJ10: 1 | FK10: 2 | FL10: 3 | FM10: 4 | FN10: 5 | FO10: 6 | FP10: 7 | FQ10: 8 | FR10: 9 | FS10: 10 | FT10: 11 | FU10: 12 | FV10: 1 | FW10: 2 | FX10: 3 | FY10: 4 | FZ10: 5 | GA10: 6 | GB10: 7 | GC10: 8 | GD10: 9 | GE10: 10 | GF10: 11 | GG10: 12 | GH10: 1 | GI10: 2 | GJ10: 3 | GK10: 4 | GL10: 5 | GM10: 6 | GN10: 7 | GO10: 8 | GP10: 9 | GQ10: 10 | GR10: 11 | GS10: 12 | GT10: 1 | GU10: =MONTH(GU6) -> 2 | GV10: 3 | GW10: 4 | GX10: 5 | GY10: 6 | GZ10: 7 | HA10: 8 | HB10: 9 | HC10: 10 | HD10: 11 | HE10: 12 | HF10: 1 | HG10: 2 | HH10: 3 | HI10: 4 | HJ10: 5 | HK10: 6 | HL10: 7 | HM10: 8 | HN10: 9 | HO10: 10 | HP10: 11 | HQ10: 12 | HR10: 1 | HS10: 2 | HT10: 3 | HU10: 4 | HV10: 5 | HW10: 6 | HX10: 7 | HY10: 8 | HZ10: 9 | IA10: 10 | IB10: 11 | IC10: 12 | ID10: 1 | IE10: 2 | IF10: 3 | IG10: 4 | IH10: 5 | II10: 6 | IJ10: 7 | IK10: 8 | IL10: 9 | IM10: 10 | IN10: 11 | IO10: 12 | IP10: 1 | IQ10: 2 | IR10: 3 | IS10: 4 | IT10: 5 | IU10: 6 | IV10: 7 | IW10: 8 | IX10: 9 | IY10: 10 | IZ10: 11 | JA10: 12 | JB10: 1 | JC10: 2 | JD10: 3 | JE10: 4 | JF10: 5 | JG10: =MONTH(JG6) -> 6 | JH10: 7 | JI10: 8 | JJ10: 9 | JK10: 10 | JL10: 11 | JM10: 12 | JN10: 1 | JO10: 2 | JP10: 3 | JQ10: 4 | JR10: 5 | JS10: 6 | JT10: 7 | JU10: 8 | JV10: 9 | JW10: 10 | JX10: 11 | JY10: 12 | JZ10: 1 | KA10: 2 | KB10: 3 | KC10: 4 | KD10: 5 | KE10: 6 | KF10: 7 | KG10: 8 | KH10: 9 | KI10: 10 | KJ10: 11 | KK10: 12 | KL10: 1 | KM10: 2 | KN10: 3 | KO10: 4 | KP10: 5 | KQ10: 6 | KR10: 7 | KS10: 8 | KT10: 9 | KU10: 10 | KV10: 11 | KW10: 12 | KX10: 1 | KY10: 2 | KZ10: 3 | LA10: 4 | LB10: 5 | LC10: 6 | LD10: 7 | LE10: 8 | LF10: 9 | LG10: 10 | LH10: 11 | LI10: 12 | LJ10: 1 | LK10: 2 | LL10: 3 | LM10: 4 | LN10: 5 | LO10: 6 | LP10: 7 | LQ10: 8 | LR10: 9 | LS10: =MONTH(LS6) -> 10 | LT10: 11 | LU10: 12 | LV10: 1 | LW10: 2 | LX10: 3 | LY10: 4 | LZ10: 5 | MA10: 6 | MB10: 7 | MC10: 8 | MD10: 9 | ME10: 10 | MF10: 11 | MG10: 12 | MH10: 1 | MI10: 2 | MJ10: 3 | MK10: 4 | ML10: 5 | MM10: 6 | MN10: 7 | MO10: 8 | MP10: 9 | MQ10: 10 | MR10: 11 | MS10: 12 | MT10: 1 | MU10: 2 | MV10: 3 | MW10: 4 | MX10: 5 | MY10: 6 | MZ10: 7 | NA10: 8 | NB10: 9 | NC10: 10 | ND10: 11 | NE10: 12 | NF10: 1 | NG10: 2 | NH10: 3 | NI10: 4 | NJ10: 5 | NK10: 6 | NL10: 7 | NM10: 8 | NN10: 9 | NO10: 10 | NP10: 11 | NQ10: 12 | NR10: 1 | NS10: 2 | NT10: 3 | NU10: 4 | NV10: 5 | NW10: 6 | NX10: 7 | NY10: 8 | NZ10: 9 | OA10: 10 | OB10: 11 | OC10: 12 | OD10: 1 | OE10: =MONTH(OE6) -> 2 | OF10: 3 | OG10: 4 | OH10: 5 | OI10: 6 | OJ10: 7 | OK10: 8 | OL10: 9 | OM10: 10 | ON10: 11 | OO10: 12 | OP10: 1 | OQ10: 2 | OR10: 3 | OS10: 4 | OT10: 5 | OU10: 6 | OV10: 7 | OW10: 8 | OX10: 9 | OY10: 10 | OZ10: 11 | PA10: 12 | PB10: 1 | PC10: 2 | PD10: 3 | PE10: 4 | PF10: 5 | PG10: 6 | PH10: 7 | PI10: 8 | PJ10: 9 | PK10: 10 | PL10: 11 | PM10: 12 | PN10: 1 | PO10: 2 | PP10: 3 | PQ10: 4 | PR10: 5 | PS10: 6 | PT10: 7 | PU10: 8 | PV10: 9 | PW10: 10 | PX10: 11 | PY10: 12 | PZ10: 1 | QA10: 2 | QB10: 3 | QC10: 4 | QD10: 5 | QE10: 6 | QF10: 7 | QG10: 8 | QH10: 9 | QI10: 10 | QJ10: 11 | QK10: 12 | QL10: 1 | QM10: 2 | QN10: 3 | QO10: 4 | QP10: 5 | QQ10: =MONTH(QQ6) -> 6 | QR10: 7 | QS10: 8 | QT10: 9 | QU10: 10 | QV10: 11 | QW10: 12 | QX10: 1 | QY10: 2 | QZ10: 3 | RA10: 4 | RB10: 5 | RC10: 6 | RD10: 7 | RE10: 8 | RF10: 9 | RG10: 10 | RH10: 11 | RI10: 12 | RJ10: 1 | RK10: 2 | RL10: 3 | RM10: 4 | RN10: 5 | RO10: 6 | RP10: 7 | RQ10: 8 | RR10: 9 | RS10: 10 | RT10: 11 | RU10: 12 | RV10: 1 | RW10: 2 | RX10: 3 | RY10: 4 | RZ10: 5 | SA10: 6 | SB10: 7 | SC10: 8 | SD10: 9 | SE10: 10 | SF10: 11 | SG10: 12 | SH10: 1 | SI10: 2 | SJ10: 3 | SK10: 4 | SL10: 5 | SM10: 6 | SN10: 7 | SO10: 8
C11: Year | E11: Year | J11: =YEAR(J6) -> 2026 | K11: =YEAR(K6) -> 2026 | L11: 2026 | M11: 2026 | N11: 2026 | O11: 2026 | P11: 2026 | Q11: 2026 | R11: 2026 | S11: 2026 | T11: 2026 | U11: 2026 | V11: 2027 | W11: 2027 | X11: 2027 | Y11: 2027 | Z11: 2027 | AA11: 2027 | AB11: 2027 | AC11: 2027 | AD11: 2027 | AE11: 2027 | AF11: 2027 | AG11: 2027 | AH11: 2028 | AI11: 2028 | AJ11: 2028 | AK11: 2028 | AL11: 2028 | AM11: 2028 | AN11: 2028 | AO11: 2028 | AP11: 2028 | AQ11: 2028 | AR11: 2028 | AS11: 2028 | AT11: 2029 | AU11: 2029 | AV11: 2029 | AW11: 2029 | AX11: 2029 | AY11: 2029 | AZ11: 2029 | BA11: 2029 | BB11: 2029 | BC11: 2029 | BD11: 2029 | BE11: 2029 | BF11: 2030 | BG11: 2030 | BH11: 2030 | BI11: 2030 | BJ11: 2030 | BK11: 2030 | BL11: 2030 | BM11: 2030 | BN11: 2030 | BO11: 2030 | BP11: 2030 | BQ11: 2030 | BR11: 2031 | BS11: 2031 | BT11: 2031 | BU11: 2031 | BV11: 2031 | BW11: =YEAR(BW6) -> 2031 | BX11: 2031 | BY11: 2031 | BZ11: 2031 | CA11: 2031 | CB11: 2031 | CC11: 2031 | CD11: 2032 | CE11: 2032 | CF11: 2032 | CG11: 2032 | CH11: 2032 | CI11: 2032 | CJ11: 2032 | CK11: 2032 | CL11: 2032 | CM11: 2032 | CN11: 2032 | CO11: 2032 | CP11: 2033 | CQ11: 2033 | CR11: 2033 | CS11: 2033 | CT11: 2033 | CU11: 2033 | CV11: 2033 | CW11: 2033 | CX11: 2033 | CY11: 2033 | CZ11: 2033 | DA11: 2033 | DB11: 2034 | DC11: 2034 | DD11: 2034 | DE11: 2034 | DF11: 2034 | DG11: 2034 | DH11: 2034 | DI11: 2034 | DJ11: 2034 | DK11: 2034 | DL11: 2034 | DM11: 2034 | DN11: 2035 | DO11: 2035 | DP11: 2035 | DQ11: 2035 | DR11: 2035 | DS11: 2035 | DT11: 2035 | DU11: 2035 | DV11: 2035 | DW11: 2035 | DX11: 2035 | DY11: 2035 | DZ11: 2036 | EA11: 2036 | EB11: 2036 | EC11: 2036 | ED11: 2036 | EE11: 2036 | EF11: 2036 | EG11: 2036 | EH11: 2036 | EI11: =YEAR(EI6) -> 2036 | EJ11: 2036 | EK11: 2036 | EL11: 2037 | EM11: 2037 | EN11: 2037 | EO11: 2037 | EP11: 2037 | EQ11: 2037 | ER11: 2037 | ES11: 2037 | ET11: 2037 | EU11: 2037 | EV11: 2037 | EW11: 2037 | EX11: 2038 | EY11: 2038 | EZ11: 2038 | FA11: 2038 | FB11: 2038 | FC11: 2038 | FD11: 2038 | FE11: 2038 | FF11: 2038 | FG11: 2038 | FH11: 2038 | FI11: 2038 | FJ11: 2039 | FK11: 2039 | FL11: 2039 | FM11: 2039 | FN11: 2039 | FO11: 2039 | FP11: 2039 | FQ11: 2039 | FR11: 2039 | FS11: 2039 | FT11: 2039 | FU11: 2039 | FV11: 2040 | FW11: 2040 | FX11: 2040 | FY11: 2040 | FZ11: 2040 | GA11: 2040 | GB11: 2040 | GC11: 2040 | GD11: 2040 | GE11: 2040 | GF11: 2040 | GG11: 2040 | GH11: 2041 | GI11: 2041 | GJ11: 2041 | GK11: 2041 | GL11: 2041 | GM11: 2041 | GN11: 2041 | GO11: 2041 | GP11: 2041 | GQ11: 2041 | GR11: 2041 | GS11: 2041 | GT11: 2042 | GU11: =YEAR(GU6) -> 2042 | GV11: 2042 | GW11: 2042 | GX11: 2042 | GY11: 2042 | GZ11: 2042 | HA11: 2042 | HB11: 2042 | HC11: 2042 | HD11: 2042 | HE11: 2042 | HF11: 2043 | HG11: 2043 | HH11: 2043 | HI11: 2043 | HJ11: 2043 | HK11: 2043 | HL11: 2043 | HM11: 2043 | HN11: 2043 | HO11: 2043 | HP11: 2043 | HQ11: 2043 | HR11: 2044 | HS11: 2044 | HT11: 2044 | HU11: 2044 | HV11: 2044 | HW11: 2044 | HX11: 2044 | HY11: 2044 | HZ11: 2044 | IA11: 2044 | IB11: 2044 | IC11: 2044 | ID11: 2045 | IE11: 2045 | IF11: 2045 | IG11: 2045 | IH11: 2045 | II11: 2045 | IJ11: 2045 | IK11: 2045 | IL11: 2045 | IM11: 2045 | IN11: 2045 | IO11: 2045 | IP11: 2046 | IQ11: 2046 | IR11: 2046 | IS11: 2046 | IT11: 2046 | IU11: 2046 | IV11: 2046 | IW11: 2046 | IX11: 2046 | IY11: 2046 | IZ11: 2046 | JA11: 2046 | JB11: 2047 | JC11: 2047 | JD11: 2047 | JE11: 2047 | JF11: 2047 | JG11: =YEAR(JG6) -> 2047 | JH11: 2047 | JI11: 2047 | JJ11: 2047 | JK11: 2047 | JL11: 2047 | JM11: 2047 | JN11: 2048 | JO11: 2048 | JP11: 2048 | JQ11: 2048 | JR11: 2048 | JS11: 2048 | JT11: 2048 | JU11: 2048 | JV11: 2048 | JW11: 2048 | JX11: 2048 | JY11: 2048 | JZ11: 2049 | KA11: 2049 | KB11: 2049 | KC11: 2049 | KD11: 2049 | KE11: 2049 | KF11: 2049 | KG11: 2049 | KH11: 2049 | KI11: 2049 | KJ11: 2049 | KK11: 2049 | KL11: 2050 | KM11: 2050 | KN11: 2050 | KO11: 2050 | KP11: 2050 | KQ11: 2050 | KR11: 2050 | KS11: 2050 | KT11: 2050 | KU11: 2050 | KV11: 2050 | KW11: 2050 | KX11: 2051 | KY11: 2051 | KZ11: 2051 | LA11: 2051 | LB11: 2051 | LC11: 2051 | LD11: 2051 | LE11: 2051 | LF11: 2051 | LG11: 2051 | LH11: 2051 | LI11: 2051 | LJ11: 2052 | LK11: 2052 | LL11: 2052 | LM11: 2052 | LN11: 2052 | LO11: 2052 | LP11: 2052 | LQ11: 2052 | LR11: 2052 | LS11: =YEAR(LS6) -> 2052 | LT11: 2052 | LU11: 2052 | LV11: 2053 | LW11: 2053 | LX11: 2053 | LY11: 2053 | LZ11: 2053 | MA11: 2053 | MB11: 2053 | MC11: 2053 | MD11: 2053 | ME11: 2053 | MF11: 2053 | MG11: 2053 | MH11: 2054 | MI11: 2054 | MJ11: 2054 | MK11: 2054 | ML11: 2054 | MM11: 2054 | MN11: 2054 | MO11: 2054 | MP11: 2054 | MQ11: 2054 | MR11: 2054 | MS11: 2054 | MT11: 2055 | MU11: 2055 | MV11: 2055 | MW11: 2055 | MX11: 2055 | MY11: 2055 | MZ11: 2055 | NA11: 2055 | NB11: 2055 | NC11: 2055 | ND11: 2055 | NE11: 2055 | NF11: 2056 | NG11: 2056 | NH11: 2056 | NI11: 2056 | NJ11: 2056 | NK11: 2056 | NL11: 2056 | NM11: 2056 | NN11: 2056 | NO11: 2056 | NP11: 2056 | NQ11: 2056 | NR11: 2057 | NS11: 2057 | NT11: 2057 | NU11: 2057 | NV11: 2057 | NW11: 2057 | NX11: 2057 | NY11: 2057 | NZ11: 2057 | OA11: 2057 | OB11: 2057 | OC11: 2057 | OD11: 2058 | OE11: =YEAR(OE6) -> 2058 | OF11: 2058 | OG11: 2058 | OH11: 2058 | OI11: 2058 | OJ11: 2058 | OK11: 2058 | OL11: 2058 | OM11: 2058 | ON11: 2058 | OO11: 2058 | OP11: 2059 | OQ11: 2059 | OR11: 2059 | OS11: 2059 | OT11: 2059 | OU11: 2059 | OV11: 2059 | OW11: 2059 | OX11: 2059 | OY11: 2059 | OZ11: 2059 | PA11: 2059 | PB11: 2060 | PC11: 2060 | PD11: 2060 | PE11: 2060 | PF11: 2060 | PG11: 2060 | PH11: 2060 | PI11: 2060 | PJ11: 2060 | PK11: 2060 | PL11: 2060 | PM11: 2060 | PN11: 2061 | PO11: 2061 | PP11: 2061 | PQ11: 2061 | PR11: 2061 | PS11: 2061 | PT11: 2061 | PU11: 2061 | PV11: 2061 | PW11: 2061 | PX11: 2061 | PY11: 2061 | PZ11: 2062 | QA11: 2062 | QB11: 2062 | QC11: 2062 | QD11: 2062 | QE11: 2062 | QF11: 2062 | QG11: 2062 | QH11: 2062 | QI11: 2062 | QJ11: 2062 | QK11: 2062 | QL11: 2063 | QM11: 2063 | QN11: 2063 | QO11: 2063 | QP11: 2063 | QQ11: =YEAR(QQ6) -> 2063 | QR11: 2063 | QS11: 2063 | QT11: 2063 | QU11: 2063 | QV11: 2063 | QW11: 2063 | QX11: 2064 | QY11: 2064 | QZ11: 2064 | RA11: 2064 | RB11: 2064 | RC11: 2064 | RD11: 2064 | RE11: 2064 | RF11: 2064 | RG11: 2064 | RH11: 2064 | RI11: 2064 | RJ11: 2065 | RK11: 2065 | RL11: 2065 | RM11: 2065 | RN11: 2065 | RO11: 2065 | RP11: 2065 | RQ11: 2065 | RR11: 2065 | RS11: 2065 | RT11: 2065 | RU11: 2065 | RV11: 2066 | RW11: 2066 | RX11: 2066 | RY11: 2066 | RZ11: 2066 | SA11: 2066 | SB11: 2066 | SC11: 2066 | SD11: 2066 | SE11: 2066 | SF11: 2066 | SG11: 2066 | SH11: 2067 | SI11: 2067 | SJ11: 2067 | SK11: 2067 | SL11: 2067 | SM11: 2067 | SN11: 2067 | SO11: 2067
C12: BESS PPA Period | E12: Flag | F12: =InputC!$F$9 -> 2027-07-01 | G12: =InputC!F16 -> FALSE | J12: =AND(J$6>=$F12,J$6<$G12)*1 -> 0 | K12: =AND(K$6>=$F12,K$6<$G12)*1 -> 0 | L12: 0 | M12: 0 | N12: 0 | O12: 0 | P12: 0 | Q12: 0 | R12: 0 | S12: 0 | T12: 0 | U12: 0 | V12: 0 | W12: 0 | X12: 0 | Y12: 0 | Z12: 0 | AA12: 0 | AB12: 1 | AC12: 1 | AD12: 1 | AE12: 1 | AF12: 1 | AG12: 1 | AH12: 1 | AI12: 1 | AJ12: 1 | AK12: 1 | AL12: 1 | AM12: 1 | AN12: 1 | AO12: 1 | AP12: 1 | AQ12: 1 | AR12: 1 | AS12: 1 | AT12: 1 | AU12: 1 | AV12: 1 | AW12: 1 | AX12: 1 | AY12: 1 | AZ12: 1 | BA12: 1 | BB12: 1 | BC12: 1 | BD12: 1 | BE12: 1 | BF12: 1 | BG12: 1 | BH12: 1 | BI12: 1 | BJ12: 1 | BK12: 1 | BL12: 1 | BM12: 1 | BN12: 1 | BO12: 1 | BP12: 1 | BQ12: 1 | BR12: 1 | BS12: 1 | BT12: 1 | BU12: 1 | BV12: 1 | BW12: =AND(BW$6>=$F12,BW$6<$G12)*1 -> 1 | BX12: 1 | BY12: 1 | BZ12: 1 | CA12: 1 | CB12: 1 | CC12: 1 | CD12: 1 | CE12: 1 | CF12: 1 | CG12: 1 | CH12: 1 | CI12: 1 | CJ12: 1 | CK12: 1 | CL12: 1 | CM12: 1 | CN12: 1 | CO12: 1 | CP12: 1 | CQ12: 1 | CR12: 1 | CS12: 1 | CT12: 1 | CU12: 1 | CV12: 1 | CW12: 1 | CX12: 1 | CY12: 1 | CZ12: 1 | DA12: 1 | DB12: 1 | DC12: 1 | DD12: 1 | DE12: 1 | DF12: 1 | DG12: 1 | DH12: 1 | DI12: 1 | DJ12: 1 | DK12: 1 | DL12: 1 | DM12: 1 | DN12: 1 | DO12: 1 | DP12: 1 | DQ12: 1 | DR12: 1 | DS12: 1 | DT12: 1 | DU12: 1 | DV12: 1 | DW12: 1 | DX12: 1 | DY12: 1 | DZ12: 1 | EA12: 1 | EB12: 1 | EC12: 1 | ED12: 1 | EE12: 1 | EF12: 1 | EG12: 1 | EH12: 1 | EI12: =AND(EI$6>=$F12,EI$6<$G12)*1 -> 1 | EJ12: 1 | EK12: 1 | EL12: 1 | EM12: 1 | EN12: 1 | EO12: 1 | EP12: 1 | EQ12: 1 | ER12: 1 | ES12: 1 | ET12: 1 | EU12: 1 | EV12: 1 | EW12: 1 | EX12: 1 | EY12: 1 | EZ12: 1 | FA12: 1 | FB12: 1 | FC12: 1 | FD12: 1 | FE12: 1 | FF12: 1 | FG12: 1 | FH12: 1 | FI12: 1 | FJ12: 1 | FK12: 1 | FL12: 1 | FM12: 1 | FN12: 1 | FO12: 1 | FP12: 1 | FQ12: 1 | FR12: 1 | FS12: 1 | FT12: 1 | FU12: 1 | FV12: 1 | FW12: 1 | FX12: 1 | FY12: 1 | FZ12: 1 | GA12: 1 | GB12: 1 | GC12: 1 | GD12: 1 | GE12: 1 | GF12: 1 | GG12: 1 | GH12: 1 | GI12: 1 | GJ12: 1 | GK12: 1 | GL12: 1 | GM12: 1 | GN12: 1 | GO12: 1 | GP12: 1 | GQ12: 1 | GR12: 1 | GS12: 1 | GT12: 1 | GU12: =AND(GU$6>=$F12,GU$6<$G12)*1 -> 1 | GV12: 1 | GW12: 1 | GX12: 1 | GY12: 1 | GZ12: 1 | HA12: 1 | HB12: 1 | HC12: 1 | HD12: 1 | HE12: 1 | HF12: 1 | HG12: 1 | HH12: 1 | HI12: 1 | HJ12: 1 | HK12: 1 | HL12: 1 | HM12: 1 | HN12: 1 | HO12: 1 | HP12: 1 | HQ12: 1 | HR12: 1 | HS12: 1 | HT12: 1 | HU12: 1 | HV12: 1 | HW12: 1 | HX12: 1 | HY12: 1 | HZ12: 1 | IA12: 1 | IB12: 1 | IC12: 1 | ID12: 1 | IE12: 1 | IF12: 1 | IG12: 1 | IH12: 1 | II12: 1 | IJ12: 1 | IK12: 1 | IL12: 1 | IM12: 1 | IN12: 1 | IO12: 1 | IP12: 1 | IQ12: 1 | IR12: 1 | IS12: 1 | IT12: 1 | IU12: 1 | IV12: 1 | IW12: 1 | IX12: 1 | IY12: 1 | IZ12: 1 | JA12: 1 | JB12: 1 | JC12: 1 | JD12: 1 | JE12: 1 | JF12: 1 | JG12: =AND(JG$6>=$F12,JG$6<$G12)*1 -> 1 | JH12: 1 | JI12: 1 | JJ12: 1 | JK12: 1 | JL12: 1 | JM12: 1 | JN12: 1 | JO12: 1 | JP12: 1 | JQ12: 1 | JR12: 1 | JS12: 1 | JT12: 1 | JU12: 1 | JV12: 1 | JW12: 1 | JX12: 1 | JY12: 1 | JZ12: 1 | KA12: 1 | KB12: 1 | KC12: 1 | KD12: 1 | KE12: 1 | KF12: 1 | KG12: 1 | KH12: 1 | KI12: 1 | KJ12: 1 | KK12: 1 | KL12: 1 | KM12: 1 | KN12: 1 | KO12: 1 | KP12: 1 | KQ12: 1 | KR12: 1 | KS12: 1 | KT12: 1 | KU12: 1 | KV12: 1 | KW12: 1 | KX12: 1 | KY12: 1 | KZ12: 1 | LA12: 1 | LB12: 1 | LC12: 1 | LD12: 1 | LE12: 1 | LF12: 1 | LG12: 1 | LH12: 1 | LI12: 1 | LJ12: 1 | LK12: 1 | LL12: 1 | LM12: 1 | LN12: 1 | LO12: 1 | LP12: 1 | LQ12: 1 | LR12: 1 | LS12: =AND(LS$6>=$F12,LS$6<$G12)*1 -> 1 | LT12: 1 | LU12: 1 | LV12: 1 | LW12: 1 | LX12: 1 | LY12: 1 | LZ12: 1 | MA12: 1 | MB12: 1 | MC12: 1 | MD12: 1 | ME12: 1 | MF12: 1 | MG12: 1 | MH12: 1 | MI12: 1 | MJ12: 1 | MK12: 1 | ML12: 1 | MM12: 1 | MN12: 1 | MO12: 1 | MP12: 1 | MQ12: 1 | MR12: 1 | MS12: 1 | MT12: 1 | MU12: 1 | MV12: 1 | MW12: 1 | MX12: 1 | MY12: 1 | MZ12: 1 | NA12: 1 | NB12: 1 | NC12: 1 | ND12: 1 | NE12: 1 | NF12: 1 | NG12: 1 | NH12: 1 | NI12: 1 | NJ12: 1 | NK12: 1 | NL12: 1 | NM12: 1 | NN12: 1 | NO12: 1 | NP12: 1 | NQ12: 1 | NR12: 1 | NS12: 1 | NT12: 1 | NU12: 1 | NV12: 1 | NW12: 1 | NX12: 1 | NY12: 1 | NZ12: 1 | OA12: 1 | OB12: 1 | OC12: 1 | OD12: 1 | OE12: =AND(OE$6>=$F12,OE$6<$G12)*1 -> 1 | OF12: 1 | OG12: 1 | OH12: 1 | OI12: 1 | OJ12: 1 | OK12: 1 | OL12: 1 | OM12: 1 | ON12: 1 | OO12: 1 | OP12: 1 | OQ12: 1 | OR12: 1 | OS12: 1 | OT12: 1 | OU12: 1 | OV12: 1 | OW12: 1 | OX12: 1 | OY12: 1 | OZ12: 1 | PA12: 1 | PB12: 1 | PC12: 1 | PD12: 1 | PE12: 1 | PF12: 1 | PG12: 1 | PH12: 1 | PI12: 1 | PJ12: 1 | PK12: 1 | PL12: 1 | PM12: 1 | PN12: 1 | PO12: 1 | PP12: 1 | PQ12: 1 | PR12: 1 | PS12: 1 | PT12: 1 | PU12: 1 | PV12: 1 | PW12: 1 | PX12: 1 | PY12: 1 | PZ12: 1 | QA12: 1 | QB12: 1 | QC12: 1 | QD12: 1 | QE12: 1 | QF12: 1 | QG12: 1 | QH12: 1 | QI12: 1 | QJ12: 1 | QK12: 1 | QL12: 1 | QM12: 1 | QN12: 1 | QO12: 1 | QP12: 1 | QQ12: =AND(QQ$6>=$F12,QQ$6<$G12)*1 -> 1 | QR12: 1 | QS12: 1 | QT12: 1 | QU12: 1 | QV12: 1 | QW12: 1 | QX12: 1 | QY12: 1 | QZ12: 1 | RA12: 1 | RB12: 1 | RC12: 1 | RD12: 1 | RE12: 1 | RF12: 1 | RG12: 1 | RH12: 1 | RI12: 1 | RJ12: 1 | RK12: 1 | RL12: 1 | RM12: 1 | RN12: 1 | RO12: 1 | RP12: 1 | RQ12: 1 | RR12: 1 | RS12: 1 | RT12: 1 | RU12: 1 | RV12: 1 | RW12: 1 | RX12: 1 | RY12: 1 | RZ12: 1 | SA12: 1 | SB12: 1 | SC12: 1 | SD12: 1 | SE12: 1 | SF12: 1 | SG12: 1 | SH12: 1 | SI12: 1 | SJ12: 1 | SK12: 1 | SL12: 1 | SM12: 1 | SN12: 1 | SO12: 1
C13: BESS Operation Period | E13: Flag | F13: =InputC!$F$9 -> 2027-07-01 | G13: =InputC!F18 -> FALSE | H13: =SUM(J13:XFD13) -> 482 | J13: =AND(J$6>=$F13,J$6<$G13)*1 -> 0 | K13: 0 | L13: 0 | M13: 0 | N13: 0 | O13: 0 | P13: 0 | Q13: 0 | R13: 0 | S13: 0 | T13: 0 | U13: 0 | V13: 0 | W13: 0 | X13: 0 | Y13: 0 | Z13: 0 | AA13: 0 | AB13: 1 | AC13: 1 | AD13: 1 | AE13: 1 | AF13: 1 | AG13: 1 | AH13: 1 | AI13: 1 | AJ13: 1 | AK13: 1 | AL13: 1 | AM13: 1 | AN13: 1 | AO13: 1 | AP13: 1 | AQ13: 1 | AR13: 1 | AS13: 1 | AT13: 1 | AU13: 1 | AV13: 1 | AW13: 1 | AX13: 1 | AY13: 1 | AZ13: 1 | BA13: 1 | BB13: 1 | BC13: 1 | BD13: 1 | BE13: 1 | BF13: 1 | BG13: 1 | BH13: 1 | BI13: 1 | BJ13: 1 | BK13: 1 | BL13: 1 | BM13: 1 | BN13: 1 | BO13: 1 | BP13: 1 | BQ13: 1 | BR13: 1 | BS13: 1 | BT13: 1 | BU13: 1 | BV13: 1 | BW13: 1 | BX13: 1 | BY13: 1 | BZ13: 1 | CA13: 1 | CB13: 1 | CC13: 1 | CD13: 1 | CE13: 1 | CF13: 1 | CG13: 1 | CH13: 1 | CI13: 1 | CJ13: 1 | CK13: 1 | CL13: 1 | CM13: 1 | CN13: 1 | CO13: 1 | CP13: 1 | CQ13: 1 | CR13: 1 | CS13: 1 | CT13: 1 | CU13: 1 | CV13: 1 | CW13: 1 | CX13: 1 | CY13: 1 | CZ13: 1 | DA13: 1 | DB13: 1 | DC13: 1 | DD13: 1 | DE13: 1 | DF13: 1 | DG13: 1 | DH13: 1 | DI13: 1 | DJ13: 1 | DK13: 1 | DL13: 1 | DM13: 1 | DN13: 1 | DO13: 1 | DP13: 1 | DQ13: 1 | DR13: 1 | DS13: 1 | DT13: 1 | DU13: 1 | DV13: 1 | DW13: 1 | DX13: 1 | DY13: 1 | DZ13: 1 | EA13: 1 | EB13: 1 | EC13: 1 | ED13: 1 | EE13: 1 | EF13: 1 | EG13: 1 | EH13: 1 | EI13: 1 | EJ13: 1 | EK13: 1 | EL13: 1 | EM13: 1 | EN13: 1 | EO13: 1 | EP13: 1 | EQ13: 1 | ER13: 1 | ES13: 1 | ET13: 1 | EU13: 1 | EV13: 1 | EW13: 1 | EX13: 1 | EY13: 1 | EZ13: 1 | FA13: 1 | FB13: 1 | FC13: 1 | FD13: 1 | FE13: 1 | FF13: 1 | FG13: 1 | FH13: 1 | FI13: 1 | FJ13: 1 | FK13: 1 | FL13: 1 | FM13: 1 | FN13: 1 | FO13: 1 | FP13: 1 | FQ13: 1 | FR13: 1 | FS13: 1 | FT13: 1 | FU13: 1 | FV13: 1 | FW13: 1 | FX13: 1 | FY13: 1 | FZ13: 1 | GA13: 1 | GB13: 1 | GC13: 1 | GD13: 1 | GE13: 1 | GF13: 1 | GG13: 1 | GH13: 1 | GI13: 1 | GJ13: 1 | GK13: 1 | GL13: 1 | GM13: 1 | GN13: 1 | GO13: 1 | GP13: 1 | GQ13: 1 | GR13: 1 | GS13: 1 | GT13: 1 | GU13: 1 | GV13: 1 | GW13: 1 | GX13: 1 | GY13: 1 | GZ13: 1 | HA13: 1 | HB13: 1 | HC13: 1 | HD13: 1 | HE13: 1 | HF13: 1 | HG13: 1 | HH13: 1 | HI13: 1 | HJ13: 1 | HK13: 1 | HL13: 1 | HM13: 1 | HN13: 1 | HO13: 1 | HP13: 1 | HQ13: 1 | HR13: 1 | HS13: 1 | HT13: 1 | HU13: 1 | HV13: 1 | HW13: 1 | HX13: 1 | HY13: 1 | HZ13: 1 | IA13: 1 | IB13: 1 | IC13: 1 | ID13: 1 | IE13: 1 | IF13: 1 | IG13: 1 | IH13: 1 | II13: 1 | IJ13: 1 | IK13: 1 | IL13: 1 | IM13: 1 | IN13: 1 | IO13: 1 | IP13: 1 | IQ13: 1 | IR13: 1 | IS13: 1 | IT13: 1 | IU13: 1 | IV13: 1 | IW13: 1 | IX13: 1 | IY13: 1 | IZ13: 1 | JA13: 1 | JB13: 1 | JC13: 1 | JD13: 1 | JE13: 1 | JF13: 1 | JG13: 1 | JH13: 1 | JI13: 1 | JJ13: 1 | JK13: 1 | JL13: 1 | JM13: 1 | JN13: 1 | JO13: 1 | JP13: 1 | JQ13: 1 | JR13: 1 | JS13: 1 | JT13: 1 | JU13: 1 | JV13: 1 | JW13: 1 | JX13: 1 | JY13: 1 | JZ13: 1 | KA13: 1 | KB13: 1 | KC13: 1 | KD13: 1 | KE13: 1 | KF13: 1 | KG13: 1 | KH13: 1 | KI13: 1 | KJ13: 1 | KK13: 1 | KL13: 1 | KM13: 1 | KN13: 1 | KO13: 1 | KP13: 1 | KQ13: 1 | KR13: 1 | KS13: 1 | KT13: 1 | KU13: 1 | KV13: 1 | KW13: 1 | KX13: 1 | KY13: 1 | KZ13: 1 | LA13: 1 | LB13: 1 | LC13: 1 | LD13: 1 | LE13: 1 | LF13: 1 | LG13: 1 | LH13: 1 | LI13: 1 | LJ13: 1 | LK13: 1 | LL13: 1 | LM13: 1 | LN13: 1 | LO13: 1 | LP13: 1 | LQ13: 1 | LR13: 1 | LS13: 1 | LT13: 1 | LU13: 1 | LV13: 1 | LW13: 1 | LX13: 1 | LY13: 1 | LZ13: 1 | MA13: 1 | MB13: 1 | MC13: 1 | MD13: 1 | ME13: 1 | MF13: 1 | MG13: 1 | MH13: 1 | MI13: 1 | MJ13: 1 | MK13: 1 | ML13: 1 | MM13: 1 | MN13: 1 | MO13: 1 | MP13: 1 | MQ13: 1 | MR13: 1 | MS13: 1 | MT13: 1 | MU13: 1 | MV13: 1 | MW13: 1 | MX13: 1 | MY13: 1 | MZ13: 1 | NA13: 1 | NB13: 1 | NC13: 1 | ND13: 1 | NE13: 1 | NF13: 1 | NG13: 1 | NH13: 1 | NI13: 1 | NJ13: 1 | NK13: 1 | NL13: 1 | NM13: 1 | NN13: 1 | NO13: 1 | NP13: 1 | NQ13: 1 | NR13: 1 | NS13: 1 | NT13: 1 | NU13: 1 | NV13: 1 | NW13: 1 | NX13: 1 | NY13: 1 | NZ13: 1 | OA13: 1 | OB13: 1 | OC13: 1 | OD13: 1 | OE13: 1 | OF13: 1 | OG13: 1 | OH13: 1 | OI13: 1 | OJ13: 1 | OK13: 1 | OL13: 1 | OM13: 1 | ON13: 1 | OO13: 1 | OP13: 1 | OQ13: 1 | OR13: 1 | OS13: 1 | OT13: 1 | OU13: 1 | OV13: 1 | OW13: 1 | OX13: 1 | OY13: 1 | OZ13: 1 | PA13: 1 | PB13: 1 | PC13: 1 | PD13: 1 | PE13: 1 | PF13: 1 | PG13: 1 | PH13: 1 | PI13: 1 | PJ13: 1 | PK13: 1 | PL13: 1 | PM13: 1 | PN13: 1 | PO13: 1 | PP13: 1 | PQ13: 1 | PR13: 1 | PS13: 1 | PT13: 1 | PU13: 1 | PV13: 1 | PW13: 1 | PX13: 1 | PY13: 1 | PZ13: 1 | QA13: 1 | QB13: 1 | QC13: 1 | QD13: 1 | QE13: 1 | QF13: 1 | QG13: 1 | QH13: 1 | QI13: 1 | QJ13: 1 | QK13: 1 | QL13: 1 | QM13: 1 | QN13: 1 | QO13: 1 | QP13: 1 | QQ13: 1 | QR13: 1 | QS13: 1 | QT13: 1 | QU13: 1 | QV13: 1 | QW13: 1 | QX13: 1 | QY13: 1 | QZ13: 1 | RA13: 1 | RB13: 1 | RC13: 1 | RD13: 1 | RE13: 1 | RF13: 1 | RG13: 1 | RH13: 1 | RI13: 1 | RJ13: 1 | RK13: 1 | RL13: 1 | RM13: 1 | RN13: 1 | RO13: 1 | RP13: 1 | RQ13: 1 | RR13: 1 | RS13: 1 | RT13: 1 | RU13: 1 | RV13: 1 | RW13: 1 | RX13: 1 | RY13: 1 | RZ13: 1 | SA13: 1 | SB13: 1 | SC13: 1 | SD13: 1 | SE13: 1 | SF13: 1 | SG13: 1 | SH13: 1 | SI13: 1 | SJ13: 1 | SK13: 1 | SL13: 1 | SM13: 1 | SN13: 1 | SO13: 1
C14: Period Counter Monthly | E14: Counter | J14: =J10 -> 1 | K14: =K10 -> 2 | L14: 3 | M14: 4 | N14: 5 | O14: 6 | P14: 7 | Q14: 8 | R14: 9 | S14: 10 | T14: 11 | U14: 12 | V14: 1 | W14: 2 | X14: 3 | Y14: 4 | Z14: 5 | AA14: 6 | AB14: 7 | AC14: 8 | AD14: 9 | AE14: 10 | AF14: 11 | AG14: 12 | AH14: 1 | AI14: 2 | AJ14: 3 | AK14: 4 | AL14: 5 | AM14: 6 | AN14: 7 | AO14: 8 | AP14: 9 | AQ14: 10 | AR14: 11 | AS14: 12 | AT14: 1 | AU14: 2 | AV14: 3 | AW14: 4 | AX14: 5 | AY14: 6 | AZ14: 7 | BA14: 8 | BB14: 9 | BC14: 10 | BD14: 11 | BE14: 12 | BF14: 1 | BG14: 2 | BH14: 3 | BI14: 4 | BJ14: 5 | BK14: 6 | BL14: 7 | BM14: 8 | BN14: 9 | BO14: 10 | BP14: 11 | BQ14: 12 | BR14: 1 | BS14: 2 | BT14: 3 | BU14: 4 | BV14: 5 | BW14: =BW10 -> 6 | BX14: 7 | BY14: 8 | BZ14: 9 | CA14: 10 | CB14: 11 | CC14: 12 | CD14: 1 | CE14: 2 | CF14: 3 | CG14: 4 | CH14: 5 | CI14: 6 | CJ14: 7 | CK14: 8 | CL14: 9 | CM14: 10 | CN14: 11 | CO14: 12 | CP14: 1 | CQ14: 2 | CR14: 3 | CS14: 4 | CT14: 5 | CU14: 6 | CV14: 7 | CW14: 8 | CX14: 9 | CY14: 10 | CZ14: 11 | DA14: 12 | DB14: 1 | DC14: 2 | DD14: 3 | DE14: 4 | DF14: 5 | DG14: 6 | DH14: 7 | DI14: 8 | DJ14: 9 | DK14: 10 | DL14: 11 | DM14: 12 | DN14: 1 | DO14: 2 | DP14: 3 | DQ14: 4 | DR14: 5 | DS14: 6 | DT14: 7 | DU14: 8 | DV14: 9 | DW14: 10 | DX14: 11 | DY14: 12 | DZ14: 1 | EA14: 2 | EB14: 3 | EC14: 4 | ED14: 5 | EE14: 6 | EF14: 7 | EG14: 8 | EH14: 9 | EI14: =EI10 -> 10 | EJ14: 11 | EK14: 12 | EL14: 1 | EM14: 2 | EN14: 3 | EO14: 4 | EP14: 5 | EQ14: 6 | ER14: 7 | ES14: 8 | ET14: 9 | EU14: 10 | EV14: 11 | EW14: 12 | EX14: 1 | EY14: 2 | EZ14: 3 | FA14: 4 | FB14: 5 | FC14: 6 | FD14: 7 | FE14: 8 | FF14: 9 | FG14: 10 | FH14: 11 | FI14: 12 | FJ14: 1 | FK14: 2 | FL14: 3 | FM14: 4 | FN14: 5 | FO14: 6 | FP14: 7 | FQ14: 8 | FR14: 9 | FS14: 10 | FT14: 11 | FU14: 12 | FV14: 1 | FW14: 2 | FX14: 3 | FY14: 4 | FZ14: 5 | GA14: 6 | GB14: 7 | GC14: 8 | GD14: 9 | GE14: 10 | GF14: 11 | GG14: 12 | GH14: 1 | GI14: 2 | GJ14: 3 | GK14: 4 | GL14: 5 | GM14: 6 | GN14: 7 | GO14: 8 | GP14: 9 | GQ14: 10 | GR14: 11 | GS14: 12 | GT14: 1 | GU14: =GU10 -> 2 | GV14: 3 | GW14: 4 | GX14: 5 | GY14: 6 | GZ14: 7 | HA14: 8 | HB14: 9 | HC14: 10 | HD14: 11 | HE14: 12 | HF14: 1 | HG14: 2 | HH14: 3 | HI14: 4 | HJ14: 5 | HK14: 6 | HL14: 7 | HM14: 8 | HN14: 9 | HO14: 10 | HP14: 11 | HQ14: 12 | HR14: 1 | HS14: 2 | HT14: 3 | HU14: 4 | HV14: 5 | HW14: 6 | HX14: 7 | HY14: 8 | HZ14: 9 | IA14: 10 | IB14: 11 | IC14: 12 | ID14: 1 | IE14: 2 | IF14: 3 | IG14: 4 | IH14: 5 | II14: 6 | IJ14: 7 | IK14: 8 | IL14: 9 | IM14: 10 | IN14: 11 | IO14: 12 | IP14: 1 | IQ14: 2 | IR14: 3 | IS14: 4 | IT14: 5 | IU14: 6 | IV14: 7 | IW14: 8 | IX14: 9 | IY14: 10 | IZ14: 11 | JA14: 12 | JB14: 1 | JC14: 2 | JD14: 3 | JE14: 4 | JF14: 5 | JG14: =JG10 -> 6 | JH14: 7 | JI14: 8 | JJ14: 9 | JK14: 10 | JL14: 11 | JM14: 12 | JN14: 1 | JO14: 2 | JP14: 3 | JQ14: 4 | JR14: 5 | JS14: 6 | JT14: 7 | JU14: 8 | JV14: 9 | JW14: 10 | JX14: 11 | JY14: 12 | JZ14: 1 | KA14: 2 | KB14: 3 | KC14: 4 | KD14: 5 | KE14: 6 | KF14: 7 | KG14: 8 | KH14: 9 | KI14: 10 | KJ14: 11 | KK14: 12 | KL14: 1 | KM14: 2 | KN14: 3 | KO14: 4 | KP14: 5 | KQ14: 6 | KR14: 7 | KS14: 8 | KT14: 9 | KU14: 10 | KV14: 11 | KW14: 12 | KX14: 1 | KY14: 2 | KZ14: 3 | LA14: 4 | LB14: 5 | LC14: 6 | LD14: 7 | LE14: 8 | LF14: 9 | LG14: 10 | LH14: 11 | LI14: 12 | LJ14: 1 | LK14: 2 | LL14: 3 | LM14: 4 | LN14: 5 | LO14: 6 | LP14: 7 | LQ14: 8 | LR14: 9 | LS14: =LS10 -> 10 | LT14: 11 | LU14: 12 | LV14: 1 | LW14: 2 | LX14: 3 | LY14: 4 | LZ14: 5 | MA14: 6 | MB14: 7 | MC14: 8 | MD14: 9 | ME14: 10 | MF14: 11 | MG14: 12 | MH14: 1 | MI14: 2 | MJ14: 3 | MK14: 4 | ML14: 5 | MM14: 6 | MN14: 7 | MO14: 8 | MP14: 9 | MQ14: 10 | MR14: 11 | MS14: 12 | MT14: 1 | MU14: 2 | MV14: 3 | MW14: 4 | MX14: 5 | MY14: 6 | MZ14: 7 | NA14: 8 | NB14: 9 | NC14: 10 | ND14: 11 | NE14: 12 | NF14: 1 | NG14: 2 | NH14: 3 | NI14: 4 | NJ14: 5 | NK14: 6 | NL14: 7 | NM14: 8 | NN14: 9 | NO14: 10 | NP14: 11 | NQ14: 12 | NR14: 1 | NS14: 2 | NT14: 3 | NU14: 4 | NV14: 5 | NW14: 6 | NX14: 7 | NY14: 8 | NZ14: 9 | OA14: 10 | OB14: 11 | OC14: 12 | OD14: 1 | OE14: =OE10 -> 2 | OF14: 3 | OG14: 4 | OH14: 5 | OI14: 6 | OJ14: 7 | OK14: 8 | OL14: 9 | OM14: 10 | ON14: 11 | OO14: 12 | OP14: 1 | OQ14: 2 | OR14: 3 | OS14: 4 | OT14: 5 | OU14: 6 | OV14: 7 | OW14: 8 | OX14: 9 | OY14: 10 | OZ14: 11 | PA14: 12 | PB14: 1 | PC14: 2 | PD14: 3 | PE14: 4 | PF14: 5 | PG14: 6 | PH14: 7 | PI14: 8 | PJ14: 9 | PK14: 10 | PL14: 11 | PM14: 12 | PN14: 1 | PO14: 2 | PP14: 3 | PQ14: 4 | PR14: 5 | PS14: 6 | PT14: 7 | PU14: 8 | PV14: 9 | PW14: 10 | PX14: 11 | PY14: 12 | PZ14: 1 | QA14: 2 | QB14: 3 | QC14: 4 | QD14: 5 | QE14: 6 | QF14: 7 | QG14: 8 | QH14: 9 | QI14: 10 | QJ14: 11 | QK14: 12 | QL14: 1 | QM14: 2 | QN14: 3 | QO14: 4 | QP14: 5 | QQ14: =QQ10 -> 6 | QR14: 7 | QS14: 8 | QT14: 9 | QU14: 10 | QV14: 11 | QW14: 12 | QX14: 1 | QY14: 2 | QZ14: 3 | RA14: 4 | RB14: 5 | RC14: 6 | RD14: 7 | RE14: 8 | RF14: 9 | RG14: 10 | RH14: 11 | RI14: 12 | RJ14: 1 | RK14: 2 | RL14: 3 | RM14: 4 | RN14: 5 | RO14: 6 | RP14: 7 | RQ14: 8 | RR14: 9 | RS14: 10 | RT14: 11 | RU14: 12 | RV14: 1 | RW14: 2 | RX14: 3 | RY14: 4 | RZ14: 5 | SA14: 6 | SB14: 7 | SC14: 8 | SD14: 9 | SE14: 10 | SF14: 11 | SG14: 12 | SH14: 1 | SI14: 2 | SJ14: 3 | SK14: 4 | SL14: 5 | SM14: 6 | SN14: 7 | SO14: 8
C16: Flag for Quarterly Period | E16: Flag | F16: =EDATE(F13,2) -> 2027-09-01 | G16: =EDATE(F16,3) -> 2027-12-01 | H16: =EDATE(G16,3) -> 2028-03-01 | I16: =EDATE(H16,3) -> 2028-06-01
C17: Repayment Month | E17: Flag | F17: =MONTH(F16) -> 9 | G17: =MONTH(G16) -> 12 | H17: 3 | I17: 6 | J17: =(OR(J14=$F$17,J14=$G$17,J14=$H$17,J14=$I$17))*1 -> 0 | K17: =(OR(K14=$F$17,K14=$G$17,K14=$H$17,K14=$I$17))*1 -> 0 | L17: 1 | M17: 0 | N17: 0 | O17: 1 | P17: 0 | Q17: 0 | R17: 1 | S17: 0 | T17: 0 | U17: 1 | V17: 0 | W17: 0 | X17: 1 | Y17: 0 | Z17: 0 | AA17: 1 | AB17: 0 | AC17: 0 | AD17: 1 | AE17: 0 | AF17: 0 | AG17: 1 | AH17: 0 | AI17: 0 | AJ17: 1 | AK17: 0 | AL17: 0 | AM17: 1 | AN17: 0 | AO17: 0 | AP17: 1 | AQ17: 0 | AR17: 0 | AS17: 1 | AT17: 0 | AU17: 0 | AV17: 1 | AW17: 0 | AX17: 0 | AY17: 1 | AZ17: 0 | BA17: 0 | BB17: 1 | BC17: 0 | BD17: 0 | BE17: 1 | BF17: 0 | BG17: 0 | BH17: 1 | BI17: 0 | BJ17: 0 | BK17: 1 | BL17: 0 | BM17: 0 | BN17: 1 | BO17: 0 | BP17: 0 | BQ17: 1 | BR17: 0 | BS17: 0 | BT17: 1 | BU17: 0 | BV17: 0 | BW17: =(OR(BW14=$F$17,BW14=$G$17,BW14=$H$17,BW14=$I$17))*1 -> 1 | BX17: 0 | BY17: 0 | BZ17: 1 | CA17: 0 | CB17: 0 | CC17: 1 | CD17: 0 | CE17: 0 | CF17: 1 | CG17: 0 | CH17: 0 | CI17: 1 | CJ17: 0 | CK17: 0 | CL17: 1 | CM17: 0 | CN17: 0 | CO17: 1 | CP17: 0 | CQ17: 0 | CR17: 1 | CS17: 0 | CT17: 0 | CU17: 1 | CV17: 0 | CW17: 0 | CX17: 1 | CY17: 0 | CZ17: 0 | DA17: 1 | DB17: 0 | DC17: 0 | DD17: 1 | DE17: 0 | DF17: 0 | DG17: 1 | DH17: 0 | DI17: 0 | DJ17: 1 | DK17: 0 | DL17: 0 | DM17: 1 | DN17: 0 | DO17: 0 | DP17: 1 | DQ17: 0 | DR17: 0 | DS17: 1 | DT17: 0 | DU17: 0 | DV17: 1 | DW17: 0 | DX17: 0 | DY17: 1 | DZ17: 0 | EA17: 0 | EB17: 1 | EC17: 0 | ED17: 0 | EE17: 1 | EF17: 0 | EG17: 0 | EH17: 1 | EI17: =(OR(EI14=$F$17,EI14=$G$17,EI14=$H$17,EI14=$I$17))*1 -> 0 | EJ17: 0 | EK17: 1 | EL17: 0 | EM17: 0 | EN17: 1 | EO17: 0 | EP17: 0 | EQ17: 1 | ER17: 0 | ES17: 0 | ET17: 1 | EU17: 0 | EV17: 0 | EW17: 1 | EX17: 0 | EY17: 0 | EZ17: 1 | FA17: 0 | FB17: 0 | FC17: 1 | FD17: 0 | FE17: 0 | FF17: 1 | FG17: 0 | FH17: 0 | FI17: 1 | FJ17: 0 | FK17: 0 | FL17: 1 | FM17: 0 | FN17: 0 | FO17: 1 | FP17: 0 | FQ17: 0 | FR17: 1 | FS17: 0 | FT17: 0 | FU17: 1 | FV17: 0 | FW17: 0 | FX17: 1 | FY17: 0 | FZ17: 0 | GA17: 1 | GB17: 0 | GC17: 0 | GD17: 1 | GE17: 0 | GF17: 0 | GG17: 1 | GH17: 0 | GI17: 0 | GJ17: 1 | GK17: 0 | GL17: 0 | GM17: 1 | GN17: 0 | GO17: 0 | GP17: 1 | GQ17: 0 | GR17: 0 | GS17: 1 | GT17: 0 | GU17: =(OR(GU14=$F$17,GU14=$G$17,GU14=$H$17,GU14=$I$17))*1 -> 0 | GV17: 1 | GW17: 0 | GX17: 0 | GY17: 1 | GZ17: 0 | HA17: 0 | HB17: 1 | HC17: 0 | HD17: 0 | HE17: 1 | HF17: 0 | HG17: 0 | HH17: 1 | HI17: 0 | HJ17: 0 | HK17: 1 | HL17: 0 | HM17: 0 | HN17: 1 | HO17: 0 | HP17: 0 | HQ17: 1 | HR17: 0 | HS17: 0 | HT17: 1 | HU17: 0 | HV17: 0 | HW17: 1 | HX17: 0 | HY17: 0 | HZ17: 1 | IA17: 0 | IB17: 0 | IC17: 1 | ID17: 0 | IE17: 0 | IF17: 1 | IG17: 0 | IH17: 0 | II17: 1 | IJ17: 0 | IK17: 0 | IL17: 1 | IM17: 0 | IN17: 0 | IO17: 1 | IP17: 0 | IQ17: 0 | IR17: 1 | IS17: 0 | IT17: 0 | IU17: 1 | IV17: 0 | IW17: 0 | IX17: 1 | IY17: 0 | IZ17: 0 | JA17: 1 | JB17: 0 | JC17: 0 | JD17: 1 | JE17: 0 | JF17: 0 | JG17: =(OR(JG14=$F$17,JG14=$G$17,JG14=$H$17,JG14=$I$17))*1 -> 1 | JH17: 0 | JI17: 0 | JJ17: 1 | JK17: 0 | JL17: 0 | JM17: 1 | JN17: 0 | JO17: 0 | JP17: 1 | JQ17: 0 | JR17: 0 | JS17: 1 | JT17: 0 | JU17: 0 | JV17: 1 | JW17: 0 | JX17: 0 | JY17: 1 | JZ17: 0 | KA17: 0 | KB17: 1 | KC17: 0 | KD17: 0 | KE17: 1 | KF17: 0 | KG17: 0 | KH17: 1 | KI17: 0 | KJ17: 0 | KK17: 1 | KL17: 0 | KM17: 0 | KN17: 1 | KO17: 0 | KP17: 0 | KQ17: 1 | KR17: 0 | KS17: 0 | KT17: 1 | KU17: 0 | KV17: 0 | KW17: 1 | KX17: 0 | KY17: 0 | KZ17: 1 | LA17: 0 | LB17: 0 | LC17: 1 | LD17: 0 | LE17: 0 | LF17: 1 | LG17: 0 | LH17: 0 | LI17: 1 | LJ17: 0 | LK17: 0 | LL17: 1 | LM17: 0 | LN17: 0 | LO17: 1 | LP17: 0 | LQ17: 0 | LR17: 1 | LS17: =(OR(LS14=$F$17,LS14=$G$17,LS14=$H$17,LS14=$I$17))*1 -> 0 | LT17: 0 | LU17: 1 | LV17: 0 | LW17: 0 | LX17: 1 | LY17: 0 | LZ17: 0 | MA17: 1 | MB17: 0 | MC17: 0 | MD17: 1 | ME17: 0 | MF17: 0 | MG17: 1 | MH17: 0 | MI17: 0 | MJ17: 1 | MK17: 0 | ML17: 0 | MM17: 1 | MN17: 0 | MO17: 0 | MP17: 1 | MQ17: 0 | MR17: 0 | MS17: 1 | MT17: 0 | MU17: 0 | MV17: 1 | MW17: 0 | MX17: 0 | MY17: 1 | MZ17: 0 | NA17: 0 | NB17: 1 | NC17: 0 | ND17: 0 | NE17: 1 | NF17: 0 | NG17: 0 | NH17: 1 | NI17: 0 | NJ17: 0 | NK17: 1 | NL17: 0 | NM17: 0 | NN17: 1 | NO17: 0 | NP17: 0 | NQ17: 1 | NR17: 0 | NS17: 0 | NT17: 1 | NU17: 0 | NV17: 0 | NW17: 1 | NX17: 0 | NY17: 0 | NZ17: 1 | OA17: 0 | OB17: 0 | OC17: 1 | OD17: 0 | OE17: =(OR(OE14=$F$17,OE14=$G$17,OE14=$H$17,OE14=$I$17))*1 -> 0 | OF17: 1 | OG17: 0 | OH17: 0 | OI17: 1 | OJ17: 0 | OK17: 0 | OL17: 1 | OM17: 0 | ON17: 0 | OO17: 1 | OP17: 0 | OQ17: 0 | OR17: 1 | OS17: 0 | OT17: 0 | OU17: 1 | OV17: 0 | OW17: 0 | OX17: 1 | OY17: 0 | OZ17: 0 | PA17: 1 | PB17: 0 | PC17: 0 | PD17: 1 | PE17: 0 | PF17: 0 | PG17: 1 | PH17: 0 | PI17: 0 | PJ17: 1 | PK17: 0 | PL17: 0 | PM17: 1 | PN17: 0 | PO17: 0 | PP17: 1 | PQ17: 0 | PR17: 0 | PS17: 1 | PT17: 0 | PU17: 0 | PV17: 1 | PW17: 0 | PX17: 0 | PY17: 1 | PZ17: 0 | QA17: 0 | QB17: 1 | QC17: 0 | QD17: 0 | QE17: 1 | QF17: 0 | QG17: 0 | QH17: 1 | QI17: 0 | QJ17: 0 | QK17: 1 | QL17: 0 | QM17: 0 | QN17: 1 | QO17: 0 | QP17: 0 | QQ17: =(OR(QQ14=$F$17,QQ14=$G$17,QQ14=$H$17,QQ14=$I$17))*1 -> 1 | QR17: 0 | QS17: 0 | QT17: 1 | QU17: 0 | QV17: 0 | QW17: 1 | QX17: 0 | QY17: 0 | QZ17: 1 | RA17: 0 | RB17: 0 | RC17: 1 | RD17: 0 | RE17: 0 | RF17: 1 | RG17: 0 | RH17: 0 | RI17: 1 | RJ17: 0 | RK17: 0 | RL17: 1 | RM17: 0 | RN17: 0 | RO17: 1 | RP17: 0 | RQ17: 0 | RR17: 1 | RS17: 0 | RT17: 0 | RU17: 1 | RV17: 0 | RW17: 0 | RX17: 1 | RY17: 0 | RZ17: 0 | SA17: 1 | SB17: 0 | SC17: 0 | SD17: 1 | SE17: 0 | SF17: 0 | SG17: 1 | SH17: 0 | SI17: 0 | SJ17: 1 | SK17: 0 | SL17: 0 | SM17: 1 | SN17: 0 | SO17: 0
C18: Adjustment from Pre-COD Period | E18: Flag | F18: =EDATE(F12,-1) -> 2027-06-01 | J18: =(($F$18=J6)*1)*1 -> 0 | K18: =(($F$18=K6)*1)*1 -> 0 | L18: 0 | M18: 0 | N18: 0 | O18: 0 | P18: 0 | Q18: 0 | R18: 0 | S18: 0 | T18: 0 | U18: 0 | V18: 0 | W18: 0 | X18: 0 | Y18: 0 | Z18: 0 | AA18: 1 | AB18: 0 | AC18: 0 | AD18: 0 | AE18: 0 | AF18: 0 | AG18: 0 | AH18: 0 | AI18: 0 | AJ18: 0 | AK18: 0 | AL18: 0 | AM18: 0 | AN18: 0 | AO18: 0 | AP18: 0 | AQ18: 0 | AR18: 0 | AS18: 0 | AT18: 0 | AU18: 0 | AV18: 0 | AW18: 0 | AX18: 0 | AY18: 0 | AZ18: 0 | BA18: 0 | BB18: 0 | BC18: 0 | BD18: 0 | BE18: 0 | BF18: 0 | BG18: 0 | BH18: 0 | BI18: 0 | BJ18: 0 | BK18: 0 | BL18: 0 | BM18: 0 | BN18: 0 | BO18: 0 | BP18: 0 | BQ18: 0 | BR18: 0 | BS18: 0 | BT18: 0 | BU18: 0 | BV18: 0 | BW18: =(($F$18=BW6)*1)*1 -> 0 | BX18: 0 | BY18: 0 | BZ18: 0 | CA18: 0 | CB18: 0 | CC18: 0 | CD18: 0 | CE18: 0 | CF18: 0 | CG18: 0 | CH18: 0 | CI18: 0 | CJ18: 0 | CK18: 0 | CL18: 0 | CM18: 0 | CN18: 0 | CO18: 0 | CP18: 0 | CQ18: 0 | CR18: 0 | CS18: 0 | CT18: 0 | CU18: 0 | CV18: 0 | CW18: 0 | CX18: 0 | CY18: 0 | CZ18: 0 | DA18: 0 | DB18: 0 | DC18: 0 | DD18: 0 | DE18: 0 | DF18: 0 | DG18: 0 | DH18: 0 | DI18: 0 | DJ18: 0 | DK18: 0 | DL18: 0 | DM18: 0 | DN18: 0 | DO18: 0 | DP18: 0 | DQ18: 0 | DR18: 0 | DS18: 0 | DT18: 0 | DU18: 0 | DV18: 0 | DW18: 0 | DX18: 0 | DY18: 0 | DZ18: 0 | EA18: 0 | EB18: 0 | EC18: 0 | ED18: 0 | EE18: 0 | EF18: 0 | EG18: 0 | EH18: 0 | EI18: =(($F$18=EI6)*1)*1 -> 0 | EJ18: 0 | EK18: 0 | EL18: 0 | EM18: 0 | EN18: 0 | EO18: 0 | EP18: 0 | EQ18: 0 | ER18: 0 | ES18: 0 | ET18: 0 | EU18: 0 | EV18: 0 | EW18: 0 | EX18: 0 | EY18: 0 | EZ18: 0 | FA18: 0 | FB18: 0 | FC18: 0 | FD18: 0 | FE18: 0 | FF18: 0 | FG18: 0 | FH18: 0 | FI18: 0 | FJ18: 0 | FK18: 0 | FL18: 0 | FM18: 0 | FN18: 0 | FO18: 0 | FP18: 0 | FQ18: 0 | FR18: 0 | FS18: 0 | FT18: 0 | FU18: 0 | FV18: 0 | FW18: 0 | FX18: 0 | FY18: 0 | FZ18: 0 | GA18: 0 | GB18: 0 | GC18: 0 | GD18: 0 | GE18: 0 | GF18: 0 | GG18: 0 | GH18: 0 | GI18: 0 | GJ18: 0 | GK18: 0 | GL18: 0 | GM18: 0 | GN18: 0 | GO18: 0 | GP18: 0 | GQ18: 0 | GR18: 0 | GS18: 0 | GT18: 0 | GU18: =(($F$18=GU6)*1)*1 -> 0 | GV18: 0 | GW18: 0 | GX18: 0 | GY18: 0 | GZ18: 0 | HA18: 0 | HB18: 0 | HC18: 0 | HD18: 0 | HE18: 0 | HF18: 0 | HG18: 0 | HH18: 0 | HI18: 0 | HJ18: 0 | HK18: 0 | HL18: 0 | HM18: 0 | HN18: 0 | HO18: 0 | HP18: 0 | HQ18: 0 | HR18: 0 | HS18: 0 | HT18: 0 | HU18: 0 | HV18: 0 | HW18: 0 | HX18: 0 | HY18: 0 | HZ18: 0 | IA18: 0 | IB18: 0 | IC18: 0 | ID18: 0 | IE18: 0 | IF18: 0 | IG18: 0 | IH18: 0 | II18: 0 | IJ18: 0 | IK18: 0 | IL18: 0 | IM18: 0 | IN18: 0 | IO18: 0 | IP18: 0 | IQ18: 0 | IR18: 0 | IS18: 0 | IT18: 0 | IU18: 0 | IV18: 0 | IW18: 0 | IX18: 0 | IY18: 0 | IZ18: 0 | JA18: 0 | JB18: 0 | JC18: 0 | JD18: 0 | JE18: 0 | JF18: 0 | JG18: =(($F$18=JG6)*1)*1 -> 0 | JH18: 0 | JI18: 0 | JJ18: 0 | JK18: 0 | JL18: 0 | JM18: 0 | JN18: 0 | JO18: 0 | JP18: 0 | JQ18: 0 | JR18: 0 | JS18: 0 | JT18: 0 | JU18: 0 | JV18: 0 | JW18: 0 | JX18: 0 | JY18: 0 | JZ18: 0 | KA18: 0 | KB18: 0 | KC18: 0 | KD18: 0 | KE18: 0 | KF18: 0 | KG18: 0 | KH18: 0 | KI18: 0 | KJ18: 0 | KK18: 0 | KL18: 0 | KM18: 0 | KN18: 0 | KO18: 0 | KP18: 0 | KQ18: 0 | KR18: 0 | KS18: 0 | KT18: 0 | KU18: 0 | KV18: 0 | KW18: 0 | KX18: 0 | KY18: 0 | KZ18: 0 | LA18: 0 | LB18: 0 | LC18: 0 | LD18: 0 | LE18: 0 | LF18: 0 | LG18: 0 | LH18: 0 | LI18: 0 | LJ18: 0 | LK18: 0 | LL18: 0 | LM18: 0 | LN18: 0 | LO18: 0 | LP18: 0 | LQ18: 0 | LR18: 0 | LS18: =(($F$18=LS6)*1)*1 -> 0 | LT18: 0 | LU18: 0 | LV18: 0 | LW18: 0 | LX18: 0 | LY18: 0 | LZ18: 0 | MA18: 0 | MB18: 0 | MC18: 0 | MD18: 0 | ME18: 0 | MF18: 0 | MG18: 0 | MH18: 0 | MI18: 0 | MJ18: 0 | MK18: 0 | ML18: 0 | MM18: 0 | MN18: 0 | MO18: 0 | MP18: 0 | MQ18: 0 | MR18: 0 | MS18: 0 | MT18: 0 | MU18: 0 | MV18: 0 | MW18: 0 | MX18: 0 | MY18: 0 | MZ18: 0 | NA18: 0 | NB18: 0 | NC18: 0 | ND18: 0 | NE18: 0 | NF18: 0 | NG18: 0 | NH18: 0 | NI18: 0 | NJ18: 0 | NK18: 0 | NL18: 0 | NM18: 0 | NN18: 0 | NO18: 0 | NP18: 0 | NQ18: 0 | NR18: 0 | NS18: 0 | NT18: 0 | NU18: 0 | NV18: 0 | NW18: 0 | NX18: 0 | NY18: 0 | NZ18: 0 | OA18: 0 | OB18: 0 | OC18: 0 | OD18: 0 | OE18: =(($F$18=OE6)*1)*1 -> 0 | OF18: 0 | OG18: 0 | OH18: 0 | OI18: 0 | OJ18: 0 | OK18: 0 | OL18: 0 | OM18: 0 | ON18: 0 | OO18: 0 | OP18: 0 | OQ18: 0 | OR18: 0 | OS18: 0 | OT18: 0 | OU18: 0 | OV18: 0 | OW18: 0 | OX18: 0 | OY18: 0 | OZ18: 0 | PA18: 0 | PB18: 0 | PC18: 0 | PD18: 0 | PE18: 0 | PF18: 0 | PG18: 0 | PH18: 0 | PI18: 0 | PJ18: 0 | PK18: 0 | PL18: 0 | PM18: 0 | PN18: 0 | PO18: 0 | PP18: 0 | PQ18: 0 | PR18: 0 | PS18: 0 | PT18: 0 | PU18: 0 | PV18: 0 | PW18: 0 | PX18: 0 | PY18: 0 | PZ18: 0 | QA18: 0 | QB18: 0 | QC18: 0 | QD18: 0 | QE18: 0 | QF18: 0 | QG18: 0 | QH18: 0 | QI18: 0 | QJ18: 0 | QK18: 0 | QL18: 0 | QM18: 0 | QN18: 0 | QO18: 0 | QP18: 0 | QQ18: =(($F$18=QQ6)*1)*1 -> 0 | QR18: 0 | QS18: 0 | QT18: 0 | QU18: 0 | QV18: 0 | QW18: 0 | QX18: 0 | QY18: 0 | QZ18: 0 | RA18: 0 | RB18: 0 | RC18: 0 | RD18: 0 | RE18: 0 | RF18: 0 | RG18: 0 | RH18: 0 | RI18: 0 | RJ18: 0 | RK18: 0 | RL18: 0 | RM18: 0 | RN18: 0 | RO18: 0 | RP18: 0 | RQ18: 0 | RR18: 0 | RS18: 0 | RT18: 0 | RU18: 0 | RV18: 0 | RW18: 0 | RX18: 0 | RY18: 0 | RZ18: 0 | SA18: 0 | SB18: 0 | SC18: 0 | SD18: 0 | SE18: 0 | SF18: 0 | SG18: 0 | SH18: 0 | SI18: 0 | SJ18: 0 | SK18: 0 | SL18: 0 | SM18: 0 | SN18: 0 | SO18: 0
C19: Total Flag for Quarterly Date | E19: Flag | J19: =(J17+J18)*1 -> 0 | K19: =(K17+K18)*1 -> 0 | L19: 1 | M19: 0 | N19: 0 | O19: 1 | P19: 0 | Q19: 0 | R19: 1 | S19: 0 | T19: 0 | U19: 1 | V19: 0 | W19: 0 | X19: 1 | Y19: 0 | Z19: 0 | AA19: 2 | AB19: 0 | AC19: 0 | AD19: 1 | AE19: 0 | AF19: 0 | AG19: 1 | AH19: 0 | AI19: 0 | AJ19: 1 | AK19: 0 | AL19: 0 | AM19: 1 | AN19: 0 | AO19: 0 | AP19: 1 | AQ19: 0 | AR19: 0 | AS19: 1 | AT19: 0 | AU19: 0 | AV19: 1 | AW19: 0 | AX19: 0 | AY19: 1 | AZ19: 0 | BA19: 0 | BB19: 1 | BC19: 0 | BD19: 0 | BE19: 1 | BF19: 0 | BG19: 0 | BH19: 1 | BI19: 0 | BJ19: 0 | BK19: 1 | BL19: 0 | BM19: 0 | BN19: 1 | BO19: 0 | BP19: 0 | BQ19: 1 | BR19: 0 | BS19: 0 | BT19: 1 | BU19: 0 | BV19: 0 | BW19: =(BW17+BW18)*1 -> 1 | BX19: 0 | BY19: 0 | BZ19: 1 | CA19: 0 | CB19: 0 | CC19: 1 | CD19: 0 | CE19: 0 | CF19: 1 | CG19: 0 | CH19: 0 | CI19: 1 | CJ19: 0 | CK19: 0 | CL19: 1 | CM19: 0 | CN19: 0 | CO19: 1 | CP19: 0 | CQ19: 0 | CR19: 1 | CS19: 0 | CT19: 0 | CU19: 1 | CV19: 0 | CW19: 0 | CX19: 1 | CY19: 0 | CZ19: 0 | DA19: 1 | DB19: 0 | DC19: 0 | DD19: 1 | DE19: 0 | DF19: 0 | DG19: 1 | DH19: 0 | DI19: 0 | DJ19: 1 | DK19: 0 | DL19: 0 | DM19: 1 | DN19: 0 | DO19: 0 | DP19: 1 | DQ19: 0 | DR19: 0 | DS19: 1 | DT19: 0 | DU19: 0 | DV19: 1 | DW19: 0 | DX19: 0 | DY19: 1 | DZ19: 0 | EA19: 0 | EB19: 1 | EC19: 0 | ED19: 0 | EE19: 1 | EF19: 0 | EG19: 0 | EH19: 1 | EI19: =(EI17+EI18)*1 -> 0 | EJ19: 0 | EK19: 1 | EL19: 0 | EM19: 0 | EN19: 1 | EO19: 0 | EP19: 0 | EQ19: 1 | ER19: 0 | ES19: 0 | ET19: 1 | EU19: 0 | EV19: 0 | EW19: 1 | EX19: 0 | EY19: 0 | EZ19: 1 | FA19: 0 | FB19: 0 | FC19: 1 | FD19: 0 | FE19: 0 | FF19: 1 | FG19: 0 | FH19: 0 | FI19: 1 | FJ19: 0 | FK19: 0 | FL19: 1 | FM19: 0 | FN19: 0 | FO19: 1 | FP19: 0 | FQ19: 0 | FR19: 1 | FS19: 0 | FT19: 0 | FU19: 1 | FV19: 0 | FW19: 0 | FX19: 1 | FY19: 0 | FZ19: 0 | GA19: 1 | GB19: 0 | GC19: 0 | GD19: 1 | GE19: 0 | GF19: 0 | GG19: 1 | GH19: 0 | GI19: 0 | GJ19: 1 | GK19: 0 | GL19: 0 | GM19: 1 | GN19: 0 | GO19: 0 | GP19: 1 | GQ19: 0 | GR19: 0 | GS19: 1 | GT19: 0 | GU19: =(GU17+GU18)*1 -> 0 | GV19: 1 | GW19: 0 | GX19: 0 | GY19: 1 | GZ19: 0 | HA19: 0 | HB19: 1 | HC19: 0 | HD19: 0 | HE19: 1 | HF19: 0 | HG19: 0 | HH19: 1 | HI19: 0 | HJ19: 0 | HK19: 1 | HL19: 0 | HM19: 0 | HN19: 1 | HO19: 0 | HP19: 0 | HQ19: 1 | HR19: 0 | HS19: 0 | HT19: 1 | HU19: 0 | HV19: 0 | HW19: 1 | HX19: 0 | HY19: 0 | HZ19: 1 | IA19: 0 | IB19: 0 | IC19: 1 | ID19: 0 | IE19: 0 | IF19: 1 | IG19: 0 | IH19: 0 | II19: 1 | IJ19: 0 | IK19: 0 | IL19: 1 | IM19: 0 | IN19: 0 | IO19: 1 | IP19: 0 | IQ19: 0 | IR19: 1 | IS19: 0 | IT19: 0 | IU19: 1 | IV19: 0 | IW19: 0 | IX19: 1 | IY19: 0 | IZ19: 0 | JA19: 1 | JB19: 0 | JC19: 0 | JD19: 1 | JE19: 0 | JF19: 0 | JG19: =(JG17+JG18)*1 -> 1 | JH19: 0 | JI19: 0 | JJ19: 1 | JK19: 0 | JL19: 0 | JM19: 1 | JN19: 0 | JO19: 0 | JP19: 1 | JQ19: 0 | JR19: 0 | JS19: 1 | JT19: 0 | JU19: 0 | JV19: 1 | JW19: 0 | JX19: 0 | JY19: 1 | JZ19: 0 | KA19: 0 | KB19: 1 | KC19: 0 | KD19: 0 | KE19: 1 | KF19: 0 | KG19: 0 | KH19: 1 | KI19: 0 | KJ19: 0 | KK19: 1 | KL19: 0 | KM19: 0 | KN19: 1 | KO19: 0 | KP19: 0 | KQ19: 1 | KR19: 0 | KS19: 0 | KT19: 1 | KU19: 0 | KV19: 0 | KW19: 1 | KX19: 0 | KY19: 0 | KZ19: 1 | LA19: 0 | LB19: 0 | LC19: 1 | LD19: 0 | LE19: 0 | LF19: 1 | LG19: 0 | LH19: 0 | LI19: 1 | LJ19: 0 | LK19: 0 | LL19: 1 | LM19: 0 | LN19: 0 | LO19: 1 | LP19: 0 | LQ19: 0 | LR19: 1 | LS19: =(LS17+LS18)*1 -> 0 | LT19: 0 | LU19: 1 | LV19: 0 | LW19: 0 | LX19: 1 | LY19: 0 | LZ19: 0 | MA19: 1 | MB19: 0 | MC19: 0 | MD19: 1 | ME19: 0 | MF19: 0 | MG19: 1 | MH19: 0 | MI19: 0 | MJ19: 1 | MK19: 0 | ML19: 0 | MM19: 1 | MN19: 0 | MO19: 0 | MP19: 1 | MQ19: 0 | MR19: 0 | MS19: 1 | MT19: 0 | MU19: 0 | MV19: 1 | MW19: 0 | MX19: 0 | MY19: 1 | MZ19: 0 | NA19: 0 | NB19: 1 | NC19: 0 | ND19: 0 | NE19: 1 | NF19: 0 | NG19: 0 | NH19: 1 | NI19: 0 | NJ19: 0 | NK19: 1 | NL19: 0 | NM19: 0 | NN19: 1 | NO19: 0 | NP19: 0 | NQ19: 1 | NR19: 0 | NS19: 0 | NT19: 1 | NU19: 0 | NV19: 0 | NW19: 1 | NX19: 0 | NY19: 0 | NZ19: 1 | OA19: 0 | OB19: 0 | OC19: 1 | OD19: 0 | OE19: =(OE17+OE18)*1 -> 0 | OF19: 1 | OG19: 0 | OH19: 0 | OI19: 1 | OJ19: 0 | OK19: 0 | OL19: 1 | OM19: 0 | ON19: 0 | OO19: 1 | OP19: 0 | OQ19: 0 | OR19: 1 | OS19: 0 | OT19: 0 | OU19: 1 | OV19: 0 | OW19: 0 | OX19: 1 | OY19: 0 | OZ19: 0 | PA19: 1 | PB19: 0 | PC19: 0 | PD19: 1 | PE19: 0 | PF19: 0 | PG19: 1 | PH19: 0 | PI19: 0 | PJ19: 1 | PK19: 0 | PL19: 0 | PM19: 1 | PN19: 0 | PO19: 0 | PP19: 1 | PQ19: 0 | PR19: 0 | PS19: 1 | PT19: 0 | PU19: 0 | PV19: 1 | PW19: 0 | PX19: 0 | PY19: 1 | PZ19: 0 | QA19: 0 | QB19: 1 | QC19: 0 | QD19: 0 | QE19: 1 | QF19: 0 | QG19: 0 | QH19: 1 | QI19: 0 | QJ19: 0 | QK19: 1 | QL19: 0 | QM19: 0 | QN19: 1 | QO19: 0 | QP19: 0 | QQ19: =(QQ17+QQ18)*1 -> 1 | QR19: 0 | QS19: 0 | QT19: 1 | QU19: 0 | QV19: 0 | QW19: 1 | QX19: 0 | QY19: 0 | QZ19: 1 | RA19: 0 | RB19: 0 | RC19: 1 | RD19: 0 | RE19: 0 | RF19: 1 | RG19: 0 | RH19: 0 | RI19: 1 | RJ19: 0 | RK19: 0 | RL19: 1 | RM19: 0 | RN19: 0 | RO19: 1 | RP19: 0 | RQ19: 0 | RR19: 1 | RS19: 0 | RT19: 0 | RU19: 1 | RV19: 0 | RW19: 0 | RX19: 1 | RY19: 0 | RZ19: 0 | SA19: 1 | SB19: 0 | SC19: 0 | SD19: 1 | SE19: 0 | SF19: 0 | SG19: 1 | SH19: 0 | SI19: 0 | SJ19: 1 | SK19: 0 | SL19: 0 | SM19: 1 | SN19: 0 | SO19: 0
C20: Counter for Repayment | E20: Counter | J20: =I19+I20 -> 0 | K20: =J19+J20 -> 0 | L20: 0 | M20: 1 | N20: 1 | O20: 1 | P20: 2 | Q20: 2 | R20: 2 | S20: 3 | T20: 3 | U20: 3 | V20: 4 | W20: 4 | X20: 4 | Y20: 5 | Z20: 5 | AA20: 5 | AB20: 7 | AC20: 7 | AD20: 7 | AE20: 8 | AF20: 8 | AG20: 8 | AH20: 9 | AI20: 9 | AJ20: 9 | AK20: 10 | AL20: 10 | AM20: 10 | AN20: 11 | AO20: 11 | AP20: 11 | AQ20: 12 | AR20: 12 | AS20: 12 | AT20: 13 | AU20: 13 | AV20: 13 | AW20: 14 | AX20: 14 | AY20: 14 | AZ20: 15 | BA20: 15 | BB20: 15 | BC20: 16 | BD20: 16 | BE20: 16 | BF20: 17 | BG20: 17 | BH20: 17 | BI20: 18 | BJ20: 18 | BK20: 18 | BL20: 19 | BM20: 19 | BN20: 19 | BO20: 20 | BP20: 20 | BQ20: 20 | BR20: 21 | BS20: 21 | BT20: 21 | BU20: 22 | BV20: 22 | BW20: =BV19+BV20 -> 22 | BX20: 23 | BY20: 23 | BZ20: 23 | CA20: 24 | CB20: 24 | CC20: 24 | CD20: 25 | CE20: 25 | CF20: 25 | CG20: 26 | CH20: 26 | CI20: 26 | CJ20: 27 | CK20: 27 | CL20: 27 | CM20: 28 | CN20: 28 | CO20: 28 | CP20: 29 | CQ20: 29 | CR20: 29 | CS20: 30 | CT20: 30 | CU20: 30 | CV20: 31 | CW20: 31 | CX20: 31 | CY20: 32 | CZ20: 32 | DA20: 32 | DB20: 33 | DC20: 33 | DD20: 33 | DE20: 34 | DF20: 34 | DG20: 34 | DH20: 35 | DI20: 35 | DJ20: 35 | DK20: 36 | DL20: 36 | DM20: 36 | DN20: 37 | DO20: 37 | DP20: 37 | DQ20: 38 | DR20: 38 | DS20: 38 | DT20: 39 | DU20: 39 | DV20: 39 | DW20: 40 | DX20: 40 | DY20: 40 | DZ20: 41 | EA20: 41 | EB20: 41 | EC20: 42 | ED20: 42 | EE20: 42 | EF20: 43 | EG20: 43 | EH20: 43 | EI20: =EH19+EH20 -> 44 | EJ20: 44 | EK20: 44 | EL20: 45 | EM20: 45 | EN20: 45 | EO20: 46 | EP20: 46 | EQ20: 46 | ER20: 47 | ES20: 47 | ET20: 47 | EU20: 48 | EV20: 48 | EW20: 48 | EX20: 49 | EY20: 49 | EZ20: 49 | FA20: 50 | FB20: 50 | FC20: 50 | FD20: 51 | FE20: 51 | FF20: 51 | FG20: 52 | FH20: 52 | FI20: 52 | FJ20: 53 | FK20: 53 | FL20: 53 | FM20: 54 | FN20: 54 | FO20: 54 | FP20: 55 | FQ20: 55 | FR20: 55 | FS20: 56 | FT20: 56 | FU20: 56 | FV20: 57 | FW20: 57 | FX20: 57 | FY20: 58 | FZ20: 58 | GA20: 58 | GB20: 59 | GC20: 59 | GD20: 59 | GE20: 60 | GF20: 60 | GG20: 60 | GH20: 61 | GI20: 61 | GJ20: 61 | GK20: 62 | GL20: 62 | GM20: 62 | GN20: 63 | GO20: 63 | GP20: 63 | GQ20: 64 | GR20: 64 | GS20: 64 | GT20: 65 | GU20: =GT19+GT20 -> 65 | GV20: 65 | GW20: 66 | GX20: 66 | GY20: 66 | GZ20: 67 | HA20: 67 | HB20: 67 | HC20: 68 | HD20: 68 | HE20: 68 | HF20: 69 | HG20: 69 | HH20: 69 | HI20: 70 | HJ20: 70 | HK20: 70 | HL20: 71 | HM20: 71 | HN20: 71 | HO20: 72 | HP20: 72 | HQ20: 72 | HR20: 73 | HS20: 73 | HT20: 73 | HU20: 74 | HV20: 74 | HW20: 74 | HX20: 75 | HY20: 75 | HZ20: 75 | IA20: 76 | IB20: 76 | IC20: 76 | ID20: 77 | IE20: 77 | IF20: 77 | IG20: 78 | IH20: 78 | II20: 78 | IJ20: 79 | IK20: 79 | IL20: 79 | IM20: 80 | IN20: 80 | IO20: 80 | IP20: 81 | IQ20: 81 | IR20: 81 | IS20: 82 | IT20: 82 | IU20: 82 | IV20: 83 | IW20: 83 | IX20: 83 | IY20: 84 | IZ20: 84 | JA20: 84 | JB20: 85 | JC20: 85 | JD20: 85 | JE20: 86 | JF20: 86 | JG20: =JF19+JF20 -> 86 | JH20: 87 | JI20: 87 | JJ20: 87 | JK20: 88 | JL20: 88 | JM20: 88 | JN20: 89 | JO20: 89 | JP20: 89 | JQ20: 90 | JR20: 90 | JS20: 90 | JT20: 91 | JU20: 91 | JV20: 91 | JW20: 92 | JX20: 92 | JY20: 92 | JZ20: 93 | KA20: 93 | KB20: 93 | KC20: 94 | KD20: 94 | KE20: 94 | KF20: 95 | KG20: 95 | KH20: 95 | KI20: 96 | KJ20: 96 | KK20: 96 | KL20: 97 | KM20: 97 | KN20: 97 | KO20: 98 | KP20: 98 | KQ20: 98 | KR20: 99 | KS20: 99 | KT20: 99 | KU20: 100 | KV20: 100 | KW20: 100 | KX20: 101 | KY20: 101 | KZ20: 101 | LA20: 102 | LB20: 102 | LC20: 102 | LD20: 103 | LE20: 103 | LF20: 103 | LG20: 104 | LH20: 104 | LI20: 104 | LJ20: 105 | LK20: 105 | LL20: 105 | LM20: 106 | LN20: 106 | LO20: 106 | LP20: 107 | LQ20: 107 | LR20: 107 | LS20: =LR19+LR20 -> 108 | LT20: 108 | LU20: 108 | LV20: 109 | LW20: 109 | LX20: 109 | LY20: 110 | LZ20: 110 | MA20: 110 | MB20: 111 | MC20: 111 | MD20: 111 | ME20: 112 | MF20: 112 | MG20: 112 | MH20: 113 | MI20: 113 | MJ20: 113 | MK20: 114 | ML20: 114 | MM20: 114 | MN20: 115 | MO20: 115 | MP20: 115 | MQ20: 116 | MR20: 116 | MS20: 116 | MT20: 117 | MU20: 117 | MV20: 117 | MW20: 118 | MX20: 118 | MY20: 118 | MZ20: 119 | NA20: 119 | NB20: 119 | NC20: 120 | ND20: 120 | NE20: 120 | NF20: 121 | NG20: 121 | NH20: 121 | NI20: 122 | NJ20: 122 | NK20: 122 | NL20: 123 | NM20: 123 | NN20: 123 | NO20: 124 | NP20: 124 | NQ20: 124 | NR20: 125 | NS20: 125 | NT20: 125 | NU20: 126 | NV20: 126 | NW20: 126 | NX20: 127 | NY20: 127 | NZ20: 127 | OA20: 128 | OB20: 128 | OC20: 128 | OD20: 129 | OE20: =OD19+OD20 -> 129 | OF20: 129 | OG20: 130 | OH20: 130 | OI20: 130 | OJ20: 131 | OK20: 131 | OL20: 131 | OM20: 132 | ON20: 132 | OO20: 132 | OP20: 133 | OQ20: 133 | OR20: 133 | OS20: 134 | OT20: 134 | OU20: 134 | OV20: 135 | OW20: 135 | OX20: 135 | OY20: 136 | OZ20: 136 | PA20: 136 | PB20: 137 | PC20: 137 | PD20: 137 | PE20: 138 | PF20: 138 | PG20: 138 | PH20: 139 | PI20: 139 | PJ20: 139 | PK20: 140 | PL20: 140 | PM20: 140 | PN20: 141 | PO20: 141 | PP20: 141 | PQ20: 142 | PR20: 142 | PS20: 142 | PT20: 143 | PU20: 143 | PV20: 143 | PW20: 144 | PX20: 144 | PY20: 144 | PZ20: 145 | QA20: 145 | QB20: 145 | QC20: 146 | QD20: 146 | QE20: 146 | QF20: 147 | QG20: 147 | QH20: 147 | QI20: 148 | QJ20: 148 | QK20: 148 | QL20: 149 | QM20: 149 | QN20: 149 | QO20: 150 | QP20: 150 | QQ20: =QP19+QP20 -> 150 | QR20: 151 | QS20: 151 | QT20: 151 | QU20: 152 | QV20: 152 | QW20: 152 | QX20: 153 | QY20: 153 | QZ20: 153 | RA20: 154 | RB20: 154 | RC20: 154 | RD20: 155 | RE20: 155 | RF20: 155 | RG20: 156 | RH20: 156 | RI20: 156 | RJ20: 157 | RK20: 157 | RL20: 157 | RM20: 158 | RN20: 158 | RO20: 158 | RP20: 159 | RQ20: 159 | RR20: 159 | RS20: 160 | RT20: 160 | RU20: 160 | RV20: 161 | RW20: 161 | RX20: 161 | RY20: 162 | RZ20: 162 | SA20: 162 | SB20: 163 | SC20: 163 | SD20: 163 | SE20: 164 | SF20: 164 | SG20: 164 | SH20: 165 | SI20: 165 | SJ20: 165 | SK20: 166 | SL20: 166 | SM20: 166 | SN20: 167 | SO20: 167
C21: Date for Sumif in Financing | E21: Date | J21: =IF(I19,J6,I21) -> 00:00:00 | K21: =IF(J19,K6,J21) -> 00:00:00 | L21: 00:00:00 | M21: 2026-04-01 | N21: 2026-04-01 | O21: 2026-04-01 | P21: 2026-07-01 | Q21: 2026-07-01 | R21: 2026-07-01 | S21: 2026-10-01 | T21: 2026-10-01 | U21: 2026-10-01 | V21: 2027-01-01 | W21: 2027-01-01 | X21: 2027-01-01 | Y21: 2027-04-01 | Z21: 2027-04-01 | AA21: 2027-04-01 | AB21: 2027-07-01 | AC21: 2027-07-01 | AD21: 2027-07-01 | AE21: 2027-10-01 | AF21: 2027-10-01 | AG21: 2027-10-01 | AH21: 2028-01-01 | AI21: 2028-01-01 | AJ21: 2028-01-01 | AK21: 2028-04-01 | AL21: 2028-04-01 | AM21: 2028-04-01 | AN21: 2028-07-01 | AO21: 2028-07-01 | AP21: 2028-07-01 | AQ21: 2028-10-01 | AR21: 2028-10-01 | AS21: 2028-10-01 | AT21: 2029-01-01 | AU21: 2029-01-01 | AV21: 2029-01-01 | AW21: 2029-04-01 | AX21: 2029-04-01 | AY21: 2029-04-01 | AZ21: 2029-07-01 | BA21: 2029-07-01 | BB21: 2029-07-01 | BC21: 2029-10-01 | BD21: 2029-10-01 | BE21: 2029-10-01 | BF21: 2030-01-01 | BG21: 2030-01-01 | BH21: 2030-01-01 | BI21: 2030-04-01 | BJ21: 2030-04-01 | BK21: 2030-04-01 | BL21: 2030-07-01 | BM21: 2030-07-01 | BN21: 2030-07-01 | BO21: 2030-10-01 | BP21: 2030-10-01 | BQ21: 2030-10-01 | BR21: 2031-01-01 | BS21: 2031-01-01 | BT21: 2031-01-01 | BU21: 2031-04-01 | BV21: 2031-04-01 | BW21: =IF(BV19,BW6,BV21) -> 2031-04-01 | BX21: 2031-07-01 | BY21: 2031-07-01 | BZ21: 2031-07-01 | CA21: 2031-10-01 | CB21: 2031-10-01 | CC21: 2031-10-01 | CD21: 2032-01-01 | CE21: 2032-01-01 | CF21: 2032-01-01 | CG21: 2032-04-01 | CH21: 2032-04-01 | CI21: 2032-04-01 | CJ21: 2032-07-01 | CK21: 2032-07-01 | CL21: 2032-07-01 | CM21: 2032-10-01 | CN21: 2032-10-01 | CO21: 2032-10-01 | CP21: 2033-01-01 | CQ21: 2033-01-01 | CR21: 2033-01-01 | CS21: 2033-04-01 | CT21: 2033-04-01 | CU21: 2033-04-01 | CV21: 2033-07-01 | CW21: 2033-07-01 | CX21: 2033-07-01 | CY21: 2033-10-01 | CZ21: 2033-10-01 | DA21: 2033-10-01 | DB21: 2034-01-01 | DC21: 2034-01-01 | DD21: 2034-01-01 | DE21: 2034-04-01 | DF21: 2034-04-01 | DG21: 2034-04-01 | DH21: 2034-07-01 | DI21: 2034-07-01 | DJ21: 2034-07-01 | DK21: 2034-10-01 | DL21: 2034-10-01 | DM21: 2034-10-01 | DN21: 2035-01-01 | DO21: 2035-01-01 | DP21: 2035-01-01 | DQ21: 2035-04-01 | DR21: 2035-04-01 | DS21: 2035-04-01 | DT21: 2035-07-01 | DU21: 2035-07-01 | DV21: 2035-07-01 | DW21: 2035-10-01 | DX21: 2035-10-01 | DY21: 2035-10-01 | DZ21: 2036-01-01 | EA21: 2036-01-01 | EB21: 2036-01-01 | EC21: 2036-04-01 | ED21: 2036-04-01 | EE21: 2036-04-01 | EF21: 2036-07-01 | EG21: 2036-07-01 | EH21: 2036-07-01 | EI21: =IF(EH19,EI6,EH21) -> 2036-10-01 | EJ21: 2036-10-01 | EK21: 2036-10-01 | EL21: 2037-01-01 | EM21: 2037-01-01 | EN21: 2037-01-01 | EO21: 2037-04-01 | EP21: 2037-04-01 | EQ21: 2037-04-01 | ER21: 2037-07-01 | ES21: 2037-07-01 | ET21: 2037-07-01 | EU21: 2037-10-01 | EV21: 2037-10-01 | EW21: 2037-10-01 | EX21: 2038-01-01 | EY21: 2038-01-01 | EZ21: 2038-01-01 | FA21: 2038-04-01 | FB21: 2038-04-01 | FC21: 2038-04-01 | FD21: 2038-07-01 | FE21: 2038-07-01 | FF21: 2038-07-01 | FG21: 2038-10-01 | FH21: 2038-10-01 | FI21: 2038-10-01 | FJ21: 2039-01-01 | FK21: 2039-01-01 | FL21: 2039-01-01 | FM21: 2039-04-01 | FN21: 2039-04-01 | FO21: 2039-04-01 | FP21: 2039-07-01 | FQ21: 2039-07-01 | FR21: 2039-07-01 | FS21: 2039-10-01 | FT21: 2039-10-01 | FU21: 2039-10-01 | FV21: 2040-01-01 | FW21: 2040-01-01 | FX21: 2040-01-01 | FY21: 2040-04-01 | FZ21: 2040-04-01 | GA21: 2040-04-01 | GB21: 2040-07-01 | GC21: 2040-07-01 | GD21: 2040-07-01 | GE21: 2040-10-01 | GF21: 2040-10-01 | GG21: 2040-10-01 | GH21: 2041-01-01 | GI21: 2041-01-01 | GJ21: 2041-01-01 | GK21: 2041-04-01 | GL21: 2041-04-01 | GM21: 2041-04-01 | GN21: 2041-07-01 | GO21: 2041-07-01 | GP21: 2041-07-01 | GQ21: 2041-10-01 | GR21: 2041-10-01 | GS21: 2041-10-01 | GT21: 2042-01-01 | GU21: =IF(GT19,GU6,GT21) -> 2042-01-01 | GV21: 2042-01-01 | GW21: 2042-04-01 | GX21: 2042-04-01 | GY21: 2042-04-01 | GZ21: 2042-07-01 | HA21: 2042-07-01 | HB21: 2042-07-01 | HC21: 2042-10-01 | HD21: 2042-10-01 | HE21: 2042-10-01 | HF21: 2043-01-01 | HG21: 2043-01-01 | HH21: 2043-01-01 | HI21: 2043-04-01 | HJ21: 2043-04-01 | HK21: 2043-04-01 | HL21: 2043-07-01 | HM21: 2043-07-01 | HN21: 2043-07-01 | HO21: 2043-10-01 | HP21: 2043-10-01 | HQ21: 2043-10-01 | HR21: 2044-01-01 | HS21: 2044-01-01 | HT21: 2044-01-01 | HU21: 2044-04-01 | HV21: 2044-04-01 | HW21: 2044-04-01 | HX21: 2044-07-01 | HY21: 2044-07-01 | HZ21: 2044-07-01 | IA21: 2044-10-01 | IB21: 2044-10-01 | IC21: 2044-10-01 | ID21: 2045-01-01 | IE21: 2045-01-01 | IF21: 2045-01-01 | IG21: 2045-04-01 | IH21: 2045-04-01 | II21: 2045-04-01 | IJ21: 2045-07-01 | IK21: 2045-07-01 | IL21: 2045-07-01 | IM21: 2045-10-01 | IN21: 2045-10-01 | IO21: 2045-10-01 | IP21: 2046-01-01 | IQ21: 2046-01-01 | IR21: 2046-01-01 | IS21: 2046-04-01 | IT21: 2046-04-01 | IU21: 2046-04-01 | IV21: 2046-07-01 | IW21: 2046-07-01 | IX21: 2046-07-01 | IY21: 2046-10-01 | IZ21: 2046-10-01 | JA21: 2046-10-01 | JB21: 2047-01-01 | JC21: 2047-01-01 | JD21: 2047-01-01 | JE21: 2047-04-01 | JF21: 2047-04-01 | JG21: =IF(JF19,JG6,JF21) -> 2047-04-01 | JH21: 2047-07-01 | JI21: 2047-07-01 | JJ21: 2047-07-01 | JK21: 2047-10-01 | JL21: 2047-10-01 | JM21: 2047-10-01 | JN21: 2048-01-01 | JO21: 2048-01-01 | JP21: 2048-01-01 | JQ21: 2048-04-01 | JR21: 2048-04-01 | JS21: 2048-04-01 | JT21: 2048-07-01 | JU21: 2048-07-01 | JV21: 2048-07-01 | JW21: 2048-10-01 | JX21: 2048-10-01 | JY21: 2048-10-01 | JZ21: 2049-01-01 | KA21: 2049-01-01 | KB21: 2049-01-01 | KC21: 2049-04-01 | KD21: 2049-04-01 | KE21: 2049-04-01 | KF21: 2049-07-01 | KG21: 2049-07-01 | KH21: 2049-07-01 | KI21: 2049-10-01 | KJ21: 2049-10-01 | KK21: 2049-10-01 | KL21: 2050-01-01 | KM21: 2050-01-01 | KN21: 2050-01-01 | KO21: 2050-04-01 | KP21: 2050-04-01 | KQ21: 2050-04-01 | KR21: 2050-07-01 | KS21: 2050-07-01 | KT21: 2050-07-01 | KU21: 2050-10-01 | KV21: 2050-10-01 | KW21: 2050-10-01 | KX21: 2051-01-01 | KY21: 2051-01-01 | KZ21: 2051-01-01 | LA21: 2051-04-01 | LB21: 2051-04-01 | LC21: 2051-04-01 | LD21: 2051-07-01 | LE21: 2051-07-01 | LF21: 2051-07-01 | LG21: 2051-10-01 | LH21: 2051-10-01 | LI21: 2051-10-01 | LJ21: 2052-01-01 | LK21: 2052-01-01 | LL21: 2052-01-01 | LM21: 2052-04-01 | LN21: 2052-04-01 | LO21: 2052-04-01 | LP21: 2052-07-01 | LQ21: 2052-07-01 | LR21: 2052-07-01 | LS21: =IF(LR19,LS6,LR21) -> 2052-10-01 | LT21: 2052-10-01 | LU21: 2052-10-01 | LV21: 2053-01-01 | LW21: 2053-01-01 | LX21: 2053-01-01 | LY21: 2053-04-01 | LZ21: 2053-04-01 | MA21: 2053-04-01 | MB21: 2053-07-01 | MC21: 2053-07-01 | MD21: 2053-07-01 | ME21: 2053-10-01 | MF21: 2053-10-01 | MG21: 2053-10-01 | MH21: 2054-01-01 | MI21: 2054-01-01 | MJ21: 2054-01-01 | MK21: 2054-04-01 | ML21: 2054-04-01 | MM21: 2054-04-01 | MN21: 2054-07-01 | MO21: 2054-07-01 | MP21: 2054-07-01 | MQ21: 2054-10-01 | MR21: 2054-10-01 | MS21: 2054-10-01 | MT21: 2055-01-01 | MU21: 2055-01-01 | MV21: 2055-01-01 | MW21: 2055-04-01 | MX21: 2055-04-01 | MY21: 2055-04-01 | MZ21: 2055-07-01 | NA21: 2055-07-01 | NB21: 2055-07-01 | NC21: 2055-10-01 | ND21: 2055-10-01 | NE21: 2055-10-01 | NF21: 2056-01-01 | NG21: 2056-01-01 | NH21: 2056-01-01 | NI21: 2056-04-01 | NJ21: 2056-04-01 | NK21: 2056-04-01 | NL21: 2056-07-01 | NM21: 2056-07-01 | NN21: 2056-07-01 | NO21: 2056-10-01 | NP21: 2056-10-01 | NQ21: 2056-10-01 | NR21: 2057-01-01 | NS21: 2057-01-01 | NT21: 2057-01-01 | NU21: 2057-04-01 | NV21: 2057-04-01 | NW21: 2057-04-01 | NX21: 2057-07-01 | NY21: 2057-07-01 | NZ21: 2057-07-01 | OA21: 2057-10-01 | OB21: 2057-10-01 | OC21: 2057-10-01 | OD21: 2058-01-01 | OE21: =IF(OD19,OE6,OD21) -> 2058-01-01 | OF21: 2058-01-01 | OG21: 2058-04-01 | OH21: 2058-04-01 | OI21: 2058-04-01 | OJ21: 2058-07-01 | OK21: 2058-07-01 | OL21: 2058-07-01 | OM21: 2058-10-01 | ON21: 2058-10-01 | OO21: 2058-10-01 | OP21: 2059-01-01 | OQ21: 2059-01-01 | OR21: 2059-01-01 | OS21: 2059-04-01 | OT21: 2059-04-01 | OU21: 2059-04-01 | OV21: 2059-07-01 | OW21: 2059-07-01 | OX21: 2059-07-01 | OY21: 2059-10-01 | OZ21: 2059-10-01 | PA21: 2059-10-01 | PB21: 2060-01-01 | PC21: 2060-01-01 | PD21: 2060-01-01 | PE21: 2060-04-01 | PF21: 2060-04-01 | PG21: 2060-04-01 | PH21: 2060-07-01 | PI21: 2060-07-01 | PJ21: 2060-07-01 | PK21: 2060-10-01 | PL21: 2060-10-01 | PM21: 2060-10-01 | PN21: 2061-01-01 | PO21: 2061-01-01 | PP21: 2061-01-01 | PQ21: 2061-04-01 | PR21: 2061-04-01 | PS21: 2061-04-01 | PT21: 2061-07-01 | PU21: 2061-07-01 | PV21: 2061-07-01 | PW21: 2061-10-01 | PX21: 2061-10-01 | PY21: 2061-10-01 | PZ21: 2062-01-01 | QA21: 2062-01-01 | QB21: 2062-01-01 | QC21: 2062-04-01 | QD21: 2062-04-01 | QE21: 2062-04-01 | QF21: 2062-07-01 | QG21: 2062-07-01 | QH21: 2062-07-01 | QI21: 2062-10-01 | QJ21: 2062-10-01 | QK21: 2062-10-01 | QL21: 2063-01-01 | QM21: 2063-01-01 | QN21: 2063-01-01 | QO21: 2063-04-01 | QP21: 2063-04-01 | QQ21: =IF(QP19,QQ6,QP21) -> 2063-04-01 | QR21: 2063-07-01 | QS21: 2063-07-01 | QT21: 2063-07-01 | QU21: 2063-10-01 | QV21: 2063-10-01 | QW21: 2063-10-01 | QX21: 2064-01-01 | QY21: 2064-01-01 | QZ21: 2064-01-01 | RA21: 2064-04-01 | RB21: 2064-04-01 | RC21: 2064-04-01 | RD21: 2064-07-01 | RE21: 2064-07-01 | RF21: 2064-07-01 | RG21: 2064-10-01 | RH21: 2064-10-01 | RI21: 2064-10-01 | RJ21: 2065-01-01 | RK21: 2065-01-01 | RL21: 2065-01-01 | RM21: 2065-04-01 | RN21: 2065-04-01 | RO21: 2065-04-01 | RP21: 2065-07-01 | RQ21: 2065-07-01 | RR21: 2065-07-01 | RS21: 2065-10-01 | RT21: 2065-10-01 | RU21: 2065-10-01 | RV21: 2066-01-01 | RW21: 2066-01-01 | RX21: 2066-01-01 | RY21: 2066-04-01 | RZ21: 2066-04-01 | SA21: 2066-04-01 | SB21: 2066-07-01 | SC21: 2066-07-01 | SD21: 2066-07-01 | SE21: 2066-10-01 | SF21: 2066-10-01 | SG21: 2066-10-01 | SH21: 2067-01-01 | SI21: 2067-01-01 | SJ21: 2067-01-01 | SK21: 2067-04-01 | SL21: 2067-04-01 | SM21: 2067-04-01 | SN21: 2067-07-01 | SO21: 2067-07-01
C22: Date with Construcion | E22: Date | J22: =IF(J5,J6,J21) -> 2026-01-01 | K22: =IF(K5,K6,K21) -> 2026-02-01 | L22: 2026-03-01 | M22: 2026-04-01 | N22: 2026-05-01 | O22: 2026-06-01 | P22: 2026-07-01 | Q22: 2026-08-01 | R22: 2026-09-01 | S22: 2026-10-01 | T22: 2026-11-01 | U22: 2026-12-01 | V22: 2027-01-01 | W22: 2027-02-01 | X22: 2027-03-01 | Y22: 2027-04-01 | Z22: 2027-05-01 | AA22: 2027-06-01 | AB22: 2027-07-01 | AC22: 2027-07-01 | AD22: 2027-07-01 | AE22: 2027-10-01 | AF22: 2027-10-01 | AG22: 2027-10-01 | AH22: 2028-01-01 | AI22: 2028-01-01 | AJ22: 2028-01-01 | AK22: 2028-04-01 | AL22: 2028-04-01 | AM22: 2028-04-01 | AN22: 2028-07-01 | AO22: 2028-07-01 | AP22: 2028-07-01 | AQ22: 2028-10-01 | AR22: 2028-10-01 | AS22: 2028-10-01 | AT22: 2029-01-01 | AU22: 2029-01-01 | AV22: 2029-01-01 | AW22: 2029-04-01 | AX22: 2029-04-01 | AY22: 2029-04-01 | AZ22: 2029-07-01 | BA22: 2029-07-01 | BB22: 2029-07-01 | BC22: 2029-10-01 | BD22: 2029-10-01 | BE22: 2029-10-01 | BF22: 2030-01-01 | BG22: 2030-01-01 | BH22: 2030-01-01 | BI22: 2030-04-01 | BJ22: 2030-04-01 | BK22: 2030-04-01 | BL22: 2030-07-01 | BM22: 2030-07-01 | BN22: 2030-07-01 | BO22: 2030-10-01 | BP22: 2030-10-01 | BQ22: 2030-10-01 | BR22: 2031-01-01 | BS22: 2031-01-01 | BT22: 2031-01-01 | BU22: 2031-04-01 | BV22: 2031-04-01 | BW22: =IF(BW5,BW6,BW21) -> 2031-04-01 | BX22: 2031-07-01 | BY22: 2031-07-01 | BZ22: 2031-07-01 | CA22: 2031-10-01 | CB22: 2031-10-01 | CC22: 2031-10-01 | CD22: 2032-01-01 | CE22: 2032-01-01 | CF22: 2032-01-01 | CG22: 2032-04-01 | CH22: 2032-04-01 | CI22: 2032-04-01 | CJ22: 2032-07-01 | CK22: 2032-07-01 | CL22: 2032-07-01 | CM22: 2032-10-01 | CN22: 2032-10-01 | CO22: 2032-10-01 | CP22: 2033-01-01 | CQ22: 2033-01-01 | CR22: 2033-01-01 | CS22: 2033-04-01 | CT22: 2033-04-01 | CU22: 2033-04-01 | CV22: 2033-07-01 | CW22: 2033-07-01 | CX22: 2033-07-01 | CY22: 2033-10-01 | CZ22: 2033-10-01 | DA22: 2033-10-01 | DB22: 2034-01-01 | DC22: 2034-01-01 | DD22: 2034-01-01 | DE22: 2034-04-01 | DF22: 2034-04-01 | DG22: 2034-04-01 | DH22: 2034-07-01 | DI22: 2034-07-01 | DJ22: 2034-07-01 | DK22: 2034-10-01 | DL22: 2034-10-01 | DM22: 2034-10-01 | DN22: 2035-01-01 | DO22: 2035-01-01 | DP22: 2035-01-01 | DQ22: 2035-04-01 | DR22: 2035-04-01 | DS22: 2035-04-01 | DT22: 2035-07-01 | DU22: 2035-07-01 | DV22: 2035-07-01 | DW22: 2035-10-01 | DX22: 2035-10-01 | DY22: 2035-10-01 | DZ22: 2036-01-01 | EA22: 2036-01-01 | EB22: 2036-01-01 | EC22: 2036-04-01 | ED22: 2036-04-01 | EE22: 2036-04-01 | EF22: 2036-07-01 | EG22: 2036-07-01 | EH22: 2036-07-01 | EI22: =IF(EI5,EI6,EI21) -> 2036-10-01 | EJ22: 2036-10-01 | EK22: 2036-10-01 | EL22: 2037-01-01 | EM22: 2037-01-01 | EN22: 2037-01-01 | EO22: 2037-04-01 | EP22: 2037-04-01 | EQ22: 2037-04-01 | ER22: 2037-07-01 | ES22: 2037-07-01 | ET22: 2037-07-01 | EU22: 2037-10-01 | EV22: 2037-10-01 | EW22: 2037-10-01 | EX22: 2038-01-01 | EY22: 2038-01-01 | EZ22: 2038-01-01 | FA22: 2038-04-01 | FB22: 2038-04-01 | FC22: 2038-04-01 | FD22: 2038-07-01 | FE22: 2038-07-01 | FF22: 2038-07-01 | FG22: 2038-10-01 | FH22: 2038-10-01 | FI22: 2038-10-01 | FJ22: 2039-01-01 | FK22: 2039-01-01 | FL22: 2039-01-01 | FM22: 2039-04-01 | FN22: 2039-04-01 | FO22: 2039-04-01 | FP22: 2039-07-01 | FQ22: 2039-07-01 | FR22: 2039-07-01 | FS22: 2039-10-01 | FT22: 2039-10-01 | FU22: 2039-10-01 | FV22: 2040-01-01 | FW22: 2040-01-01 | FX22: 2040-01-01 | FY22: 2040-04-01 | FZ22: 2040-04-01 | GA22: 2040-04-01 | GB22: 2040-07-01 | GC22: 2040-07-01 | GD22: 2040-07-01 | GE22: 2040-10-01 | GF22: 2040-10-01 | GG22: 2040-10-01 | GH22: 2041-01-01 | GI22: 2041-01-01 | GJ22: 2041-01-01 | GK22: 2041-04-01 | GL22: 2041-04-01 | GM22: 2041-04-01 | GN22: 2041-07-01 | GO22: 2041-07-01 | GP22: 2041-07-01 | GQ22: 2041-10-01 | GR22: 2041-10-01 | GS22: 2041-10-01 | GT22: 2042-01-01 | GU22: =IF(GU5,GU6,GU21) -> 2042-01-01 | GV22: 2042-01-01 | GW22: 2042-04-01 | GX22: 2042-04-01 | GY22: 2042-04-01 | GZ22: 2042-07-01 | HA22: 2042-07-01 | HB22: 2042-07-01 | HC22: 2042-10-01 | HD22: 2042-10-01 | HE22: 2042-10-01 | HF22: 2043-01-01 | HG22: 2043-01-01 | HH22: 2043-01-01 | HI22: 2043-04-01 | HJ22: 2043-04-01 | HK22: 2043-04-01 | HL22: 2043-07-01 | HM22: 2043-07-01 | HN22: 2043-07-01 | HO22: 2043-10-01 | HP22: 2043-10-01 | HQ22: 2043-10-01 | HR22: 2044-01-01 | HS22: 2044-01-01 | HT22: 2044-01-01 | HU22: 2044-04-01 | HV22: 2044-04-01 | HW22: 2044-04-01 | HX22: 2044-07-01 | HY22: 2044-07-01 | HZ22: 2044-07-01 | IA22: 2044-10-01 | IB22: 2044-10-01 | IC22: 2044-10-01 | ID22: 2045-01-01 | IE22: 2045-01-01 | IF22: 2045-01-01 | IG22: 2045-04-01 | IH22: 2045-04-01 | II22: 2045-04-01 | IJ22: 2045-07-01 | IK22: 2045-07-01 | IL22: 2045-07-01 | IM22: 2045-10-01 | IN22: 2045-10-01 | IO22: 2045-10-01 | IP22: 2046-01-01 | IQ22: 2046-01-01 | IR22: 2046-01-01 | IS22: 2046-04-01 | IT22: 2046-04-01 | IU22: 2046-04-01 | IV22: 2046-07-01 | IW22: 2046-07-01 | IX22: 2046-07-01 | IY22: 2046-10-01 | IZ22: 2046-10-01 | JA22: 2046-10-01 | JB22: 2047-01-01 | JC22: 2047-01-01 | JD22: 2047-01-01 | JE22: 2047-04-01 | JF22: 2047-04-01 | JG22: =IF(JG5,JG6,JG21) -> 2047-04-01 | JH22: 2047-07-01 | JI22: 2047-07-01 | JJ22: 2047-07-01 | JK22: 2047-10-01 | JL22: 2047-10-01 | JM22: 2047-10-01 | JN22: 2048-01-01 | JO22: 2048-01-01 | JP22: 2048-01-01 | JQ22: 2048-04-01 | JR22: 2048-04-01 | JS22: 2048-04-01 | JT22: 2048-07-01 | JU22: 2048-07-01 | JV22: 2048-07-01 | JW22: 2048-10-01 | JX22: 2048-10-01 | JY22: 2048-10-01 | JZ22: 2049-01-01 | KA22: 2049-01-01 | KB22: 2049-01-01 | KC22: 2049-04-01 | KD22: 2049-04-01 | KE22: 2049-04-01 | KF22: 2049-07-01 | KG22: 2049-07-01 | KH22: 2049-07-01 | KI22: 2049-10-01 | KJ22: 2049-10-01 | KK22: 2049-10-01 | KL22: 2050-01-01 | KM22: 2050-01-01 | KN22: 2050-01-01 | KO22: 2050-04-01 | KP22: 2050-04-01 | KQ22: 2050-04-01 | KR22: 2050-07-01 | KS22: 2050-07-01 | KT22: 2050-07-01 | KU22: 2050-10-01 | KV22: 2050-10-01 | KW22: 2050-10-01 | KX22: 2051-01-01 | KY22: 2051-01-01 | KZ22: 2051-01-01 | LA22: 2051-04-01 | LB22: 2051-04-01 | LC22: 2051-04-01 | LD22: 2051-07-01 | LE22: 2051-07-01 | LF22: 2051-07-01 | LG22: 2051-10-01 | LH22: 2051-10-01 | LI22: 2051-10-01 | LJ22: 2052-01-01 | LK22: 2052-01-01 | LL22: 2052-01-01 | LM22: 2052-04-01 | LN22: 2052-04-01 | LO22: 2052-04-01 | LP22: 2052-07-01 | LQ22: 2052-07-01 | LR22: 2052-07-01 | LS22: =IF(LS5,LS6,LS21) -> 2052-10-01 | LT22: 2052-10-01 | LU22: 2052-10-01 | LV22: 2053-01-01 | LW22: 2053-01-01 | LX22: 2053-01-01 | LY22: 2053-04-01 | LZ22: 2053-04-01 | MA22: 2053-04-01 | MB22: 2053-07-01 | MC22: 2053-07-01 | MD22: 2053-07-01 | ME22: 2053-10-01 | MF22: 2053-10-01 | MG22: 2053-10-01 | MH22: 2054-01-01 | MI22: 2054-01-01 | MJ22: 2054-01-01 | MK22: 2054-04-01 | ML22: 2054-04-01 | MM22: 2054-04-01 | MN22: 2054-07-01 | MO22: 2054-07-01 | MP22: 2054-07-01 | MQ22: 2054-10-01 | MR22: 2054-10-01 | MS22: 2054-10-01 | MT22: 2055-01-01 | MU22: 2055-01-01 | MV22: 2055-01-01 | MW22: 2055-04-01 | MX22: 2055-04-01 | MY22: 2055-04-01 | MZ22: 2055-07-01 | NA22: 2055-07-01 | NB22: 2055-07-01 | NC22: 2055-10-01 | ND22: 2055-10-01 | NE22: 2055-10-01 | NF22: 2056-01-01 | NG22: 2056-01-01 | NH22: 2056-01-01 | NI22: 2056-04-01 | NJ22: 2056-04-01 | NK22: 2056-04-01 | NL22: 2056-07-01 | NM22: 2056-07-01 | NN22: 2056-07-01 | NO22: 2056-10-01 | NP22: 2056-10-01 | NQ22: 2056-10-01 | NR22: 2057-01-01 | NS22: 2057-01-01 | NT22: 2057-01-01 | NU22: 2057-04-01 | NV22: 2057-04-01 | NW22: 2057-04-01 | NX22: 2057-07-01 | NY22: 2057-07-01 | NZ22: 2057-07-01 | OA22: 2057-10-01 | OB22: 2057-10-01 | OC22: 2057-10-01 | OD22: 2058-01-01 | OE22: =IF(OE5,OE6,OE21) -> 2058-01-01 | OF22: 2058-01-01 | OG22: 2058-04-01 | OH22: 2058-04-01 | OI22: 2058-04-01 | OJ22: 2058-07-01 | OK22: 2058-07-01 | OL22: 2058-07-01 | OM22: 2058-10-01 | ON22: 2058-10-01 | OO22: 2058-10-01 | OP22: 2059-01-01 | OQ22: 2059-01-01 | OR22: 2059-01-01 | OS22: 2059-04-01 | OT22: 2059-04-01 | OU22: 2059-04-01 | OV22: 2059-07-01 | OW22: 2059-07-01 | OX22: 2059-07-01 | OY22: 2059-10-01 | OZ22: 2059-10-01 | PA22: 2059-10-01 | PB22: 2060-01-01 | PC22: 2060-01-01 | PD22: 2060-01-01 | PE22: 2060-04-01 | PF22: 2060-04-01 | PG22: 2060-04-01 | PH22: 2060-07-01 | PI22: 2060-07-01 | PJ22: 2060-07-01 | PK22: 2060-10-01 | PL22: 2060-10-01 | PM22: 2060-10-01 | PN22: 2061-01-01 | PO22: 2061-01-01 | PP22: 2061-01-01 | PQ22: 2061-04-01 | PR22: 2061-04-01 | PS22: 2061-04-01 | PT22: 2061-07-01 | PU22: 2061-07-01 | PV22: 2061-07-01 | PW22: 2061-10-01 | PX22: 2061-10-01 | PY22: 2061-10-01 | PZ22: 2062-01-01 | QA22: 2062-01-01 | QB22: 2062-01-01 | QC22: 2062-04-01 | QD22: 2062-04-01 | QE22: 2062-04-01 | QF22: 2062-07-01 | QG22: 2062-07-01 | QH22: 2062-07-01 | QI22: 2062-10-01 | QJ22: 2062-10-01 | QK22: 2062-10-01 | QL22: 2063-01-01 | QM22: 2063-01-01 | QN22: 2063-01-01 | QO22: 2063-04-01 | QP22: 2063-04-01 | QQ22: =IF(QQ5,QQ6,QQ21) -> 2063-04-01 | QR22: 2063-07-01 | QS22: 2063-07-01 | QT22: 2063-07-01 | QU22: 2063-10-01 | QV22: 2063-10-01 | QW22: 2063-10-01 | QX22: 2064-01-01 | QY22: 2064-01-01 | QZ22: 2064-01-01 | RA22: 2064-04-01 | RB22: 2064-04-01 | RC22: 2064-04-01 | RD22: 2064-07-01 | RE22: 2064-07-01 | RF22: 2064-07-01 | RG22: 2064-10-01 | RH22: 2064-10-01 | RI22: 2064-10-01 | RJ22: 2065-01-01 | RK22: 2065-01-01 | RL22: 2065-01-01 | RM22: 2065-04-01 | RN22: 2065-04-01 | RO22: 2065-04-01 | RP22: 2065-07-01 | RQ22: 2065-07-01 | RR22: 2065-07-01 | RS22: 2065-10-01 | RT22: 2065-10-01 | RU22: 2065-10-01 | RV22: 2066-01-01 | RW22: 2066-01-01 | RX22: 2066-01-01 | RY22: 2066-04-01 | RZ22: 2066-04-01 | SA22: 2066-04-01 | SB22: 2066-07-01 | SC22: 2066-07-01 | SD22: 2066-07-01 | SE22: 2066-10-01 | SF22: 2066-10-01 | SG22: 2066-10-01 | SH22: 2067-01-01 | SI22: 2067-01-01 | SJ22: 2067-01-01 | SK22: 2067-04-01 | SL22: 2067-04-01 | SM22: 2067-04-01 | SN22: 2067-07-01 | SO22: 2067-07-01
B24: Operation - Solar/Hydro
C25: Capacity of Plant | E25: kWp | F25: =InputC!F23 -> 15000 | J25: =$F$25*J9 -> 0 | K25: =$F$25*K9 -> 0 | L25: 0 | M25: 0 | N25: 0 | O25: 0 | P25: 0 | Q25: 0 | R25: 0 | S25: 0 | T25: 0 | U25: 0 | V25: 0 | W25: 0 | X25: 0 | Y25: 0 | Z25: 0 | AA25: 0 | AB25: 15000 | AC25: 15000 | AD25: 15000 | AE25: 15000 | AF25: 15000 | AG25: 15000 | AH25: 15000 | AI25: 15000 | AJ25: 15000 | AK25: 15000 | AL25: 15000 | AM25: 15000 | AN25: 15000 | AO25: 15000 | AP25: 15000 | AQ25: 15000 | AR25: 15000 | AS25: 15000 | AT25: 15000 | AU25: 15000 | AV25: 15000 | AW25: 15000 | AX25: 15000 | AY25: 15000 | AZ25: 15000 | BA25: 15000 | BB25: 15000 | BC25: 15000 | BD25: 15000 | BE25: 15000 | BF25: 15000 | BG25: 15000 | BH25: 15000 | BI25: 15000 | BJ25: 15000 | BK25: 15000 | BL25: 15000 | BM25: 15000 | BN25: 15000 | BO25: 15000 | BP25: 15000 | BQ25: 15000 | BR25: 15000 | BS25: 15000 | BT25: 15000 | BU25: 15000 | BV25: 15000 | BW25: =$F$25*BW9 -> 15000 | BX25: 15000 | BY25: 15000 | BZ25: 15000 | CA25: 15000 | CB25: 15000 | CC25: 15000 | CD25: 15000 | CE25: 15000 | CF25: 15000 | CG25: 15000 | CH25: 15000 | CI25: 15000 | CJ25: 15000 | CK25: 15000 | CL25: 15000 | CM25: 15000 | CN25: 15000 | CO25: 15000 | CP25: 15000 | CQ25: 15000 | CR25: 15000 | CS25: 15000 | CT25: 15000 | CU25: 15000 | CV25: 15000 | CW25: 15000 | CX25: 15000 | CY25: 15000 | CZ25: 15000 | DA25: 15000 | DB25: 15000 | DC25: 15000 | DD25: 15000 | DE25: 15000 | DF25: 15000 | DG25: 15000 | DH25: 15000 | DI25: 15000 | DJ25: 15000 | DK25: 15000 | DL25: 15000 | DM25: 15000 | DN25: 15000 | DO25: 15000 | DP25: 15000 | DQ25: 15000 | DR25: 15000 | DS25: 15000 | DT25: 15000 | DU25: 15000 | DV25: 15000 | DW25: 15000 | DX25: 15000 | DY25: 15000 | DZ25: 15000 | EA25: 15000 | EB25: 15000 | EC25: 15000 | ED25: 15000 | EE25: 15000 | EF25: 15000 | EG25: 15000 | EH25: 15000 | EI25: =$F$25*EI9 -> 15000 | EJ25: 15000 | EK25: 15000 | EL25: 15000 | EM25: 15000 | EN25: 15000 | EO25: 15000 | EP25: 15000 | EQ25: 15000 | ER25: 15000 | ES25: 15000 | ET25: 15000 | EU25: 15000 | EV25: 15000 | EW25: 15000 | EX25: 15000 | EY25: 15000 | EZ25: 15000 | FA25: 15000 | FB25: 15000 | FC25: 15000 | FD25: 15000 | FE25: 15000 | FF25: 15000 | FG25: 15000 | FH25: 15000 | FI25: 15000 | FJ25: 15000 | FK25: 15000 | FL25: 15000 | FM25: 15000 | FN25: 15000 | FO25: 15000 | FP25: 15000 | FQ25: 15000 | FR25: 15000 | FS25: 15000 | FT25: 15000 | FU25: 15000 | FV25: 15000 | FW25: 15000 | FX25: 15000 | FY25: 15000 | FZ25: 15000 | GA25: 15000 | GB25: 15000 | GC25: 15000 | GD25: 15000 | GE25: 15000 | GF25: 15000 | GG25: 15000 | GH25: 15000 | GI25: 15000 | GJ25: 15000 | GK25: 15000 | GL25: 15000 | GM25: 15000 | GN25: 15000 | GO25: 15000 | GP25: 15000 | GQ25: 15000 | GR25: 15000 | GS25: 15000 | GT25: 15000 | GU25: =$F$25*GU9 -> 15000 | GV25: 15000 | GW25: 15000 | GX25: 15000 | GY25: 15000 | GZ25: 15000 | HA25: 15000 | HB25: 15000 | HC25: 15000 | HD25: 15000 | HE25: 15000 | HF25: 15000 | HG25: 15000 | HH25: 15000 | HI25: 15000 | HJ25: 15000 | HK25: 15000 | HL25: 15000 | HM25: 15000 | HN25: 15000 | HO25: 15000 | HP25: 15000 | HQ25: 15000 | HR25: 15000 | HS25: 15000 | HT25: 15000 | HU25: 15000 | HV25: 15000 | HW25: 15000 | HX25: 15000 | HY25: 15000 | HZ25: 15000 | IA25: 15000 | IB25: 15000 | IC25: 15000 | ID25: 15000 | IE25: 15000 | IF25: 15000 | IG25: 15000 | IH25: 15000 | II25: 15000 | IJ25: 15000 | IK25: 15000 | IL25: 15000 | IM25: 15000 | IN25: 15000 | IO25: 15000 | IP25: 15000 | IQ25: 15000 | IR25: 15000 | IS25: 15000 | IT25: 15000 | IU25: 15000 | IV25: 15000 | IW25: 15000 | IX25: 15000 | IY25: 15000 | IZ25: 15000 | JA25: 15000 | JB25: 15000 | JC25: 15000 | JD25: 15000 | JE25: 15000 | JF25: 15000 | JG25: =$F$25*JG9 -> 15000 | JH25: 15000 | JI25: 15000 | JJ25: 15000 | JK25: 15000 | JL25: 15000 | JM25: 15000 | JN25: 15000 | JO25: 15000 | JP25: 15000 | JQ25: 15000 | JR25: 15000 | JS25: 15000 | JT25: 15000 | JU25: 15000 | JV25: 15000 | JW25: 15000 | JX25: 15000 | JY25: 15000 | JZ25: 15000 | KA25: 15000 | KB25: 15000 | KC25: 15000 | KD25: 15000 | KE25: 15000 | KF25: 15000 | KG25: 15000 | KH25: 15000 | KI25: 15000 | KJ25: 15000 | KK25: 15000 | KL25: 15000 | KM25: 15000 | KN25: 15000 | KO25: 15000 | KP25: 15000 | KQ25: 15000 | KR25: 15000 | KS25: 15000 | KT25: 15000 | KU25: 15000 | KV25: 15000 | KW25: 15000 | KX25: 15000 | KY25: 15000 | KZ25: 15000 | LA25: 15000 | LB25: 15000 | LC25: 15000 | LD25: 15000 | LE25: 15000 | LF25: 15000 | LG25: 15000 | LH25: 15000 | LI25: 15000 | LJ25: 15000 | LK25: 15000 | LL25: 15000 | LM25: 15000 | LN25: 15000 | LO25: 15000 | LP25: 15000 | LQ25: 15000 | LR25: 15000 | LS25: =$F$25*LS9 -> 15000 | LT25: 15000 | LU25: 15000 | LV25: 15000 | LW25: 15000 | LX25: 15000 | LY25: 15000 | LZ25: 15000 | MA25: 15000 | MB25: 15000 | MC25: 15000 | MD25: 15000 | ME25: 15000 | MF25: 15000 | MG25: 15000 | MH25: 15000 | MI25: 15000 | MJ25: 15000 | MK25: 15000 | ML25: 15000 | MM25: 15000 | MN25: 15000 | MO25: 15000 | MP25: 15000 | MQ25: 15000 | MR25: 15000 | MS25: 15000 | MT25: 15000 | MU25: 15000 | MV25: 15000 | MW25: 15000 | MX25: 15000 | MY25: 15000 | MZ25: 15000 | NA25: 15000 | NB25: 15000 | NC25: 15000 | ND25: 15000 | NE25: 15000 | NF25: 15000 | NG25: 15000 | NH25: 15000 | NI25: 15000 | NJ25: 15000 | NK25: 15000 | NL25: 15000 | NM25: 15000 | NN25: 15000 | NO25: 15000 | NP25: 15000 | NQ25: 15000 | NR25: 15000 | NS25: 15000 | NT25: 15000 | NU25: 15000 | NV25: 15000 | NW25: 15000 | NX25: 15000 | NY25: 15000 | NZ25: 15000 | OA25: 15000 | OB25: 15000 | OC25: 15000 | OD25: 15000 | OE25: =$F$25*OE9 -> 15000 | OF25: 15000 | OG25: 15000 | OH25: 15000 | OI25: 15000 | OJ25: 15000 | OK25: 15000 | OL25: 15000 | OM25: 15000 | ON25: 15000 | OO25: 15000 | OP25: 15000 | OQ25: 15000 | OR25: 15000 | OS25: 15000 | OT25: 15000 | OU25: 15000 | OV25: 15000 | OW25: 15000 | OX25: 15000 | OY25: 15000 | OZ25: 15000 | PA25: 15000 | PB25: 15000 | PC25: 15000 | PD25: 15000 | PE25: 15000 | PF25: 15000 | PG25: 15000 | PH25: 15000 | PI25: 15000 | PJ25: 15000 | PK25: 15000 | PL25: 15000 | PM25: 15000 | PN25: 15000 | PO25: 15000 | PP25: 15000 | PQ25: 15000 | PR25: 15000 | PS25: 15000 | PT25: 15000 | PU25: 15000 | PV25: 15000 | PW25: 15000 | PX25: 15000 | PY25: 15000 | PZ25: 15000 | QA25: 15000 | QB25: 15000 | QC25: 15000 | QD25: 15000 | QE25: 15000 | QF25: 0 | QG25: 0 | QH25: 0 | QI25: 0 | QJ25: 0 | QK25: 0 | QL25: 0 | QM25: 0 | QN25: 0 | QO25: 0 | QP25: 0 | QQ25: =$F$25*QQ9 -> 0 | QR25: 0 | QS25: 0 | QT25: 0 | QU25: 0 | QV25: 0 | QW25: 0 | QX25: 0 | QY25: 0 | QZ25: 0 | RA25: 0 | RB25: 0 | RC25: 0 | RD25: 0 | RE25: 0 | RF25: 0 | RG25: 0 | RH25: 0 | RI25: 0 | RJ25: 0 | RK25: 0 | RL25: 0 | RM25: 0 | RN25: 0 | RO25: 0 | RP25: 0 | RQ25: 0 | RR25: 0 | RS25: 0 | RT25: 0 | RU25: 0 | RV25: 0 | RW25: 0 | RX25: 0 | RY25: 0 | RZ25: 0 | SA25: 0 | SB25: 0 | SC25: 0 | SD25: 0 | SE25: 0 | SF25: 0 | SG25: 0 | SH25: 0 | SI25: 0 | SJ25: 0 | SK25: 0 | SL25: 0 | SM25: 0 | SN25: 0 | SO25: 0
C26: Capacity of Plant | E26: kWac | F26: =InputC!F25 -> 12500 | J26: =$F$26*J9 -> 0 | K26: =$F$26*K9 -> 0 | L26: 0 | M26: 0 | N26: 0 | O26: 0 | P26: 0 | Q26: 0 | R26: 0 | S26: 0 | T26: 0 | U26: 0 | V26: 0 | W26: 0 | X26: 0 | Y26: 0 | Z26: 0 | AA26: 0 | AB26: 12500 | AC26: 12500 | AD26: 12500 | AE26: 12500 | AF26: 12500 | AG26: 12500 | AH26: 12500 | AI26: 12500 | AJ26: 12500 | AK26: 12500 | AL26: 12500 | AM26: 12500 | AN26: 12500 | AO26: 12500 | AP26: 12500 | AQ26: 12500 | AR26: 12500 | AS26: 12500 | AT26: 12500 | AU26: 12500 | AV26: 12500 | AW26: 12500 | AX26: 12500 | AY26: 12500 | AZ26: 12500 | BA26: 12500 | BB26: 12500 | BC26: 12500 | BD26: 12500 | BE26: 12500 | BF26: 12500 | BG26: 12500 | BH26: 12500 | BI26: 12500 | BJ26: 12500 | BK26: 12500 | BL26: 12500 | BM26: 12500 | BN26: 12500 | BO26: 12500 | BP26: 12500 | BQ26: 12500 | BR26: 12500 | BS26: 12500 | BT26: 12500 | BU26: 12500 | BV26: 12500 | BW26: =$F$26*BW9 -> 12500 | BX26: 12500 | BY26: 12500 | BZ26: 12500 | CA26: 12500 | CB26: 12500 | CC26: 12500 | CD26: 12500 | CE26: 12500 | CF26: 12500 | CG26: 12500 | CH26: 12500 | CI26: 12500 | CJ26: 12500 | CK26: 12500 | CL26: 12500 | CM26: 12500 | CN26: 12500 | CO26: 12500 | CP26: 12500 | CQ26: 12500 | CR26: 12500 | CS26: 12500 | CT26: 12500 | CU26: 12500 | CV26: 12500 | CW26: 12500 | CX26: 12500 | CY26: 12500 | CZ26: 12500 | DA26: 12500 | DB26: 12500 | DC26: 12500 | DD26: 12500 | DE26: 12500 | DF26: 12500 | DG26: 12500 | DH26: 12500 | DI26: 12500 | DJ26: 12500 | DK26: 12500 | DL26: 12500 | DM26: 12500 | DN26: 12500 | DO26: 12500 | DP26: 12500 | DQ26: 12500 | DR26: 12500 | DS26: 12500 | DT26: 12500 | DU26: 12500 | DV26: 12500 | DW26: 12500 | DX26: 12500 | DY26: 12500 | DZ26: 12500 | EA26: 12500 | EB26: 12500 | EC26: 12500 | ED26: 12500 | EE26: 12500 | EF26: 12500 | EG26: 12500 | EH26: 12500 | EI26: =$F$26*EI9 -> 12500 | EJ26: 12500 | EK26: 12500 | EL26: 12500 | EM26: 12500 | EN26: 12500 | EO26: 12500 | EP26: 12500 | EQ26: 12500 | ER26: 12500 | ES26: 12500 | ET26: 12500 | EU26: 12500 | EV26: 12500 | EW26: 12500 | EX26: 12500 | EY26: 12500 | EZ26: 12500 | FA26: 12500 | FB26: 12500 | FC26: 12500 | FD26: 12500 | FE26: 12500 | FF26: 12500 | FG26: 12500 | FH26: 12500 | FI26: 12500 | FJ26: 12500 | FK26: 12500 | FL26: 12500 | FM26: 12500 | FN26: 12500 | FO26: 12500 | FP26: 12500 | FQ26: 12500 | FR26: 12500 | FS26: 12500 | FT26: 12500 | FU26: 12500 | FV26: 12500 | FW26: 12500 | FX26: 12500 | FY26: 12500 | FZ26: 12500 | GA26: 12500 | GB26: 12500 | GC26: 12500 | GD26: 12500 | GE26: 12500 | GF26: 12500 | GG26: 12500 | GH26: 12500 | GI26: 12500 | GJ26: 12500 | GK26: 12500 | GL26: 12500 | GM26: 12500 | GN26: 12500 | GO26: 12500 | GP26: 12500 | GQ26: 12500 | GR26: 12500 | GS26: 12500 | GT26: 12500 | GU26: =$F$26*GU9 -> 12500 | GV26: 12500 | GW26: 12500 | GX26: 12500 | GY26: 12500 | GZ26: 12500 | HA26: 12500 | HB26: 12500 | HC26: 12500 | HD26: 12500 | HE26: 12500 | HF26: 12500 | HG26: 12500 | HH26: 12500 | HI26: 12500 | HJ26: 12500 | HK26: 12500 | HL26: 12500 | HM26: 12500 | HN26: 12500 | HO26: 12500 | HP26: 12500 | HQ26: 12500 | HR26: 12500 | HS26: 12500 | HT26: 12500 | HU26: 12500 | HV26: 12500 | HW26: 12500 | HX26: 12500 | HY26: 12500 | HZ26: 12500 | IA26: 12500 | IB26: 12500 | IC26: 12500 | ID26: 12500 | IE26: 12500 | IF26: 12500 | IG26: 12500 | IH26: 12500 | II26: 12500 | IJ26: 12500 | IK26: 12500 | IL26: 12500 | IM26: 12500 | IN26: 12500 | IO26: 12500 | IP26: 12500 | IQ26: 12500 | IR26: 12500 | IS26: 12500 | IT26: 12500 | IU26: 12500 | IV26: 12500 | IW26: 12500 | IX26: 12500 | IY26: 12500 | IZ26: 12500 | JA26: 12500 | JB26: 12500 | JC26: 12500 | JD26: 12500 | JE26: 12500 | JF26: 12500 | JG26: =$F$26*JG9 -> 12500 | JH26: 12500 | JI26: 12500 | JJ26: 12500 | JK26: 12500 | JL26: 12500 | JM26: 12500 | JN26: 12500 | JO26: 12500 | JP26: 12500 | JQ26: 12500 | JR26: 12500 | JS26: 12500 | JT26: 12500 | JU26: 12500 | JV26: 12500 | JW26: 12500 | JX26: 12500 | JY26: 12500 | JZ26: 12500 | KA26: 12500 | KB26: 12500 | KC26: 12500 | KD26: 12500 | KE26: 12500 | KF26: 12500 | KG26: 12500 | KH26: 12500 | KI26: 12500 | KJ26: 12500 | KK26: 12500 | KL26: 12500 | KM26: 12500 | KN26: 12500 | KO26: 12500 | KP26: 12500 | KQ26: 12500 | KR26: 12500 | KS26: 12500 | KT26: 12500 | KU26: 12500 | KV26: 12500 | KW26: 12500 | KX26: 12500 | KY26: 12500 | KZ26: 12500 | LA26: 12500 | LB26: 12500 | LC26: 12500 | LD26: 12500 | LE26: 12500 | LF26: 12500 | LG26: 12500 | LH26: 12500 | LI26: 12500 | LJ26: 12500 | LK26: 12500 | LL26: 12500 | LM26: 12500 | LN26: 12500 | LO26: 12500 | LP26: 12500 | LQ26: 12500 | LR26: 12500 | LS26: =$F$26*LS9 -> 12500 | LT26: 12500 | LU26: 12500 | LV26: 12500 | LW26: 12500 | LX26: 12500 | LY26: 12500 | LZ26: 12500 | MA26: 12500 | MB26: 12500 | MC26: 12500 | MD26: 12500 | ME26: 12500 | MF26: 12500 | MG26: 12500 | MH26: 12500 | MI26: 12500 | MJ26: 12500 | MK26: 12500 | ML26: 12500 | MM26: 12500 | MN26: 12500 | MO26: 12500 | MP26: 12500 | MQ26: 12500 | MR26: 12500 | MS26: 12500 | MT26: 12500 | MU26: 12500 | MV26: 12500 | MW26: 12500 | MX26: 12500 | MY26: 12500 | MZ26: 12500 | NA26: 12500 | NB26: 12500 | NC26: 12500 | ND26: 12500 | NE26: 12500 | NF26: 12500 | NG26: 12500 | NH26: 12500 | NI26: 12500 | NJ26: 12500 | NK26: 12500 | NL26: 12500 | NM26: 12500 | NN26: 12500 | NO26: 12500 | NP26: 12500 | NQ26: 12500 | NR26: 12500 | NS26: 12500 | NT26: 12500 | NU26: 12500 | NV26: 12500 | NW26: 12500 | NX26: 12500 | NY26: 12500 | NZ26: 12500 | OA26: 12500 | OB26: 12500 | OC26: 12500 | OD26: 12500 | OE26: =$F$26*OE9 -> 12500 | OF26: 12500 | OG26: 12500 | OH26: 12500 | OI26: 12500 | OJ26: 12500 | OK26: 12500 | OL26: 12500 | OM26: 12500 | ON26: 12500 | OO26: 12500 | OP26: 12500 | OQ26: 12500 | OR26: 12500 | OS26: 12500 | OT26: 12500 | OU26: 12500 | OV26: 12500 | OW26: 12500 | OX26: 12500 | OY26: 12500 | OZ26: 12500 | PA26: 12500 | PB26: 12500 | PC26: 12500 | PD26: 12500 | PE26: 12500 | PF26: 12500 | PG26: 12500 | PH26: 12500 | PI26: 12500 | PJ26: 12500 | PK26: 12500 | PL26: 12500 | PM26: 12500 | PN26: 12500 | PO26: 12500 | PP26: 12500 | PQ26: 12500 | PR26: 12500 | PS26: 12500 | PT26: 12500 | PU26: 12500 | PV26: 12500 | PW26: 12500 | PX26: 12500 | PY26: 12500 | PZ26: 12500 | QA26: 12500 | QB26: 12500 | QC26: 12500 | QD26: 12500 | QE26: 12500 | QF26: 0 | QG26: 0 | QH26: 0 | QI26: 0 | QJ26: 0 | QK26: 0 | QL26: 0 | QM26: 0 | QN26: 0 | QO26: 0 | QP26: 0 | QQ26: =$F$26*QQ9 -> 0 | QR26: 0 | QS26: 0 | QT26: 0 | QU26: 0 | QV26: 0 | QW26: 0 | QX26: 0 | QY26: 0 | QZ26: 0 | RA26: 0 | RB26: 0 | RC26: 0 | RD26: 0 | RE26: 0 | RF26: 0 | RG26: 0 | RH26: 0 | RI26: 0 | RJ26: 0 | RK26: 0 | RL26: 0 | RM26: 0 | RN26: 0 | RO26: 0 | RP26: 0 | RQ26: 0 | RR26: 0 | RS26: 0 | RT26: 0 | RU26: 0 | RV26: 0 | RW26: 0 | RX26: 0 | RY26: 0 | RZ26: 0 | SA26: 0 | SB26: 0 | SC26: 0 | SD26: 0 | SE26: 0 | SF26: 0 | SG26: 0 | SH26: 0 | SI26: 0 | SJ26: 0 | SK26: 0 | SL26: 0 | SM26: 0 | SN26: 0 | SO26: 0
C27: Yield P50 - Annual | E27: kWh/kWp | F27: =InputC!F30 -> 1748.45 | J27: =$F$27*J9 -> 0 | K27: =$F$27*K9 -> 0 | L27: 0 | M27: 0 | N27: 0 | O27: 0 | P27: 0 | Q27: 0 | R27: 0 | S27: 0 | T27: 0 | U27: 0 | V27: 0 | W27: 0 | X27: 0 | Y27: 0 | Z27: 0 | AA27: 0 | AB27: 1748.45 | AC27: 1748.45 | AD27: 1748.45 | AE27: 1748.45 | AF27: 1748.45 | AG27: 1748.45 | AH27: 1748.45 | AI27: 1748.45 | AJ27: 1748.45 | AK27: 1748.45 | AL27: 1748.45 | AM27: 1748.45 | AN27: 1748.45 | AO27: 1748.45 | AP27: 1748.45 | AQ27: 1748.45 | AR27: 1748.45 | AS27: 1748.45 | AT27: 1748.45 | AU27: 1748.45 | AV27: 1748.45 | AW27: 1748.45 | AX27: 1748.45 | AY27: 1748.45 | AZ27: 1748.45 | BA27: 1748.45 | BB27: 1748.45 | BC27: 1748.45 | BD27: 1748.45 | BE27: 1748.45 | BF27: 1748.45 | BG27: 1748.45 | BH27: 1748.45 | BI27: 1748.45 | BJ27: 1748.45 | BK27: 1748.45 | BL27: 1748.45 | BM27: 1748.45 | BN27: 1748.45 | BO27: 1748.45 | BP27: 1748.45 | BQ27: 1748.45 | BR27: 1748.45 | BS27: 1748.45 | BT27: 1748.45 | BU27: 1748.45 | BV27: 1748.45 | BW27: =$F$27*BW9 -> 1748.45 | BX27: 1748.45 | BY27: 1748.45 | BZ27: 1748.45 | CA27: 1748.45 | CB27: 1748.45 | CC27: 1748.45 | CD27: 1748.45 | CE27: 1748.45 | CF27: 1748.45 | CG27: 1748.45 | CH27: 1748.45 | CI27: 1748.45 | CJ27: 1748.45 | CK27: 1748.45 | CL27: 1748.45 | CM27: 1748.45 | CN27: 1748.45 | CO27: 1748.45 | CP27: 1748.45 | CQ27: 1748.45 | CR27: 1748.45 | CS27: 1748.45 | CT27: 1748.45 | CU27: 1748.45 | CV27: 1748.45 | CW27: 1748.45 | CX27: 1748.45 | CY27: 1748.45 | CZ27: 1748.45 | DA27: 1748.45 | DB27: 1748.45 | DC27: 1748.45 | DD27: 1748.45 | DE27: 1748.45 | DF27: 1748.45 | DG27: 1748.45 | DH27: 1748.45 | DI27: 1748.45 | DJ27: 1748.45 | DK27: 1748.45 | DL27: 1748.45 | DM27: 1748.45 | DN27: 1748.45 | DO27: 1748.45 | DP27: 1748.45 | DQ27: 1748.45 | DR27: 1748.45 | DS27: 1748.45 | DT27: 1748.45 | DU27: 1748.45 | DV27: 1748.45 | DW27: 1748.45 | DX27: 1748.45 | DY27: 1748.45 | DZ27: 1748.45 | EA27: 1748.45 | EB27: 1748.45 | EC27: 1748.45 | ED27: 1748.45 | EE27: 1748.45 | EF27: 1748.45 | EG27: 1748.45 | EH27: 1748.45 | EI27: =$F$27*EI9 -> 1748.45 | EJ27: 1748.45 | EK27: 1748.45 | EL27: 1748.45 | EM27: 1748.45 | EN27: 1748.45 | EO27: 1748.45 | EP27: 1748.45 | EQ27: 1748.45 | ER27: 1748.45 | ES27: 1748.45 | ET27: 1748.45 | EU27: 1748.45 | EV27: 1748.45 | EW27: 1748.45 | EX27: 1748.45 | EY27: 1748.45 | EZ27: 1748.45 | FA27: 1748.45 | FB27: 1748.45 | FC27: 1748.45 | FD27: 1748.45 | FE27: 1748.45 | FF27: 1748.45 | FG27: 1748.45 | FH27: 1748.45 | FI27: 1748.45 | FJ27: 1748.45 | FK27: 1748.45 | FL27: 1748.45 | FM27: 1748.45 | FN27: 1748.45 | FO27: 1748.45 | FP27: 1748.45 | FQ27: 1748.45 | FR27: 1748.45 | FS27: 1748.45 | FT27: 1748.45 | FU27: 1748.45 | FV27: 1748.45 | FW27: 1748.45 | FX27: 1748.45 | FY27: 1748.45 | FZ27: 1748.45 | GA27: 1748.45 | GB27: 1748.45 | GC27: 1748.45 | GD27: 1748.45 | GE27: 1748.45 | GF27: 1748.45 | GG27: 1748.45 | GH27: 1748.45 | GI27: 1748.45 | GJ27: 1748.45 | GK27: 1748.45 | GL27: 1748.45 | GM27: 1748.45 | GN27: 1748.45 | GO27: 1748.45 | GP27: 1748.45 | GQ27: 1748.45 | GR27: 1748.45 | GS27: 1748.45 | GT27: 1748.45 | GU27: =$F$27*GU9 -> 1748.45 | GV27: 1748.45 | GW27: 1748.45 | GX27: 1748.45 | GY27: 1748.45 | GZ27: 1748.45 | HA27: 1748.45 | HB27: 1748.45 | HC27: 1748.45 | HD27: 1748.45 | HE27: 1748.45 | HF27: 1748.45 | HG27: 1748.45 | HH27: 1748.45 | HI27: 1748.45 | HJ27: 1748.45 | HK27: 1748.45 | HL27: 1748.45 | HM27: 1748.45 | HN27: 1748.45 | HO27: 1748.45 | HP27: 1748.45 | HQ27: 1748.45 | HR27: 1748.45 | HS27: 1748.45 | HT27: 1748.45 | HU27: 1748.45 | HV27: 1748.45 | HW27: 1748.45 | HX27: 1748.45 | HY27: 1748.45 | HZ27: 1748.45 | IA27: 1748.45 | IB27: 1748.45 | IC27: 1748.45 | ID27: 1748.45 | IE27: 1748.45 | IF27: 1748.45 | IG27: 1748.45 | IH27: 1748.45 | II27: 1748.45 | IJ27: 1748.45 | IK27: 1748.45 | IL27: 1748.45 | IM27: 1748.45 | IN27: 1748.45 | IO27: 1748.45 | IP27: 1748.45 | IQ27: 1748.45 | IR27: 1748.45 | IS27: 1748.45 | IT27: 1748.45 | IU27: 1748.45 | IV27: 1748.45 | IW27: 1748.45 | IX27: 1748.45 | IY27: 1748.45 | IZ27: 1748.45 | JA27: 1748.45 | JB27: 1748.45 | JC27: 1748.45 | JD27: 1748.45 | JE27: 1748.45 | JF27: 1748.45 | JG27: =$F$27*JG9 -> 1748.45 | JH27: 1748.45 | JI27: 1748.45 | JJ27: 1748.45 | JK27: 1748.45 | JL27: 1748.45 | JM27: 1748.45 | JN27: 1748.45 | JO27: 1748.45 | JP27: 1748.45 | JQ27: 1748.45 | JR27: 1748.45 | JS27: 1748.45 | JT27: 1748.45 | JU27: 1748.45 | JV27: 1748.45 | JW27: 1748.45 | JX27: 1748.45 | JY27: 1748.45 | JZ27: 1748.45 | KA27: 1748.45 | KB27: 1748.45 | KC27: 1748.45 | KD27: 1748.45 | KE27: 1748.45 | KF27: 1748.45 | KG27: 1748.45 | KH27: 1748.45 | KI27: 1748.45 | KJ27: 1748.45 | KK27: 1748.45 | KL27: 1748.45 | KM27: 1748.45 | KN27: 1748.45 | KO27: 1748.45 | KP27: 1748.45 | KQ27: 1748.45 | KR27: 1748.45 | KS27: 1748.45 | KT27: 1748.45 | KU27: 1748.45 | KV27: 1748.45 | KW27: 1748.45 | KX27: 1748.45 | KY27: 1748.45 | KZ27: 1748.45 | LA27: 1748.45 | LB27: 1748.45 | LC27: 1748.45 | LD27: 1748.45 | LE27: 1748.45 | LF27: 1748.45 | LG27: 1748.45 | LH27: 1748.45 | LI27: 1748.45 | LJ27: 1748.45 | LK27: 1748.45 | LL27: 1748.45 | LM27: 1748.45 | LN27: 1748.45 | LO27: 1748.45 | LP27: 1748.45 | LQ27: 1748.45 | LR27: 1748.45 | LS27: =$F$27*LS9 -> 1748.45 | LT27: 1748.45 | LU27: 1748.45 | LV27: 1748.45 | LW27: 1748.45 | LX27: 1748.45 | LY27: 1748.45 | LZ27: 1748.45 | MA27: 1748.45 | MB27: 1748.45 | MC27: 1748.45 | MD27: 1748.45 | ME27: 1748.45 | MF27: 1748.45 | MG27: 1748.45 | MH27: 1748.45 | MI27: 1748.45 | MJ27: 1748.45 | MK27: 1748.45 | ML27: 1748.45 | MM27: 1748.45 | MN27: 1748.45 | MO27: 1748.45 | MP27: 1748.45 | MQ27: 1748.45 | MR27: 1748.45 | MS27: 1748.45 | MT27: 1748.45 | MU27: 1748.45 | MV27: 1748.45 | MW27: 1748.45 | MX27: 1748.45 | MY27: 1748.45 | MZ27: 1748.45 | NA27: 1748.45 | NB27: 1748.45 | NC27: 1748.45 | ND27: 1748.45 | NE27: 1748.45 | NF27: 1748.45 | NG27: 1748.45 | NH27: 1748.45 | NI27: 1748.45 | NJ27: 1748.45 | NK27: 1748.45 | NL27: 1748.45 | NM27: 1748.45 | NN27: 1748.45 | NO27: 1748.45 | NP27: 1748.45 | NQ27: 1748.45 | NR27: 1748.45 | NS27: 1748.45 | NT27: 1748.45 | NU27: 1748.45 | NV27: 1748.45 | NW27: 1748.45 | NX27: 1748.45 | NY27: 1748.45 | NZ27: 1748.45 | OA27: 1748.45 | OB27: 1748.45 | OC27: 1748.45 | OD27: 1748.45 | OE27: =$F$27*OE9 -> 1748.45 | OF27: 1748.45 | OG27: 1748.45 | OH27: 1748.45 | OI27: 1748.45 | OJ27: 1748.45 | OK27: 1748.45 | OL27: 1748.45 | OM27: 1748.45 | ON27: 1748.45 | OO27: 1748.45 | OP27: 1748.45 | OQ27: 1748.45 | OR27: 1748.45 | OS27: 1748.45 | OT27: 1748.45 | OU27: 1748.45 | OV27: 1748.45 | OW27: 1748.45 | OX27: 1748.45 | OY27: 1748.45 | OZ27: 1748.45 | PA27: 1748.45 | PB27: 1748.45 | PC27: 1748.45 | PD27: 1748.45 | PE27: 1748.45 | PF27: 1748.45 | PG27: 1748.45 | PH27: 1748.45 | PI27: 1748.45 | PJ27: 1748.45 | PK27: 1748.45 | PL27: 1748.45 | PM27: 1748.45 | PN27: 1748.45 | PO27: 1748.45 | PP27: 1748.45 | PQ27: 1748.45 | PR27: 1748.45 | PS27: 1748.45 | PT27: 1748.45 | PU27: 1748.45 | PV27: 1748.45 | PW27: 1748.45 | PX27: 1748.45 | PY27: 1748.45 | PZ27: 1748.45 | QA27: 1748.45 | QB27: 1748.45 | QC27: 1748.45 | QD27: 1748.45 | QE27: 1748.45 | QF27: 0 | QG27: 0 | QH27: 0 | QI27: 0 | QJ27: 0 | QK27: 0 | QL27: 0 | QM27: 0 | QN27: 0 | QO27: 0 | QP27: 0 | QQ27: =$F$27*QQ9 -> 0 | QR27: 0 | QS27: 0 | QT27: 0 | QU27: 0 | QV27: 0 | QW27: 0 | QX27: 0 | QY27: 0 | QZ27: 0 | RA27: 0 | RB27: 0 | RC27: 0 | RD27: 0 | RE27: 0 | RF27: 0 | RG27: 0 | RH27: 0 | RI27: 0 | RJ27: 0 | RK27: 0 | RL27: 0 | RM27: 0 | RN27: 0 | RO27: 0 | RP27: 0 | RQ27: 0 | RR27: 0 | RS27: 0 | RT27: 0 | RU27: 0 | RV27: 0 | RW27: 0 | RX27: 0 | RY27: 0 | RZ27: 0 | SA27: 0 | SB27: 0 | SC27: 0 | SD27: 0 | SE27: 0 | SF27: 0 | SG27: 0 | SH27: 0 | SI27: 0 | SJ27: 0 | SK27: 0 | SL27: 0 | SM27: 0 | SN27: 0 | SO27: 0
C28: Seasonal Factor | E28: % | J28: =LOOKUP(J10,InputS!6:6,InputS!13:13) -> 0.1 | K28: =LOOKUP(K10,InputS!6:6,InputS!13:13) -> 0.095 | L28: =LOOKUP(L10,InputS!6:6,InputS!13:13) -> 0.095 | M28: =LOOKUP(M10,InputS!6:6,InputS!13:13) -> 0.08 | N28: =LOOKUP(N10,InputS!6:6,InputS!13:13) -> 0.07 | O28: =LOOKUP(O10,InputS!6:6,InputS!13:13) -> 0.06 | P28: =LOOKUP(P10,InputS!6:6,InputS!13:13) -> 0.06 | Q28: =LOOKUP(Q10,InputS!6:6,InputS!13:13) -> 0.07 | R28: =LOOKUP(R10,InputS!6:6,InputS!13:13) -> 0.085 | S28: =LOOKUP(S10,InputS!6:6,InputS!13:13) -> 0.085 | T28: =LOOKUP(T10,InputS!6:6,InputS!13:13) -> 0.1 | U28: =LOOKUP(U10,InputS!6:6,InputS!13:13) -> 0.1 | V28: =LOOKUP(V10,InputS!6:6,InputS!13:13) -> 0.1 | W28: =LOOKUP(W10,InputS!6:6,InputS!13:13) -> 0.095 | X28: =LOOKUP(X10,InputS!6:6,InputS!13:13) -> 0.095 | Y28: =LOOKUP(Y10,InputS!6:6,InputS!13:13) -> 0.08 | Z28: =LOOKUP(Z10,InputS!6:6,InputS!13:13) -> 0.07 | AA28: =LOOKUP(AA10,InputS!6:6,InputS!13:13) -> 0.06 | AB28: =LOOKUP(AB10,InputS!6:6,InputS!13:13) -> 0.06 | AC28: =LOOKUP(AC10,InputS!6:6,InputS!13:13) -> 0.07 | AD28: =LOOKUP(AD10,InputS!6:6,InputS!13:13) -> 0.085 | AE28: =LOOKUP(AE10,InputS!6:6,InputS!13:13) -> 0.085 | AF28: =LOOKUP(AF10,InputS!6:6,InputS!13:13) -> 0.1 | AG28: =LOOKUP(AG10,InputS!6:6,InputS!13:13) -> 0.1 | AH28: =LOOKUP(AH10,InputS!6:6,InputS!13:13) -> 0.1 | AI28: =LOOKUP(AI10,InputS!6:6,InputS!13:13) -> 0.095 | AJ28: =LOOKUP(AJ10,InputS!6:6,InputS!13:13) -> 0.095 | AK28: =LOOKUP(AK10,InputS!6:6,InputS!13:13) -> 0.08 | AL28: =LOOKUP(AL10,InputS!6:6,InputS!13:13) -> 0.07 | AM28: =LOOKUP(AM10,InputS!6:6,InputS!13:13) -> 0.06 | AN28: =LOOKUP(AN10,InputS!6:6,InputS!13:13) -> 0.06 | AO28: =LOOKUP(AO10,InputS!6:6,InputS!13:13) -> 0.07 | AP28: =LOOKUP(AP10,InputS!6:6,InputS!13:13) -> 0.085 | AQ28: =LOOKUP(AQ10,InputS!6:6,InputS!13:13) -> 0.085 | AR28: =LOOKUP(AR10,InputS!6:6,InputS!13:13) -> 0.1 | AS28: =LOOKUP(AS10,InputS!6:6,InputS!13:13) -> 0.1 | AT28: =LOOKUP(AT10,InputS!6:6,InputS!13:13) -> 0.1 | AU28: =LOOKUP(AU10,InputS!6:6,InputS!13:13) -> 0.095 | AV28: =LOOKUP(AV10,InputS!6:6,InputS!13:13) -> 0.095 | AW28: =LOOKUP(AW10,InputS!6:6,InputS!13:13) -> 0.08 | AX28: =LOOKUP(AX10,InputS!6:6,InputS!13:13) -> 0.07 | AY28: =LOOKUP(AY10,InputS!6:6,InputS!13:13) -> 0.06 | AZ28: =LOOKUP(AZ10,InputS!6:6,InputS!13:13) -> 0.06 | BA28: =LOOKUP(BA10,InputS!6:6,InputS!13:13) -> 0.07 | BB28: =LOOKUP(BB10,InputS!6:6,InputS!13:13) -> 0.085 | BC28: =LOOKUP(BC10,InputS!6:6,InputS!13:13) -> 0.085 | BD28: =LOOKUP(BD10,InputS!6:6,InputS!13:13) -> 0.1 | BE28: =LOOKUP(BE10,InputS!6:6,InputS!13:13) -> 0.1 | BF28: =LOOKUP(BF10,InputS!6:6,InputS!13:13) -> 0.1 | BG28: =LOOKUP(BG10,InputS!6:6,InputS!13:13) -> 0.095 | BH28: =LOOKUP(BH10,InputS!6:6,InputS!13:13) -> 0.095 | BI28: =LOOKUP(BI10,InputS!6:6,InputS!13:13) -> 0.08 | BJ28: =LOOKUP(BJ10,InputS!6:6,InputS!13:13) -> 0.07 | BK28: =LOOKUP(BK10,InputS!6:6,InputS!13:13) -> 0.06 | BL28: =LOOKUP(BL10,InputS!6:6,InputS!13:13) -> 0.06 | BM28: =LOOKUP(BM10,InputS!6:6,InputS!13:13) -> 0.07 | BN28: =LOOKUP(BN10,InputS!6:6,InputS!13:13) -> 0.085 | BO28: =LOOKUP(BO10,InputS!6:6,InputS!13:13) -> 0.085 | BP28: =LOOKUP(BP10,InputS!6:6,InputS!13:13) -> 0.1 | BQ28: =LOOKUP(BQ10,InputS!6:6,InputS!13:13) -> 0.1 | BR28: =LOOKUP(BR10,InputS!6:6,InputS!13:13) -> 0.1 | BS28: =LOOKUP(BS10,InputS!6:6,InputS!13:13) -> 0.095 | BT28: =LOOKUP(BT10,InputS!6:6,InputS!13:13) -> 0.095 | BU28: =LOOKUP(BU10,InputS!6:6,InputS!13:13) -> 0.08 | BV28: =LOOKUP(BV10,InputS!6:6,InputS!13:13) -> 0.07 | BW28: =LOOKUP(BW10,InputS!6:6,InputS!13:13) -> 0.06 | BX28: =LOOKUP(BX10,InputS!6:6,InputS!13:13) -> 0.06 | BY28: =LOOKUP(BY10,InputS!6:6,InputS!13:13) -> 0.07 | BZ28: =LOOKUP(BZ10,InputS!6:6,InputS!13:13) -> 0.085 | CA28: =LOOKUP(CA10,InputS!6:6,InputS!13:13) -> 0.085 | CB28: =LOOKUP(CB10,InputS!6:6,InputS!13:13) -> 0.1 | CC28: =LOOKUP(CC10,InputS!6:6,InputS!13:13) -> 0.1 | CD28: =LOOKUP(CD10,InputS!6:6,InputS!13:13) -> 0.1 | CE28: =LOOKUP(CE10,InputS!6:6,InputS!13:13) -> 0.095 | CF28: =LOOKUP(CF10,InputS!6:6,InputS!13:13) -> 0.095 | CG28: =LOOKUP(CG10,InputS!6:6,InputS!13:13) -> 0.08 | CH28: =LOOKUP(CH10,InputS!6:6,InputS!13:13) -> 0.07 | CI28: =LOOKUP(CI10,InputS!6:6,InputS!13:13) -> 0.06 | CJ28: =LOOKUP(CJ10,InputS!6:6,InputS!13:13) -> 0.06 | CK28: =LOOKUP(CK10,InputS!6:6,InputS!13:13) -> 0.07 | CL28: =LOOKUP(CL10,InputS!6:6,InputS!13:13) -> 0.085 | CM28: =LOOKUP(CM10,InputS!6:6,InputS!13:13) -> 0.085 | CN28: =LOOKUP(CN10,InputS!6:6,InputS!13:13) -> 0.1 | CO28: =LOOKUP(CO10,InputS!6:6,InputS!13:13) -> 0.1 | CP28: =LOOKUP(CP10,InputS!6:6,InputS!13:13) -> 0.1 | CQ28: =LOOKUP(CQ10,InputS!6:6,InputS!13:13) -> 0.095 | CR28: =LOOKUP(CR10,InputS!6:6,InputS!13:13) -> 0.095 | CS28: =LOOKUP(CS10,InputS!6:6,InputS!13:13) -> 0.08 | CT28: =LOOKUP(CT10,InputS!6:6,InputS!13:13) -> 0.07 | CU28: =LOOKUP(CU10,InputS!6:6,InputS!13:13) -> 0.06 | CV28: =LOOKUP(CV10,InputS!6:6,InputS!13:13) -> 0.06 | CW28: =LOOKUP(CW10,InputS!6:6,InputS!13:13) -> 0.07 | CX28: =LOOKUP(CX10,InputS!6:6,InputS!13:13) -> 0.085 | CY28: =LOOKUP(CY10,InputS!6:6,InputS!13:13) -> 0.085 | CZ28: =LOOKUP(CZ10,InputS!6:6,InputS!13:13) -> 0.1 | DA28: =LOOKUP(DA10,InputS!6:6,InputS!13:13) -> 0.1 | DB28: =LOOKUP(DB10,InputS!6:6,InputS!13:13) -> 0.1 | DC28: =LOOKUP(DC10,InputS!6:6,InputS!13:13) -> 0.095 | DD28: =LOOKUP(DD10,InputS!6:6,InputS!13:13) -> 0.095 | DE28: =LOOKUP(DE10,InputS!6:6,InputS!13:13) -> 0.08 | DF28: =LOOKUP(DF10,InputS!6:6,InputS!13:13) -> 0.07 | DG28: =LOOKUP(DG10,InputS!6:6,InputS!13:13) -> 0.06 | DH28: =LOOKUP(DH10,InputS!6:6,InputS!13:13) -> 0.06 | DI28: =LOOKUP(DI10,InputS!6:6,InputS!13:13) -> 0.07 | DJ28: =LOOKUP(DJ10,InputS!6:6,InputS!13:13) -> 0.085 | DK28: =LOOKUP(DK10,InputS!6:6,InputS!13:13) -> 0.085 | DL28: =LOOKUP(DL10,InputS!6:6,InputS!13:13) -> 0.1 | DM28: =LOOKUP(DM10,InputS!6:6,InputS!13:13) -> 0.1 | DN28: =LOOKUP(DN10,InputS!6:6,InputS!13:13) -> 0.1 | DO28: =LOOKUP(DO10,InputS!6:6,InputS!13:13) -> 0.095 | DP28: =LOOKUP(DP10,InputS!6:6,InputS!13:13) -> 0.095 | DQ28: =LOOKUP(DQ10,InputS!6:6,InputS!13:13) -> 0.08 | DR28: =LOOKUP(DR10,InputS!6:6,InputS!13:13) -> 0.07 | DS28: =LOOKUP(DS10,InputS!6:6,InputS!13:13) -> 0.06 | DT28: =LOOKUP(DT10,InputS!6:6,InputS!13:13) -> 0.06 | DU28: =LOOKUP(DU10,InputS!6:6,InputS!13:13) -> 0.07 | DV28: =LOOKUP(DV10,InputS!6:6,InputS!13:13) -> 0.085 | DW28: =LOOKUP(DW10,InputS!6:6,InputS!13:13) -> 0.085 | DX28: =LOOKUP(DX10,InputS!6:6,InputS!13:13) -> 0.1 | DY28: =LOOKUP(DY10,InputS!6:6,InputS!13:13) -> 0.1 | DZ28: =LOOKUP(DZ10,InputS!6:6,InputS!13:13) -> 0.1 | EA28: =LOOKUP(EA10,InputS!6:6,InputS!13:13) -> 0.095 | EB28: =LOOKUP(EB10,InputS!6:6,InputS!13:13) -> 0.095 | EC28: =LOOKUP(EC10,InputS!6:6,InputS!13:13) -> 0.08 | ED28: =LOOKUP(ED10,InputS!6:6,InputS!13:13) -> 0.07 | EE28: =LOOKUP(EE10,InputS!6:6,InputS!13:13) -> 0.06 | EF28: =LOOKUP(EF10,InputS!6:6,InputS!13:13) -> 0.06 | EG28: =LOOKUP(EG10,InputS!6:6,InputS!13:13) -> 0.07 | EH28: =LOOKUP(EH10,InputS!6:6,InputS!13:13) -> 0.085 | EI28: =LOOKUP(EI10,InputS!6:6,InputS!13:13) -> 0.085 | EJ28: =LOOKUP(EJ10,InputS!6:6,InputS!13:13) -> 0.1 | EK28: =LOOKUP(EK10,InputS!6:6,InputS!13:13) -> 0.1 | EL28: =LOOKUP(EL10,InputS!6:6,InputS!13:13) -> 0.1 | EM28: =LOOKUP(EM10,InputS!6:6,InputS!13:13) -> 0.095 | EN28: =LOOKUP(EN10,InputS!6:6,InputS!13:13) -> 0.095 | EO28: =LOOKUP(EO10,InputS!6:6,InputS!13:13) -> 0.08 | EP28: =LOOKUP(EP10,InputS!6:6,InputS!13:13) -> 0.07 | EQ28: =LOOKUP(EQ10,InputS!6:6,InputS!13:13) -> 0.06 | ER28: =LOOKUP(ER10,InputS!6:6,InputS!13:13) -> 0.06 | ES28: =LOOKUP(ES10,InputS!6:6,InputS!13:13) -> 0.07 | ET28: =LOOKUP(ET10,InputS!6:6,InputS!13:13) -> 0.085 | EU28: =LOOKUP(EU10,InputS!6:6,InputS!13:13) -> 0.085 | EV28: =LOOKUP(EV10,InputS!6:6,InputS!13:13) -> 0.1 | EW28: =LOOKUP(EW10,InputS!6:6,InputS!13:13) -> 0.1 | EX28: =LOOKUP(EX10,InputS!6:6,InputS!13:13) -> 0.1 | EY28: =LOOKUP(EY10,InputS!6:6,InputS!13:13) -> 0.095 | EZ28: =LOOKUP(EZ10,InputS!6:6,InputS!13:13) -> 0.095 | FA28: =LOOKUP(FA10,InputS!6:6,InputS!13:13) -> 0.08 | FB28: =LOOKUP(FB10,InputS!6:6,InputS!13:13) -> 0.07 | FC28: =LOOKUP(FC10,InputS!6:6,InputS!13:13) -> 0.06 | FD28: =LOOKUP(FD10,InputS!6:6,InputS!13:13) -> 0.06 | FE28: =LOOKUP(FE10,InputS!6:6,InputS!13:13) -> 0.07 | FF28: =LOOKUP(FF10,InputS!6:6,InputS!13:13) -> 0.085 | FG28: =LOOKUP(FG10,InputS!6:6,InputS!13:13) -> 0.085 | FH28: =LOOKUP(FH10,InputS!6:6,InputS!13:13) -> 0.1 | FI28: =LOOKUP(FI10,InputS!6:6,InputS!13:13) -> 0.1 | FJ28: =LOOKUP(FJ10,InputS!6:6,InputS!13:13) -> 0.1 | FK28: =LOOKUP(FK10,InputS!6:6,InputS!13:13) -> 0.095 | FL28: =LOOKUP(FL10,InputS!6:6,InputS!13:13) -> 0.095 | FM28: =LOOKUP(FM10,InputS!6:6,InputS!13:13) -> 0.08 | FN28: =LOOKUP(FN10,InputS!6:6,InputS!13:13) -> 0.07 | FO28: =LOOKUP(FO10,InputS!6:6,InputS!13:13) -> 0.06 | FP28: =LOOKUP(FP10,InputS!6:6,InputS!13:13) -> 0.06 | FQ28: =LOOKUP(FQ10,InputS!6:6,InputS!13:13) -> 0.07 | FR28: =LOOKUP(FR10,InputS!6:6,InputS!13:13) -> 0.085 | FS28: =LOOKUP(FS10,InputS!6:6,InputS!13:13) -> 0.085 | FT28: =LOOKUP(FT10,InputS!6:6,InputS!13:13) -> 0.1 | FU28: =LOOKUP(FU10,InputS!6:6,InputS!13:13) -> 0.1 | FV28: =LOOKUP(FV10,InputS!6:6,InputS!13:13) -> 0.1 | FW28: =LOOKUP(FW10,InputS!6:6,InputS!13:13) -> 0.095 | FX28: =LOOKUP(FX10,InputS!6:6,InputS!13:13) -> 0.095 | FY28: =LOOKUP(FY10,InputS!6:6,InputS!13:13) -> 0.08 | FZ28: =LOOKUP(FZ10,InputS!6:6,InputS!13:13) -> 0.07 | GA28: =LOOKUP(GA10,InputS!6:6,InputS!13:13) -> 0.06 | GB28: =LOOKUP(GB10,InputS!6:6,InputS!13:13) -> 0.06 | GC28: =LOOKUP(GC10,InputS!6:6,InputS!13:13) -> 0.07 | GD28: =LOOKUP(GD10,InputS!6:6,InputS!13:13) -> 0.085 | GE28: =LOOKUP(GE10,InputS!6:6,InputS!13:13) -> 0.085 | GF28: =LOOKUP(GF10,InputS!6:6,InputS!13:13) -> 0.1 | GG28: =LOOKUP(GG10,InputS!6:6,InputS!13:13) -> 0.1 | GH28: =LOOKUP(GH10,InputS!6:6,InputS!13:13) -> 0.1 | GI28: =LOOKUP(GI10,InputS!6:6,InputS!13:13) -> 0.095 | GJ28: =LOOKUP(GJ10,InputS!6:6,InputS!13:13) -> 0.095 | GK28: =LOOKUP(GK10,InputS!6:6,InputS!13:13) -> 0.08 | GL28: =LOOKUP(GL10,InputS!6:6,InputS!13:13) -> 0.07 | GM28: =LOOKUP(GM10,InputS!6:6,InputS!13:13) -> 0.06 | GN28: =LOOKUP(GN10,InputS!6:6,InputS!13:13) -> 0.06 | GO28: =LOOKUP(GO10,InputS!6:6,InputS!13:13) -> 0.07 | GP28: =LOOKUP(GP10,InputS!6:6,InputS!13:13) -> 0.085 | GQ28: =LOOKUP(GQ10,InputS!6:6,InputS!13:13) -> 0.085 | GR28: =LOOKUP(GR10,InputS!6:6,InputS!13:13) -> 0.1 | GS28: =LOOKUP(GS10,InputS!6:6,InputS!13:13) -> 0.1 | GT28: =LOOKUP(GT10,InputS!6:6,InputS!13:13) -> 0.1 | GU28: =LOOKUP(GU10,InputS!6:6,InputS!13:13) -> 0.095 | GV28: =LOOKUP(GV10,InputS!6:6,InputS!13:13) -> 0.095 | GW28: =LOOKUP(GW10,InputS!6:6,InputS!13:13) -> 0.08 | GX28: =LOOKUP(GX10,InputS!6:6,InputS!13:13) -> 0.07 | GY28: =LOOKUP(GY10,InputS!6:6,InputS!13:13) -> 0.06 | GZ28: =LOOKUP(GZ10,InputS!6:6,InputS!13:13) -> 0.06 | HA28: =LOOKUP(HA10,InputS!6:6,InputS!13:13) -> 0.07 | HB28: =LOOKUP(HB10,InputS!6:6,InputS!13:13) -> 0.085 | HC28: =LOOKUP(HC10,InputS!6:6,InputS!13:13) -> 0.085 | HD28: =LOOKUP(HD10,InputS!6:6,InputS!13:13) -> 0.1 | HE28: =LOOKUP(HE10,InputS!6:6,InputS!13:13) -> 0.1 | HF28: =LOOKUP(HF10,InputS!6:6,InputS!13:13) -> 0.1 | HG28: =LOOKUP(HG10,InputS!6:6,InputS!13:13) -> 0.095 | HH28: =LOOKUP(HH10,InputS!6:6,InputS!13:13) -> 0.095 | HI28: =LOOKUP(HI10,InputS!6:6,InputS!13:13) -> 0.08 | HJ28: =LOOKUP(HJ10,InputS!6:6,InputS!13:13) -> 0.07 | HK28: =LOOKUP(HK10,InputS!6:6,InputS!13:13) -> 0.06 | HL28: =LOOKUP(HL10,InputS!6:6,InputS!13:13) -> 0.06 | HM28: =LOOKUP(HM10,InputS!6:6,InputS!13:13) -> 0.07 | HN28: =LOOKUP(HN10,InputS!6:6,InputS!13:13) -> 0.085 | HO28: =LOOKUP(HO10,InputS!6:6,InputS!13:13) -> 0.085 | HP28: =LOOKUP(HP10,InputS!6:6,InputS!13:13) -> 0.1 | HQ28: =LOOKUP(HQ10,InputS!6:6,InputS!13:13) -> 0.1 | HR28: =LOOKUP(HR10,InputS!6:6,InputS!13:13) -> 0.1 | HS28: =LOOKUP(HS10,InputS!6:6,InputS!13:13) -> 0.095 | HT28: =LOOKUP(HT10,InputS!6:6,InputS!13:13) -> 0.095 | HU28: =LOOKUP(HU10,InputS!6:6,InputS!13:13) -> 0.08 | HV28: =LOOKUP(HV10,InputS!6:6,InputS!13:13) -> 0.07 | HW28: =LOOKUP(HW10,InputS!6:6,InputS!13:13) -> 0.06 | HX28: =LOOKUP(HX10,InputS!6:6,InputS!13:13) -> 0.06 | HY28: =LOOKUP(HY10,InputS!6:6,InputS!13:13) -> 0.07 | HZ28: =LOOKUP(HZ10,InputS!6:6,InputS!13:13) -> 0.085 | IA28: =LOOKUP(IA10,InputS!6:6,InputS!13:13) -> 0.085 | IB28: =LOOKUP(IB10,InputS!6:6,InputS!13:13) -> 0.1 | IC28: =LOOKUP(IC10,InputS!6:6,InputS!13:13) -> 0.1 | ID28: =LOOKUP(ID10,InputS!6:6,InputS!13:13) -> 0.1 | IE28: =LOOKUP(IE10,InputS!6:6,InputS!13:13) -> 0.095 | IF28: =LOOKUP(IF10,InputS!6:6,InputS!13:13) -> 0.095 | IG28: =LOOKUP(IG10,InputS!6:6,InputS!13:13) -> 0.08 | IH28: =LOOKUP(IH10,InputS!6:6,InputS!13:13) -> 0.07 | II28: =LOOKUP(II10,InputS!6:6,InputS!13:13) -> 0.06 | IJ28: =LOOKUP(IJ10,InputS!6:6,InputS!13:13) -> 0.06 | IK28: =LOOKUP(IK10,InputS!6:6,InputS!13:13) -> 0.07 | IL28: =LOOKUP(IL10,InputS!6:6,InputS!13:13) -> 0.085 | IM28: =LOOKUP(IM10,InputS!6:6,InputS!13:13) -> 0.085 | IN28: =LOOKUP(IN10,InputS!6:6,InputS!13:13) -> 0.1 | IO28: =LOOKUP(IO10,InputS!6:6,InputS!13:13) -> 0.1 | IP28: =LOOKUP(IP10,InputS!6:6,InputS!13:13) -> 0.1 | IQ28: =LOOKUP(IQ10,InputS!6:6,InputS!13:13) -> 0.095 | IR28: =LOOKUP(IR10,InputS!6:6,InputS!13:13) -> 0.095 | IS28: =LOOKUP(IS10,InputS!6:6,InputS!13:13) -> 0.08 | IT28: =LOOKUP(IT10,InputS!6:6,InputS!13:13) -> 0.07 | IU28: =LOOKUP(IU10,InputS!6:6,InputS!13:13) -> 0.06 | IV28: =LOOKUP(IV10,InputS!6:6,InputS!13:13) -> 0.06 | IW28: =LOOKUP(IW10,InputS!6:6,InputS!13:13) -> 0.07 | IX28: =LOOKUP(IX10,InputS!6:6,InputS!13:13) -> 0.085 | IY28: =LOOKUP(IY10,InputS!6:6,InputS!13:13) -> 0.085 | IZ28: =LOOKUP(IZ10,InputS!6:6,InputS!13:13) -> 0.1 | JA28: =LOOKUP(JA10,InputS!6:6,InputS!13:13) -> 0.1 | JB28: =LOOKUP(JB10,InputS!6:6,InputS!13:13) -> 0.1 | JC28: =LOOKUP(JC10,InputS!6:6,InputS!13:13) -> 0.095 | JD28: =LOOKUP(JD10,InputS!6:6,InputS!13:13) -> 0.095 | JE28: =LOOKUP(JE10,InputS!6:6,InputS!13:13) -> 0.08 | JF28: =LOOKUP(JF10,InputS!6:6,InputS!13:13) -> 0.07 | JG28: =LOOKUP(JG10,InputS!6:6,InputS!13:13) -> 0.06 | JH28: =LOOKUP(JH10,InputS!6:6,InputS!13:13) -> 0.06 | JI28: =LOOKUP(JI10,InputS!6:6,InputS!13:13) -> 0.07 | JJ28: =LOOKUP(JJ10,InputS!6:6,InputS!13:13) -> 0.085 | JK28: =LOOKUP(JK10,InputS!6:6,InputS!13:13) -> 0.085 | JL28: =LOOKUP(JL10,InputS!6:6,InputS!13:13) -> 0.1 | JM28: =LOOKUP(JM10,InputS!6:6,InputS!13:13) -> 0.1 | JN28: =LOOKUP(JN10,InputS!6:6,InputS!13:13) -> 0.1 | JO28: =LOOKUP(JO10,InputS!6:6,InputS!13:13) -> 0.095 | JP28: =LOOKUP(JP10,InputS!6:6,InputS!13:13) -> 0.095 | JQ28: =LOOKUP(JQ10,InputS!6:6,InputS!13:13) -> 0.08 | JR28: =LOOKUP(JR10,InputS!6:6,InputS!13:13) -> 0.07 | JS28: =LOOKUP(JS10,InputS!6:6,InputS!13:13) -> 0.06 | JT28: =LOOKUP(JT10,InputS!6:6,InputS!13:13) -> 0.06 | JU28: =LOOKUP(JU10,InputS!6:6,InputS!13:13) -> 0.07 | JV28: =LOOKUP(JV10,InputS!6:6,InputS!13:13) -> 0.085 | JW28: =LOOKUP(JW10,InputS!6:6,InputS!13:13) -> 0.085 | JX28: =LOOKUP(JX10,InputS!6:6,InputS!13:13) -> 0.1 | JY28: =LOOKUP(JY10,InputS!6:6,InputS!13:13) -> 0.1 | JZ28: =LOOKUP(JZ10,InputS!6:6,InputS!13:13) -> 0.1 | KA28: =LOOKUP(KA10,InputS!6:6,InputS!13:13) -> 0.095 | KB28: =LOOKUP(KB10,InputS!6:6,InputS!13:13) -> 0.095 | KC28: =LOOKUP(KC10,InputS!6:6,InputS!13:13) -> 0.08 | KD28: =LOOKUP(KD10,InputS!6:6,InputS!13:13) -> 0.07 | KE28: =LOOKUP(KE10,InputS!6:6,InputS!13:13) -> 0.06 | KF28: =LOOKUP(KF10,InputS!6:6,InputS!13:13) -> 0.06 | KG28: =LOOKUP(KG10,InputS!6:6,InputS!13:13) -> 0.07 | KH28: =LOOKUP(KH10,InputS!6:6,InputS!13:13) -> 0.085 | KI28: =LOOKUP(KI10,InputS!6:6,InputS!13:13) -> 0.085 | KJ28: =LOOKUP(KJ10,InputS!6:6,InputS!13:13) -> 0.1 | KK28: =LOOKUP(KK10,InputS!6:6,InputS!13:13) -> 0.1 | KL28: =LOOKUP(KL10,InputS!6:6,InputS!13:13) -> 0.1 | KM28: =LOOKUP(KM10,InputS!6:6,InputS!13:13) -> 0.095 | KN28: =LOOKUP(KN10,InputS!6:6,InputS!13:13) -> 0.095 | KO28: =LOOKUP(KO10,InputS!6:6,InputS!13:13) -> 0.08 | KP28: =LOOKUP(KP10,InputS!6:6,InputS!13:13) -> 0.07 | KQ28: =LOOKUP(KQ10,InputS!6:6,InputS!13:13) -> 0.06 | KR28: =LOOKUP(KR10,InputS!6:6,InputS!13:13) -> 0.06 | KS28: =LOOKUP(KS10,InputS!6:6,InputS!13:13) -> 0.07 | KT28: =LOOKUP(KT10,InputS!6:6,InputS!13:13) -> 0.085 | KU28: =LOOKUP(KU10,InputS!6:6,InputS!13:13) -> 0.085 | KV28: =LOOKUP(KV10,InputS!6:6,InputS!13:13) -> 0.1 | KW28: =LOOKUP(KW10,InputS!6:6,InputS!13:13) -> 0.1 | KX28: =LOOKUP(KX10,InputS!6:6,InputS!13:13) -> 0.1 | KY28: =LOOKUP(KY10,InputS!6:6,InputS!13:13) -> 0.095 | KZ28: =LOOKUP(KZ10,InputS!6:6,InputS!13:13) -> 0.095 | LA28: =LOOKUP(LA10,InputS!6:6,InputS!13:13) -> 0.08 | LB28: =LOOKUP(LB10,InputS!6:6,InputS!13:13) -> 0.07 | LC28: =LOOKUP(LC10,InputS!6:6,InputS!13:13) -> 0.06 | LD28: =LOOKUP(LD10,InputS!6:6,InputS!13:13) -> 0.06 | LE28: =LOOKUP(LE10,InputS!6:6,InputS!13:13) -> 0.07 | LF28: =LOOKUP(LF10,InputS!6:6,InputS!13:13) -> 0.085 | LG28: =LOOKUP(LG10,InputS!6:6,InputS!13:13) -> 0.085 | LH28: =LOOKUP(LH10,InputS!6:6,InputS!13:13) -> 0.1 | LI28: =LOOKUP(LI10,InputS!6:6,InputS!13:13) -> 0.1 | LJ28: =LOOKUP(LJ10,InputS!6:6,InputS!13:13) -> 0.1 | LK28: =LOOKUP(LK10,InputS!6:6,InputS!13:13) -> 0.095 | LL28: =LOOKUP(LL10,InputS!6:6,InputS!13:13) -> 0.095 | LM28: =LOOKUP(LM10,InputS!6:6,InputS!13:13) -> 0.08 | LN28: =LOOKUP(LN10,InputS!6:6,InputS!13:13) -> 0.07 | LO28: =LOOKUP(LO10,InputS!6:6,InputS!13:13) -> 0.06 | LP28: =LOOKUP(LP10,InputS!6:6,InputS!13:13) -> 0.06 | LQ28: =LOOKUP(LQ10,InputS!6:6,InputS!13:13) -> 0.07 | LR28: =LOOKUP(LR10,InputS!6:6,InputS!13:13) -> 0.085 | LS28: =LOOKUP(LS10,InputS!6:6,InputS!13:13) -> 0.085 | LT28: =LOOKUP(LT10,InputS!6:6,InputS!13:13) -> 0.1 | LU28: =LOOKUP(LU10,InputS!6:6,InputS!13:13) -> 0.1 | LV28: =LOOKUP(LV10,InputS!6:6,InputS!13:13) -> 0.1 | LW28: =LOOKUP(LW10,InputS!6:6,InputS!13:13) -> 0.095 | LX28: =LOOKUP(LX10,InputS!6:6,InputS!13:13) -> 0.095 | LY28: =LOOKUP(LY10,InputS!6:6,InputS!13:13) -> 0.08 | LZ28: =LOOKUP(LZ10,InputS!6:6,InputS!13:13) -> 0.07 | MA28: =LOOKUP(MA10,InputS!6:6,InputS!13:13) -> 0.06 | MB28: =LOOKUP(MB10,InputS!6:6,InputS!13:13) -> 0.06 | MC28: =LOOKUP(MC10,InputS!6:6,InputS!13:13) -> 0.07 | MD28: =LOOKUP(MD10,InputS!6:6,InputS!13:13) -> 0.085 | ME28: =LOOKUP(ME10,InputS!6:6,InputS!13:13) -> 0.085 | MF28: =LOOKUP(MF10,InputS!6:6,InputS!13:13) -> 0.1 | MG28: =LOOKUP(MG10,InputS!6:6,InputS!13:13) -> 0.1 | MH28: =LOOKUP(MH10,InputS!6:6,InputS!13:13) -> 0.1 | MI28: =LOOKUP(MI10,InputS!6:6,InputS!13:13) -> 0.095 | MJ28: =LOOKUP(MJ10,InputS!6:6,InputS!13:13) -> 0.095 | MK28: =LOOKUP(MK10,InputS!6:6,InputS!13:13) -> 0.08 | ML28: =LOOKUP(ML10,InputS!6:6,InputS!13:13) -> 0.07 | MM28: =LOOKUP(MM10,InputS!6:6,InputS!13:13) -> 0.06 | MN28: =LOOKUP(MN10,InputS!6:6,InputS!13:13) -> 0.06 | MO28: =LOOKUP(MO10,InputS!6:6,InputS!13:13) -> 0.07 | MP28: =LOOKUP(MP10,InputS!6:6,InputS!13:13) -> 0.085 | MQ28: =LOOKUP(MQ10,InputS!6:6,InputS!13:13) -> 0.085 | MR28: =LOOKUP(MR10,InputS!6:6,InputS!13:13) -> 0.1 | MS28: =LOOKUP(MS10,InputS!6:6,InputS!13:13) -> 0.1 | MT28: =LOOKUP(MT10,InputS!6:6,InputS!13:13) -> 0.1 | MU28: =LOOKUP(MU10,InputS!6:6,InputS!13:13) -> 0.095 | MV28: =LOOKUP(MV10,InputS!6:6,InputS!13:13) -> 0.095 | MW28: =LOOKUP(MW10,InputS!6:6,InputS!13:13) -> 0.08 | MX28: =LOOKUP(MX10,InputS!6:6,InputS!13:13) -> 0.07 | MY28: =LOOKUP(MY10,InputS!6:6,InputS!13:13) -> 0.06 | MZ28: =LOOKUP(MZ10,InputS!6:6,InputS!13:13) -> 0.06 | NA28: =LOOKUP(NA10,InputS!6:6,InputS!13:13) -> 0.07 | NB28: =LOOKUP(NB10,InputS!6:6,InputS!13:13) -> 0.085 | NC28: =LOOKUP(NC10,InputS!6:6,InputS!13:13) -> 0.085 | ND28: =LOOKUP(ND10,InputS!6:6,InputS!13:13) -> 0.1 | NE28: =LOOKUP(NE10,InputS!6:6,InputS!13:13) -> 0.1 | NF28: =LOOKUP(NF10,InputS!6:6,InputS!13:13) -> 0.1 | NG28: =LOOKUP(NG10,InputS!6:6,InputS!13:13) -> 0.095 | NH28: =LOOKUP(NH10,InputS!6:6,InputS!13:13) -> 0.095 | NI28: =LOOKUP(NI10,InputS!6:6,InputS!13:13) -> 0.08 | NJ28: =LOOKUP(NJ10,InputS!6:6,InputS!13:13) -> 0.07 | NK28: =LOOKUP(NK10,InputS!6:6,InputS!13:13) -> 0.06 | NL28: =LOOKUP(NL10,InputS!6:6,InputS!13:13) -> 0.06 | NM28: =LOOKUP(NM10,InputS!6:6,InputS!13:13) -> 0.07 | NN28: =LOOKUP(NN10,InputS!6:6,InputS!13:13) -> 0.085 | NO28: =LOOKUP(NO10,InputS!6:6,InputS!13:13) -> 0.085 | NP28: =LOOKUP(NP10,InputS!6:6,InputS!13:13) -> 0.1 | NQ28: =LOOKUP(NQ10,InputS!6:6,InputS!13:13) -> 0.1 | NR28: =LOOKUP(NR10,InputS!6:6,InputS!13:13) -> 0.1 | NS28: =LOOKUP(NS10,InputS!6:6,InputS!13:13) -> 0.095 | NT28: =LOOKUP(NT10,InputS!6:6,InputS!13:13) -> 0.095 | NU28: =LOOKUP(NU10,InputS!6:6,InputS!13:13) -> 0.08 | NV28: =LOOKUP(NV10,InputS!6:6,InputS!13:13) -> 0.07 | NW28: =LOOKUP(NW10,InputS!6:6,InputS!13:13) -> 0.06 | NX28: =LOOKUP(NX10,InputS!6:6,InputS!13:13) -> 0.06 | NY28: =LOOKUP(NY10,InputS!6:6,InputS!13:13) -> 0.07 | NZ28: =LOOKUP(NZ10,InputS!6:6,InputS!13:13) -> 0.085 | OA28: =LOOKUP(OA10,InputS!6:6,InputS!13:13) -> 0.085 | OB28: =LOOKUP(OB10,InputS!6:6,InputS!13:13) -> 0.1 | OC28: =LOOKUP(OC10,InputS!6:6,InputS!13:13) -> 0.1 | OD28: =LOOKUP(OD10,InputS!6:6,InputS!13:13) -> 0.1 | OE28: =LOOKUP(OE10,InputS!6:6,InputS!13:13) -> 0.095 | OF28: =LOOKUP(OF10,InputS!6:6,InputS!13:13) -> 0.095 | OG28: =LOOKUP(OG10,InputS!6:6,InputS!13:13) -> 0.08 | OH28: =LOOKUP(OH10,InputS!6:6,InputS!13:13) -> 0.07 | OI28: =LOOKUP(OI10,InputS!6:6,InputS!13:13) -> 0.06 | OJ28: =LOOKUP(OJ10,InputS!6:6,InputS!13:13) -> 0.06 | OK28: =LOOKUP(OK10,InputS!6:6,InputS!13:13) -> 0.07 | OL28: =LOOKUP(OL10,InputS!6:6,InputS!13:13) -> 0.085 | OM28: =LOOKUP(OM10,InputS!6:6,InputS!13:13) -> 0.085 | ON28: =LOOKUP(ON10,InputS!6:6,InputS!13:13) -> 0.1 | OO28: =LOOKUP(OO10,InputS!6:6,InputS!13:13) -> 0.1 | OP28: =LOOKUP(OP10,InputS!6:6,InputS!13:13) -> 0.1 | OQ28: =LOOKUP(OQ10,InputS!6:6,InputS!13:13) -> 0.095 | OR28: =LOOKUP(OR10,InputS!6:6,InputS!13:13) -> 0.095 | OS28: =LOOKUP(OS10,InputS!6:6,InputS!13:13) -> 0.08 | OT28: =LOOKUP(OT10,InputS!6:6,InputS!13:13) -> 0.07 | OU28: =LOOKUP(OU10,InputS!6:6,InputS!13:13) -> 0.06 | OV28: =LOOKUP(OV10,InputS!6:6,InputS!13:13) -> 0.06 | OW28: =LOOKUP(OW10,InputS!6:6,InputS!13:13) -> 0.07 | OX28: =LOOKUP(OX10,InputS!6:6,InputS!13:13) -> 0.085 | OY28: =LOOKUP(OY10,InputS!6:6,InputS!13:13) -> 0.085 | OZ28: =LOOKUP(OZ10,InputS!6:6,InputS!13:13) -> 0.1 | PA28: =LOOKUP(PA10,InputS!6:6,InputS!13:13) -> 0.1 | PB28: =LOOKUP(PB10,InputS!6:6,InputS!13:13) -> 0.1 | PC28: =LOOKUP(PC10,InputS!6:6,InputS!13:13) -> 0.095 | PD28: =LOOKUP(PD10,InputS!6:6,InputS!13:13) -> 0.095 | PE28: =LOOKUP(PE10,InputS!6:6,InputS!13:13) -> 0.08 | PF28: =LOOKUP(PF10,InputS!6:6,InputS!13:13) -> 0.07 | PG28: =LOOKUP(PG10,InputS!6:6,InputS!13:13) -> 0.06 | PH28: =LOOKUP(PH10,InputS!6:6,InputS!13:13) -> 0.06 | PI28: =LOOKUP(PI10,InputS!6:6,InputS!13:13) -> 0.07 | PJ28: =LOOKUP(PJ10,InputS!6:6,InputS!13:13) -> 0.085 | PK28: =LOOKUP(PK10,InputS!6:6,InputS!13:13) -> 0.085 | PL28: =LOOKUP(PL10,InputS!6:6,InputS!13:13) -> 0.1 | PM28: =LOOKUP(PM10,InputS!6:6,InputS!13:13) -> 0.1 | PN28: =LOOKUP(PN10,InputS!6:6,InputS!13:13) -> 0.1 | PO28: =LOOKUP(PO10,InputS!6:6,InputS!13:13) -> 0.095 | PP28: =LOOKUP(PP10,InputS!6:6,InputS!13:13) -> 0.095 | PQ28: =LOOKUP(PQ10,InputS!6:6,InputS!13:13) -> 0.08 | PR28: =LOOKUP(PR10,InputS!6:6,InputS!13:13) -> 0.07 | PS28: =LOOKUP(PS10,InputS!6:6,InputS!13:13) -> 0.06 | PT28: =LOOKUP(PT10,InputS!6:6,InputS!13:13) -> 0.06 | PU28: =LOOKUP(PU10,InputS!6:6,InputS!13:13) -> 0.07 | PV28: =LOOKUP(PV10,InputS!6:6,InputS!13:13) -> 0.085 | PW28: =LOOKUP(PW10,InputS!6:6,InputS!13:13) -> 0.085 | PX28: =LOOKUP(PX10,InputS!6:6,InputS!13:13) -> 0.1 | PY28: =LOOKUP(PY10,InputS!6:6,InputS!13:13) -> 0.1 | PZ28: =LOOKUP(PZ10,InputS!6:6,InputS!13:13) -> 0.1 | QA28: =LOOKUP(QA10,InputS!6:6,InputS!13:13) -> 0.095 | QB28: =LOOKUP(QB10,InputS!6:6,InputS!13:13) -> 0.095 | QC28: =LOOKUP(QC10,InputS!6:6,InputS!13:13) -> 0.08 | QD28: =LOOKUP(QD10,InputS!6:6,InputS!13:13) -> 0.07 | QE28: =LOOKUP(QE10,InputS!6:6,InputS!13:13) -> 0.06 | QF28: =LOOKUP(QF10,InputS!6:6,InputS!13:13) -> 0.06 | QG28: =LOOKUP(QG10,InputS!6:6,InputS!13:13) -> 0.07 | QH28: =LOOKUP(QH10,InputS!6:6,InputS!13:13) -> 0.085 | QI28: =LOOKUP(QI10,InputS!6:6,InputS!13:13) -> 0.085 | QJ28: =LOOKUP(QJ10,InputS!6:6,InputS!13:13) -> 0.1 | QK28: =LOOKUP(QK10,InputS!6:6,InputS!13:13) -> 0.1 | QL28: =LOOKUP(QL10,InputS!6:6,InputS!13:13) -> 0.1 | QM28: =LOOKUP(QM10,InputS!6:6,InputS!13:13) -> 0.095 | QN28: =LOOKUP(QN10,InputS!6:6,InputS!13:13) -> 0.095 | QO28: =LOOKUP(QO10,InputS!6:6,InputS!13:13) -> 0.08 | QP28: =LOOKUP(QP10,InputS!6:6,InputS!13:13) -> 0.07 | QQ28: =LOOKUP(QQ10,InputS!6:6,InputS!13:13) -> 0.06 | QR28: =LOOKUP(QR10,InputS!6:6,InputS!13:13) -> 0.06 | QS28: =LOOKUP(QS10,InputS!6:6,InputS!13:13) -> 0.07 | QT28: =LOOKUP(QT10,InputS!6:6,InputS!13:13) -> 0.085 | QU28: =LOOKUP(QU10,InputS!6:6,InputS!13:13) -> 0.085 | QV28: =LOOKUP(QV10,InputS!6:6,InputS!13:13) -> 0.1 | QW28: =LOOKUP(QW10,InputS!6:6,InputS!13:13) -> 0.1 | QX28: =LOOKUP(QX10,InputS!6:6,InputS!13:13) -> 0.1 | QY28: =LOOKUP(QY10,InputS!6:6,InputS!13:13) -> 0.095 | QZ28: =LOOKUP(QZ10,InputS!6:6,InputS!13:13) -> 0.095 | RA28: =LOOKUP(RA10,InputS!6:6,InputS!13:13) -> 0.08 | RB28: =LOOKUP(RB10,InputS!6:6,InputS!13:13) -> 0.07 | RC28: =LOOKUP(RC10,InputS!6:6,InputS!13:13) -> 0.06 | RD28: =LOOKUP(RD10,InputS!6:6,InputS!13:13) -> 0.06 | RE28: =LOOKUP(RE10,InputS!6:6,InputS!13:13) -> 0.07 | RF28: =LOOKUP(RF10,InputS!6:6,InputS!13:13) -> 0.085 | RG28: =LOOKUP(RG10,InputS!6:6,InputS!13:13) -> 0.085 | RH28: =LOOKUP(RH10,InputS!6:6,InputS!13:13) -> 0.1 | RI28: =LOOKUP(RI10,InputS!6:6,InputS!13:13) -> 0.1 | RJ28: =LOOKUP(RJ10,InputS!6:6,InputS!13:13) -> 0.1 | RK28: =LOOKUP(RK10,InputS!6:6,InputS!13:13) -> 0.095 | RL28: =LOOKUP(RL10,InputS!6:6,InputS!13:13) -> 0.095 | RM28: =LOOKUP(RM10,InputS!6:6,InputS!13:13) -> 0.08 | RN28: =LOOKUP(RN10,InputS!6:6,InputS!13:13) -> 0.07 | RO28: =LOOKUP(RO10,InputS!6:6,InputS!13:13) -> 0.06 | RP28: =LOOKUP(RP10,InputS!6:6,InputS!13:13) -> 0.06 | RQ28: =LOOKUP(RQ10,InputS!6:6,InputS!13:13) -> 0.07 | RR28: =LOOKUP(RR10,InputS!6:6,InputS!13:13) -> 0.085 | RS28: =LOOKUP(RS10,InputS!6:6,InputS!13:13) -> 0.085 | RT28: =LOOKUP(RT10,InputS!6:6,InputS!13:13) -> 0.1 | RU28: =LOOKUP(RU10,InputS!6:6,InputS!13:13) -> 0.1 | RV28: =LOOKUP(RV10,InputS!6:6,InputS!13:13) -> 0.1 | RW28: =LOOKUP(RW10,InputS!6:6,InputS!13:13) -> 0.095 | RX28: =LOOKUP(RX10,InputS!6:6,InputS!13:13) -> 0.095 | RY28: =LOOKUP(RY10,InputS!6:6,InputS!13:13) -> 0.08 | RZ28: =LOOKUP(RZ10,InputS!6:6,InputS!13:13) -> 0.07 | SA28: =LOOKUP(SA10,InputS!6:6,InputS!13:13) -> 0.06 | SB28: =LOOKUP(SB10,InputS!6:6,InputS!13:13) -> 0.06 | SC28: =LOOKUP(SC10,InputS!6:6,InputS!13:13) -> 0.07 | SD28: =LOOKUP(SD10,InputS!6:6,InputS!13:13) -> 0.085 | SE28: =LOOKUP(SE10,InputS!6:6,InputS!13:13) -> 0.085 | SF28: =LOOKUP(SF10,InputS!6:6,InputS!13:13) -> 0.1 | SG28: =LOOKUP(SG10,InputS!6:6,InputS!13:13) -> 0.1 | SH28: =LOOKUP(SH10,InputS!6:6,InputS!13:13) -> 0.1 | SI28: =LOOKUP(SI10,InputS!6:6,InputS!13:13) -> 0.095 | SJ28: =LOOKUP(SJ10,InputS!6:6,InputS!13:13) -> 0.095 | SK28: =LOOKUP(SK10,InputS!6:6,InputS!13:13) -> 0.08 | SL28: =LOOKUP(SL10,InputS!6:6,InputS!13:13) -> 0.07 | SM28: =LOOKUP(SM10,InputS!6:6,InputS!13:13) -> 0.06 | SN28: =LOOKUP(SN10,InputS!6:6,InputS!13:13) -> 0.06 | SO28: =LOOKUP(SO10,InputS!6:6,InputS!13:13) -> 0.07
C29: Production without Degradation | E29: kWh | H29: =SUM(J29:XFD29) -> 917936250 | J29: =J25*J27*J28 -> 0 | K29: =K25*K27*K28 -> 0 | L29: 0 | M29: 0 | N29: 0 | O29: 0 | P29: 0 | Q29: 0 | R29: 0 | S29: 0 | T29: 0 | U29: 0 | V29: 0 | W29: 0 | X29: 0 | Y29: 0 | Z29: 0 | AA29: 0 | AB29: 1573605 | AC29: 1835872.5 | AD29: 2229273.75 | AE29: 2229273.75 | AF29: 2622675 | AG29: 2622675 | AH29: 2622675 | AI29: 2491541.25 | AJ29: 2491541.25 | AK29: 2098140 | AL29: 1835872.5 | AM29: 1573605 | AN29: 1573605 | AO29: 1835872.5 | AP29: 2229273.75 | AQ29: 2229273.75 | AR29: 2622675 | AS29: 2622675 | AT29: 2622675 | AU29: 2491541.25 | AV29: 2491541.25 | AW29: 2098140 | AX29: 1835872.5 | AY29: 1573605 | AZ29: 1573605 | BA29: 1835872.5 | BB29: 2229273.75 | BC29: 2229273.75 | BD29: 2622675 | BE29: 2622675 | BF29: 2622675 | BG29: 2491541.25 | BH29: 2491541.25 | BI29: 2098140 | BJ29: 1835872.5 | BK29: 1573605 | BL29: 1573605 | BM29: 1835872.5 | BN29: 2229273.75 | BO29: 2229273.75 | BP29: 2622675 | BQ29: 2622675 | BR29: 2622675 | BS29: 2491541.25 | BT29: 2491541.25 | BU29: 2098140 | BV29: 1835872.5 | BW29: =BW25*BW27*BW28 -> 1573605 | BX29: 1573605 | BY29: 1835872.5 | BZ29: 2229273.75 | CA29: 2229273.75 | CB29: 2622675 | CC29: 2622675 | CD29: 2622675 | CE29: 2491541.25 | CF29: 2491541.25 | CG29: 2098140 | CH29: 1835872.5 | CI29: 1573605 | CJ29: 1573605 | CK29: 1835872.5 | CL29: 2229273.75 | CM29: 2229273.75 | CN29: 2622675 | CO29: 2622675 | CP29: 2622675 | CQ29: 2491541.25 | CR29: 2491541.25 | CS29: 2098140 | CT29: 1835872.5 | CU29: 1573605 | CV29: 1573605 | CW29: 1835872.5 | CX29: 2229273.75 | CY29: 2229273.75 | CZ29: 2622675 | DA29: 2622675 | DB29: 2622675 | DC29: 2491541.25 | DD29: 2491541.25 | DE29: 2098140 | DF29: 1835872.5 | DG29: 1573605 | DH29: 1573605 | DI29: 1835872.5 | DJ29: 2229273.75 | DK29: 2229273.75 | DL29: 2622675 | DM29: 2622675 | DN29: 2622675 | DO29: 2491541.25 | DP29: 2491541.25 | DQ29: 2098140 | DR29: 1835872.5 | DS29: 1573605 | DT29: 1573605 | DU29: 1835872.5 | DV29: 2229273.75 | DW29: 2229273.75 | DX29: 2622675 | DY29: 2622675 | DZ29: 2622675 | EA29: 2491541.25 | EB29: 2491541.25 | EC29: 2098140 | ED29: 1835872.5 | EE29: 1573605 | EF29: 1573605 | EG29: 1835872.5 | EH29: 2229273.75 | EI29: =EI25*EI27*EI28 -> 2229273.75 | EJ29: 2622675 | EK29: 2622675 | EL29: 2622675 | EM29: 2491541.25 | EN29: 2491541.25 | EO29: 2098140 | EP29: 1835872.5 | EQ29: 1573605 | ER29: 1573605 | ES29: 1835872.5 | ET29: 2229273.75 | EU29: 2229273.75 | EV29: 2622675 | EW29: 2622675 | EX29: 2622675 | EY29: 2491541.25 | EZ29: 2491541.25 | FA29: 2098140 | FB29: 1835872.5 | FC29: 1573605 | FD29: 1573605 | FE29: 1835872.5 | FF29: 2229273.75 | FG29: 2229273.75 | FH29: 2622675 | FI29: 2622675 | FJ29: 2622675 | FK29: 2491541.25 | FL29: 2491541.25 | FM29: 2098140 | FN29: 1835872.5 | FO29: 1573605 | FP29: 1573605 | FQ29: 1835872.5 | FR29: 2229273.75 | FS29: 2229273.75 | FT29: 2622675 | FU29: 2622675 | FV29: 2622675 | FW29: 2491541.25 | FX29: 2491541.25 | FY29: 2098140 | FZ29: 1835872.5 | GA29: 1573605 | GB29: 1573605 | GC29: 1835872.5 | GD29: 2229273.75 | GE29: 2229273.75 | GF29: 2622675 | GG29: 2622675 | GH29: 2622675 | GI29: 2491541.25 | GJ29: 2491541.25 | GK29: 2098140 | GL29: 1835872.5 | GM29: 1573605 | GN29: 1573605 | GO29: 1835872.5 | GP29: 2229273.75 | GQ29: 2229273.75 | GR29: 2622675 | GS29: 2622675 | GT29: 2622675 | GU29: =GU25*GU27*GU28 -> 2491541.25 | GV29: 2491541.25 | GW29: 2098140 | GX29: 1835872.5 | GY29: 1573605 | GZ29: 1573605 | HA29: 1835872.5 | HB29: 2229273.75 | HC29: 2229273.75 | HD29: 2622675 | HE29: 2622675 | HF29: 2622675 | HG29: 2491541.25 | HH29: 2491541.25 | HI29: 2098140 | HJ29: 1835872.5 | HK29: 1573605 | HL29: 1573605 | HM29: 1835872.5 | HN29: 2229273.75 | HO29: 2229273.75 | HP29: 2622675 | HQ29: 2622675 | HR29: 2622675 | HS29: 2491541.25 | HT29: 2491541.25 | HU29: 2098140 | HV29: 1835872.5 | HW29: 1573605 | HX29: 1573605 | HY29: 1835872.5 | HZ29: 2229273.75 | IA29: 2229273.75 | IB29: 2622675 | IC29: 2622675 | ID29: 2622675 | IE29: 2491541.25 | IF29: 2491541.25 | IG29: 2098140 | IH29: 1835872.5 | II29: 1573605 | IJ29: 1573605 | IK29: 1835872.5 | IL29: 2229273.75 | IM29: 2229273.75 | IN29: 2622675 | IO29: 2622675 | IP29: 2622675 | IQ29: 2491541.25 | IR29: 2491541.25 | IS29: 2098140 | IT29: 1835872.5 | IU29: 1573605 | IV29: 1573605 | IW29: 1835872.5 | IX29: 2229273.75 | IY29: 2229273.75 | IZ29: 2622675 | JA29: 2622675 | JB29: 2622675 | JC29: 2491541.25 | JD29: 2491541.25 | JE29: 2098140 | JF29: 1835872.5 | JG29: =JG25*JG27*JG28 -> 1573605 | JH29: 1573605 | JI29: 1835872.5 | JJ29: 2229273.75 | JK29: 2229273.75 | JL29: 2622675 | JM29: 2622675 | JN29: 2622675 | JO29: 2491541.25 | JP29: 2491541.25 | JQ29: 2098140 | JR29: 1835872.5 | JS29: 1573605 | JT29: 1573605 | JU29: 1835872.5 | JV29: 2229273.75 | JW29: 2229273.75 | JX29: 2622675 | JY29: 2622675 | JZ29: 2622675 | KA29: 2491541.25 | KB29: 2491541.25 | KC29: 2098140 | KD29: 1835872.5 | KE29: 1573605 | KF29: 1573605 | KG29: 1835872.5 | KH29: 2229273.75 | KI29: 2229273.75 | KJ29: 2622675 | KK29: 2622675 | KL29: 2622675 | KM29: 2491541.25 | KN29: 2491541.25 | KO29: 2098140 | KP29: 1835872.5 | KQ29: 1573605 | KR29: 1573605 | KS29: 1835872.5 | KT29: 2229273.75 | KU29: 2229273.75 | KV29: 2622675 | KW29: 2622675 | KX29: 2622675 | KY29: 2491541.25 | KZ29: 2491541.25 | LA29: 2098140 | LB29: 1835872.5 | LC29: 1573605 | LD29: 1573605 | LE29: 1835872.5 | LF29: 2229273.75 | LG29: 2229273.75 | LH29: 2622675 | LI29: 2622675 | LJ29: 2622675 | LK29: 2491541.25 | LL29: 2491541.25 | LM29: 2098140 | LN29: 1835872.5 | LO29: 1573605 | LP29: 1573605 | LQ29: 1835872.5 | LR29: 2229273.75 | LS29: =LS25*LS27*LS28 -> 2229273.75 | LT29: 2622675 | LU29: 2622675 | LV29: 2622675 | LW29: 2491541.25 | LX29: 2491541.25 | LY29: 2098140 | LZ29: 1835872.5 | MA29: 1573605 | MB29: 1573605 | MC29: 1835872.5 | MD29: 2229273.75 | ME29: 2229273.75 | MF29: 2622675 | MG29: 2622675 | MH29: 2622675 | MI29: 2491541.25 | MJ29: 2491541.25 | MK29: 2098140 | ML29: 1835872.5 | MM29: 1573605 | MN29: 1573605 | MO29: 1835872.5 | MP29: 2229273.75 | MQ29: 2229273.75 | MR29: 2622675 | MS29: 2622675 | MT29: 2622675 | MU29: 2491541.25 | MV29: 2491541.25 | MW29: 2098140 | MX29: 1835872.5 | MY29: 1573605 | MZ29: 1573605 | NA29: 1835872.5 | NB29: 2229273.75 | NC29: 2229273.75 | ND29: 2622675 | NE29: 2622675 | NF29: 2622675 | NG29: 2491541.25 | NH29: 2491541.25 | NI29: 2098140 | NJ29: 1835872.5 | NK29: 1573605 | NL29: 1573605 | NM29: 1835872.5 | NN29: 2229273.75 | NO29: 2229273.75 | NP29: 2622675 | NQ29: 2622675 | NR29: 2622675 | NS29: 2491541.25 | NT29: 2491541.25 | NU29: 2098140 | NV29: 1835872.5 | NW29: 1573605 | NX29: 1573605 | NY29: 1835872.5 | NZ29: 2229273.75 | OA29: 2229273.75 | OB29: 2622675 | OC29: 2622675 | OD29: 2622675 | OE29: =OE25*OE27*OE28 -> 2491541.25 | OF29: 2491541.25 | OG29: 2098140 | OH29: 1835872.5 | OI29: 1573605 | OJ29: 1573605 | OK29: 1835872.5 | OL29: 2229273.75 | OM29: 2229273.75 | ON29: 2622675 | OO29: 2622675 | OP29: 2622675 | OQ29: 2491541.25 | OR29: 2491541.25 | OS29: 2098140 | OT29: 1835872.5 | OU29: 1573605 | OV29: 1573605 | OW29: 1835872.5 | OX29: 2229273.75 | OY29: 2229273.75 | OZ29: 2622675 | PA29: 2622675 | PB29: 2622675 | PC29: 2491541.25 | PD29: 2491541.25 | PE29: 2098140 | PF29: 1835872.5 | PG29: 1573605 | PH29: 1573605 | PI29: 1835872.5 | PJ29: 2229273.75 | PK29: 2229273.75 | PL29: 2622675 | PM29: 2622675 | PN29: 2622675 | PO29: 2491541.25 | PP29: 2491541.25 | PQ29: 2098140 | PR29: 1835872.5 | PS29: 1573605 | PT29: 1573605 | PU29: 1835872.5 | PV29: 2229273.75 | PW29: 2229273.75 | PX29: 2622675 | PY29: 2622675 | PZ29: 2622675 | QA29: 2491541.25 | QB29: 2491541.25 | QC29: 2098140 | QD29: 1835872.5 | QE29: 1573605 | QF29: 0 | QG29: 0 | QH29: 0 | QI29: 0 | QJ29: 0 | QK29: 0 | QL29: 0 | QM29: 0 | QN29: 0 | QO29: 0 | QP29: 0 | QQ29: =QQ25*QQ27*QQ28 -> 0 | QR29: 0 | QS29: 0 | QT29: 0 | QU29: 0 | QV29: 0 | QW29: 0 | QX29: 0 | QY29: 0 | QZ29: 0 | RA29: 0 | RB29: 0 | RC29: 0 | RD29: 0 | RE29: 0 | RF29: 0 | RG29: 0 | RH29: 0 | RI29: 0 | RJ29: 0 | RK29: 0 | RL29: 0 | RM29: 0 | RN29: 0 | RO29: 0 | RP29: 0 | RQ29: 0 | RR29: 0 | RS29: 0 | RT29: 0 | RU29: 0 | RV29: 0 | RW29: 0 | RX29: 0 | RY29: 0 | RZ29: 0 | SA29: 0 | SB29: 0 | SC29: 0 | SD29: 0 | SE29: 0 | SF29: 0 | SG29: 0 | SH29: 0 | SI29: 0 | SJ29: 0 | SK29: 0 | SL29: 0 | SM29: 0 | SN29: 0 | SO29: 0
C30: Degradation | E30: % | F30: =InputC!F41 -> 0.005 | G30: =(1+F30)^(1/12)-1 -> 0.0004157148447 | J30: =$G$30*J9 -> 0 | K30: =$G$30*K9 -> 0 | L30: 0 | M30: 0 | N30: 0 | O30: 0 | P30: 0 | Q30: 0 | R30: 0 | S30: 0 | T30: 0 | U30: 0 | V30: 0 | W30: 0 | X30: 0 | Y30: 0 | Z30: 0 | AA30: 0 | AB30: 0.0004157148447 | AC30: 0.0004157148447 | AD30: 0.0004157148447 | AE30: 0.0004157148447 | AF30: 0.0004157148447 | AG30: 0.0004157148447 | AH30: 0.0004157148447 | AI30: 0.0004157148447 | AJ30: 0.0004157148447 | AK30: 0.0004157148447 | AL30: 0.0004157148447 | AM30: 0.0004157148447 | AN30: 0.0004157148447 | AO30: 0.0004157148447 | AP30: 0.0004157148447 | AQ30: 0.0004157148447 | AR30: 0.0004157148447 | AS30: 0.0004157148447 | AT30: 0.0004157148447 | AU30: 0.0004157148447 | AV30: 0.0004157148447 | AW30: 0.0004157148447 | AX30: 0.0004157148447 | AY30: 0.0004157148447 | AZ30: 0.0004157148447 | BA30: 0.0004157148447 | BB30: 0.0004157148447 | BC30: 0.0004157148447 | BD30: 0.0004157148447 | BE30: 0.0004157148447 | BF30: 0.0004157148447 | BG30: 0.0004157148447 | BH30: 0.0004157148447 | BI30: 0.0004157148447 | BJ30: 0.0004157148447 | BK30: 0.0004157148447 | BL30: 0.0004157148447 | BM30: 0.0004157148447 | BN30: 0.0004157148447 | BO30: 0.0004157148447 | BP30: 0.0004157148447 | BQ30: 0.0004157148447 | BR30: 0.0004157148447 | BS30: 0.0004157148447 | BT30: 0.0004157148447 | BU30: 0.0004157148447 | BV30: 0.0004157148447 | BW30: =$G$30*BW9 -> 0.0004157148447 | BX30: 0.0004157148447 | BY30: 0.0004157148447 | BZ30: 0.0004157148447 | CA30: 0.0004157148447 | CB30: 0.0004157148447 | CC30: 0.0004157148447 | CD30: 0.0004157148447 | CE30: 0.0004157148447 | CF30: 0.0004157148447 | CG30: 0.0004157148447 | CH30: 0.0004157148447 | CI30: 0.0004157148447 | CJ30: 0.0004157148447 | CK30: 0.0004157148447 | CL30: 0.0004157148447 | CM30: 0.0004157148447 | CN30: 0.0004157148447 | CO30: 0.0004157148447 | CP30: 0.0004157148447 | CQ30: 0.0004157148447 | CR30: 0.0004157148447 | CS30: 0.0004157148447 | CT30: 0.0004157148447 | CU30: 0.0004157148447 | CV30: 0.0004157148447 | CW30: 0.0004157148447 | CX30: 0.0004157148447 | CY30: 0.0004157148447 | CZ30: 0.0004157148447 | DA30: 0.0004157148447 | DB30: 0.0004157148447 | DC30: 0.0004157148447 | DD30: 0.0004157148447 | DE30: 0.0004157148447 | DF30: 0.0004157148447 | DG30: 0.0004157148447 | DH30: 0.0004157148447 | DI30: 0.0004157148447 | DJ30: 0.0004157148447 | DK30: 0.0004157148447 | DL30: 0.0004157148447 | DM30: 0.0004157148447 | DN30: 0.0004157148447 | DO30: 0.0004157148447 | DP30: 0.0004157148447 | DQ30: 0.0004157148447 | DR30: 0.0004157148447 | DS30: 0.0004157148447 | DT30: 0.0004157148447 | DU30: 0.0004157148447 | DV30: 0.0004157148447 | DW30: 0.0004157148447 | DX30: 0.0004157148447 | DY30: 0.0004157148447 | DZ30: 0.0004157148447 | EA30: 0.0004157148447 | EB30: 0.0004157148447 | EC30: 0.0004157148447 | ED30: 0.0004157148447 | EE30: 0.0004157148447 | EF30: 0.0004157148447 | EG30: 0.0004157148447 | EH30: 0.0004157148447 | EI30: =$G$30*EI9 -> 0.0004157148447 | EJ30: 0.0004157148447 | EK30: 0.0004157148447 | EL30: 0.0004157148447 | EM30: 0.0004157148447 | EN30: 0.0004157148447 | EO30: 0.0004157148447 | EP30: 0.0004157148447 | EQ30: 0.0004157148447 | ER30: 0.0004157148447 | ES30: 0.0004157148447 | ET30: 0.0004157148447 | EU30: 0.0004157148447 | EV30: 0.0004157148447 | EW30: 0.0004157148447 | EX30: 0.0004157148447 | EY30: 0.0004157148447 | EZ30: 0.0004157148447 | FA30: 0.0004157148447 | FB30: 0.0004157148447 | FC30: 0.0004157148447 | FD30: 0.0004157148447 | FE30: 0.0004157148447 | FF30: 0.0004157148447 | FG30: 0.0004157148447 | FH30: 0.0004157148447 | FI30: 0.0004157148447 | FJ30: 0.0004157148447 | FK30: 0.0004157148447 | FL30: 0.0004157148447 | FM30: 0.0004157148447 | FN30: 0.0004157148447 | FO30: 0.0004157148447 | FP30: 0.0004157148447 | FQ30: 0.0004157148447 | FR30: 0.0004157148447 | FS30: 0.0004157148447 | FT30: 0.0004157148447 | FU30: 0.0004157148447 | FV30: 0.0004157148447 | FW30: 0.0004157148447 | FX30: 0.0004157148447 | FY30: 0.0004157148447 | FZ30: 0.0004157148447 | GA30: 0.0004157148447 | GB30: 0.0004157148447 | GC30: 0.0004157148447 | GD30: 0.0004157148447 | GE30: 0.0004157148447 | GF30: 0.0004157148447 | GG30: 0.0004157148447 | GH30: 0.0004157148447 | GI30: 0.0004157148447 | GJ30: 0.0004157148447 | GK30: 0.0004157148447 | GL30: 0.0004157148447 | GM30: 0.0004157148447 | GN30: 0.0004157148447 | GO30: 0.0004157148447 | GP30: 0.0004157148447 | GQ30: 0.0004157148447 | GR30: 0.0004157148447 | GS30: 0.0004157148447 | GT30: 0.0004157148447 | GU30: =$G$30*GU9 -> 0.0004157148447 | GV30: 0.0004157148447 | GW30: 0.0004157148447 | GX30: 0.0004157148447 | GY30: 0.0004157148447 | GZ30: 0.0004157148447 | HA30: 0.0004157148447 | HB30: 0.0004157148447 | HC30: 0.0004157148447 | HD30: 0.0004157148447 | HE30: 0.0004157148447 | HF30: 0.0004157148447 | HG30: 0.0004157148447 | HH30: 0.0004157148447 | HI30: 0.0004157148447 | HJ30: 0.0004157148447 | HK30: 0.0004157148447 | HL30: 0.0004157148447 | HM30: 0.0004157148447 | HN30: 0.0004157148447 | HO30: 0.0004157148447 | HP30: 0.0004157148447 | HQ30: 0.0004157148447 | HR30: 0.0004157148447 | HS30: 0.0004157148447 | HT30: 0.0004157148447 | HU30: 0.0004157148447 | HV30: 0.0004157148447 | HW30: 0.0004157148447 | HX30: 0.0004157148447 | HY30: 0.0004157148447 | HZ30: 0.0004157148447 | IA30: 0.0004157148447 | IB30: 0.0004157148447 | IC30: 0.0004157148447 | ID30: 0.0004157148447 | IE30: 0.0004157148447 | IF30: 0.0004157148447 | IG30: 0.0004157148447 | IH30: 0.0004157148447 | II30: 0.0004157148447 | IJ30: 0.0004157148447 | IK30: 0.0004157148447 | IL30: 0.0004157148447 | IM30: 0.0004157148447 | IN30: 0.0004157148447 | IO30: 0.0004157148447 | IP30: 0.0004157148447 | IQ30: 0.0004157148447 | IR30: 0.0004157148447 | IS30: 0.0004157148447 | IT30: 0.0004157148447 | IU30: 0.0004157148447 | IV30: 0.0004157148447 | IW30: 0.0004157148447 | IX30: 0.0004157148447 | IY30: 0.0004157148447 | IZ30: 0.0004157148447 | JA30: 0.0004157148447 | JB30: 0.0004157148447 | JC30: 0.0004157148447 | JD30: 0.0004157148447 | JE30: 0.0004157148447 | JF30: 0.0004157148447 | JG30: =$G$30*JG9 -> 0.0004157148447 | JH30: 0.0004157148447 | JI30: 0.0004157148447 | JJ30: 0.0004157148447 | JK30: 0.0004157148447 | JL30: 0.0004157148447 | JM30: 0.0004157148447 | JN30: 0.0004157148447 | JO30: 0.0004157148447 | JP30: 0.0004157148447 | JQ30: 0.0004157148447 | JR30: 0.0004157148447 | JS30: 0.0004157148447 | JT30: 0.0004157148447 | JU30: 0.0004157148447 | JV30: 0.0004157148447 | JW30: 0.0004157148447 | JX30: 0.0004157148447 | JY30: 0.0004157148447 | JZ30: 0.0004157148447 | KA30: 0.0004157148447 | KB30: 0.0004157148447 | KC30: 0.0004157148447 | KD30: 0.0004157148447 | KE30: 0.0004157148447 | KF30: 0.0004157148447 | KG30: 0.0004157148447 | KH30: 0.0004157148447 | KI30: 0.0004157148447 | KJ30: 0.0004157148447 | KK30: 0.0004157148447 | KL30: 0.0004157148447 | KM30: 0.0004157148447 | KN30: 0.0004157148447 | KO30: 0.0004157148447 | KP30: 0.0004157148447 | KQ30: 0.0004157148447 | KR30: 0.0004157148447 | KS30: 0.0004157148447 | KT30: 0.0004157148447 | KU30: 0.0004157148447 | KV30: 0.0004157148447 | KW30: 0.0004157148447 | KX30: 0.0004157148447 | KY30: 0.0004157148447 | KZ30: 0.0004157148447 | LA30: 0.0004157148447 | LB30: 0.0004157148447 | LC30: 0.0004157148447 | LD30: 0.0004157148447 | LE30: 0.0004157148447 | LF30: 0.0004157148447 | LG30: 0.0004157148447 | LH30: 0.0004157148447 | LI30: 0.0004157148447 | LJ30: 0.0004157148447 | LK30: 0.0004157148447 | LL30: 0.0004157148447 | LM30: 0.0004157148447 | LN30: 0.0004157148447 | LO30: 0.0004157148447 | LP30: 0.0004157148447 | LQ30: 0.0004157148447 | LR30: 0.0004157148447 | LS30: =$G$30*LS9 -> 0.0004157148447 | LT30: 0.0004157148447 | LU30: 0.0004157148447 | LV30: 0.0004157148447 | LW30: 0.0004157148447 | LX30: 0.0004157148447 | LY30: 0.0004157148447 | LZ30: 0.0004157148447 | MA30: 0.0004157148447 | MB30: 0.0004157148447 | MC30: 0.0004157148447 | MD30: 0.0004157148447 | ME30: 0.0004157148447 | MF30: 0.0004157148447 | MG30: 0.0004157148447 | MH30: 0.0004157148447 | MI30: 0.0004157148447 | MJ30: 0.0004157148447 | MK30: 0.0004157148447 | ML30: 0.0004157148447 | MM30: 0.0004157148447 | MN30: 0.0004157148447 | MO30: 0.0004157148447 | MP30: 0.0004157148447 | MQ30: 0.0004157148447 | MR30: 0.0004157148447 | MS30: 0.0004157148447 | MT30: 0.0004157148447 | MU30: 0.0004157148447 | MV30: 0.0004157148447 | MW30: 0.0004157148447 | MX30: 0.0004157148447 | MY30: 0.0004157148447 | MZ30: 0.0004157148447 | NA30: 0.0004157148447 | NB30: 0.0004157148447 | NC30: 0.0004157148447 | ND30: 0.0004157148447 | NE30: 0.0004157148447 | NF30: 0.0004157148447 | NG30: 0.0004157148447 | NH30: 0.0004157148447 | NI30: 0.0004157148447 | NJ30: 0.0004157148447 | NK30: 0.0004157148447 | NL30: 0.0004157148447 | NM30: 0.0004157148447 | NN30: 0.0004157148447 | NO30: 0.0004157148447 | NP30: 0.0004157148447 | NQ30: 0.0004157148447 | NR30: 0.0004157148447 | NS30: 0.0004157148447 | NT30: 0.0004157148447 | NU30: 0.0004157148447 | NV30: 0.0004157148447 | NW30: 0.0004157148447 | NX30: 0.0004157148447 | NY30: 0.0004157148447 | NZ30: 0.0004157148447 | OA30: 0.0004157148447 | OB30: 0.0004157148447 | OC30: 0.0004157148447 | OD30: 0.0004157148447 | OE30: =$G$30*OE9 -> 0.0004157148447 | OF30: 0.0004157148447 | OG30: 0.0004157148447 | OH30: 0.0004157148447 | OI30: 0.0004157148447 | OJ30: 0.0004157148447 | OK30: 0.0004157148447 | OL30: 0.0004157148447 | OM30: 0.0004157148447 | ON30: 0.0004157148447 | OO30: 0.0004157148447 | OP30: 0.0004157148447 | OQ30: 0.0004157148447 | OR30: 0.0004157148447 | OS30: 0.0004157148447 | OT30: 0.0004157148447 | OU30: 0.0004157148447 | OV30: 0.0004157148447 | OW30: 0.0004157148447 | OX30: 0.0004157148447 | OY30: 0.0004157148447 | OZ30: 0.0004157148447 | PA30: 0.0004157148447 | PB30: 0.0004157148447 | PC30: 0.0004157148447 | PD30: 0.0004157148447 | PE30: 0.0004157148447 | PF30: 0.0004157148447 | PG30: 0.0004157148447 | PH30: 0.0004157148447 | PI30: 0.0004157148447 | PJ30: 0.0004157148447 | PK30: 0.0004157148447 | PL30: 0.0004157148447 | PM30: 0.0004157148447 | PN30: 0.0004157148447 | PO30: 0.0004157148447 | PP30: 0.0004157148447 | PQ30: 0.0004157148447 | PR30: 0.0004157148447 | PS30: 0.0004157148447 | PT30: 0.0004157148447 | PU30: 0.0004157148447 | PV30: 0.0004157148447 | PW30: 0.0004157148447 | PX30: 0.0004157148447 | PY30: 0.0004157148447 | PZ30: 0.0004157148447 | QA30: 0.0004157148447 | QB30: 0.0004157148447 | QC30: 0.0004157148447 | QD30: 0.0004157148447 | QE30: 0.0004157148447 | QF30: 0 | QG30: 0 | QH30: 0 | QI30: 0 | QJ30: 0 | QK30: 0 | QL30: 0 | QM30: 0 | QN30: 0 | QO30: 0 | QP30: 0 | QQ30: =$G$30*QQ9 -> 0 | QR30: 0 | QS30: 0 | QT30: 0 | QU30: 0 | QV30: 0 | QW30: 0 | QX30: 0 | QY30: 0 | QZ30: 0 | RA30: 0 | RB30: 0 | RC30: 0 | RD30: 0 | RE30: 0 | RF30: 0 | RG30: 0 | RH30: 0 | RI30: 0 | RJ30: 0 | RK30: 0 | RL30: 0 | RM30: 0 | RN30: 0 | RO30: 0 | RP30: 0 | RQ30: 0 | RR30: 0 | RS30: 0 | RT30: 0 | RU30: 0 | RV30: 0 | RW30: 0 | RX30: 0 | RY30: 0 | RZ30: 0 | SA30: 0 | SB30: 0 | SC30: 0 | SD30: 0 | SE30: 0 | SF30: 0 | SG30: 0 | SH30: 0 | SI30: 0 | SJ30: 0 | SK30: 0 | SL30: 0 | SM30: 0 | SN30: 0 | SO30: 0
C31: Degradation Index | E31: Index | H31: 1 | J31: =H31*(1+J30) -> 1 | K31: =J31*(1+K30) -> 1 | L31: 1 | M31: 1 | N31: 1 | O31: 1 | P31: 1 | Q31: 1 | R31: 1 | S31: 1 | T31: 1 | U31: 1 | V31: 1 | W31: 1 | X31: 1 | Y31: 1 | Z31: 1 | AA31: 1 | AB31: 1.000415715 | AC31: 1.000831603 | AD31: 1.001247663 | AE31: 1.001663897 | AF31: 1.002080303 | AG31: 1.002496883 | AH31: 1.002913636 | AI31: 1.003330562 | AJ31: 1.003747661 | AK31: 1.004164934 | AL31: 1.00458238 | AM31: 1.005 | AN31: 1.005417793 | AO31: 1.005835761 | AP31: 1.006253901 | AQ31: 1.006672216 | AR31: 1.007090705 | AS31: 1.007509367 | AT31: 1.007928204 | AU31: 1.008347215 | AV31: 1.008766399 | AW31: 1.009185759 | AX31: 1.009605292 | AY31: 1.010025 | AZ31: 1.010444882 | BA31: 1.010864939 | BB31: 1.011285171 | BC31: 1.011705577 | BD31: 1.012126158 | BE31: 1.012546914 | BF31: 1.012967845 | BG31: 1.013388951 | BH31: 1.013810231 | BI31: 1.014231687 | BJ31: 1.014653319 | BK31: 1.015075125 | BL31: 1.015497107 | BM31: 1.015919264 | BN31: 1.016341597 | BO31: 1.016764105 | BP31: 1.017186789 | BQ31: 1.017609649 | BR31: 1.018032684 | BS31: 1.018455895 | BT31: 1.018879283 | BU31: 1.019302846 | BV31: 1.019726585 | BW31: =BV31*(1+BW30) -> 1.020150501 | BX31: 1.020574592 | BY31: 1.02099886 | BZ31: 1.021423305 | CA31: 1.021847926 | CB31: 1.022272723 | CC31: 1.022697697 | CD31: 1.023122847 | CE31: 1.023548175 | CF31: 1.023973679 | CG31: 1.02439936 | CH31: 1.024825218 | CI31: 1.025251253 | CJ31: 1.025677465 | CK31: 1.026103855 | CL31: 1.026530421 | CM31: 1.026957165 | CN31: 1.027384087 | CO31: 1.027811185 | CP31: 1.028238462 | CQ31: 1.028665916 | CR31: 1.029093547 | CS31: 1.029521357 | CT31: 1.029949344 | CU31: 1.030377509 | CV31: 1.030805853 | CW31: 1.031234374 | CX31: 1.031663073 | CY31: 1.032091951 | CZ31: 1.032521007 | DA31: 1.032950241 | DB31: 1.033379654 | DC31: 1.033809245 | DD31: 1.034239015 | DE31: 1.034668964 | DF31: 1.035099091 | DG31: 1.035529397 | DH31: 1.035959882 | DI31: 1.036390546 | DJ31: 1.036821389 | DK31: 1.037252411 | DL31: 1.037683612 | DM31: 1.038114992 | DN31: 1.038546552 | DO31: 1.038978292 | DP31: 1.03941021 | DQ31: 1.039842308 | DR31: 1.040274586 | DS31: 1.040707044 | DT31: 1.041139681 | DU31: 1.041572499 | DV31: 1.042005496 | DW31: 1.042438673 | DX31: 1.04287203 | DY31: 1.043305567 | DZ31: 1.043739285 | EA31: 1.044173183 | EB31: 1.044607261 | EC31: 1.04504152 | ED31: 1.045475959 | EE31: 1.045910579 | EF31: 1.04634538 | EG31: 1.046780361 | EH31: 1.047215523 | EI31: =EH31*(1+EI30) -> 1.047650866 | EJ31: 1.04808639 | EK31: 1.048522095 | EL31: 1.048957981 | EM31: 1.049394049 | EN31: 1.049830298 | EO31: 1.050266728 | EP31: 1.050703339 | EQ31: 1.051140132 | ER31: 1.051577107 | ES31: 1.052014263 | ET31: 1.052451601 | EU31: 1.052889121 | EV31: 1.053326822 | EW31: 1.053764706 | EX31: 1.054202771 | EY31: 1.054641019 | EZ31: 1.055079449 | FA31: 1.055518061 | FB31: 1.055956856 | FC31: 1.056395833 | FD31: 1.056834992 | FE31: 1.057274334 | FF31: 1.057713859 | FG31: 1.058153566 | FH31: 1.058593456 | FI31: 1.059033529 | FJ31: 1.059473785 | FK31: 1.059914224 | FL31: 1.060354846 | FM31: 1.060795652 | FN31: 1.06123664 | FO31: 1.061677812 | FP31: 1.062119167 | FQ31: 1.062560706 | FR31: 1.063002428 | FS31: 1.063444334 | FT31: 1.063886424 | FU31: 1.064328697 | FV31: 1.064771154 | FW31: 1.065213795 | FX31: 1.065656621 | FY31: 1.06609963 | FZ31: 1.066542823 | GA31: 1.066986201 | GB31: 1.067429763 | GC31: 1.067873509 | GD31: 1.06831744 | GE31: 1.068761556 | GF31: 1.069205856 | GG31: 1.06965034 | GH31: 1.07009501 | GI31: 1.070539864 | GJ31: 1.070984904 | GK31: 1.071430128 | GL31: 1.071875537 | GM31: 1.072321132 | GN31: 1.072766912 | GO31: 1.073212877 | GP31: 1.073659027 | GQ31: 1.074105363 | GR31: 1.074551885 | GS31: 1.074998592 | GT31: 1.075445485 | GU31: =GT31*(1+GU30) -> 1.075892564 | GV31: 1.076339828 | GW31: 1.076787279 | GX31: 1.077234915 | GY31: 1.077682738 | GZ31: 1.078130746 | HA31: 1.078578941 | HB31: 1.079027323 | HC31: 1.07947589 | HD31: 1.079924644 | HE31: 1.080373585 | HF31: 1.080822712 | HG31: 1.081272026 | HH31: 1.081721527 | HI31: 1.082171215 | HJ31: 1.08262109 | HK31: 1.083071151 | HL31: 1.0835214 | HM31: 1.083971836 | HN31: 1.084422459 | HO31: 1.08487327 | HP31: 1.085324268 | HQ31: 1.085775453 | HR31: 1.086226826 | HS31: 1.086678387 | HT31: 1.087130135 | HU31: 1.087582071 | HV31: 1.088034195 | HW31: 1.088486507 | HX31: 1.088939007 | HY31: 1.089391695 | HZ31: 1.089844571 | IA31: 1.090297636 | IB31: 1.090750889 | IC31: 1.09120433 | ID31: 1.09165796 | IE31: 1.092111779 | IF31: 1.092565786 | IG31: 1.093019981 | IH31: 1.093474366 | II31: 1.09392894 | IJ31: 1.094383702 | IK31: 1.094838654 | IL31: 1.095293794 | IM31: 1.095749124 | IN31: 1.096204643 | IO31: 1.096660352 | IP31: 1.09711625 | IQ31: 1.097572337 | IR31: 1.098028615 | IS31: 1.098485081 | IT31: 1.098941738 | IU31: 1.099398584 | IV31: 1.099855621 | IW31: 1.100312847 | IX31: 1.100770263 | IY31: 1.10122787 | IZ31: 1.101685667 | JA31: 1.102143654 | JB31: 1.102601831 | JC31: 1.103060199 | JD31: 1.103518758 | JE31: 1.103977507 | JF31: 1.104436447 | JG31: =JF31*(1+JG30) -> 1.104895577 | JH31: 1.105354899 | JI31: 1.105814411 | JJ31: 1.106274115 | JK31: 1.106734009 | JL31: 1.107194095 | JM31: 1.107654372 | JN31: 1.10811484 | JO31: 1.1085755 | JP31: 1.109036351 | JQ31: 1.109497394 | JR31: 1.109958629 | JS31: 1.110420055 | JT31: 1.110881673 | JU31: 1.111343483 | JV31: 1.111805485 | JW31: 1.112267679 | JX31: 1.112730065 | JY31: 1.113192644 | JZ31: 1.113655415 | KA31: 1.114118378 | KB31: 1.114581533 | KC31: 1.115044881 | KD31: 1.115508422 | KE31: 1.115972155 | KF31: 1.116436082 | KG31: 1.116900201 | KH31: 1.117364513 | KI31: 1.117829018 | KJ31: 1.118293716 | KK31: 1.118758607 | KL31: 1.119223692 | KM31: 1.119688969 | KN31: 1.120154441 | KO31: 1.120620106 | KP31: 1.121085964 | KQ31: 1.121552016 | KR31: 1.122018262 | KS31: 1.122484702 | KT31: 1.122951335 | KU31: 1.123418163 | KV31: 1.123885184 | KW31: 1.1243524 | KX31: 1.12481981 | KY31: 1.125287414 | KZ31: 1.125755213 | LA31: 1.126223206 | LB31: 1.126691394 | LC31: 1.127159776 | LD31: 1.127628353 | LE31: 1.128097125 | LF31: 1.128566092 | LG31: 1.129035254 | LH31: 1.12950461 | LI31: 1.129974162 | LJ31: 1.130443909 | LK31: 1.130913851 | LL31: 1.131383989 | LM31: 1.131854322 | LN31: 1.132324851 | LO31: 1.132795575 | LP31: 1.133266495 | LQ31: 1.133737611 | LR31: 1.134208922 | LS31: =LR31*(1+LS30) -> 1.13468043 | LT31: 1.135152133 | LU31: 1.135624033 | LV31: 1.136096129 | LW31: 1.136568421 | LX31: 1.137040909 | LY31: 1.137513594 | LZ31: 1.137986475 | MA31: 1.138459553 | MB31: 1.138932827 | MC31: 1.139406299 | MD31: 1.139879967 | ME31: 1.140353832 | MF31: 1.140827894 | MG31: 1.141302153 | MH31: 1.141776609 | MI31: 1.142251263 | MJ31: 1.142726114 | MK31: 1.143201162 | ML31: 1.143676407 | MM31: 1.144151851 | MN31: 1.144627492 | MO31: 1.14510333 | MP31: 1.145579367 | MQ31: 1.146055601 | MR31: 1.146532033 | MS31: 1.147008664 | MT31: 1.147485492 | MU31: 1.147962519 | MV31: 1.148439744 | MW31: 1.148917168 | MX31: 1.14939479 | MY31: 1.14987261 | MZ31: 1.150350629 | NA31: 1.150828847 | NB31: 1.151307264 | NC31: 1.151785879 | ND31: 1.152264694 | NE31: 1.152743707 | NF31: 1.15322292 | NG31: 1.153702332 | NH31: 1.154181943 | NI31: 1.154661753 | NJ31: 1.155141763 | NK31: 1.155621973 | NL31: 1.156102382 | NM31: 1.156582991 | NN31: 1.1570638 | NO31: 1.157544808 | NP31: 1.158026017 | NQ31: 1.158507426 | NR31: 1.158989034 | NS31: 1.159470843 | NT31: 1.159952853 | NU31: 1.160435062 | NV31: 1.160917472 | NW31: 1.161400083 | NX31: 1.161882894 | NY31: 1.162365906 | NZ31: 1.162849119 | OA31: 1.163332533 | OB31: 1.163816147 | OC31: 1.164299963 | OD31: 1.16478398 | OE31: =OD31*(1+OE30) -> 1.165268198 | OF31: 1.165752617 | OG31: 1.166237237 | OH31: 1.16672206 | OI31: 1.167207083 | OJ31: 1.167692309 | OK31: 1.168177736 | OL31: 1.168663364 | OM31: 1.169149195 | ON31: 1.169635228 | OO31: 1.170121463 | OP31: 1.170607899 | OQ31: 1.171094539 | OR31: 1.17158138 | OS31: 1.172068424 | OT31: 1.17255567 | OU31: 1.173043119 | OV31: 1.17353077 | OW31: 1.174018624 | OX31: 1.174506681 | OY31: 1.174994941 | OZ31: 1.175483404 | PA31: 1.17597207 | PB31: 1.176460939 | PC31: 1.176950011 | PD31: 1.177439287 | PE31: 1.177928766 | PF31: 1.178418448 | PG31: 1.178908334 | PH31: 1.179398424 | PI31: 1.179888717 | PJ31: 1.180379215 | PK31: 1.180869916 | PL31: 1.181360821 | PM31: 1.18185193 | PN31: 1.182343244 | PO31: 1.182834761 | PP31: 1.183326483 | PQ31: 1.18381841 | PR31: 1.184310541 | PS31: 1.184802876 | PT31: 1.185295416 | PU31: 1.185788161 | PV31: 1.186281111 | PW31: 1.186774265 | PX31: 1.187267625 | PY31: 1.18776119 | PZ31: 1.18825496 | QA31: 1.188748935 | QB31: 1.189243116 | QC31: 1.189737502 | QD31: 1.190232093 | QE31: 1.19072689 | QF31: 1.19072689 | QG31: 1.19072689 | QH31: 1.19072689 | QI31: 1.19072689 | QJ31: 1.19072689 | QK31: 1.19072689 | QL31: 1.19072689 | QM31: 1.19072689 | QN31: 1.19072689 | QO31: 1.19072689 | QP31: 1.19072689 | QQ31: =QP31*(1+QQ30) -> 1.19072689 | QR31: 1.19072689 | QS31: 1.19072689 | QT31: 1.19072689 | QU31: 1.19072689 | QV31: 1.19072689 | QW31: 1.19072689 | QX31: 1.19072689 | QY31: 1.19072689 | QZ31: 1.19072689 | RA31: 1.19072689 | RB31: 1.19072689 | RC31: 1.19072689 | RD31: 1.19072689 | RE31: 1.19072689 | RF31: 1.19072689 | RG31: 1.19072689 | RH31: 1.19072689 | RI31: 1.19072689 | RJ31: 1.19072689 | RK31: 1.19072689 | RL31: 1.19072689 | RM31: 1.19072689 | RN31: 1.19072689 | RO31: 1.19072689 | RP31: 1.19072689 | RQ31: 1.19072689 | RR31: 1.19072689 | RS31: 1.19072689 | RT31: 1.19072689 | RU31: 1.19072689 | RV31: 1.19072689 | RW31: 1.19072689 | RX31: 1.19072689 | RY31: 1.19072689 | RZ31: 1.19072689 | SA31: 1.19072689 | SB31: 1.19072689 | SC31: 1.19072689 | SD31: 1.19072689 | SE31: 1.19072689 | SF31: 1.19072689 | SG31: 1.19072689 | SH31: 1.19072689 | SI31: 1.19072689 | SJ31: 1.19072689 | SK31: 1.19072689 | SL31: 1.19072689 | SM31: 1.19072689 | SN31: 1.19072689 | SO31: 1.19072689
C32: Production with Degradation - P50 | E32: kWh | H32: =SUM(J32:XFD32) -> 842107229.7 | J32: =J29/J31 -> 0 | K32: =K29/K31 -> 0 | L32: 0 | M32: 0 | N32: 0 | O32: 0 | P32: 0 | Q32: 0 | R32: 0 | S32: 0 | T32: 0 | U32: 0 | V32: 0 | W32: 0 | X32: 0 | Y32: 0 | Z32: 0 | AA32: 0 | AB32: 1572951.101 | AC32: 1834347.052 | AD32: 2226495.833 | AE32: 2225570.631 | AF32: 2617230.367 | AG32: 2616142.798 | AH32: 2615055.681 | AI32: 2483270.564 | AJ32: 2482238.661 | AK32: 2089437.63 | AL32: 1827498.208 | AM32: 1565776.119 | AN32: 1565125.474 | AO32: 1825220.948 | AP32: 2215418.74 | AQ32: 2214498.14 | AR32: 2604209.321 | AS32: 2603127.162 | AT32: 2602045.453 | AU32: 2470915.984 | AV32: 2469889.215 | AW32: 2079042.418 | AX32: 1818406.178 | AY32: 1557986.188 | AZ32: 1557338.78 | BA32: 1816140.246 | BB32: 2204396.756 | BC32: 2203480.736 | BD32: 2591253.056 | BE32: 2590176.281 | BF32: 2589099.954 | BG32: 2458622.87 | BH32: 2457601.209 | BI32: 2068698.924 | BJ32: 1809359.381 | BK32: 1550235.013 | BL32: 1549590.825 | BM32: 1807104.723 | BN32: 2193429.608 | BO32: 2192518.146 | BP32: 2578361.249 | BQ32: 2577289.832 | BR32: 2576218.859 | BS32: 2446390.915 | BT32: 2445374.337 | BU32: 2058406.889 | BV32: 1800357.593 | BW32: =BW29/BW31 -> 1542522.401 | BX32: 1541881.418 | BY32: 1798114.152 | BZ32: 2182517.023 | CA32: 2181610.095 | CB32: 2565533.581 | CC32: 2564467.494 | CD32: 2563401.85 | CE32: 2434219.816 | CF32: 2433208.295 | CG32: 2048166.059 | CH32: 1791400.59 | CI32: 1534848.161 | CJ32: 1534210.367 | CK32: 1789168.31 | CL32: 2171658.729 | CM32: 2170756.313 | CN32: 2552769.733 | CO32: 2551708.949 | CP32: 2550648.607 | CQ32: 2422109.27 | CR32: 2421102.781 | CS32: 2037976.178 | CT32: 1782488.149 | CU32: 1527212.1 | CV32: 1526577.479 | CW32: 1780266.976 | CX32: 2160854.457 | CY32: 2159956.531 | CZ32: 2540069.386 | DA32: 2539013.88 | DB32: 2537958.813 | DC32: 2410058.975 | DD32: 2409057.494 | DE32: 2027836.993 | DF32: 1773620.049 | DG32: 1519614.03 | DH32: 1518982.566 | DI32: 1771409.926 | DJ32: 2150103.937 | DK32: 2149210.478 | DL32: 2527432.225 | DM32: 2526381.97 | DN32: 2525332.152 | DO32: 2398068.632 | DP32: 2397072.133 | DQ32: 2017748.252 | DR32: 1764796.068 | DS32: 1512053.761 | DT32: 1511425.439 | DU32: 1762596.941 | DV32: 2139406.903 | DW32: 2138517.889 | DX32: 2514857.935 | DY32: 2513812.906 | DZ32: 2512768.311 | EA32: 2386137.942 | EB32: 2385146.401 | EC32: 2007709.703 | ED32: 1756015.988 | EE32: 1504531.106 | EF32: 1503905.91 | EG32: 1753827.802 | EH32: 2128763.087 | EI32: =EI29/EI31 -> 2127878.497 | EJ32: 2502346.204 | EK32: 2501306.374 | EL32: 2500266.976 | EM32: 2374266.609 | EN32: 2373280.001 | EO32: 1997721.098 | EP32: 1747279.59 | EQ32: 1497045.876 | ER32: 1496423.791 | ES32: 1745102.291 | ET32: 2118172.226 | EU32: 2117292.036 | EV32: 2489896.72 | EW32: 2488862.064 | EX32: 2487827.837 | EY32: 2362454.337 | EZ32: 2361472.638 | FA32: 1987782.187 | FB32: 1738586.657 | FC32: 1489597.887 | FD32: 1488978.896 | FE32: 1736420.19 | FF32: 2107634.056 | FG32: 2106758.245 | FH32: 2477509.175 | FI32: 2476479.665 | FJ32: 2475450.584 | FK32: 2350700.833 | FL32: 2349724.018 | FM32: 1977892.723 | FN32: 1729936.972 | FO32: 1482186.952 | FP32: 1481571.041 | FQ32: 1727781.283 | FR32: 2097148.314 | FS32: 2096276.861 | FT32: 2465183.258 | FU32: 2464158.871 | FV32: 2463134.909 | FW32: 2339005.804 | FX32: 2338033.849 | FY32: 1968052.461 | FZ32: 1721330.321 | GA32: 1474812.888 | GB32: 1474200.041 | GC32: 1719185.357 | GD32: 2086714.741 | GE32: 2085847.623 | GF32: 2452918.665 | GG32: 2451899.374 | GH32: 2450880.507 | GI32: 2327368.959 | GJ32: 2326401.84 | GK32: 1958261.155 | GL32: 1712766.488 | GM32: 1467475.51 | GN32: 1466865.712 | GO32: 1710632.196 | GP32: 2076333.075 | GQ32: 2075470.271 | GR32: 2440715.089 | GS32: 2439700.87 | GT32: 2438687.071 | GU32: =GU29/GU31 -> 2315790.009 | GV32: 2314827.701 | GW32: 1948518.562 | GX32: 1704245.262 | GY32: 1460174.637 | GZ32: 1459567.873 | HA32: 1702121.588 | HB32: 2066003.06 | HC32: 2065144.549 | HD32: 2428572.228 | HE32: 2427563.054 | HF32: 2426554.3 | HG32: 2304268.666 | HH32: 2303311.145 | HI32: 1938824.44 | HJ32: 1695766.43 | HK32: 1452910.086 | HL32: 1452306.341 | HM32: 1693653.321 | HN32: 2055724.438 | HO32: 2054870.198 | HP32: 2416489.779 | HQ32: 2415485.626 | HR32: 2414481.89 | HS32: 2292804.643 | HT32: 2291851.886 | HU32: 1929178.547 | HV32: 1687329.781 | HW32: 1445681.678 | HX32: 1445080.936 | HY32: 1685227.185 | HZ32: 2045496.953 | IA32: 2044646.963 | IB32: 2404467.442 | IC32: 2403468.285 | ID32: 2402469.543 | IE32: 2281397.655 | IF32: 2280449.638 | IG32: 1919580.644 | IH32: 1678935.105 | II32: 1438489.232 | IJ32: 1437891.479 | IK32: 1676842.97 | IL32: 2035320.351 | IM32: 2034474.59 | IN32: 2392504.918 | IO32: 2391510.731 | IP32: 2390516.958 | IQ32: 2270047.417 | IR32: 2269104.117 | IS32: 1910030.492 | IT32: 1670582.194 | IU32: 1431332.569 | IV32: 1430737.79 | IW32: 1668500.468 | IX32: 2025194.379 | IY32: 2024352.826 | IZ32: 2380601.908 | JA32: 2379612.668 | JB32: 2378623.839 | JC32: 2258753.649 | JD32: 2257815.042 | JE32: 1900527.852 | JF32: 1662270.84 | JG32: =JG29/JG31 -> 1424211.511 | JH32: 1423619.692 | JI32: 1660199.471 | JJ32: 2015118.785 | JK32: 2014281.419 | JL32: 2368758.118 | JM32: 2367773.799 | JN32: 2366789.889 | JO32: 2247516.069 | JP32: 2246582.131 | JQ32: 1891072.49 | JR32: 1654000.836 | JS32: 1417125.882 | JT32: 1416537.007 | JU32: 1651939.772 | JV32: 2005093.319 | JW32: 2004260.118 | JX32: 2356973.251 | JY32: 2355993.83 | JZ32: 2355014.815 | KA32: 2236334.397 | KB32: 2235405.106 | KC32: 1881664.169 | KD32: 1645771.976 | KE32: 1410075.505 | KF32: 1409489.559 | KG32: 1643721.166 | KH32: 1995117.73 | KI32: 1994288.675 | KJ32: 2345247.016 | KK32: 2344272.467 | KL32: 2343298.323 | KM32: 2225208.355 | KN32: 2224283.687 | KO32: 1872302.656 | KP32: 1637584.056 | KQ32: 1403060.204 | KR32: 1402477.173 | KS32: 1635543.449 | KT32: 1985191.771 | KU32: 1984366.84 | KV32: 2333579.121 | KW32: 2332609.42 | KX32: 2331640.123 | KY32: 2214137.667 | KZ32: 2213217.599 | LA32: 1862987.717 | LB32: 1629436.872 | LC32: 1396079.804 | LD32: 1395499.675 | LE32: 1627406.417 | LF32: 1975315.195 | LG32: 1974494.369 | LH32: 2321969.274 | LI32: 2321004.398 | LJ32: 2320039.923 | LK32: 2203122.056 | LL32: 2202206.567 | LM32: 1853719.122 | LN32: 1621330.22 | LO32: 1389134.134 | LP32: 1388556.89 | LQ32: 1619309.867 | LR32: 1965487.756 | LS32: =LS29/LS31 -> 1964671.014 | LT32: 2310417.188 | LU32: 2309457.113 | LV32: 2308497.436 | LW32: 2192161.25 | LX32: 2191250.315 | LY32: 1844496.638 | LZ32: 1613263.901 | MA32: 1382223.019 | MB32: 1381648.647 | MC32: 1611253.599 | MD32: 1955709.21 | ME32: 1954896.531 | MF32: 2298922.575 | MG32: 2297967.276 | MH32: 2297012.374 | MI32: 2181254.975 | MJ32: 2180348.572 | MK32: 1835320.038 | ML32: 1605237.712 | MM32: 1375346.287 | MN32: 1374774.773 | MO32: 1603237.412 | MP32: 1945979.314 | MQ32: 1945170.677 | MR32: 2287485.15 | MS32: 2286534.603 | MT32: 2285584.452 | MU32: 2170402.961 | MV32: 2169501.067 | MW32: 1826189.093 | MX32: 1597251.455 | MY32: 1368503.768 | MZ32: 1367935.098 | NA32: 1595261.107 | NB32: 1936297.825 | NC32: 1935493.211 | ND32: 2276104.627 | NE32: 2275158.809 | NF32: 2274213.385 | NG32: 2159604.936 | NH32: 2158707.529 | NI32: 1817103.575 | NJ32: 1589304.93 | NK32: 1361695.292 | NL32: 1361129.45 | NM32: 1587324.484 | NN32: 1926664.502 | NO32: 1925863.892 | NP32: 2264780.723 | NQ32: 2263839.611 | NR32: 2262898.891 | NS32: 2148860.633 | NT32: 2147967.691 | NU32: 1808063.259 | NV32: 1581397.941 | NW32: 1354920.689 | NX32: 1354357.662 | NY32: 1579427.348 | NZ32: 1917079.107 | OA32: 1916282.48 | OB32: 2253513.157 | OC32: 2252576.728 | OD32: 2251640.687 | OE32: =OE29/OE31 -> 2138169.784 | OF32: 2137281.284 | OG32: 1799067.919 | OH32: 1573530.289 | OI32: 1348179.79 | OJ32: 1347619.564 | OK32: 1571569.5 | OL32: 1907541.4 | OM32: 1906748.736 | ON32: 2242301.649 | OO32: 2241369.878 | OP32: 2240438.495 | OQ32: 2127532.123 | OR32: 2126648.044 | OS32: 1790117.332 | OT32: 1565701.78 | OU32: 1341472.427 | OV32: 1340914.989 | OW32: 1563750.746 | OX32: 1898051.144 | OY32: 1897262.424 | OZ32: 2231145.919 | PA32: 2230218.784 | PB32: 2229292.034 | PC32: 2116947.386 | PD32: 2116067.705 | PE32: 1781211.276 | PF32: 1557912.219 | PG32: 1334798.435 | PH32: 1334243.77 | PI32: 1555970.892 | PJ32: 1888608.103 | PK32: 1887823.307 | PL32: 2220045.691 | PM32: 2219123.168 | PN32: 2218201.029 | PO32: 2106415.31 | PP32: 2105540.005 | PQ32: 1772349.528 | PR32: 1550161.412 | PS32: 1328157.647 | PT32: 1327605.742 | PU32: 1548229.743 | PV32: 1879212.043 | PW32: 1878431.151 | PX32: 2209000.687 | PY32: 2208082.755 | PZ32: 2207165.203 | QA32: 2095935.632 | QB32: 2095064.682 | QC32: 1763531.869 | QD32: 1542449.166 | QE32: 1321549.898 | QF32: 0 | QG32: 0 | QH32: 0 | QI32: 0 | QJ32: 0 | QK32: 0 | QL32: 0 | QM32: 0 | QN32: 0 | QO32: 0 | QP32: 0 | QQ32: =QQ29/QQ31 -> 0 | QR32: 0 | QS32: 0 | QT32: 0 | QU32: 0 | QV32: 0 | QW32: 0 | QX32: 0 | QY32: 0 | QZ32: 0 | RA32: 0 | RB32: 0 | RC32: 0 | RD32: 0 | RE32: 0 | RF32: 0 | RG32: 0 | RH32: 0 | RI32: 0 | RJ32: 0 | RK32: 0 | RL32: 0 | RM32: 0 | RN32: 0 | RO32: 0 | RP32: 0 | RQ32: 0 | RR32: 0 | RS32: 0 | RT32: 0 | RU32: 0 | RV32: 0 | RW32: 0 | RX32: 0 | RY32: 0 | RZ32: 0 | SA32: 0 | SB32: 0 | SC32: 0 | SD32: 0 | SE32: 0 | SF32: 0 | SG32: 0 | SH32: 0 | SI32: 0 | SJ32: 0 | SK32: 0 | SL32: 0 | SM32: 0 | SN32: 0 | SO32: 0
C34: Yield P90 - Annual | E34: kWh/kWp | F34: =InputC!F39 -> 1658.820847 | J34: =$F$34*J9 -> 0 | K34: =$F$34*K9 -> 0 | L34: 0 | M34: 0 | N34: 0 | O34: 0 | P34: 0 | Q34: 0 | R34: 0 | S34: 0 | T34: 0 | U34: 0 | V34: 0 | W34: 0 | X34: 0 | Y34: 0 | Z34: 0 | AA34: 0 | AB34: 1658.820847 | AC34: 1658.820847 | AD34: 1658.820847 | AE34: 1658.820847 | AF34: 1658.820847 | AG34: 1658.820847 | AH34: 1658.820847 | AI34: 1658.820847 | AJ34: 1658.820847 | AK34: 1658.820847 | AL34: 1658.820847 | AM34: 1658.820847 | AN34: 1658.820847 | AO34: 1658.820847 | AP34: 1658.820847 | AQ34: 1658.820847 | AR34: 1658.820847 | AS34: 1658.820847 | AT34: 1658.820847 | AU34: 1658.820847 | AV34: 1658.820847 | AW34: 1658.820847 | AX34: 1658.820847 | AY34: 1658.820847 | AZ34: 1658.820847 | BA34: 1658.820847 | BB34: 1658.820847 | BC34: 1658.820847 | BD34: 1658.820847 | BE34: 1658.820847 | BF34: 1658.820847 | BG34: 1658.820847 | BH34: 1658.820847 | BI34: 1658.820847 | BJ34: 1658.820847 | BK34: 1658.820847 | BL34: 1658.820847 | BM34: 1658.820847 | BN34: 1658.820847 | BO34: 1658.820847 | BP34: 1658.820847 | BQ34: 1658.820847 | BR34: 1658.820847 | BS34: 1658.820847 | BT34: 1658.820847 | BU34: 1658.820847 | BV34: 1658.820847 | BW34: =$F$34*BW9 -> 1658.820847 | BX34: 1658.820847 | BY34: 1658.820847 | BZ34: 1658.820847 | CA34: 1658.820847 | CB34: 1658.820847 | CC34: 1658.820847 | CD34: 1658.820847 | CE34: 1658.820847 | CF34: 1658.820847 | CG34: 1658.820847 | CH34: 1658.820847 | CI34: 1658.820847 | CJ34: 1658.820847 | CK34: 1658.820847 | CL34: 1658.820847 | CM34: 1658.820847 | CN34: 1658.820847 | CO34: 1658.820847 | CP34: 1658.820847 | CQ34: 1658.820847 | CR34: 1658.820847 | CS34: 1658.820847 | CT34: 1658.820847 | CU34: 1658.820847 | CV34: 1658.820847 | CW34: 1658.820847 | CX34: 1658.820847 | CY34: 1658.820847 | CZ34: 1658.820847 | DA34: 1658.820847 | DB34: 1658.820847 | DC34: 1658.820847 | DD34: 1658.820847 | DE34: 1658.820847 | DF34: 1658.820847 | DG34: 1658.820847 | DH34: 1658.820847 | DI34: 1658.820847 | DJ34: 1658.820847 | DK34: 1658.820847 | DL34: 1658.820847 | DM34: 1658.820847 | DN34: 1658.820847 | DO34: 1658.820847 | DP34: 1658.820847 | DQ34: 1658.820847 | DR34: 1658.820847 | DS34: 1658.820847 | DT34: 1658.820847 | DU34: 1658.820847 | DV34: 1658.820847 | DW34: 1658.820847 | DX34: 1658.820847 | DY34: 1658.820847 | DZ34: 1658.820847 | EA34: 1658.820847 | EB34: 1658.820847 | EC34: 1658.820847 | ED34: 1658.820847 | EE34: 1658.820847 | EF34: 1658.820847 | EG34: 1658.820847 | EH34: 1658.820847 | EI34: =$F$34*EI9 -> 1658.820847 | EJ34: 1658.820847 | EK34: 1658.820847 | EL34: 1658.820847 | EM34: 1658.820847 | EN34: 1658.820847 | EO34: 1658.820847 | EP34: 1658.820847 | EQ34: 1658.820847 | ER34: 1658.820847 | ES34: 1658.820847 | ET34: 1658.820847 | EU34: 1658.820847 | EV34: 1658.820847 | EW34: 1658.820847 | EX34: 1658.820847 | EY34: 1658.820847 | EZ34: 1658.820847 | FA34: 1658.820847 | FB34: 1658.820847 | FC34: 1658.820847 | FD34: 1658.820847 | FE34: 1658.820847 | FF34: 1658.820847 | FG34: 1658.820847 | FH34: 1658.820847 | FI34: 1658.820847 | FJ34: 1658.820847 | FK34: 1658.820847 | FL34: 1658.820847 | FM34: 1658.820847 | FN34: 1658.820847 | FO34: 1658.820847 | FP34: 1658.820847 | FQ34: 1658.820847 | FR34: 1658.820847 | FS34: 1658.820847 | FT34: 1658.820847 | FU34: 1658.820847 | FV34: 1658.820847 | FW34: 1658.820847 | FX34: 1658.820847 | FY34: 1658.820847 | FZ34: 1658.820847 | GA34: 1658.820847 | GB34: 1658.820847 | GC34: 1658.820847 | GD34: 1658.820847 | GE34: 1658.820847 | GF34: 1658.820847 | GG34: 1658.820847 | GH34: 1658.820847 | GI34: 1658.820847 | GJ34: 1658.820847 | GK34: 1658.820847 | GL34: 1658.820847 | GM34: 1658.820847 | GN34: 1658.820847 | GO34: 1658.820847 | GP34: 1658.820847 | GQ34: 1658.820847 | GR34: 1658.820847 | GS34: 1658.820847 | GT34: 1658.820847 | GU34: =$F$34*GU9 -> 1658.820847 | GV34: 1658.820847 | GW34: 1658.820847 | GX34: 1658.820847 | GY34: 1658.820847 | GZ34: 1658.820847 | HA34: 1658.820847 | HB34: 1658.820847 | HC34: 1658.820847 | HD34: 1658.820847 | HE34: 1658.820847 | HF34: 1658.820847 | HG34: 1658.820847 | HH34: 1658.820847 | HI34: 1658.820847 | HJ34: 1658.820847 | HK34: 1658.820847 | HL34: 1658.820847 | HM34: 1658.820847 | HN34: 1658.820847 | HO34: 1658.820847 | HP34: 1658.820847 | HQ34: 1658.820847 | HR34: 1658.820847 | HS34: 1658.820847 | HT34: 1658.820847 | HU34: 1658.820847 | HV34: 1658.820847 | HW34: 1658.820847 | HX34: 1658.820847 | HY34: 1658.820847 | HZ34: 1658.820847 | IA34: 1658.820847 | IB34: 1658.820847 | IC34: 1658.820847 | ID34: 1658.820847 | IE34: 1658.820847 | IF34: 1658.820847 | IG34: 1658.820847 | IH34: 1658.820847 | II34: 1658.820847 | IJ34: 1658.820847 | IK34: 1658.820847 | IL34: 1658.820847 | IM34: 1658.820847 | IN34: 1658.820847 | IO34: 1658.820847 | IP34: 1658.820847 | IQ34: 1658.820847 | IR34: 1658.820847 | IS34: 1658.820847 | IT34: 1658.820847 | IU34: 1658.820847 | IV34: 1658.820847 | IW34: 1658.820847 | IX34: 1658.820847 | IY34: 1658.820847 | IZ34: 1658.820847 | JA34: 1658.820847 | JB34: 1658.820847 | JC34: 1658.820847 | JD34: 1658.820847 | JE34: 1658.820847 | JF34: 1658.820847 | JG34: =$F$34*JG9 -> 1658.820847 | JH34: 1658.820847 | JI34: 1658.820847 | JJ34: 1658.820847 | JK34: 1658.820847 | JL34: 1658.820847 | JM34: 1658.820847 | JN34: 1658.820847 | JO34: 1658.820847 | JP34: 1658.820847 | JQ34: 1658.820847 | JR34: 1658.820847 | JS34: 1658.820847 | JT34: 1658.820847 | JU34: 1658.820847 | JV34: 1658.820847 | JW34: 1658.820847 | JX34: 1658.820847 | JY34: 1658.820847 | JZ34: 1658.820847 | KA34: 1658.820847 | KB34: 1658.820847 | KC34: 1658.820847 | KD34: 1658.820847 | KE34: 1658.820847 | KF34: 1658.820847 | KG34: 1658.820847 | KH34: 1658.820847 | KI34: 1658.820847 | KJ34: 1658.820847 | KK34: 1658.820847 | KL34: 1658.820847 | KM34: 1658.820847 | KN34: 1658.820847 | KO34: 1658.820847 | KP34: 1658.820847 | KQ34: 1658.820847 | KR34: 1658.820847 | KS34: 1658.820847 | KT34: 1658.820847 | KU34: 1658.820847 | KV34: 1658.820847 | KW34: 1658.820847 | KX34: 1658.820847 | KY34: 1658.820847 | KZ34: 1658.820847 | LA34: 1658.820847 | LB34: 1658.820847 | LC34: 1658.820847 | LD34: 1658.820847 | LE34: 1658.820847 | LF34: 1658.820847 | LG34: 1658.820847 | LH34: 1658.820847 | LI34: 1658.820847 | LJ34: 1658.820847 | LK34: 1658.820847 | LL34: 1658.820847 | LM34: 1658.820847 | LN34: 1658.820847 | LO34: 1658.820847 | LP34: 1658.820847 | LQ34: 1658.820847 | LR34: 1658.820847 | LS34: =$F$34*LS9 -> 1658.820847 | LT34: 1658.820847 | LU34: 1658.820847 | LV34: 1658.820847 | LW34: 1658.820847 | LX34: 1658.820847 | LY34: 1658.820847 | LZ34: 1658.820847 | MA34: 1658.820847 | MB34: 1658.820847 | MC34: 1658.820847 | MD34: 1658.820847 | ME34: 1658.820847 | MF34: 1658.820847 | MG34: 1658.820847 | MH34: 1658.820847 | MI34: 1658.820847 | MJ34: 1658.820847 | MK34: 1658.820847 | ML34: 1658.820847 | MM34: 1658.820847 | MN34: 1658.820847 | MO34: 1658.820847 | MP34: 1658.820847 | MQ34: 1658.820847 | MR34: 1658.820847 | MS34: 1658.820847 | MT34: 1658.820847 | MU34: 1658.820847 | MV34: 1658.820847 | MW34: 1658.820847 | MX34: 1658.820847 | MY34: 1658.820847 | MZ34: 1658.820847 | NA34: 1658.820847 | NB34: 1658.820847 | NC34: 1658.820847 | ND34: 1658.820847 | NE34: 1658.820847 | NF34: 1658.820847 | NG34: 1658.820847 | NH34: 1658.820847 | NI34: 1658.820847 | NJ34: 1658.820847 | NK34: 1658.820847 | NL34: 1658.820847 | NM34: 1658.820847 | NN34: 1658.820847 | NO34: 1658.820847 | NP34: 1658.820847 | NQ34: 1658.820847 | NR34: 1658.820847 | NS34: 1658.820847 | NT34: 1658.820847 | NU34: 1658.820847 | NV34: 1658.820847 | NW34: 1658.820847 | NX34: 1658.820847 | NY34: 1658.820847 | NZ34: 1658.820847 | OA34: 1658.820847 | OB34: 1658.820847 | OC34: 1658.820847 | OD34: 1658.820847 | OE34: =$F$34*OE9 -> 1658.820847 | OF34: 1658.820847 | OG34: 1658.820847 | OH34: 1658.820847 | OI34: 1658.820847 | OJ34: 1658.820847 | OK34: 1658.820847 | OL34: 1658.820847 | OM34: 1658.820847 | ON34: 1658.820847 | OO34: 1658.820847 | OP34: 1658.820847 | OQ34: 1658.820847 | OR34: 1658.820847 | OS34: 1658.820847 | OT34: 1658.820847 | OU34: 1658.820847 | OV34: 1658.820847 | OW34: 1658.820847 | OX34: 1658.820847 | OY34: 1658.820847 | OZ34: 1658.820847 | PA34: 1658.820847 | PB34: 1658.820847 | PC34: 1658.820847 | PD34: 1658.820847 | PE34: 1658.820847 | PF34: 1658.820847 | PG34: 1658.820847 | PH34: 1658.820847 | PI34: 1658.820847 | PJ34: 1658.820847 | PK34: 1658.820847 | PL34: 1658.820847 | PM34: 1658.820847 | PN34: 1658.820847 | PO34: 1658.820847 | PP34: 1658.820847 | PQ34: 1658.820847 | PR34: 1658.820847 | PS34: 1658.820847 | PT34: 1658.820847 | PU34: 1658.820847 | PV34: 1658.820847 | PW34: 1658.820847 | PX34: 1658.820847 | PY34: 1658.820847 | PZ34: 1658.820847 | QA34: 1658.820847 | QB34: 1658.820847 | QC34: 1658.820847 | QD34: 1658.820847 | QE34: 1658.820847 | QF34: 0 | QG34: 0 | QH34: 0 | QI34: 0 | QJ34: 0 | QK34: 0 | QL34: 0 | QM34: 0 | QN34: 0 | QO34: 0 | QP34: 0 | QQ34: =$F$34*QQ9 -> 0 | QR34: 0 | QS34: 0 | QT34: 0 | QU34: 0 | QV34: 0 | QW34: 0 | QX34: 0 | QY34: 0 | QZ34: 0 | RA34: 0 | RB34: 0 | RC34: 0 | RD34: 0 | RE34: 0 | RF34: 0 | RG34: 0 | RH34: 0 | RI34: 0 | RJ34: 0 | RK34: 0 | RL34: 0 | RM34: 0 | RN34: 0 | RO34: 0 | RP34: 0 | RQ34: 0 | RR34: 0 | RS34: 0 | RT34: 0 | RU34: 0 | RV34: 0 | RW34: 0 | RX34: 0 | RY34: 0 | RZ34: 0 | SA34: 0 | SB34: 0 | SC34: 0 | SD34: 0 | SE34: 0 | SF34: 0 | SG34: 0 | SH34: 0 | SI34: 0 | SJ34: 0 | SK34: 0 | SL34: 0 | SM34: 0 | SN34: 0 | SO34: 0
C35: Production P90 - without Degradation | E35: kWh | H35: =SUM(J35:XFD35) -> 870880944.5 | J35: =J34*J25*J28 -> 0 | K35: =K34*K25*K28 -> 0 | L35: 0 | M35: 0 | N35: 0 | O35: 0 | P35: 0 | Q35: 0 | R35: 0 | S35: 0 | T35: 0 | U35: 0 | V35: 0 | W35: 0 | X35: 0 | Y35: 0 | Z35: 0 | AA35: 0 | AB35: 1492938.762 | AC35: 1741761.889 | AD35: 2114996.579 | AE35: 2114996.579 | AF35: 2488231.27 | AG35: 2488231.27 | AH35: 2488231.27 | AI35: 2363819.706 | AJ35: 2363819.706 | AK35: 1990585.016 | AL35: 1741761.889 | AM35: 1492938.762 | AN35: 1492938.762 | AO35: 1741761.889 | AP35: 2114996.579 | AQ35: 2114996.579 | AR35: 2488231.27 | AS35: 2488231.27 | AT35: 2488231.27 | AU35: 2363819.706 | AV35: 2363819.706 | AW35: 1990585.016 | AX35: 1741761.889 | AY35: 1492938.762 | AZ35: 1492938.762 | BA35: 1741761.889 | BB35: 2114996.579 | BC35: 2114996.579 | BD35: 2488231.27 | BE35: 2488231.27 | BF35: 2488231.27 | BG35: 2363819.706 | BH35: 2363819.706 | BI35: 1990585.016 | BJ35: 1741761.889 | BK35: 1492938.762 | BL35: 1492938.762 | BM35: 1741761.889 | BN35: 2114996.579 | BO35: 2114996.579 | BP35: 2488231.27 | BQ35: 2488231.27 | BR35: 2488231.27 | BS35: 2363819.706 | BT35: 2363819.706 | BU35: 1990585.016 | BV35: 1741761.889 | BW35: =BW34*BW25*BW28 -> 1492938.762 | BX35: 1492938.762 | BY35: 1741761.889 | BZ35: 2114996.579 | CA35: 2114996.579 | CB35: 2488231.27 | CC35: 2488231.27 | CD35: 2488231.27 | CE35: 2363819.706 | CF35: 2363819.706 | CG35: 1990585.016 | CH35: 1741761.889 | CI35: 1492938.762 | CJ35: 1492938.762 | CK35: 1741761.889 | CL35: 2114996.579 | CM35: 2114996.579 | CN35: 2488231.27 | CO35: 2488231.27 | CP35: 2488231.27 | CQ35: 2363819.706 | CR35: 2363819.706 | CS35: 1990585.016 | CT35: 1741761.889 | CU35: 1492938.762 | CV35: 1492938.762 | CW35: 1741761.889 | CX35: 2114996.579 | CY35: 2114996.579 | CZ35: 2488231.27 | DA35: 2488231.27 | DB35: 2488231.27 | DC35: 2363819.706 | DD35: 2363819.706 | DE35: 1990585.016 | DF35: 1741761.889 | DG35: 1492938.762 | DH35: 1492938.762 | DI35: 1741761.889 | DJ35: 2114996.579 | DK35: 2114996.579 | DL35: 2488231.27 | DM35: 2488231.27 | DN35: 2488231.27 | DO35: 2363819.706 | DP35: 2363819.706 | DQ35: 1990585.016 | DR35: 1741761.889 | DS35: 1492938.762 | DT35: 1492938.762 | DU35: 1741761.889 | DV35: 2114996.579 | DW35: 2114996.579 | DX35: 2488231.27 | DY35: 2488231.27 | DZ35: 2488231.27 | EA35: 2363819.706 | EB35: 2363819.706 | EC35: 1990585.016 | ED35: 1741761.889 | EE35: 1492938.762 | EF35: 1492938.762 | EG35: 1741761.889 | EH35: 2114996.579 | EI35: =EI34*EI25*EI28 -> 2114996.579 | EJ35: 2488231.27 | EK35: 2488231.27 | EL35: 2488231.27 | EM35: 2363819.706 | EN35: 2363819.706 | EO35: 1990585.016 | EP35: 1741761.889 | EQ35: 1492938.762 | ER35: 1492938.762 | ES35: 1741761.889 | ET35: 2114996.579 | EU35: 2114996.579 | EV35: 2488231.27 | EW35: 2488231.27 | EX35: 2488231.27 | EY35: 2363819.706 | EZ35: 2363819.706 | FA35: 1990585.016 | FB35: 1741761.889 | FC35: 1492938.762 | FD35: 1492938.762 | FE35: 1741761.889 | FF35: 2114996.579 | FG35: 2114996.579 | FH35: 2488231.27 | FI35: 2488231.27 | FJ35: 2488231.27 | FK35: 2363819.706 | FL35: 2363819.706 | FM35: 1990585.016 | FN35: 1741761.889 | FO35: 1492938.762 | FP35: 1492938.762 | FQ35: 1741761.889 | FR35: 2114996.579 | FS35: 2114996.579 | FT35: 2488231.27 | FU35: 2488231.27 | FV35: 2488231.27 | FW35: 2363819.706 | FX35: 2363819.706 | FY35: 1990585.016 | FZ35: 1741761.889 | GA35: 1492938.762 | GB35: 1492938.762 | GC35: 1741761.889 | GD35: 2114996.579 | GE35: 2114996.579 | GF35: 2488231.27 | GG35: 2488231.27 | GH35: 2488231.27 | GI35: 2363819.706 | GJ35: 2363819.706 | GK35: 1990585.016 | GL35: 1741761.889 | GM35: 1492938.762 | GN35: 1492938.762 | GO35: 1741761.889 | GP35: 2114996.579 | GQ35: 2114996.579 | GR35: 2488231.27 | GS35: 2488231.27 | GT35: 2488231.27 | GU35: =GU34*GU25*GU28 -> 2363819.706 | GV35: 2363819.706 | GW35: 1990585.016 | GX35: 1741761.889 | GY35: 1492938.762 | GZ35: 1492938.762 | HA35: 1741761.889 | HB35: 2114996.579 | HC35: 2114996.579 | HD35: 2488231.27 | HE35: 2488231.27 | HF35: 2488231.27 | HG35: 2363819.706 | HH35: 2363819.706 | HI35: 1990585.016 | HJ35: 1741761.889 | HK35: 1492938.762 | HL35: 1492938.762 | HM35: 1741761.889 | HN35: 2114996.579 | HO35: 2114996.579 | HP35: 2488231.27 | HQ35: 2488231.27 | HR35: 2488231.27 | HS35: 2363819.706 | HT35: 2363819.706 | HU35: 1990585.016 | HV35: 1741761.889 | HW35: 1492938.762 | HX35: 1492938.762 | HY35: 1741761.889 | HZ35: 2114996.579 | IA35: 2114996.579 | IB35: 2488231.27 | IC35: 2488231.27 | ID35: 2488231.27 | IE35: 2363819.706 | IF35: 2363819.706 | IG35: 1990585.016 | IH35: 1741761.889 | II35: 1492938.762 | IJ35: 1492938.762 | IK35: 1741761.889 | IL35: 2114996.579 | IM35: 2114996.579 | IN35: 2488231.27 | IO35: 2488231.27 | IP35: 2488231.27 | IQ35: 2363819.706 | IR35: 2363819.706 | IS35: 1990585.016 | IT35: 1741761.889 | IU35: 1492938.762 | IV35: 1492938.762 | IW35: 1741761.889 | IX35: 2114996.579 | IY35: 2114996.579 | IZ35: 2488231.27 | JA35: 2488231.27 | JB35: 2488231.27 | JC35: 2363819.706 | JD35: 2363819.706 | JE35: 1990585.016 | JF35: 1741761.889 | JG35: =JG34*JG25*JG28 -> 1492938.762 | JH35: 1492938.762 | JI35: 1741761.889 | JJ35: 2114996.579 | JK35: 2114996.579 | JL35: 2488231.27 | JM35: 2488231.27 | JN35: 2488231.27 | JO35: 2363819.706 | JP35: 2363819.706 | JQ35: 1990585.016 | JR35: 1741761.889 | JS35: 1492938.762 | JT35: 1492938.762 | JU35: 1741761.889 | JV35: 2114996.579 | JW35: 2114996.579 | JX35: 2488231.27 | JY35: 2488231.27 | JZ35: 2488231.27 | KA35: 2363819.706 | KB35: 2363819.706 | KC35: 1990585.016 | KD35: 1741761.889 | KE35: 1492938.762 | KF35: 1492938.762 | KG35: 1741761.889 | KH35: 2114996.579 | KI35: 2114996.579 | KJ35: 2488231.27 | KK35: 2488231.27 | KL35: 2488231.27 | KM35: 2363819.706 | KN35: 2363819.706 | KO35: 1990585.016 | KP35: 1741761.889 | KQ35: 1492938.762 | KR35: 1492938.762 | KS35: 1741761.889 | KT35: 2114996.579 | KU35: 2114996.579 | KV35: 2488231.27 | KW35: 2488231.27 | KX35: 2488231.27 | KY35: 2363819.706 | KZ35: 2363819.706 | LA35: 1990585.016 | LB35: 1741761.889 | LC35: 1492938.762 | LD35: 1492938.762 | LE35: 1741761.889 | LF35: 2114996.579 | LG35: 2114996.579 | LH35: 2488231.27 | LI35: 2488231.27 | LJ35: 2488231.27 | LK35: 2363819.706 | LL35: 2363819.706 | LM35: 1990585.016 | LN35: 1741761.889 | LO35: 1492938.762 | LP35: 1492938.762 | LQ35: 1741761.889 | LR35: 2114996.579 | LS35: =LS34*LS25*LS28 -> 2114996.579 | LT35: 2488231.27 | LU35: 2488231.27 | LV35: 2488231.27 | LW35: 2363819.706 | LX35: 2363819.706 | LY35: 1990585.016 | LZ35: 1741761.889 | MA35: 1492938.762 | MB35: 1492938.762 | MC35: 1741761.889 | MD35: 2114996.579 | ME35: 2114996.579 | MF35: 2488231.27 | MG35: 2488231.27 | MH35: 2488231.27 | MI35: 2363819.706 | MJ35: 2363819.706 | MK35: 1990585.016 | ML35: 1741761.889 | MM35: 1492938.762 | MN35: 1492938.762 | MO35: 1741761.889 | MP35: 2114996.579 | MQ35: 2114996.579 | MR35: 2488231.27 | MS35: 2488231.27 | MT35: 2488231.27 | MU35: 2363819.706 | MV35: 2363819.706 | MW35: 1990585.016 | MX35: 1741761.889 | MY35: 1492938.762 | MZ35: 1492938.762 | NA35: 1741761.889 | NB35: 2114996.579 | NC35: 2114996.579 | ND35: 2488231.27 | NE35: 2488231.27 | NF35: 2488231.27 | NG35: 2363819.706 | NH35: 2363819.706 | NI35: 1990585.016 | NJ35: 1741761.889 | NK35: 1492938.762 | NL35: 1492938.762 | NM35: 1741761.889 | NN35: 2114996.579 | NO35: 2114996.579 | NP35: 2488231.27 | NQ35: 2488231.27 | NR35: 2488231.27 | NS35: 2363819.706 | NT35: 2363819.706 | NU35: 1990585.016 | NV35: 1741761.889 | NW35: 1492938.762 | NX35: 1492938.762 | NY35: 1741761.889 | NZ35: 2114996.579 | OA35: 2114996.579 | OB35: 2488231.27 | OC35: 2488231.27 | OD35: 2488231.27 | OE35: =OE34*OE25*OE28 -> 2363819.706 | OF35: 2363819.706 | OG35: 1990585.016 | OH35: 1741761.889 | OI35: 1492938.762 | OJ35: 1492938.762 | OK35: 1741761.889 | OL35: 2114996.579 | OM35: 2114996.579 | ON35: 2488231.27 | OO35: 2488231.27 | OP35: 2488231.27 | OQ35: 2363819.706 | OR35: 2363819.706 | OS35: 1990585.016 | OT35: 1741761.889 | OU35: 1492938.762 | OV35: 1492938.762 | OW35: 1741761.889 | OX35: 2114996.579 | OY35: 2114996.579 | OZ35: 2488231.27 | PA35: 2488231.27 | PB35: 2488231.27 | PC35: 2363819.706 | PD35: 2363819.706 | PE35: 1990585.016 | PF35: 1741761.889 | PG35: 1492938.762 | PH35: 1492938.762 | PI35: 1741761.889 | PJ35: 2114996.579 | PK35: 2114996.579 | PL35: 2488231.27 | PM35: 2488231.27 | PN35: 2488231.27 | PO35: 2363819.706 | PP35: 2363819.706 | PQ35: 1990585.016 | PR35: 1741761.889 | PS35: 1492938.762 | PT35: 1492938.762 | PU35: 1741761.889 | PV35: 2114996.579 | PW35: 2114996.579 | PX35: 2488231.27 | PY35: 2488231.27 | PZ35: 2488231.27 | QA35: 2363819.706 | QB35: 2363819.706 | QC35: 1990585.016 | QD35: 1741761.889 | QE35: 1492938.762 | QF35: 0 | QG35: 0 | QH35: 0 | QI35: 0 | QJ35: 0 | QK35: 0 | QL35: 0 | QM35: 0 | QN35: 0 | QO35: 0 | QP35: 0 | QQ35: =QQ34*QQ25*QQ28 -> 0 | QR35: 0 | QS35: 0 | QT35: 0 | QU35: 0 | QV35: 0 | QW35: 0 | QX35: 0 | QY35: 0 | QZ35: 0 | RA35: 0 | RB35: 0 | RC35: 0 | RD35: 0 | RE35: 0 | RF35: 0 | RG35: 0 | RH35: 0 | RI35: 0 | RJ35: 0 | RK35: 0 | RL35: 0 | RM35: 0 | RN35: 0 | RO35: 0 | RP35: 0 | RQ35: 0 | RR35: 0 | RS35: 0 | RT35: 0 | RU35: 0 | RV35: 0 | RW35: 0 | RX35: 0 | RY35: 0 | RZ35: 0 | SA35: 0 | SB35: 0 | SC35: 0 | SD35: 0 | SE35: 0 | SF35: 0 | SG35: 0 | SH35: 0 | SI35: 0 | SJ35: 0 | SK35: 0 | SL35: 0 | SM35: 0 | SN35: 0 | SO35: 0
C36: Production P90 - with Degradation | E36: kWh | H36: =SUM(J36:XFD36) -> 798939076.1 | J36: =J35/J31 -> 0 | K36: =K35/K31 -> 0 | L36: 0 | M36: 0 | N36: 0 | O36: 0 | P36: 0 | Q36: 0 | R36: 0 | S36: 0 | T36: 0 | U36: 0 | V36: 0 | W36: 0 | X36: 0 | Y36: 0 | Z36: 0 | AA36: 0 | AB36: 1492318.383 | AC36: 1740314.639 | AD36: 2112361.065 | AE36: 2111483.29 | AF36: 2483065.74 | AG36: 2482033.922 | AH36: 2481002.533 | AI36: 2355972.993 | AJ36: 2354993.987 | AK36: 1982328.748 | AL36: 1733816.881 | AM36: 1485511.206 | AN36: 1484893.913 | AO36: 1731656.357 | AP36: 2101851.806 | AQ36: 2100978.398 | AR36: 2470712.18 | AS36: 2469685.495 | AT36: 2468659.236 | AU36: 2344251.734 | AV36: 2343277.599 | AW36: 1972466.416 | AX36: 1725190.926 | AY36: 1478120.603 | AZ36: 1477506.382 | BA36: 1723041.151 | BB36: 2091394.831 | BC36: 2090525.769 | BD36: 2458420.079 | BE36: 2457398.502 | BF36: 2456377.35 | BG36: 2332588.79 | BH36: 2331619.502 | BI36: 1962653.15 | BJ36: 1716607.887 | BK36: 1470766.769 | BL36: 1470155.604 | BM36: 1714468.807 | BN36: 2080989.882 | BO36: 2080125.143 | BP36: 2446189.134 | BQ36: 2445172.639 | BR36: 2444156.567 | BS36: 2320983.871 | BT36: 2320019.404 | BU36: 1952888.706 | BV36: 1708067.549 | BW36: =BW35/BW31 -> 1463449.521 | BX36: 1462841.397 | BY36: 1705939.112 | BZ36: 2070636.698 | CA36: 2069776.262 | CB36: 2434019.038 | CC36: 2433007.601 | CD36: 2431996.584 | CE36: 2309436.688 | CF36: 2308477.019 | CG36: 1943172.842 | CH36: 1699569.7 | CI36: 1456168.678 | CJ36: 1455563.579 | CK36: 1697451.853 | CL36: 2060335.023 | CM36: 2059478.867 | CN36: 2421909.491 | CO36: 2420903.086 | CP36: 2419897.098 | CQ36: 2297946.953 | CR36: 2296992.059 | CS36: 1933505.316 | CT36: 1691114.13 | CU36: 1448924.058 | CV36: 1448321.969 | CW36: 1689006.818 | CX36: 2050084.6 | CY36: 2049232.704 | CZ36: 2409860.19 | DA36: 2408858.792 | DB36: 2407857.809 | DC36: 2286514.381 | DD36: 2285564.238 | DE36: 1923885.886 | DF36: 1682700.627 | DG36: 1441715.48 | DH36: 1441116.387 | DI36: 1680603.799 | DJ36: 2039885.174 | DK36: 2039037.516 | DL36: 2397870.836 | DM36: 2396874.419 | DN36: 2395878.417 | DO36: 2275138.687 | DP36: 2274193.272 | DQ36: 1914314.315 | DR36: 1674328.982 | DS36: 1434542.767 | DT36: 1433946.654 | DU36: 1672242.586 | DV36: 2029736.492 | DW36: 2028893.051 | DX36: 2385941.13 | DY36: 2384949.671 | DZ36: 2383958.624 | EA36: 2263819.59 | EB36: 2262878.877 | EC36: 1904790.363 | ED36: 1665998.987 | EE36: 1427405.738 | EF36: 1426812.591 | EG36: 1663922.972 | EH36: 2019638.301 | EI36: =EI35/EI31 -> 2018799.056 | EJ36: 2374070.776 | EK36: 2373084.25 | EL36: 2372098.133 | EM36: 2252556.805 | EN36: 2251620.773 | EO36: 1895313.794 | EP36: 1657710.435 | EQ36: 1420304.217 | ER36: 1419714.021 | ES36: 1655644.748 | ET36: 2009590.349 | EU36: 2008755.279 | EV36: 2362259.479 | EW36: 2361277.861 | EX36: 2360296.65 | EY36: 2241350.055 | EZ36: 2240418.68 | FA36: 1885884.372 | FB36: 1649463.119 | FC36: 1413238.027 | FD36: 1412650.767 | FE36: 1647407.709 | FF36: 1999592.387 | FG36: 1998761.472 | FH36: 2350506.944 | FI36: 2349530.21 | FJ36: 2348553.881 | FK36: 2230199.06 | FL36: 2229272.318 | FM36: 1876501.863 | FN36: 1641256.835 | FO36: 1406206.992 | FP36: 1405622.653 | FQ36: 1639211.651 | FR36: 1989644.166 | FS36: 1988817.385 | FT36: 2338812.88 | FU36: 2337841.004 | FV36: 2336869.533 | FW36: 2219103.542 | FX36: 2218181.411 | FY36: 1867166.032 | FZ36: 1633091.378 | GA36: 1399210.937 | GB36: 1398629.506 | GC36: 1631056.369 | GD36: 1979745.439 | GE36: 1978922.771 | GF36: 2327176.995 | GG36: 2326209.955 | GH36: 2325243.317 | GI36: 2208063.226 | GJ36: 2207145.683 | GK36: 1857876.649 | GL36: 1624966.545 | GM36: 1392249.689 | GN36: 1391671.15 | GO36: 1622941.661 | GP36: 1969895.959 | GQ36: 1969077.384 | GR36: 2315599 | GS36: 2314636.771 | GT36: 2313674.942 | GU36: =GU35/GU31 -> 2197077.837 | GV36: 2196164.859 | GW36: 1848633.482 | GX36: 1616882.135 | GY36: 1385323.073 | GZ36: 1384747.413 | HA36: 1614867.324 | HB36: 1960095.482 | HC36: 1959280.979 | HD36: 2304078.607 | HE36: 2303121.165 | HF36: 2302164.121 | HG36: 2186147.101 | HH36: 2185238.665 | HI36: 1839436.3 | HJ36: 1608837.945 | HK36: 1378430.919 | HL36: 1377858.123 | HM36: 1606833.159 | HN36: 1950343.763 | HO36: 1949533.313 | HP36: 2292615.529 | HQ36: 2291662.851 | HR36: 2290710.568 | HS36: 2175270.748 | HT36: 2174366.831 | HU36: 1830284.876 | HV36: 1600833.776 | HW36: 1371573.053 | HX36: 1371003.107 | HY36: 1598838.964 | HZ36: 1940640.56 | IA36: 1939834.142 | IB36: 2281209.482 | IC36: 2280261.543 | ID36: 2279313.998 | IE36: 2164448.505 | IF36: 2163549.086 | IG36: 1821178.981 | IH36: 1592869.429 | II36: 1364749.307 | IJ36: 1364182.196 | IK36: 1590884.541 | IL36: 1930985.632 | IM36: 1930183.226 | IN36: 2269860.181 | IO36: 2268916.958 | IP36: 2267974.128 | IQ36: 2153680.105 | IR36: 2152785.16 | IS36: 1812118.389 | IT36: 1584944.705 | IU36: 1357959.509 | IV36: 1357395.22 | IW36: 1582969.693 | IX36: 1921378.738 | IY36: 1920580.324 | IZ36: 2258567.344 | JA36: 2257628.814 | JB36: 2256690.674 | JC36: 2142965.278 | JD36: 2142074.786 | JE36: 1803102.875 | JF36: 1577059.408 | JG36: =JG35/JG31 -> 1351203.492 | JH36: 1350642.01 | JI36: 1575094.221 | JJ36: 1911819.64 | JK36: 1911025.198 | JL36: 2247330.691 | JM36: 2246396.83 | JN36: 2245463.358 | JO36: 2132303.759 | JP36: 2131417.697 | JQ36: 1794132.214 | JR36: 1569213.342 | JS36: 1344481.086 | JT36: 1343922.398 | JU36: 1567257.932 | JV36: 1902308.099 | JW36: 1901517.61 | JX36: 2236149.941 | JY36: 2235220.726 | JZ36: 2234291.898 | KA36: 2121695.283 | KB36: 2120813.629 | KC36: 1785206.183 | KD36: 1561406.31 | KE36: 1337792.126 | KF36: 1337236.217 | KG36: 1559460.629 | KH36: 1892843.88 | KI36: 1892057.324 | KJ36: 2225024.817 | KK36: 2224100.225 | KL36: 2223176.018 | KM36: 2111139.585 | KN36: 2110262.318 | KO36: 1776324.56 | KP36: 1553638.119 | KQ36: 1331136.444 | KR36: 1330583.3 | KS36: 1551702.118 | KT36: 1883426.746 | KU36: 1882644.103 | KV36: 2213955.042 | KW36: 2213035.05 | KX36: 2212115.441 | KY36: 2100636.403 | KZ36: 2099763.5 | LA36: 1767487.124 | LB36: 1545908.577 | LC36: 1324513.874 | LD36: 1323963.483 | LE36: 1543982.207 | LF36: 1874056.464 | LG36: 1873277.715 | LH36: 2202940.34 | LI36: 2202024.925 | LJ36: 2201109.891 | LK36: 2090185.476 | LL36: 2089316.916 | LM36: 1758693.656 | LN36: 1538217.489 | LO36: 1317924.253 | LP36: 1317376.6 | LQ36: 1536300.703 | LR36: 1864732.8 | LS36: =LS35/LS31 -> 1863957.925 | LT36: 2191980.438 | LU36: 2191069.578 | LV36: 2190159.096 | LW36: 2079786.543 | LX36: 2078922.304 | LY36: 1749943.936 | LZ36: 1530564.666 | MA36: 1311367.416 | MB36: 1310822.487 | MC36: 1528657.416 | MD36: 1855455.522 | ME36: 1854684.503 | MF36: 2181075.062 | MG36: 2180168.734 | MH36: 2179262.782 | MI36: 2069439.346 | MJ36: 2068579.407 | MK36: 1741237.748 | ML36: 1522949.916 | MM36: 1304843.2 | MN36: 1304300.983 | MO36: 1521052.156 | MP36: 1846224.4 | MQ36: 1845457.216 | MR36: 2170223.943 | MS36: 2169322.123 | MT36: 2168420.679 | MU36: 2059143.628 | MV36: 2058287.967 | MW36: 1732574.873 | MX36: 1515373.051 | MY36: 1298351.443 | MZ36: 1297811.923 | NA36: 1513484.732 | NB36: 1837039.204 | NC36: 1836275.837 | ND36: 2159426.809 | NE36: 2158529.476 | NF36: 2157632.516 | NG36: 2048899.132 | NH36: 2048047.729 | NI36: 1723955.098 | NJ36: 1507833.882 | NK36: 1291891.983 | NL36: 1291355.147 | NM36: 1505954.957 | NN36: 1827899.706 | NO36: 1827140.137 | NP36: 2148683.392 | NQ36: 2147790.523 | NR36: 2146898.026 | NS36: 2038705.604 | NT36: 2037858.436 | NU36: 1715378.207 | NV36: 1500332.22 | NW36: 1285464.659 | NX36: 1284930.495 | NY36: 1498462.644 | NZ36: 1818805.677 | OA36: 1818049.887 | OB36: 2137993.425 | OC36: 2137104.998 | OD36: 2136216.941 | OE36: =OE35/OE31 -> 2028562.79 | OF36: 2027719.837 | OG36: 1706843.987 | OH36: 1492867.881 | OI36: 1279069.313 | OJ36: 1278537.806 | OK36: 1491007.606 | OL36: 1809756.893 | OM36: 1809004.863 | ON36: 2127356.641 | OO36: 2126472.635 | OP36: 2125588.996 | OQ36: 2018470.438 | OR36: 2017631.679 | OS36: 1698352.226 | OT36: 1485440.678 | OU36: 1272705.784 | OV36: 1272176.921 | OW36: 1483589.658 | OX36: 1800753.127 | OY36: 1800004.839 | OZ36: 2116772.777 | PA36: 2115893.169 | PB36: 2115013.927 | PC36: 2008428.297 | PD36: 2007593.71 | PE36: 1689902.712 | PF36: 1478050.426 | PG36: 1266373.914 | PH36: 1265847.683 | PI36: 1476208.615 | PJ36: 1791794.157 | PK36: 1791049.591 | PL36: 2106241.57 | PM36: 2105366.338 | PN36: 2104491.469 | PO36: 1998436.116 | PP36: 1997605.682 | PQ36: 1681495.236 | PR36: 1470696.941 | PS36: 1260073.547 | PT36: 1259549.933 | PU36: 1468864.293 | PV36: 1782879.758 | PW36: 1782138.896 | PX36: 2095762.756 | PY36: 2094891.878 | PZ36: 2094021.362 | QA36: 1988493.648 | QB36: 1987667.345 | QC36: 1673129.588 | QD36: 1463380.041 | QE36: 1253804.524 | QF36: 0 | QG36: 0 | QH36: 0 | QI36: 0 | QJ36: 0 | QK36: 0 | QL36: 0 | QM36: 0 | QN36: 0 | QO36: 0 | QP36: 0 | QQ36: =QQ35/QQ31 -> 0 | QR36: 0 | QS36: 0 | QT36: 0 | QU36: 0 | QV36: 0 | QW36: 0 | QX36: 0 | QY36: 0 | QZ36: 0 | RA36: 0 | RB36: 0 | RC36: 0 | RD36: 0 | RE36: 0 | RF36: 0 | RG36: 0 | RH36: 0 | RI36: 0 | RJ36: 0 | RK36: 0 | RL36: 0 | RM36: 0 | RN36: 0 | RO36: 0 | RP36: 0 | RQ36: 0 | RR36: 0 | RS36: 0 | RT36: 0 | RU36: 0 | RV36: 0 | RW36: 0 | RX36: 0 | RY36: 0 | RZ36: 0 | SA36: 0 | SB36: 0 | SC36: 0 | SD36: 0 | SE36: 0 | SF36: 0 | SG36: 0 | SH36: 0 | SI36: 0 | SJ36: 0 | SK36: 0 | SL36: 0 | SM36: 0 | SN36: 0 | SO36: 0
H37: =H36/H32 -> 0.9487379374
C38: Operating Month Counter | J38: =I38+J9 -> 0 | K38: =J38+K9 -> 0 | L38: 0 | M38: 0 | N38: 0 | O38: 0 | P38: 0 | Q38: 0 | R38: 0 | S38: 0 | T38: 0 | U38: 0 | V38: 0 | W38: 0 | X38: 0 | Y38: 0 | Z38: 0 | AA38: 0 | AB38: 1 | AC38: 2 | AD38: 3 | AE38: 4 | AF38: 5 | AG38: 6 | AH38: 7 | AI38: 8 | AJ38: 9 | AK38: 10 | AL38: 11 | AM38: 12 | AN38: 13 | AO38: 14 | AP38: 15 | AQ38: 16 | AR38: 17 | AS38: 18 | AT38: 19 | AU38: 20 | AV38: 21 | AW38: 22 | AX38: 23 | AY38: 24 | AZ38: 25 | BA38: 26 | BB38: 27 | BC38: 28 | BD38: 29 | BE38: 30 | BF38: 31 | BG38: 32 | BH38: 33 | BI38: 34 | BJ38: 35 | BK38: 36 | BL38: 37 | BM38: 38 | BN38: 39 | BO38: 40 | BP38: 41 | BQ38: 42 | BR38: 43 | BS38: 44 | BT38: 45 | BU38: 46 | BV38: 47 | BW38: =BV38+BW9 -> 48 | BX38: 49 | BY38: 50 | BZ38: 51 | CA38: 52 | CB38: 53 | CC38: 54 | CD38: 55 | CE38: 56 | CF38: 57 | CG38: 58 | CH38: 59 | CI38: 60 | CJ38: 61 | CK38: 62 | CL38: 63 | CM38: 64 | CN38: 65 | CO38: 66 | CP38: 67 | CQ38: 68 | CR38: 69 | CS38: 70 | CT38: 71 | CU38: 72 | CV38: 73 | CW38: 74 | CX38: 75 | CY38: 76 | CZ38: 77 | DA38: 78 | DB38: 79 | DC38: 80 | DD38: 81 | DE38: 82 | DF38: 83 | DG38: 84 | DH38: 85 | DI38: 86 | DJ38: 87 | DK38: 88 | DL38: 89 | DM38: 90 | DN38: 91 | DO38: 92 | DP38: 93 | DQ38: 94 | DR38: 95 | DS38: 96 | DT38: 97 | DU38: 98 | DV38: 99 | DW38: 100 | DX38: 101 | DY38: 102 | DZ38: 103 | EA38: 104 | EB38: 105 | EC38: 106 | ED38: 107 | EE38: 108 | EF38: 109 | EG38: 110 | EH38: 111 | EI38: =EH38+EI9 -> 112 | EJ38: 113 | EK38: 114 | EL38: 115 | EM38: 116 | EN38: 117 | EO38: 118 | EP38: 119 | EQ38: 120 | ER38: 121 | ES38: 122 | ET38: 123 | EU38: 124 | EV38: 125 | EW38: 126 | EX38: 127 | EY38: 128 | EZ38: 129 | FA38: 130 | FB38: 131 | FC38: 132 | FD38: 133 | FE38: 134 | FF38: 135 | FG38: 136 | FH38: 137 | FI38: 138 | FJ38: 139 | FK38: 140 | FL38: 141 | FM38: 142 | FN38: 143 | FO38: 144 | FP38: 145 | FQ38: 146 | FR38: 147 | FS38: 148 | FT38: 149 | FU38: 150 | FV38: 151 | FW38: 152 | FX38: 153 | FY38: 154 | FZ38: 155 | GA38: 156 | GB38: 157 | GC38: 158 | GD38: 159 | GE38: 160 | GF38: 161 | GG38: 162 | GH38: 163 | GI38: 164 | GJ38: 165 | GK38: 166 | GL38: 167 | GM38: 168 | GN38: 169 | GO38: 170 | GP38: 171 | GQ38: 172 | GR38: 173 | GS38: 174 | GT38: 175 | GU38: =GT38+GU9 -> 176 | GV38: 177 | GW38: 178 | GX38: 179 | GY38: 180 | GZ38: 181 | HA38: 182 | HB38: 183 | HC38: 184 | HD38: 185 | HE38: 186 | HF38: 187 | HG38: 188 | HH38: 189 | HI38: 190 | HJ38: 191 | HK38: 192 | HL38: 193 | HM38: 194 | HN38: 195 | HO38: 196 | HP38: 197 | HQ38: 198 | HR38: 199 | HS38: 200 | HT38: 201 | HU38: 202 | HV38: 203 | HW38: 204 | HX38: 205 | HY38: 206 | HZ38: 207 | IA38: 208 | IB38: 209 | IC38: 210 | ID38: 211 | IE38: 212 | IF38: 213 | IG38: 214 | IH38: 215 | II38: 216 | IJ38: 217 | IK38: 218 | IL38: 219 | IM38: 220 | IN38: 221 | IO38: 222 | IP38: 223 | IQ38: 224 | IR38: 225 | IS38: 226 | IT38: 227 | IU38: 228 | IV38: 229 | IW38: 230 | IX38: 231 | IY38: 232 | IZ38: 233 | JA38: 234 | JB38: 235 | JC38: 236 | JD38: 237 | JE38: 238 | JF38: 239 | JG38: =JF38+JG9 -> 240 | JH38: 241 | JI38: 242 | JJ38: 243 | JK38: 244 | JL38: 245 | JM38: 246 | JN38: 247 | JO38: 248 | JP38: 249 | JQ38: 250 | JR38: 251 | JS38: 252 | JT38: 253 | JU38: 254 | JV38: 255 | JW38: 256 | JX38: 257 | JY38: 258 | JZ38: 259 | KA38: 260 | KB38: 261 | KC38: 262 | KD38: 263 | KE38: 264 | KF38: 265 | KG38: 266 | KH38: 267 | KI38: 268 | KJ38: 269 | KK38: 270 | KL38: 271 | KM38: 272 | KN38: 273 | KO38: 274 | KP38: 275 | KQ38: 276 | KR38: 277 | KS38: 278 | KT38: 279 | KU38: 280 | KV38: 281 | KW38: 282 | KX38: 283 | KY38: 284 | KZ38: 285 | LA38: 286 | LB38: 287 | LC38: 288 | LD38: 289 | LE38: 290 | LF38: 291 | LG38: 292 | LH38: 293 | LI38: 294 | LJ38: 295 | LK38: 296 | LL38: 297 | LM38: 298 | LN38: 299 | LO38: 300 | LP38: 301 | LQ38: 302 | LR38: 303 | LS38: =LR38+LS9 -> 304 | LT38: 305 | LU38: 306 | LV38: 307 | LW38: 308 | LX38: 309 | LY38: 310 | LZ38: 311 | MA38: 312 | MB38: 313 | MC38: 314 | MD38: 315 | ME38: 316 | MF38: 317 | MG38: 318 | MH38: 319 | MI38: 320 | MJ38: 321 | MK38: 322 | ML38: 323 | MM38: 324 | MN38: 325 | MO38: 326 | MP38: 327 | MQ38: 328 | MR38: 329 | MS38: 330 | MT38: 331 | MU38: 332 | MV38: 333 | MW38: 334 | MX38: 335 | MY38: 336 | MZ38: 337 | NA38: 338 | NB38: 339 | NC38: 340 | ND38: 341 | NE38: 342 | NF38: 343 | NG38: 344 | NH38: 345 | NI38: 346 | NJ38: 347 | NK38: 348 | NL38: 349 | NM38: 350 | NN38: 351 | NO38: 352 | NP38: 353 | NQ38: 354 | NR38: 355 | NS38: 356 | NT38: 357 | NU38: 358 | NV38: 359 | NW38: 360 | NX38: 361 | NY38: 362 | NZ38: 363 | OA38: 364 | OB38: 365 | OC38: 366 | OD38: 367 | OE38: =OD38+OE9 -> 368 | OF38: 369 | OG38: 370 | OH38: 371 | OI38: 372 | OJ38: 373 | OK38: 374 | OL38: 375 | OM38: 376 | ON38: 377 | OO38: 378 | OP38: 379 | OQ38: 380 | OR38: 381 | OS38: 382 | OT38: 383 | OU38: 384 | OV38: 385 | OW38: 386 | OX38: 387 | OY38: 388 | OZ38: 389 | PA38: 390 | PB38: 391 | PC38: 392 | PD38: 393 | PE38: 394 | PF38: 395 | PG38: 396 | PH38: 397 | PI38: 398 | PJ38: 399 | PK38: 400 | PL38: 401 | PM38: 402 | PN38: 403 | PO38: 404 | PP38: 405 | PQ38: 406 | PR38: 407 | PS38: 408 | PT38: 409 | PU38: 410 | PV38: 411 | PW38: 412 | PX38: 413 | PY38: 414 | PZ38: 415 | QA38: 416 | QB38: 417 | QC38: 418 | QD38: 419 | QE38: 420 | QF38: 420 | QG38: 420 | QH38: 420 | QI38: 420 | QJ38: 420 | QK38: 420 | QL38: 420 | QM38: 420 | QN38: 420 | QO38: 420 | QP38: 420 | QQ38: =QP38+QQ9 -> 420 | QR38: 420 | QS38: 420 | QT38: 420 | QU38: 420 | QV38: 420 | QW38: 420 | QX38: 420 | QY38: 420 | QZ38: 420 | RA38: 420 | RB38: 420 | RC38: 420 | RD38: 420 | RE38: 420 | RF38: 420 | RG38: 420 | RH38: 420 | RI38: 420 | RJ38: 420 | RK38: 420 | RL38: 420 | RM38: 420 | RN38: 420 | RO38: 420 | RP38: 420 | RQ38: 420 | RR38: 420 | RS38: 420 | RT38: 420 | RU38: 420 | RV38: 420 | RW38: 420 | RX38: 420 | RY38: 420 | RZ38: 420 | SA38: 420 | SB38: 420 | SC38: 420 | SD38: 420 | SE38: 420 | SF38: 420 | SG38: 420 | SH38: 420 | SI38: 420 | SJ38: 420 | SK38: 420 | SL38: 420 | SM38: 420 | SN38: 420 | SO38: 420
C39: Replacement of Inverter | E39: Flag | F39: =InputC!F35 -> 15 | G39: =F39*Months -> 180 | J39: =J38=$G$39 -> FALSE | K39: =K38=$G$39 -> FALSE | L39: FALSE | M39: FALSE | N39: FALSE | O39: FALSE | P39: FALSE | Q39: FALSE | R39: FALSE | S39: FALSE | T39: FALSE | U39: FALSE | V39: FALSE | W39: FALSE | X39: FALSE | Y39: FALSE | Z39: FALSE | AA39: FALSE | AB39: FALSE | AC39: FALSE | AD39: FALSE | AE39: FALSE | AF39: FALSE | AG39: FALSE | AH39: FALSE | AI39: FALSE | AJ39: FALSE | AK39: FALSE | AL39: FALSE | AM39: FALSE | AN39: FALSE | AO39: FALSE | AP39: FALSE | AQ39: FALSE | AR39: FALSE | AS39: FALSE | AT39: FALSE | AU39: FALSE | AV39: FALSE | AW39: FALSE | AX39: FALSE | AY39: FALSE | AZ39: FALSE | BA39: FALSE | BB39: FALSE | BC39: FALSE | BD39: FALSE | BE39: FALSE | BF39: FALSE | BG39: FALSE | BH39: FALSE | BI39: FALSE | BJ39: FALSE | BK39: FALSE | BL39: FALSE | BM39: FALSE | BN39: FALSE | BO39: FALSE | BP39: FALSE | BQ39: FALSE | BR39: FALSE | BS39: FALSE | BT39: FALSE | BU39: FALSE | BV39: FALSE | BW39: =BW38=$G$39 -> FALSE | BX39: FALSE | BY39: FALSE | BZ39: FALSE | CA39: FALSE | CB39: FALSE | CC39: FALSE | CD39: FALSE | CE39: FALSE | CF39: FALSE | CG39: FALSE | CH39: FALSE | CI39: FALSE | CJ39: FALSE | CK39: FALSE | CL39: FALSE | CM39: FALSE | CN39: FALSE | CO39: FALSE | CP39: FALSE | CQ39: FALSE | CR39: FALSE | CS39: FALSE | CT39: FALSE | CU39: FALSE | CV39: FALSE | CW39: FALSE | CX39: FALSE | CY39: FALSE | CZ39: FALSE | DA39: FALSE | DB39: FALSE | DC39: FALSE | DD39: FALSE | DE39: FALSE | DF39: FALSE | DG39: FALSE | DH39: FALSE | DI39: FALSE | DJ39: FALSE | DK39: FALSE | DL39: FALSE | DM39: FALSE | DN39: FALSE | DO39: FALSE | DP39: FALSE | DQ39: FALSE | DR39: FALSE | DS39: FALSE | DT39: FALSE | DU39: FALSE | DV39: FALSE | DW39: FALSE | DX39: FALSE | DY39: FALSE | DZ39: FALSE | EA39: FALSE | EB39: FALSE | EC39: FALSE | ED39: FALSE | EE39: FALSE | EF39: FALSE | EG39: FALSE | EH39: FALSE | EI39: =EI38=$G$39 -> FALSE | EJ39: FALSE | EK39: FALSE | EL39: FALSE | EM39: FALSE | EN39: FALSE | EO39: FALSE | EP39: FALSE | EQ39: FALSE | ER39: FALSE | ES39: FALSE | ET39: FALSE | EU39: FALSE | EV39: FALSE | EW39: FALSE | EX39: FALSE | EY39: FALSE | EZ39: FALSE | FA39: FALSE | FB39: FALSE | FC39: FALSE | FD39: FALSE | FE39: FALSE | FF39: FALSE | FG39: FALSE | FH39: FALSE | FI39: FALSE | FJ39: FALSE | FK39: FALSE | FL39: FALSE | FM39: FALSE | FN39: FALSE | FO39: FALSE | FP39: FALSE | FQ39: FALSE | FR39: FALSE | FS39: FALSE | FT39: FALSE | FU39: FALSE | FV39: FALSE | FW39: FALSE | FX39: FALSE | FY39: FALSE | FZ39: FALSE | GA39: FALSE | GB39: FALSE | GC39: FALSE | GD39: FALSE | GE39: FALSE | GF39: FALSE | GG39: FALSE | GH39: FALSE | GI39: FALSE | GJ39: FALSE | GK39: FALSE | GL39: FALSE | GM39: FALSE | GN39: FALSE | GO39: FALSE | GP39: FALSE | GQ39: FALSE | GR39: FALSE | GS39: FALSE | GT39: FALSE | GU39: =GU38=$G$39 -> FALSE | GV39: FALSE | GW39: FALSE | GX39: FALSE | GY39: TRUE | GZ39: FALSE | HA39: FALSE | HB39: FALSE | HC39: FALSE | HD39: FALSE | HE39: FALSE | HF39: FALSE | HG39: FALSE | HH39: FALSE | HI39: FALSE | HJ39: FALSE | HK39: FALSE | HL39: FALSE | HM39: FALSE | HN39: FALSE | HO39: FALSE | HP39: FALSE | HQ39: FALSE | HR39: FALSE | HS39: FALSE | HT39: FALSE | HU39: FALSE | HV39: FALSE | HW39: FALSE | HX39: FALSE | HY39: FALSE | HZ39: FALSE | IA39: FALSE | IB39: FALSE | IC39: FALSE | ID39: FALSE | IE39: FALSE | IF39: FALSE | IG39: FALSE | IH39: FALSE | II39: FALSE | IJ39: FALSE | IK39: FALSE | IL39: FALSE | IM39: FALSE | IN39: FALSE | IO39: FALSE | IP39: FALSE | IQ39: FALSE | IR39: FALSE | IS39: FALSE | IT39: FALSE | IU39: FALSE | IV39: FALSE | IW39: FALSE | IX39: FALSE | IY39: FALSE | IZ39: FALSE | JA39: FALSE | JB39: FALSE | JC39: FALSE | JD39: FALSE | JE39: FALSE | JF39: FALSE | JG39: =JG38=$G$39 -> FALSE | JH39: FALSE | JI39: FALSE | JJ39: FALSE | JK39: FALSE | JL39: FALSE | JM39: FALSE | JN39: FALSE | JO39: FALSE | JP39: FALSE | JQ39: FALSE | JR39: FALSE | JS39: FALSE | JT39: FALSE | JU39: FALSE | JV39: FALSE | JW39: FALSE | JX39: FALSE | JY39: FALSE | JZ39: FALSE | KA39: FALSE | KB39: FALSE | KC39: FALSE | KD39: FALSE | KE39: FALSE | KF39: FALSE | KG39: FALSE | KH39: FALSE | KI39: FALSE | KJ39: FALSE | KK39: FALSE | KL39: FALSE | KM39: FALSE | KN39: FALSE | KO39: FALSE | KP39: FALSE | KQ39: FALSE | KR39: FALSE | KS39: FALSE | KT39: FALSE | KU39: FALSE | KV39: FALSE | KW39: FALSE | KX39: FALSE | KY39: FALSE | KZ39: FALSE | LA39: FALSE | LB39: FALSE | LC39: FALSE | LD39: FALSE | LE39: FALSE | LF39: FALSE | LG39: FALSE | LH39: FALSE | LI39: FALSE | LJ39: FALSE | LK39: FALSE | LL39: FALSE | LM39: FALSE | LN39: FALSE | LO39: FALSE | LP39: FALSE | LQ39: FALSE | LR39: FALSE | LS39: =LS38=$G$39 -> FALSE | LT39: FALSE | LU39: FALSE | LV39: FALSE | LW39: FALSE | LX39: FALSE | LY39: FALSE | LZ39: FALSE | MA39: FALSE | MB39: FALSE | MC39: FALSE | MD39: FALSE | ME39: FALSE | MF39: FALSE | MG39: FALSE | MH39: FALSE | MI39: FALSE | MJ39: FALSE | MK39: FALSE | ML39: FALSE | MM39: FALSE | MN39: FALSE | MO39: FALSE | MP39: FALSE | MQ39: FALSE | MR39: FALSE | MS39: FALSE | MT39: FALSE | MU39: FALSE | MV39: FALSE | MW39: FALSE | MX39: FALSE | MY39: FALSE | MZ39: FALSE | NA39: FALSE | NB39: FALSE | NC39: FALSE | ND39: FALSE | NE39: FALSE | NF39: FALSE | NG39: FALSE | NH39: FALSE | NI39: FALSE | NJ39: FALSE | NK39: FALSE | NL39: FALSE | NM39: FALSE | NN39: FALSE | NO39: FALSE | NP39: FALSE | NQ39: FALSE | NR39: FALSE | NS39: FALSE | NT39: FALSE | NU39: FALSE | NV39: FALSE | NW39: FALSE | NX39: FALSE | NY39: FALSE | NZ39: FALSE | OA39: FALSE | OB39: FALSE | OC39: FALSE | OD39: FALSE | OE39: =OE38=$G$39 -> FALSE | OF39: FALSE | OG39: FALSE | OH39: FALSE | OI39: FALSE | OJ39: FALSE | OK39: FALSE | OL39: FALSE | OM39: FALSE | ON39: FALSE | OO39: FALSE | OP39: FALSE | OQ39: FALSE | OR39: FALSE | OS39: FALSE | OT39: FALSE | OU39: FALSE | OV39: FALSE | OW39: FALSE | OX39: FALSE | OY39: FALSE | OZ39: FALSE | PA39: FALSE | PB39: FALSE | PC39: FALSE | PD39: FALSE | PE39: FALSE | PF39: FALSE | PG39: FALSE | PH39: FALSE | PI39: FALSE | PJ39: FALSE | PK39: FALSE | PL39: FALSE | PM39: FALSE | PN39: FALSE | PO39: FALSE | PP39: FALSE | PQ39: FALSE | PR39: FALSE | PS39: FALSE | PT39: FALSE | PU39: FALSE | PV39: FALSE | PW39: FALSE | PX39: FALSE | PY39: FALSE | PZ39: FALSE | QA39: FALSE | QB39: FALSE | QC39: FALSE | QD39: FALSE | QE39: FALSE | QF39: FALSE | QG39: FALSE | QH39: FALSE | QI39: FALSE | QJ39: FALSE | QK39: FALSE | QL39: FALSE | QM39: FALSE | QN39: FALSE | QO39: FALSE | QP39: FALSE | QQ39: =QQ38=$G$39 -> FALSE | QR39: FALSE | QS39: FALSE | QT39: FALSE | QU39: FALSE | QV39: FALSE | QW39: FALSE | QX39: FALSE | QY39: FALSE | QZ39: FALSE | RA39: FALSE | RB39: FALSE | RC39: FALSE | RD39: FALSE | RE39: FALSE | RF39: FALSE | RG39: FALSE | RH39: FALSE | RI39: FALSE | RJ39: FALSE | RK39: FALSE | RL39: FALSE | RM39: FALSE | RN39: FALSE | RO39: FALSE | RP39: FALSE | RQ39: FALSE | RR39: FALSE | RS39: FALSE | RT39: FALSE | RU39: FALSE | RV39: FALSE | RW39: FALSE | RX39: FALSE | RY39: FALSE | RZ39: FALSE | SA39: FALSE | SB39: FALSE | SC39: FALSE | SD39: FALSE | SE39: FALSE | SF39: FALSE | SG39: FALSE | SH39: FALSE | SI39: FALSE | SJ39: FALSE | SK39: FALSE | SL39: FALSE | SM39: FALSE | SN39: FALSE | SO39: FALSE
B41: Operation - Battery
C42: Storage Capacity | E42: kWh/Cycle | F42: =InputC!L47 -> 10000 | J42: =$F$42*J9 -> 0 | K42: 0 | L42: 0 | M42: 0 | N42: 0 | O42: 0 | P42: 0 | Q42: 0 | R42: 0 | S42: 0 | T42: 0 | U42: 0 | V42: 0 | W42: 0 | X42: 0 | Y42: 0 | Z42: 0 | AA42: 0 | AB42: 10000 | AC42: 10000 | AD42: 10000 | AE42: 10000 | AF42: 10000 | AG42: 10000 | AH42: 10000 | AI42: 10000 | AJ42: 10000 | AK42: 10000 | AL42: 10000 | AM42: 10000 | AN42: 10000 | AO42: 10000 | AP42: 10000 | AQ42: 10000 | AR42: 10000 | AS42: 10000 | AT42: 10000 | AU42: 10000 | AV42: 10000 | AW42: 10000 | AX42: 10000 | AY42: 10000 | AZ42: 10000 | BA42: 10000 | BB42: 10000 | BC42: 10000 | BD42: 10000 | BE42: 10000 | BF42: 10000 | BG42: 10000 | BH42: 10000 | BI42: 10000 | BJ42: 10000 | BK42: 10000 | BL42: 10000 | BM42: 10000 | BN42: 10000 | BO42: 10000 | BP42: 10000 | BQ42: 10000 | BR42: 10000 | BS42: 10000 | BT42: 10000 | BU42: 10000 | BV42: =$F$42*BV9 -> 10000 | BW42: 10000 | BX42: 10000 | BY42: 10000 | BZ42: 10000 | CA42: 10000 | CB42: 10000 | CC42: 10000 | CD42: 10000 | CE42: 10000 | CF42: 10000 | CG42: 10000 | CH42: 10000 | CI42: 10000 | CJ42: 10000 | CK42: 10000 | CL42: 10000 | CM42: 10000 | CN42: 10000 | CO42: 10000 | CP42: 10000 | CQ42: 10000 | CR42: 10000 | CS42: 10000 | CT42: 10000 | CU42: 10000 | CV42: 10000 | CW42: 10000 | CX42: 10000 | CY42: 10000 | CZ42: 10000 | DA42: 10000 | DB42: 10000 | DC42: 10000 | DD42: 10000 | DE42: 10000 | DF42: 10000 | DG42: 10000 | DH42: 10000 | DI42: 10000 | DJ42: 10000 | DK42: 10000 | DL42: 10000 | DM42: 10000 | DN42: 10000 | DO42: 10000 | DP42: 10000 | DQ42: 10000 | DR42: 10000 | DS42: 10000 | DT42: 10000 | DU42: 10000 | DV42: 10000 | DW42: 10000 | DX42: 10000 | DY42: 10000 | DZ42: 10000 | EA42: 10000 | EB42: 10000 | EC42: 10000 | ED42: 10000 | EE42: 10000 | EF42: 10000 | EG42: 10000 | EH42: =$F$42*EH9 -> 10000 | EI42: 10000 | EJ42: 10000 | EK42: 10000 | EL42: 10000 | EM42: 10000 | EN42: 10000 | EO42: 10000 | EP42: 10000 | EQ42: 10000 | ER42: 10000 | ES42: 10000 | ET42: 10000 | EU42: 10000 | EV42: 10000 | EW42: 10000 | EX42: 10000 | EY42: 10000 | EZ42: 10000 | FA42: 10000 | FB42: 10000 | FC42: 10000 | FD42: 10000 | FE42: 10000 | FF42: 10000 | FG42: 10000 | FH42: 10000 | FI42: 10000 | FJ42: 10000 | FK42: 10000 | FL42: 10000 | FM42: 10000 | FN42: 10000 | FO42: 10000 | FP42: 10000 | FQ42: 10000 | FR42: 10000 | FS42: 10000 | FT42: 10000 | FU42: 10000 | FV42: 10000 | FW42: 10000 | FX42: 10000 | FY42: 10000 | FZ42: 10000 | GA42: 10000 | GB42: 10000 | GC42: 10000 | GD42: 10000 | GE42: 10000 | GF42: 10000 | GG42: 10000 | GH42: 10000 | GI42: 10000 | GJ42: 10000 | GK42: 10000 | GL42: 10000 | GM42: 10000 | GN42: 10000 | GO42: 10000 | GP42: 10000 | GQ42: 10000 | GR42: 10000 | GS42: 10000 | GT42: =$F$42*GT9 -> 10000 | GU42: 10000 | GV42: 10000 | GW42: 10000 | GX42: 10000 | GY42: 10000 | GZ42: 10000 | HA42: 10000 | HB42: 10000 | HC42: 10000 | HD42: 10000 | HE42: 10000 | HF42: 10000 | HG42: 10000 | HH42: 10000 | HI42: 10000 | HJ42: 10000 | HK42: 10000 | HL42: 10000 | HM42: 10000 | HN42: 10000 | HO42: 10000 | HP42: 10000 | HQ42: 10000 | HR42: 10000 | HS42: 10000 | HT42: 10000 | HU42: 10000 | HV42: 10000 | HW42: 10000 | HX42: 10000 | HY42: 10000 | HZ42: 10000 | IA42: 10000 | IB42: 10000 | IC42: 10000 | ID42: 10000 | IE42: 10000 | IF42: 10000 | IG42: 10000 | IH42: 10000 | II42: 10000 | IJ42: 10000 | IK42: 10000 | IL42: 10000 | IM42: 10000 | IN42: 10000 | IO42: 10000 | IP42: 10000 | IQ42: 10000 | IR42: 10000 | IS42: 10000 | IT42: 10000 | IU42: 10000 | IV42: 10000 | IW42: 10000 | IX42: 10000 | IY42: 10000 | IZ42: 10000 | JA42: 10000 | JB42: 10000 | JC42: 10000 | JD42: 10000 | JE42: 10000 | JF42: =$F$42*JF9 -> 10000 | JG42: 10000 | JH42: 10000 | JI42: 10000 | JJ42: 10000 | JK42: 10000 | JL42: 10000 | JM42: 10000 | JN42: 10000 | JO42: 10000 | JP42: 10000 | JQ42: 10000 | JR42: 10000 | JS42: 10000 | JT42: 10000 | JU42: 10000 | JV42: 10000 | JW42: 10000 | JX42: 10000 | JY42: 10000 | JZ42: 10000 | KA42: 10000 | KB42: 10000 | KC42: 10000 | KD42: 10000 | KE42: 10000 | KF42: 10000 | KG42: 10000 | KH42: 10000 | KI42: 10000 | KJ42: 10000 | KK42: 10000 | KL42: 10000 | KM42: 10000 | KN42: 10000 | KO42: 10000 | KP42: 10000 | KQ42: 10000 | KR42: 10000 | KS42: 10000 | KT42: 10000 | KU42: 10000 | KV42: 10000 | KW42: 10000 | KX42: 10000 | KY42: 10000 | KZ42: 10000 | LA42: 10000 | LB42: 10000 | LC42: 10000 | LD42: 10000 | LE42: 10000 | LF42: 10000 | LG42: 10000 | LH42: 10000 | LI42: 10000 | LJ42: 10000 | LK42: 10000 | LL42: 10000 | LM42: 10000 | LN42: 10000 | LO42: 10000 | LP42: 10000 | LQ42: 10000 | LR42: =$F$42*LR9 -> 10000 | LS42: 10000 | LT42: 10000 | LU42: 10000 | LV42: 10000 | LW42: 10000 | LX42: 10000 | LY42: 10000 | LZ42: 10000 | MA42: 10000 | MB42: 10000 | MC42: 10000 | MD42: 10000 | ME42: 10000 | MF42: 10000 | MG42: 10000 | MH42: 10000 | MI42: 10000 | MJ42: 10000 | MK42: 10000 | ML42: 10000 | MM42: 10000 | MN42: 10000 | MO42: 10000 | MP42: 10000 | MQ42: 10000 | MR42: 10000 | MS42: 10000 | MT42: 10000 | MU42: 10000 | MV42: 10000 | MW42: 10000 | MX42: 10000 | MY42: 10000 | MZ42: 10000 | NA42: 10000 | NB42: 10000 | NC42: 10000 | ND42: 10000 | NE42: 10000 | NF42: 10000 | NG42: 10000 | NH42: 10000 | NI42: 10000 | NJ42: 10000 | NK42: 10000 | NL42: 10000 | NM42: 10000 | NN42: 10000 | NO42: 10000 | NP42: 10000 | NQ42: 10000 | NR42: 10000 | NS42: 10000 | NT42: 10000 | NU42: 10000 | NV42: 10000 | NW42: 10000 | NX42: 10000 | NY42: 10000 | NZ42: 10000 | OA42: 10000 | OB42: 10000 | OC42: 10000 | OD42: =$F$42*OD9 -> 10000 | OE42: 10000 | OF42: 10000 | OG42: 10000 | OH42: 10000 | OI42: 10000 | OJ42: 10000 | OK42: 10000 | OL42: 10000 | OM42: 10000 | ON42: 10000 | OO42: 10000 | OP42: 10000 | OQ42: 10000 | OR42: 10000 | OS42: 10000 | OT42: 10000 | OU42: 10000 | OV42: 10000 | OW42: 10000 | OX42: 10000 | OY42: 10000 | OZ42: 10000 | PA42: 10000 | PB42: 10000 | PC42: 10000 | PD42: 10000 | PE42: 10000 | PF42: 10000 | PG42: 10000 | PH42: 10000 | PI42: 10000 | PJ42: 10000 | PK42: 10000 | PL42: 10000 | PM42: 10000 | PN42: 10000 | PO42: 10000 | PP42: 10000 | PQ42: 10000 | PR42: 10000 | PS42: 10000 | PT42: 10000 | PU42: 10000 | PV42: 10000 | PW42: 10000 | PX42: 10000 | PY42: 10000 | PZ42: 10000 | QA42: 10000 | QB42: 10000 | QC42: 10000 | QD42: 10000 | QE42: 10000 | QF42: 0 | QG42: 0 | QH42: 0 | QI42: 0 | QJ42: 0 | QK42: 0 | QL42: 0 | QM42: 0 | QN42: 0 | QO42: 0 | QP42: =$F$42*QP9 -> 0 | QQ42: 0 | QR42: 0 | QS42: 0 | QT42: 0 | QU42: 0 | QV42: 0 | QW42: 0 | QX42: 0 | QY42: 0 | QZ42: 0 | RA42: 0 | RB42: 0 | RC42: 0 | RD42: 0 | RE42: 0 | RF42: 0 | RG42: 0 | RH42: 0 | RI42: 0 | RJ42: 0 | RK42: 0 | RL42: 0 | RM42: 0 | RN42: 0 | RO42: 0 | RP42: 0 | RQ42: 0 | RR42: 0 | RS42: 0 | RT42: 0 | RU42: 0 | RV42: 0 | RW42: 0 | RX42: 0 | RY42: 0 | RZ42: 0 | SA42: 0 | SB42: 0 | SC42: 0 | SD42: 0 | SE42: 0 | SF42: 0 | SG42: 0 | SH42: 0 | SI42: 0 | SJ42: 0 | SK42: 0 | SL42: 0 | SM42: 0 | SN42: 0 | SO42: 0
C43: Inverter Capacity | E43: kWac | F43: =InputC!L45 -> 10000 | J43: =$F$43*J9 -> 0 | K43: 0 | L43: 0 | M43: 0 | N43: 0 | O43: 0 | P43: 0 | Q43: 0 | R43: 0 | S43: 0 | T43: 0 | U43: 0 | V43: 0 | W43: 0 | X43: 0 | Y43: 0 | Z43: 0 | AA43: 0 | AB43: 10000 | AC43: 10000 | AD43: 10000 | AE43: 10000 | AF43: 10000 | AG43: 10000 | AH43: 10000 | AI43: 10000 | AJ43: 10000 | AK43: 10000 | AL43: 10000 | AM43: 10000 | AN43: 10000 | AO43: 10000 | AP43: 10000 | AQ43: 10000 | AR43: 10000 | AS43: 10000 | AT43: 10000 | AU43: 10000 | AV43: 10000 | AW43: 10000 | AX43: 10000 | AY43: 10000 | AZ43: 10000 | BA43: 10000 | BB43: 10000 | BC43: 10000 | BD43: 10000 | BE43: 10000 | BF43: 10000 | BG43: 10000 | BH43: 10000 | BI43: 10000 | BJ43: 10000 | BK43: 10000 | BL43: 10000 | BM43: 10000 | BN43: 10000 | BO43: 10000 | BP43: 10000 | BQ43: 10000 | BR43: 10000 | BS43: 10000 | BT43: 10000 | BU43: 10000 | BV43: =$F$43*BV9 -> 10000 | BW43: 10000 | BX43: 10000 | BY43: 10000 | BZ43: 10000 | CA43: 10000 | CB43: 10000 | CC43: 10000 | CD43: 10000 | CE43: 10000 | CF43: 10000 | CG43: 10000 | CH43: 10000 | CI43: 10000 | CJ43: 10000 | CK43: 10000 | CL43: 10000 | CM43: 10000 | CN43: 10000 | CO43: 10000 | CP43: 10000 | CQ43: 10000 | CR43: 10000 | CS43: 10000 | CT43: 10000 | CU43: 10000 | CV43: 10000 | CW43: 10000 | CX43: 10000 | CY43: 10000 | CZ43: 10000 | DA43: 10000 | DB43: 10000 | DC43: 10000 | DD43: 10000 | DE43: 10000 | DF43: 10000 | DG43: 10000 | DH43: 10000 | DI43: 10000 | DJ43: 10000 | DK43: 10000 | DL43: 10000 | DM43: 10000 | DN43: 10000 | DO43: 10000 | DP43: 10000 | DQ43: 10000 | DR43: 10000 | DS43: 10000 | DT43: 10000 | DU43: 10000 | DV43: 10000 | DW43: 10000 | DX43: 10000 | DY43: 10000 | DZ43: 10000 | EA43: 10000 | EB43: 10000 | EC43: 10000 | ED43: 10000 | EE43: 10000 | EF43: 10000 | EG43: 10000 | EH43: =$F$43*EH9 -> 10000 | EI43: 10000 | EJ43: 10000 | EK43: 10000 | EL43: 10000 | EM43: 10000 | EN43: 10000 | EO43: 10000 | EP43: 10000 | EQ43: 10000 | ER43: 10000 | ES43: 10000 | ET43: 10000 | EU43: 10000 | EV43: 10000 | EW43: 10000 | EX43: 10000 | EY43: 10000 | EZ43: 10000 | FA43: 10000 | FB43: 10000 | FC43: 10000 | FD43: 10000 | FE43: 10000 | FF43: 10000 | FG43: 10000 | FH43: 10000 | FI43: 10000 | FJ43: 10000 | FK43: 10000 | FL43: 10000 | FM43: 10000 | FN43: 10000 | FO43: 10000 | FP43: 10000 | FQ43: 10000 | FR43: 10000 | FS43: 10000 | FT43: 10000 | FU43: 10000 | FV43: 10000 | FW43: 10000 | FX43: 10000 | FY43: 10000 | FZ43: 10000 | GA43: 10000 | GB43: 10000 | GC43: 10000 | GD43: 10000 | GE43: 10000 | GF43: 10000 | GG43: 10000 | GH43: 10000 | GI43: 10000 | GJ43: 10000 | GK43: 10000 | GL43: 10000 | GM43: 10000 | GN43: 10000 | GO43: 10000 | GP43: 10000 | GQ43: 10000 | GR43: 10000 | GS43: 10000 | GT43: =$F$43*GT9 -> 10000 | GU43: 10000 | GV43: 10000 | GW43: 10000 | GX43: 10000 | GY43: 10000 | GZ43: 10000 | HA43: 10000 | HB43: 10000 | HC43: 10000 | HD43: 10000 | HE43: 10000 | HF43: 10000 | HG43: 10000 | HH43: 10000 | HI43: 10000 | HJ43: 10000 | HK43: 10000 | HL43: 10000 | HM43: 10000 | HN43: 10000 | HO43: 10000 | HP43: 10000 | HQ43: 10000 | HR43: 10000 | HS43: 10000 | HT43: 10000 | HU43: 10000 | HV43: 10000 | HW43: 10000 | HX43: 10000 | HY43: 10000 | HZ43: 10000 | IA43: 10000 | IB43: 10000 | IC43: 10000 | ID43: 10000 | IE43: 10000 | IF43: 10000 | IG43: 10000 | IH43: 10000 | II43: 10000 | IJ43: 10000 | IK43: 10000 | IL43: 10000 | IM43: 10000 | IN43: 10000 | IO43: 10000 | IP43: 10000 | IQ43: 10000 | IR43: 10000 | IS43: 10000 | IT43: 10000 | IU43: 10000 | IV43: 10000 | IW43: 10000 | IX43: 10000 | IY43: 10000 | IZ43: 10000 | JA43: 10000 | JB43: 10000 | JC43: 10000 | JD43: 10000 | JE43: 10000 | JF43: =$F$43*JF9 -> 10000 | JG43: 10000 | JH43: 10000 | JI43: 10000 | JJ43: 10000 | JK43: 10000 | JL43: 10000 | JM43: 10000 | JN43: 10000 | JO43: 10000 | JP43: 10000 | JQ43: 10000 | JR43: 10000 | JS43: 10000 | JT43: 10000 | JU43: 10000 | JV43: 10000 | JW43: 10000 | JX43: 10000 | JY43: 10000 | JZ43: 10000 | KA43: 10000 | KB43: 10000 | KC43: 10000 | KD43: 10000 | KE43: 10000 | KF43: 10000 | KG43: 10000 | KH43: 10000 | KI43: 10000 | KJ43: 10000 | KK43: 10000 | KL43: 10000 | KM43: 10000 | KN43: 10000 | KO43: 10000 | KP43: 10000 | KQ43: 10000 | KR43: 10000 | KS43: 10000 | KT43: 10000 | KU43: 10000 | KV43: 10000 | KW43: 10000 | KX43: 10000 | KY43: 10000 | KZ43: 10000 | LA43: 10000 | LB43: 10000 | LC43: 10000 | LD43: 10000 | LE43: 10000 | LF43: 10000 | LG43: 10000 | LH43: 10000 | LI43: 10000 | LJ43: 10000 | LK43: 10000 | LL43: 10000 | LM43: 10000 | LN43: 10000 | LO43: 10000 | LP43: 10000 | LQ43: 10000 | LR43: =$F$43*LR9 -> 10000 | LS43: 10000 | LT43: 10000 | LU43: 10000 | LV43: 10000 | LW43: 10000 | LX43: 10000 | LY43: 10000 | LZ43: 10000 | MA43: 10000 | MB43: 10000 | MC43: 10000 | MD43: 10000 | ME43: 10000 | MF43: 10000 | MG43: 10000 | MH43: 10000 | MI43: 10000 | MJ43: 10000 | MK43: 10000 | ML43: 10000 | MM43: 10000 | MN43: 10000 | MO43: 10000 | MP43: 10000 | MQ43: 10000 | MR43: 10000 | MS43: 10000 | MT43: 10000 | MU43: 10000 | MV43: 10000 | MW43: 10000 | MX43: 10000 | MY43: 10000 | MZ43: 10000 | NA43: 10000 | NB43: 10000 | NC43: 10000 | ND43: 10000 | NE43: 10000 | NF43: 10000 | NG43: 10000 | NH43: 10000 | NI43: 10000 | NJ43: 10000 | NK43: 10000 | NL43: 10000 | NM43: 10000 | NN43: 10000 | NO43: 10000 | NP43: 10000 | NQ43: 10000 | NR43: 10000 | NS43: 10000 | NT43: 10000 | NU43: 10000 | NV43: 10000 | NW43: 10000 | NX43: 10000 | NY43: 10000 | NZ43: 10000 | OA43: 10000 | OB43: 10000 | OC43: 10000 | OD43: =$F$43*OD9 -> 10000 | OE43: 10000 | OF43: 10000 | OG43: 10000 | OH43: 10000 | OI43: 10000 | OJ43: 10000 | OK43: 10000 | OL43: 10000 | OM43: 10000 | ON43: 10000 | OO43: 10000 | OP43: 10000 | OQ43: 10000 | OR43: 10000 | OS43: 10000 | OT43: 10000 | OU43: 10000 | OV43: 10000 | OW43: 10000 | OX43: 10000 | OY43: 10000 | OZ43: 10000 | PA43: 10000 | PB43: 10000 | PC43: 10000 | PD43: 10000 | PE43: 10000 | PF43: 10000 | PG43: 10000 | PH43: 10000 | PI43: 10000 | PJ43: 10000 | PK43: 10000 | PL43: 10000 | PM43: 10000 | PN43: 10000 | PO43: 10000 | PP43: 10000 | PQ43: 10000 | PR43: 10000 | PS43: 10000 | PT43: 10000 | PU43: 10000 | PV43: 10000 | PW43: 10000 | PX43: 10000 | PY43: 10000 | PZ43: 10000 | QA43: 10000 | QB43: 10000 | QC43: 10000 | QD43: 10000 | QE43: 10000 | QF43: 0 | QG43: 0 | QH43: 0 | QI43: 0 | QJ43: 0 | QK43: 0 | QL43: 0 | QM43: 0 | QN43: 0 | QO43: 0 | QP43: =$F$43*QP9 -> 0 | QQ43: 0 | QR43: 0 | QS43: 0 | QT43: 0 | QU43: 0 | QV43: 0 | QW43: 0 | QX43: 0 | QY43: 0 | QZ43: 0 | RA43: 0 | RB43: 0 | RC43: 0 | RD43: 0 | RE43: 0 | RF43: 0 | RG43: 0 | RH43: 0 | RI43: 0 | RJ43: 0 | RK43: 0 | RL43: 0 | RM43: 0 | RN43: 0 | RO43: 0 | RP43: 0 | RQ43: 0 | RR43: 0 | RS43: 0 | RT43: 0 | RU43: 0 | RV43: 0 | RW43: 0 | RX43: 0 | RY43: 0 | RZ43: 0 | SA43: 0 | SB43: 0 | SC43: 0 | SD43: 0 | SE43: 0 | SF43: 0 | SG43: 0 | SH43: 0 | SI43: 0 | SJ43: 0 | SK43: 0 | SL43: 0 | SM43: 0 | SN43: 0 | SO43: 0
C45: Age of project in months | E45: Months | J45: =I45+J9 -> 0 | K45: 0 | L45: 0 | M45: 0 | N45: 0 | O45: 0 | P45: 0 | Q45: 0 | R45: 0 | S45: 0 | T45: 0 | U45: 0 | V45: 0 | W45: 0 | X45: 0 | Y45: 0 | Z45: 0 | AA45: 0 | AB45: 1 | AC45: 2 | AD45: 3 | AE45: 4 | AF45: 5 | AG45: 6 | AH45: 7 | AI45: 8 | AJ45: 9 | AK45: 10 | AL45: 11 | AM45: 12 | AN45: 13 | AO45: 14 | AP45: 15 | AQ45: 16 | AR45: 17 | AS45: 18 | AT45: 19 | AU45: 20 | AV45: 21 | AW45: 22 | AX45: 23 | AY45: 24 | AZ45: 25 | BA45: 26 | BB45: 27 | BC45: 28 | BD45: 29 | BE45: 30 | BF45: 31 | BG45: 32 | BH45: 33 | BI45: 34 | BJ45: 35 | BK45: 36 | BL45: 37 | BM45: 38 | BN45: 39 | BO45: 40 | BP45: 41 | BQ45: 42 | BR45: 43 | BS45: 44 | BT45: 45 | BU45: 46 | BV45: =BU45+BV9 -> 47 | BW45: 48 | BX45: 49 | BY45: 50 | BZ45: 51 | CA45: 52 | CB45: 53 | CC45: 54 | CD45: 55 | CE45: 56 | CF45: 57 | CG45: 58 | CH45: 59 | CI45: 60 | CJ45: 61 | CK45: 62 | CL45: 63 | CM45: 64 | CN45: 65 | CO45: 66 | CP45: 67 | CQ45: 68 | CR45: 69 | CS45: 70 | CT45: 71 | CU45: 72 | CV45: 73 | CW45: 74 | CX45: 75 | CY45: 76 | CZ45: 77 | DA45: 78 | DB45: 79 | DC45: 80 | DD45: 81 | DE45: 82 | DF45: 83 | DG45: 84 | DH45: 85 | DI45: 86 | DJ45: 87 | DK45: 88 | DL45: 89 | DM45: 90 | DN45: 91 | DO45: 92 | DP45: 93 | DQ45: 94 | DR45: 95 | DS45: 96 | DT45: 97 | DU45: 98 | DV45: 99 | DW45: 100 | DX45: 101 | DY45: 102 | DZ45: 103 | EA45: 104 | EB45: 105 | EC45: 106 | ED45: 107 | EE45: 108 | EF45: 109 | EG45: 110 | EH45: =EG45+EH9 -> 111 | EI45: 112 | EJ45: 113 | EK45: 114 | EL45: 115 | EM45: 116 | EN45: 117 | EO45: 118 | EP45: 119 | EQ45: 120 | ER45: 121 | ES45: 122 | ET45: 123 | EU45: 124 | EV45: 125 | EW45: 126 | EX45: 127 | EY45: 128 | EZ45: 129 | FA45: 130 | FB45: 131 | FC45: 132 | FD45: 133 | FE45: 134 | FF45: 135 | FG45: 136 | FH45: 137 | FI45: 138 | FJ45: 139 | FK45: 140 | FL45: 141 | FM45: 142 | FN45: 143 | FO45: 144 | FP45: 145 | FQ45: 146 | FR45: 147 | FS45: 148 | FT45: 149 | FU45: 150 | FV45: 151 | FW45: 152 | FX45: 153 | FY45: 154 | FZ45: 155 | GA45: 156 | GB45: 157 | GC45: 158 | GD45: 159 | GE45: 160 | GF45: 161 | GG45: 162 | GH45: 163 | GI45: 164 | GJ45: 165 | GK45: 166 | GL45: 167 | GM45: 168 | GN45: 169 | GO45: 170 | GP45: 171 | GQ45: 172 | GR45: 173 | GS45: 174 | GT45: =GS45+GT9 -> 175 | GU45: 176 | GV45: 177 | GW45: 178 | GX45: 179 | GY45: 180 | GZ45: 181 | HA45: 182 | HB45: 183 | HC45: 184 | HD45: 185 | HE45: 186 | HF45: 187 | HG45: 188 | HH45: 189 | HI45: 190 | HJ45: 191 | HK45: 192 | HL45: 193 | HM45: 194 | HN45: 195 | HO45: 196 | HP45: 197 | HQ45: 198 | HR45: 199 | HS45: 200 | HT45: 201 | HU45: 202 | HV45: 203 | HW45: 204 | HX45: 205 | HY45: 206 | HZ45: 207 | IA45: 208 | IB45: 209 | IC45: 210 | ID45: 211 | IE45: 212 | IF45: 213 | IG45: 214 | IH45: 215 | II45: 216 | IJ45: 217 | IK45: 218 | IL45: 219 | IM45: 220 | IN45: 221 | IO45: 222 | IP45: 223 | IQ45: 224 | IR45: 225 | IS45: 226 | IT45: 227 | IU45: 228 | IV45: 229 | IW45: 230 | IX45: 231 | IY45: 232 | IZ45: 233 | JA45: 234 | JB45: 235 | JC45: 236 | JD45: 237 | JE45: 238 | JF45: =JE45+JF9 -> 239 | JG45: 240 | JH45: 241 | JI45: 242 | JJ45: 243 | JK45: 244 | JL45: 245 | JM45: 246 | JN45: 247 | JO45: 248 | JP45: 249 | JQ45: 250 | JR45: 251 | JS45: 252 | JT45: 253 | JU45: 254 | JV45: 255 | JW45: 256 | JX45: 257 | JY45: 258 | JZ45: 259 | KA45: 260 | KB45: 261 | KC45: 262 | KD45: 263 | KE45: 264 | KF45: 265 | KG45: 266 | KH45: 267 | KI45: 268 | KJ45: 269 | KK45: 270 | KL45: 271 | KM45: 272 | KN45: 273 | KO45: 274 | KP45: 275 | KQ45: 276 | KR45: 277 | KS45: 278 | KT45: 279 | KU45: 280 | KV45: 281 | KW45: 282 | KX45: 283 | KY45: 284 | KZ45: 285 | LA45: 286 | LB45: 287 | LC45: 288 | LD45: 289 | LE45: 290 | LF45: 291 | LG45: 292 | LH45: 293 | LI45: 294 | LJ45: 295 | LK45: 296 | LL45: 297 | LM45: 298 | LN45: 299 | LO45: 300 | LP45: 301 | LQ45: 302 | LR45: =LQ45+LR9 -> 303 | LS45: 304 | LT45: 305 | LU45: 306 | LV45: 307 | LW45: 308 | LX45: 309 | LY45: 310 | LZ45: 311 | MA45: 312 | MB45: 313 | MC45: 314 | MD45: 315 | ME45: 316 | MF45: 317 | MG45: 318 | MH45: 319 | MI45: 320 | MJ45: 321 | MK45: 322 | ML45: 323 | MM45: 324 | MN45: 325 | MO45: 326 | MP45: 327 | MQ45: 328 | MR45: 329 | MS45: 330 | MT45: 331 | MU45: 332 | MV45: 333 | MW45: 334 | MX45: 335 | MY45: 336 | MZ45: 337 | NA45: 338 | NB45: 339 | NC45: 340 | ND45: 341 | NE45: 342 | NF45: 343 | NG45: 344 | NH45: 345 | NI45: 346 | NJ45: 347 | NK45: 348 | NL45: 349 | NM45: 350 | NN45: 351 | NO45: 352 | NP45: 353 | NQ45: 354 | NR45: 355 | NS45: 356 | NT45: 357 | NU45: 358 | NV45: 359 | NW45: 360 | NX45: 361 | NY45: 362 | NZ45: 363 | OA45: 364 | OB45: 365 | OC45: 366 | OD45: =OC45+OD9 -> 367 | OE45: 368 | OF45: 369 | OG45: 370 | OH45: 371 | OI45: 372 | OJ45: 373 | OK45: 374 | OL45: 375 | OM45: 376 | ON45: 377 | OO45: 378 | OP45: 379 | OQ45: 380 | OR45: 381 | OS45: 382 | OT45: 383 | OU45: 384 | OV45: 385 | OW45: 386 | OX45: 387 | OY45: 388 | OZ45: 389 | PA45: 390 | PB45: 391 | PC45: 392 | PD45: 393 | PE45: 394 | PF45: 395 | PG45: 396 | PH45: 397 | PI45: 398 | PJ45: 399 | PK45: 400 | PL45: 401 | PM45: 402 | PN45: 403 | PO45: 404 | PP45: 405 | PQ45: 406 | PR45: 407 | PS45: 408 | PT45: 409 | PU45: 410 | PV45: 411 | PW45: 412 | PX45: 413 | PY45: 414 | PZ45: 415 | QA45: 416 | QB45: 417 | QC45: 418 | QD45: 419 | QE45: 420 | QF45: 420 | QG45: 420 | QH45: 420 | QI45: 420 | QJ45: 420 | QK45: 420 | QL45: 420 | QM45: 420 | QN45: 420 | QO45: 420 | QP45: =QO45+QP9 -> 420 | QQ45: 420 | QR45: 420 | QS45: 420 | QT45: 420 | QU45: 420 | QV45: 420 | QW45: 420 | QX45: 420 | QY45: 420 | QZ45: 420 | RA45: 420 | RB45: 420 | RC45: 420 | RD45: 420 | RE45: 420 | RF45: 420 | RG45: 420 | RH45: 420 | RI45: 420 | RJ45: 420 | RK45: 420 | RL45: 420 | RM45: 420 | RN45: 420 | RO45: 420 | RP45: 420 | RQ45: 420 | RR45: 420 | RS45: 420 | RT45: 420 | RU45: 420 | RV45: 420 | RW45: 420 | RX45: 420 | RY45: 420 | RZ45: 420 | SA45: 420 | SB45: 420 | SC45: 420 | SD45: 420 | SE45: 420 | SF45: 420 | SG45: 420 | SH45: 420 | SI45: 420 | SJ45: 420 | SK45: 420 | SL45: 420 | SM45: 420 | SN45: 420 | SO45: 420
C46: Age of project in years | E46: Years | J46: =ROUNDUP(J45/12,0) -> 0 | K46: =ROUNDUP(K45/12,0) -> 0 | L46: 0 | M46: 0 | N46: 0 | O46: 0 | P46: 0 | Q46: 0 | R46: 0 | S46: 0 | T46: 0 | U46: 0 | V46: 0 | W46: 0 | X46: 0 | Y46: 0 | Z46: 0 | AA46: 0 | AB46: 1 | AC46: 1 | AD46: 1 | AE46: 1 | AF46: 1 | AG46: 1 | AH46: 1 | AI46: 1 | AJ46: 1 | AK46: 1 | AL46: 1 | AM46: 1 | AN46: 2 | AO46: 2 | AP46: 2 | AQ46: 2 | AR46: 2 | AS46: 2 | AT46: 2 | AU46: 2 | AV46: 2 | AW46: 2 | AX46: 2 | AY46: 2 | AZ46: 3 | BA46: 3 | BB46: 3 | BC46: 3 | BD46: 3 | BE46: 3 | BF46: 3 | BG46: 3 | BH46: 3 | BI46: 3 | BJ46: 3 | BK46: 3 | BL46: 4 | BM46: 4 | BN46: 4 | BO46: 4 | BP46: 4 | BQ46: 4 | BR46: 4 | BS46: 4 | BT46: 4 | BU46: 4 | BV46: 4 | BW46: =ROUNDUP(BW45/12,0) -> 4 | BX46: 5 | BY46: 5 | BZ46: 5 | CA46: 5 | CB46: 5 | CC46: 5 | CD46: 5 | CE46: 5 | CF46: 5 | CG46: 5 | CH46: 5 | CI46: 5 | CJ46: 6 | CK46: 6 | CL46: 6 | CM46: 6 | CN46: 6 | CO46: 6 | CP46: 6 | CQ46: 6 | CR46: 6 | CS46: 6 | CT46: 6 | CU46: 6 | CV46: 7 | CW46: 7 | CX46: 7 | CY46: 7 | CZ46: 7 | DA46: 7 | DB46: 7 | DC46: 7 | DD46: 7 | DE46: 7 | DF46: 7 | DG46: 7 | DH46: 8 | DI46: 8 | DJ46: 8 | DK46: 8 | DL46: 8 | DM46: 8 | DN46: 8 | DO46: 8 | DP46: 8 | DQ46: 8 | DR46: 8 | DS46: 8 | DT46: 9 | DU46: 9 | DV46: 9 | DW46: 9 | DX46: 9 | DY46: 9 | DZ46: 9 | EA46: 9 | EB46: 9 | EC46: 9 | ED46: 9 | EE46: 9 | EF46: 10 | EG46: 10 | EH46: 10 | EI46: =ROUNDUP(EI45/12,0) -> 10 | EJ46: 10 | EK46: 10 | EL46: 10 | EM46: 10 | EN46: 10 | EO46: 10 | EP46: 10 | EQ46: 10 | ER46: 11 | ES46: 11 | ET46: 11 | EU46: 11 | EV46: 11 | EW46: 11 | EX46: 11 | EY46: 11 | EZ46: 11 | FA46: 11 | FB46: 11 | FC46: 11 | FD46: 12 | FE46: 12 | FF46: 12 | FG46: 12 | FH46: 12 | FI46: 12 | FJ46: 12 | FK46: 12 | FL46: 12 | FM46: 12 | FN46: 12 | FO46: 12 | FP46: 13 | FQ46: 13 | FR46: 13 | FS46: 13 | FT46: 13 | FU46: 13 | FV46: 13 | FW46: 13 | FX46: 13 | FY46: 13 | FZ46: 13 | GA46: 13 | GB46: 14 | GC46: 14 | GD46: 14 | GE46: 14 | GF46: 14 | GG46: 14 | GH46: 14 | GI46: 14 | GJ46: 14 | GK46: 14 | GL46: 14 | GM46: 14 | GN46: 15 | GO46: 15 | GP46: 15 | GQ46: 15 | GR46: 15 | GS46: 15 | GT46: 15 | GU46: =ROUNDUP(GU45/12,0) -> 15 | GV46: 15 | GW46: 15 | GX46: 15 | GY46: 15 | GZ46: 16 | HA46: 16 | HB46: 16 | HC46: 16 | HD46: 16 | HE46: 16 | HF46: 16 | HG46: 16 | HH46: 16 | HI46: 16 | HJ46: 16 | HK46: 16 | HL46: 17 | HM46: 17 | HN46: 17 | HO46: 17 | HP46: 17 | HQ46: 17 | HR46: 17 | HS46: 17 | HT46: 17 | HU46: 17 | HV46: 17 | HW46: 17 | HX46: 18 | HY46: 18 | HZ46: 18 | IA46: 18 | IB46: 18 | IC46: 18 | ID46: 18 | IE46: 18 | IF46: 18 | IG46: 18 | IH46: 18 | II46: 18 | IJ46: 19 | IK46: 19 | IL46: 19 | IM46: 19 | IN46: 19 | IO46: 19 | IP46: 19 | IQ46: 19 | IR46: 19 | IS46: 19 | IT46: 19 | IU46: 19 | IV46: 20 | IW46: 20 | IX46: 20 | IY46: 20 | IZ46: 20 | JA46: 20 | JB46: 20 | JC46: 20 | JD46: 20 | JE46: 20 | JF46: 20 | JG46: =ROUNDUP(JG45/12,0) -> 20 | JH46: 21 | JI46: 21 | JJ46: 21 | JK46: 21 | JL46: 21 | JM46: 21 | JN46: 21 | JO46: 21 | JP46: 21 | JQ46: 21 | JR46: 21 | JS46: 21 | JT46: 22 | JU46: 22 | JV46: 22 | JW46: 22 | JX46: 22 | JY46: 22 | JZ46: 22 | KA46: 22 | KB46: 22 | KC46: 22 | KD46: 22 | KE46: 22 | KF46: 23 | KG46: 23 | KH46: 23 | KI46: 23 | KJ46: 23 | KK46: 23 | KL46: 23 | KM46: 23 | KN46: 23 | KO46: 23 | KP46: 23 | KQ46: 23 | KR46: 24 | KS46: 24 | KT46: 24 | KU46: 24 | KV46: 24 | KW46: 24 | KX46: 24 | KY46: 24 | KZ46: 24 | LA46: 24 | LB46: 24 | LC46: 24 | LD46: 25 | LE46: 25 | LF46: 25 | LG46: 25 | LH46: 25 | LI46: 25 | LJ46: 25 | LK46: 25 | LL46: 25 | LM46: 25 | LN46: 25 | LO46: 25 | LP46: 26 | LQ46: 26 | LR46: 26 | LS46: =ROUNDUP(LS45/12,0) -> 26 | LT46: 26 | LU46: 26 | LV46: 26 | LW46: 26 | LX46: 26 | LY46: 26 | LZ46: 26 | MA46: 26 | MB46: 27 | MC46: 27 | MD46: 27 | ME46: 27 | MF46: 27 | MG46: 27 | MH46: 27 | MI46: 27 | MJ46: 27 | MK46: 27 | ML46: 27 | MM46: 27 | MN46: 28 | MO46: 28 | MP46: 28 | MQ46: 28 | MR46: 28 | MS46: 28 | MT46: 28 | MU46: 28 | MV46: 28 | MW46: 28 | MX46: 28 | MY46: 28 | MZ46: 29 | NA46: 29 | NB46: 29 | NC46: 29 | ND46: 29 | NE46: 29 | NF46: 29 | NG46: 29 | NH46: 29 | NI46: 29 | NJ46: 29 | NK46: 29 | NL46: 30 | NM46: 30 | NN46: 30 | NO46: 30 | NP46: 30 | NQ46: 30 | NR46: 30 | NS46: 30 | NT46: 30 | NU46: 30 | NV46: 30 | NW46: 30 | NX46: 31 | NY46: 31 | NZ46: 31 | OA46: 31 | OB46: 31 | OC46: 31 | OD46: 31 | OE46: =ROUNDUP(OE45/12,0) -> 31 | OF46: 31 | OG46: 31 | OH46: 31 | OI46: 31 | OJ46: 32 | OK46: 32 | OL46: 32 | OM46: 32 | ON46: 32 | OO46: 32 | OP46: 32 | OQ46: 32 | OR46: 32 | OS46: 32 | OT46: 32 | OU46: 32 | OV46: 33 | OW46: 33 | OX46: 33 | OY46: 33 | OZ46: 33 | PA46: 33 | PB46: 33 | PC46: 33 | PD46: 33 | PE46: 33 | PF46: 33 | PG46: 33 | PH46: 34 | PI46: 34 | PJ46: 34 | PK46: 34 | PL46: 34 | PM46: 34 | PN46: 34 | PO46: 34 | PP46: 34 | PQ46: 34 | PR46: 34 | PS46: 34 | PT46: 35 | PU46: 35 | PV46: 35 | PW46: 35 | PX46: 35 | PY46: 35 | PZ46: 35 | QA46: 35 | QB46: 35 | QC46: 35 | QD46: 35 | QE46: 35 | QF46: 35 | QG46: 35 | QH46: 35 | QI46: 35 | QJ46: 35 | QK46: 35 | QL46: 35 | QM46: 35 | QN46: 35 | QO46: 35 | QP46: 35 | QQ46: =ROUNDUP(QQ45/12,0) -> 35 | QR46: 35 | QS46: 35 | QT46: 35 | QU46: 35 | QV46: 35 | QW46: 35 | QX46: 35 | QY46: 35 | QZ46: 35 | RA46: 35 | RB46: 35 | RC46: 35 | RD46: 35 | RE46: 35 | RF46: 35 | RG46: 35 | RH46: 35 | RI46: 35 | RJ46: 35 | RK46: 35 | RL46: 35 | RM46: 35 | RN46: 35 | RO46: 35 | RP46: 35 | RQ46: 35 | RR46: 35 | RS46: 35 | RT46: 35 | RU46: 35 | RV46: 35 | RW46: 35 | RX46: 35 | RY46: 35 | RZ46: 35 | SA46: 35 | SB46: 35 | SC46: 35 | SD46: 35 | SE46: 35 | SF46: 35 | SG46: 35 | SH46: 35 | SI46: 35 | SJ46: 35 | SK46: 35 | SL46: 35 | SM46: 35 | SN46: 35 | SO46: 35
